Workbook

Sheet CycleTime
L1: ↓ W～AQ 「表示しない」列 ↓ ↓ W～AQ 「表示しない」列 ↓ ↓ W～AQ 「表示しない」列 ↓ ↓ W～AQ 「表示しない」列 ↓ ↓ W～AQ 「表示しない」列 ↓ ↓ W～AQ 「表示しない」列 ↓ ↓ W～AQ 「表示しない」列 ↓ ↓ W～AQ 「表示しない」列 ↓ ↓ W～AQ 「表示しない」列↓W～AQ 「表示しない」列 ↓ | AT1: 残す列 | AV1: 残す列
L2: 参考表示
L3: Vmax[㎜/s] | N3: =SQRT(D14*(2*N4*N5)/(N4+N5)) -> 542.401604 | AB3: feedforward | AE3: 物理計算用変換係数
A4: <a> | B4: シリーズ | C4: ISA | L4: =IF(AE33=0,"加速度[㎜/s^2]","加速度[deg/s^2]") -> 加速度[㎜/s^2] | N4: =D20*AH5*1000 -> 2941.995 | AB4: =AF45/100 -> 0 | AE4: ﾓｰﾀ軸角速度及び角加速度 | AH4: Ｇ
L5: =IF(AE33=0,"減速度[㎜/s^2]","減速度[deg/s^2]") -> 減速度[㎜/s^2] | N5: =D22*AH5*1000 -> 2941.995 | AB5: Kf | AC5: =IF( AB4=1,1,1-EXP(-((N11/(1-AB4))-N11)*N8) ) -> 0 | AE5: =IF(AE33=0,1000,360/(2*PI())) -> 1000 | AH5: =LeadData!$A$1 -> 9.80665
A6: <b> | B6: 型式 | C6: ISA-SXM-60 | L6: 最高速度[㎜/s] | N6: =IF(D18<N3,D18,N3) -> 240 | AO6: (Tkp+2Kf) | AP6: =($N$8*$N$11+2*$AB$4) -> 0.007797245128
L7: 分割数 | N7: =ROUND(3200/(AP18+AP20*10)*AP18,0) -> 1917 | AO7: (Tkp-2Kf) | AP7: =($N$8*$N$11-2*$AB$4) -> 0.007797245128
A8: <c> | B8: =IF(AE33=0,"リード","減速比") -> リード | C8: 4 | D8: =IF(AE33=0,"㎜","：1") -> ㎜ | L8: ⊿ｔ[s] | N8: =AT32-AT31 -> 0.0002599081709 | AO8: (2+TKp) | AP8: =(2+$N$8*$N$11) -> 2.007797245
L9: 最終時刻[s] | N9: =AT3231 -> 0.831706147 | AO9: (2-TKp) | AP9: =(2-$N$8*$N$11) -> 1.992202755
A10: <d> | B10: ストローク | C10: 100 | D10: ㎜ | L10: 最終位置[㎜] | N10: =AV3231 -> 99.99986496 | AO10: 減速時間 | AP10: =N6/N5 -> 0.08157729704 | AQ10: s
L11: 位置ｹﾞｲﾝ | N11: =AE45 -> 30 | AO11: 減速距離 | AP11: =N5*AP10*AP10/2 -> 9.789275645 | AQ11: ㎜
A12: <e> | B12: 設置姿勢 | C12: 水平 | L12: 速度制御帯域 | N12: =AG45 -> 120 | AO12: 加速時間 | AP12: =N6/N4 -> 0.08157729704 | AQ12: s
AO13: 加速距離 | AP13: =N4*AP12*AP12/2 -> 9.789275645 | AQ13: ㎜
A14: <1> | B14: 移動距離[㎜] | D14: 100 | L14: 移動可能距離[㎜] | N14: =X45+Y45 -> 100 | AO14: 等速時間 | AP14: =IF(D18<N3,(D14-AP13-AP11)/D18,0) -> 0.3350893696 | AQ14: s
AO15: 等速距離 | AP15: =AP14*N6 -> 80.42144871 | AQ15: ㎜
A16: <2> | B16: =IF(AE33=0,"搬送質量[kg]","搬送ｲﾅｰｼｬ[kgm^2]") -> 搬送質量[kg] | D16: 50 | AO16: 減速時刻 | AP16: =AP12+AP14 -> 0.4166666667 | AQ16: s
AO17: 減速位置 | AP17: =AP13+AP15 -> 90.21072436 | AQ17: ㎜
A18: <3> | B18: 速度[㎜/s] | D18: 240 | G18: ●計算結果 | AO18: TotalTime | AP18: =AP14+AP12+AP10 -> 0.4982439637 | AQ18: s
AE19: 運転姿勢 | AF19: ←初期値 | AO19: Spdτ | AP19: =1/N12 -> 0.008333333333 | AQ19: s
A20: <4> | B20: 加速度[G] | D20: 0.3 | G20: 位置決め時間 [s] | I20: =LOOKUP((D14-D24),AV31:AV3231,AT31:AT3231) -> 0.6113040181 | AE20: 水平 | AF20: 水平 | AO20: Posτ | AP20: =1/N11 -> 0.03333333333 | AQ20: s
AE21: 垂直 | AO21: 収束時間 | AP21: =I20-AP18 -> 0.1130600544 | AQ21: s
A22: <5> | B22: 減速度[G] | D22: 0.3
A24: <6> | B24: 位置決め幅 [㎜] | D24: 0.1 | F24: =IF(N9<=I20,"位置決め時間を正しく計算できていません","※位置決め幅に到達するまでの時間を表します。") -> ※位置決め幅に到達するまでの時間を表します。
F25: =IF(N10<=I21,"","※計算結果は参考値です。 負荷状況により実際の位置決め時間とは異なる場合があります。 ※ゲイン調整により計算結果より早く位置決めできる場合があります。 詳しくは使用するコントローラーの取扱説明書をご確認ください。") -> ※計算結果は参考値です。 負荷状況により実際の位置決め時間とは異なる場合があります。 ※ゲイン調整により計算結果より早く位置決めできる場合があります。 詳しくは使用するコントローラーの取扱説明書をご確認ください。
A28: 1 | B28: =A28+1 -> 2 | C28: 3 | D28: 4 | E28: 5 | F28: 6 | G28: 7 | H28: 8 | I28: 9 | J28: 10 | K28: 11 | L28: 12 | M28: 13 | N28: 14 | O28: 15 | P28: =O28+1 -> 16 | Q28: =P28+1 -> 17 | R28: =Q28+1 -> 18 | S28: =O28+4 -> 19 | T28: 20 | U28: 21 | V28: 22 | W28: 23 | X28: 24 | Y28: 25 | Z28: 26 | AA28: 27 | AB28: 28 | AC28: 29 | AD28: 30 | AE28: 31 | AF28: 32 | AG28: 33 | AH28: 34 | AI28: 35 | AJ28: 36 | AK28: 37 | AL28: 38 | AM28: 39 | AN28: 40 | AO28: 41 | AP28: 42 | AQ28: 43 | AR28: 44 | AS28: 45 | AT28: 46 | AU28: 47 | AV28: 48
O29: ↓↓↓↓↓↓↓↓ フォント色を白にする列 O29～U193 ↓↓↓↓↓↓↓↓ | AS29: ↓↓↓↓↓↓↓↓↓↓↓↓↓↓↓ フォント色を白に、数式は非表示に、する列 A29～J3231 ↓↓↓↓↓↓↓↓↓↓↓↓↓↓↓
B30: 可搬質量 | C30: 加減速度 | D30: 最高速度 | E30: 実加速度 | F30: 到達速度 | G30: 運転時間 | H30: 三角速度 | O30: № | P30: メカ型式リスト | Q30: 絞込み | R30: ﾀｲﾌﾟﾘｽﾄ | S30: ﾘｰﾄﾞﾘｽﾄ | T30: ｽﾄﾛｰｸﾘｽﾄ | U30: 型式総数 | W30: =DataSerch!B1 -> メカ機種データレコード | AS30: № | AT30: 時刻 | AU30: 位置計画 | AV30: 位置
A31: =A30+1 -> 1 | B31: 30 | C31: 0.5 | D31: 240 | E31: 4903.325 | F31: 240 | G31: 0.4656130449 | H31: 700.2374597 | O31: 1 | P31: ISA-SXM-60 | Q31: ISA-SXM-60 | R31: ISA | S31: 4 | T31: 100 | U31: 161 | W31: ﾚｺｰﾄﾞ№ | X31: =DataSerch!$C$2 -> ｱｸﾁｭｴｰﾀ型式 | Z31: =DataSerch!$E$2 -> 0 | AA31: =DataSerch!$F$2 -> 0 | AB31: =DataSerch!$G$2 -> 0 | AC31: =DataSerch!$H$2 -> 最小ｽﾄﾛｰｸ | AD31: =DataSerch!$I$2 -> 最大ｽﾄﾛｰｸ | AE31: =DataSerch!$J$2 -> 動作種別 | AF31: =DataSerch!$K$2 -> 0 | AS31: 0 | AT31: =$AP$18/$N$7*AS31 -> 0 | AU31: 0 | AV31: 0
A32: 2 | B32: 37.5 | C32: 0.4 | D32: 240 | E32: 3922.66 | F32: 240 | G32: 0.4778496394 | H32: 626.3114241 | O32: =O31+1 -> 2 | P32: ISA-SYM-60 | Q32: ISA-SYM-60 | R32: ISDA | S32: 8 | T32: 150 | U32: 絞込み数 | W32: =DataSerch!$B$3 -> 1 | X32: =DataSerch!$C$3 -> ISA-SXM-60 | Z32: =DataSerch!$E$4 -> [kg] | AA32: =DataSerch!$F$4 -> [mm] | AB32: =DataSerch!$G$4 -> [mm] | AC32: =DataSerch!$H$4 -> [mm] | AD32: =DataSerch!$I$4 -> [mm] | AE32: =DataSerch!$J$4 -> 0/1 | AF32: =DataSerch!$K$4 -> [K] | AS32: =AS31+1 -> 1 | AT32: 0.0002599081709 | AU32: =IF(($N$4*AT32^2/2)<=$AP$13,($N$4*AT32^2/2), IF(($AP$13+$N$6*(AT32-$AP$12))<=$AP$17, ($AP$13+$N$6*(AT32-$AP$12)), IF(AU31<$D$14, ($AP$17+($N$6-$N$5*(AT32-$AP$16)/2)*(AT32-$AP$16)), $D$14))) -> 9.936920164e-05 | AV32: =( $AP$6*AU32 + $AP$7*AU31 + $AP$9*AV31 )/$AP$8 -> 3.85898539e-07
A33: 3 | B33: 50 | C33: 0.3 | D33: 240 | E33: 2941.995 | F33: 240 | G33: 0.4982439637 | H33: 542.401604 | O33: =O32+1 -> 3 | P33: ISA-SZM-60 | Q33: ISA-SZM-60 | R33: NS | S33: 16 | T33: 200 | U33: 24 | AC33: =DataSerch!$H$5 -> 100 | AD33: =DataSerch!$I$5 -> 600 | AE33: =DataSerch!$J$5 -> 0 | AS33: =AS32+1 -> 2 | AT33: 0.0005198163419 | AU33: 0.0003974768066 | AV33: =( $AP$6*AU33 + $AP$7*AU32 + $AP$9*AV32 )/$AP$8 -> 2.312393973e-06
A34: 4 | B34: -1 | C34: -1 | D34: -1 | E34: -1 | F34: -1 | G34: -1 | H34: -1 | O34: 4 | P34: ISA-MXM-100 | Q34: ISA-MXM-100 | R34: RCS2 | S34: - - - | T34: 250 | AS34: 3 | AT34: 0.0007797245128 | AU34: 0.0008943228148 | AV34: 7.311114698e-06
A35: 5 | B35: -1 | C35: -1 | D35: -1 | E35: -1 | F35: -1 | G35: -1 | H35: -1 | O35: 5 | P35: ISA-MXM-200 | Q35: ISA-MXM-200 | R35: LSA | S35: - - - | T35: 300 | U35: ﾘｰﾄﾞ総数 | W35: リードデータレコード | AS35: 4 | AT35: 0.001039632684 | AU35: 0.001589907226 | AV35: 1.6901793e-05
A36: 6 | B36: -1 | C36: -1 | D36: -1 | E36: -1 | F36: -1 | G36: -1 | H36: -1 | O36: 6 | P36: ISA-MXMX-200 | Q36: ISA-MXMX-200 | R36: IF | S36: - - - | T36: 350 | U36: 3 | W36: リスト№ | X36: =DataSerch!$F$24 -> ﾘｰﾄﾞ長 | Y36: =DataSerch!$G$24 -> 0 | Z36: =DataSerch!$H$24 -> 水平定格加速度 | AA36: =DataSerch!$I$24 -> 垂直定格加速度 | AB36: =DataSerch!$J$24 -> 水平最大加速度 | AC36: =DataSerch!$K$24 -> 垂直最大加速度 | AD36: =DataSerch!$L$24 -> 0 | AE36: =DataSerch!$M$24 -> 0 | AF36: =DataSerch!$N$24 -> 0 | AG36: =DataSerch!$O$24 -> ｷﾞｱ比分子 | AH36: =DataSerch!$P$24 -> ｷﾞｱ比分母 | AI36: =DataSerch!$Q$24 -> 0 | AJ36: =DataSerch!$R$24 -> ｽﾄﾛｰｸ刻み | AS36: 5 | AT36: 0.001299540855 | AU36: 0.002484230041 | AV36: 3.259235747e-05
A37: 7 | B37: -1 | C37: -1 | D37: -1 | E37: -1 | F37: -1 | G37: -1 | H37: -1 | O37: 7 | P37: ISA-MYM-100 | Q37: ISA-MYM-100 | R37: FS | S37: - - - | T37: 400 | AS37: 6 | AT37: 0.001559449026 | AU37: 0.003577291259 | AV37: 5.587902466e-05
A38: 8 | B38: -1 | C38: -1 | D38: -1 | E38: -1 | F38: -1 | G38: -1 | H38: -1 | O38: 8 | P38: ISA-MYM-200 | Q38: ISA-MYM-200 | R38: RCS2-SS | S38: - - - | T38: 450 | U38: ｽﾄﾛｰｸ総数 | W38: =DataSerch!$D$35 -> 1 | X38: =DataSerch!$F$25 -> [mm] | Y38: =DataSerch!$G$25 -> [kgm^2] | Z38: =DataSerch!$H$25 -> [m/s^2] | AA38: =DataSerch!$I$25 -> [m/s^2] | AB38: =DataSerch!$J$25 -> [m/s^2] | AC38: =DataSerch!$K$25 -> [m/s^2] | AD38: =DataSerch!$L$25 -> [Nm] | AE38: =DataSerch!$M$25 -> [Nms] | AF38: =DataSerch!$N$25 -> [Nm] | AG38: =DataSerch!$O$25 -> 0 | AH38: =DataSerch!$P$25 -> 0 | AI38: =DataSerch!$Q$25 -> 0 | AJ38: =DataSerch!$R$25 -> [mm] | AS38: 7 | AT38: 0.001819357197 | AU38: 0.004869090881 | AV38: 8.824639006e-05
A39: 9 | B39: -1 | C39: -1 | D39: -1 | E39: -1 | F39: -1 | G39: -1 | H39: -1 | O39: 9 | P39: ISA-MZM-100 | Q39: ISA-MZM-100 | R39: RCS2-RA | T39: 500 | U39: 11 | X39: =LOOKUP(W38,DataSerch!$B$26:$B$33,DataSerch!$F$26:$F$33) -> 4 | Z39: =LOOKUP(W38,DataSerch!$B$26:$B$33,DataSerch!$H$26:$H$33) -> 1.4709975 | AA39: =LOOKUP(W38,DataSerch!$B$26:$B$33,DataSerch!$I$26:$I$33) -> 1.4709975 | AB39: =LOOKUP(W38,DataSerch!$B$26:$B$33,DataSerch!$J$26:$J$33) -> 4.903325 | AC39: =LOOKUP(W38,DataSerch!$B$26:$B$33,DataSerch!$K$26:$K$33) -> 2.941995 | AG39: =LOOKUP(W38,DataSerch!$B$26:$B$33,DataSerch!$O$26:$O$33) -> 1 | AH39: =LOOKUP(W38,DataSerch!$B$26:$B$33,DataSerch!$P$26:$P$33) -> 1 | AJ39: =LOOKUP(W38,DataSerch!$B$26:$B$33,DataSerch!$R$26:$R$33) -> 50 | AS39: 8 | AT39: 0.002079265368 | AU39: 0.006359628905 | AV39: 0.0001311675184
A40: 10 | B40: -1 | C40: -1 | D40: -1 | E40: -1 | F40: -1 | G40: -1 | H40: -1 | O40: 10 | P40: ISA-MZM-200 | Q40: ISA-MZM-200 | R40: RCS2-SR | T40: 550 | AS40: 9 | AT40: 0.002339173539 | AU40: 0.008048905333 | AV40: 0.000186104033
A41: 11 | B41: -1 | C41: -1 | D41: -1 | E41: -1 | F41: -1 | G41: -1 | H41: -1 | O41: 11 | P41: ISA-LXM-200 | Q41: ISA-LXM-200 | R41: RCS2-RGS | T41: 600 | W41: ストロークデータレコード | AS41: 10 | AT41: 0.002599081709 | AU41: 0.009936920164 | AV41: 0.0002545062051
A42: 12 | B42: -1 | C42: -1 | D42: -1 | E42: -1 | F42: -1 | G42: -1 | H42: -1 | O42: 12 | P42: ISA-LXM-400 | Q42: ISA-LXM-400 | R42: RCS2-RGD | T42: - - - | W42: リスト№ | X42: =DataSerch!$E$58 -> ｽﾄﾛｰｸ長 | Y42: =DataSerch!$G$58 -> 有効ｽﾄﾛｰｸ補正 | Z42: =DataSerch!$H$58 -> 0 | AA42: =DataSerch!$I$58 -> 基準ｹﾞｲﾝ用搬送質量 | AB42: =DataSerch!$J$58 -> 水平可搬質量 | AC42: =DataSerch!$K$58 -> 垂直可搬質量 | AD42: =DataSerch!$L$58 -> 最大速度 | AE42: =DataSerch!$M$58 -> 位置ｹﾞｲﾝ | AF42: =DataSerch!$N$58 -> FFｹﾞｲﾝ | AG42: =DataSerch!$O$58 -> 速度制御帯域 | AH42: =DataSerch!$P$58 -> 0 | AI42: =DataSerch!$Q$58 -> 0 | AJ42: =DataSerch!$R$58 -> 0 | AK42: =DataSerch!$S$58 -> 0 | AL42: =DataSerch!$T$58 -> 0 | AS42: 11 | AT42: 0.00285898988 | AU42: 0.0120236734 | AV42: 0.0003378130416
A43: 13 | B43: -1 | C43: -1 | D43: -1 | E43: -1 | F43: -1 | G43: -1 | H43: -1 | O43: 13 | P43: ISA-LXMX-200 | Q43: ISA-LXMX-200 | R43: RCS2-A | T43: - - - | AS43: 12 | AT43: 0.003118898051 | AU43: 0.01430916504 | AV43: 0.0004374523724
A44: 14 | B44: -1 | C44: -1 | D44: -1 | E44: -1 | F44: -1 | G44: -1 | H44: -1 | O44: 14 | P44: ISA-LXMX-400 | Q44: ISA-LXMX-400 | R44: RCS2-F | T44: - - - | W44: =MATCH(C10,DataSerch!$E$60:$E$109,0) -> 1 | X44: =DataSerch!$E$59 -> [mm] | Y44: =DataSerch!$G$59 -> [mm] | Z44: =DataSerch!$H$59 -> [kg/mm] | AA44: =DataSerch!$I$59 -> [kg] | AB44: =DataSerch!$J$59 -> [kg] | AC44: =DataSerch!$K$59 -> [kg] | AD44: =DataSerch!$L$59 -> [mm/s] | AE44: =DataSerch!$M$59 -> [1/s] | AF44: =DataSerch!$N$59 -> [%] | AG44: =DataSerch!$O$59 -> [rad/s] | AH44: =DataSerch!$P$59 -> 0 | AI44: =DataSerch!$Q$59 -> [s] | AJ44: =DataSerch!$R$59 -> 0 | AK44: =DataSerch!$S$59 -> 0 | AL44: =DataSerch!$T$59 -> [Nm/rad] | AS44: 13 | AT44: 0.003378806222 | AU44: 0.01679339508 | AV44: 0.000554840938
A45: 15 | B45: -1 | C45: -1 | D45: -1 | E45: -1 | F45: -1 | G45: -1 | H45: -1 | O45: 15 | P45: ISA-LXUWX-200 | Q45: ISA-LXUWX-200 | R45: RCS2-RT | T45: - - - | X45: =LOOKUP(W44,DataSerch!$D$60:$D$109,DataSerch!$E$60:$E$109) -> 100 | Y45: =LOOKUP(W44,DataSerch!$D$60:$D$109,DataSerch!$G$60:$G$109) -> 0 | AA45: =LOOKUP(W44,DataSerch!$D$60:$D$109,DataSerch!$I$60:$I$109) -> 50 | AB45: =LOOKUP(W44,DataSerch!$D$60:$D$109,DataSerch!$J$60:$J$109) -> 50 | AC45: =LOOKUP(W44,DataSerch!$D$60:$D$109,DataSerch!$K$60:$K$109) -> 14 | AD45: =LOOKUP(W44,DataSerch!$D$60:$D$109,DataSerch!$L$60:$L$109) -> 240 | AE45: =LOOKUP(W44,DataSerch!$D$60:$D$109,DataSerch!$M$60:$M$109) -> 30 | AF45: =LOOKUP(W44,DataSerch!$D$60:$D$109,DataSerch!$N$60:$N$109) -> 0 | AG45: =LOOKUP(W44,DataSerch!$D$60:$D$109,DataSerch!$O$60:$O$109) -> 120 | AS45: 14 | AT45: 0.003638714393 | AU45: 0.01947636352 | AV45: 0.0006913844748
A46: 16 | B46: -1 | C46: -1 | D46: -1 | E46: -1 | F46: -1 | G46: -1 | H46: -1 | O46: 16 | P46: ISA-LXUWX-400 | Q46: ISA-LXUWX-400 | R46: RCS2W | T46: - - - | AS46: 15 | AT46: 0.003898622564 | AU46: 0.02235807037 | AV46: 0.0008484778009
A47: 17 | B47: -1 | C47: -1 | D47: -1 | E47: -1 | F47: -1 | G47: -1 | H47: -1 | O47: 17 | P47: ISA-LYM-200 | Q47: ISA-LYM-200 | R47: RS | T47: - - - | AS47: 16 | AT47: 0.004158530735 | AU47: 0.02543851562 | AV47: 0.001027504901
A48: 18 | B48: -1 | C48: -1 | D48: -1 | E48: -1 | F48: -1 | G48: -1 | H48: -1 | O48: 18 | P48: ISA-LYM-400 | Q48: ISA-LYM-400 | R48: ISWA | T48: - - - | AS48: 17 | AT48: 0.004418438906 | AU48: 0.02871769928 | AV48: 0.001229839011
A49: 19 | B49: -1 | C49: -1 | D49: -1 | E49: -1 | F49: -1 | G49: -1 | H49: -1 | O49: 19 | P49: ISA-LZM-200 | Q49: ISA-LZM-200 | R49: RCS3 | T49: - - - | AS49: 18 | AT49: 0.004678347077 | AU49: 0.03219562133 | AV49: 0.001456842699
A50: 20 | B50: -1 | C50: -1 | D50: -1 | E50: -1 | F50: -1 | G50: -1 | H50: -1 | O50: 20 | P50: ISA-LZM-400 | Q50: ISA-LZM-400 | T50: - - - | U50: リンクリスト総数 | AS50: 19 | AT50: 0.004938255248 | AU50: 0.03587228179 | AV50: 0.001709867952
A51: 21 | B51: -1 | C51: -1 | D51: -1 | E51: -1 | F51: -1 | G51: -1 | H51: -1 | O51: 21 | P51: ISA-WXM-600 | Q51: ISA-WXM-600 | T51: - - - | U51: 3 | AS51: 20 | AT51: 0.005198163419 | AU51: 0.03974768066 | AV51: 0.001990256256
A52: 22 | B52: -1 | C52: -1 | D52: -1 | E52: -1 | F52: -1 | G52: -1 | H52: -1 | O52: 22 | P52: ISA-WXM-750 | Q52: ISA-WXM-750 | T52: - - - | AS52: 21 | AT52: 0.00545807159 | AU52: 0.04382181793 | AV52: 0.002299338678
A53: 23 | B53: -1 | C53: -1 | D53: -1 | E53: -1 | F53: -1 | G53: -1 | H53: -1 | O53: 23 | P53: ISA-WXMX-600 | Q53: ISA-WXMX-600 | T53: - - - | AS53: 22 | AT53: 0.005717979761 | AU53: 0.0480946936 | AV53: 0.002638435944
A54: 24 | B54: -1 | C54: -1 | D54: -1 | E54: -1 | F54: -1 | G54: -1 | H54: -1 | O54: 24 | P54: ISA-WXMX-750 | Q54: ISA-WXMX-750 | T54: - - - | AS54: 23 | AT54: 0.005977887932 | AU54: 0.05256630767 | AV54: 0.003008858525
A55: 25 | B55: -1 | C55: -1 | D55: -1 | E55: -1 | F55: -1 | G55: -1 | H55: -1 | O55: 25 | P55: ISDA-S-60 | Q55: - - - | T55: - - - | AS55: 24 | AT55: 0.006237796103 | AU55: 0.05723666015 | AV55: 0.003411906713
A56: 26 | B56: -1 | C56: -1 | D56: -1 | E56: -1 | F56: -1 | G56: -1 | H56: -1 | O56: 26 | P56: ISDA-M-100 | Q56: - - - | T56: - - - | AS56: 25 | AT56: 0.006497704274 | AU56: 0.06210575103 | AV56: 0.003848870699
A57: 27 | B57: -1 | C57: -1 | D57: -1 | E57: -1 | F57: -1 | G57: -1 | H57: -1 | O57: 27 | P57: ISDA-M-200 | Q57: - - - | T57: - - - | AS57: 26 | AT57: 0.006757612445 | AU57: 0.06717358031 | AV57: 0.004321030656
A58: 28 | B58: -1 | C58: -1 | D58: -1 | E58: -1 | F58: -1 | G58: -1 | H58: -1 | O58: 28 | P58: ISDA-MX-200 | Q58: - - - | T58: - - - | AS58: 27 | AT58: 0.007017520616 | AU58: 0.072440148 | AV58: 0.004829656811
A59: 29 | B59: -1 | C59: -1 | D59: -1 | E59: -1 | F59: -1 | G59: -1 | H59: -1 | O59: 29 | P59: ISDA-L-200 | Q59: - - - | T59: - - - | AS59: 28 | AT59: 0.007277428787 | AU59: 0.07790545409 | AV59: 0.005376009526
A60: 30 | B60: -1 | C60: -1 | D60: -1 | E60: -1 | F60: -1 | G60: -1 | H60: -1 | O60: 30 | P60: ISDA-L-400 | Q60: - - - | T60: - - - | AS60: 29 | AT60: 0.007537336957 | AU60: 0.08356949858 | AV60: 0.005961339376
A61: 31 | B61: -1 | C61: -1 | D61: -1 | E61: -1 | F61: -1 | G61: -1 | H61: -1 | O61: 31 | P61: ISDA-LX-200 | Q61: - - - | T61: - - - | AS61: 30 | AT61: 0.007797245128 | AU61: 0.08943228148 | AV61: 0.00658688722
A62: 32 | B62: -1 | C62: -1 | D62: -1 | E62: -1 | F62: -1 | G62: -1 | H62: -1 | O62: 32 | P62: ISDA-LX-400 | Q62: - - - | T62: - - - | AS62: 31 | AT62: 0.008057153299 | AU62: 0.09549380278 | AV62: 0.007253884281
A63: 33 | B63: -1 | C63: -1 | D63: -1 | E63: -1 | F63: -1 | G63: -1 | H63: -1 | O63: 33 | P63: ISDACR-W-600 | Q63: - - - | T63: - - - | AS63: 32 | AT63: 0.00831706147 | AU63: 0.1017540625 | AV63: 0.007963552218
A64: 34 | B64: -1 | C64: -1 | D64: -1 | E64: -1 | F64: -1 | G64: -1 | H64: -1 | O64: 34 | P64: ISDACR-W-750 | Q64: - - - | T64: - - - | AS64: 33 | AT64: 0.008576969641 | AU64: 0.1082130606 | AV64: 0.008717103202
A65: 35 | B65: -1 | C65: -1 | D65: -1 | E65: -1 | F65: -1 | G65: -1 | H65: -1 | O65: 35 | P65: ISDACR-WX-600 | Q65: - - - | T65: - - - | AS65: 34 | AT65: 0.008836877812 | AU65: 0.1148707971 | AV65: 0.009515739989
A66: 36 | B66: -1 | C66: -1 | D66: -1 | E66: -1 | F66: -1 | G66: -1 | H66: -1 | O66: 36 | P66: ISDACR-WX-750 | Q66: - - - | T66: - - - | AS66: 35 | AT66: 0.009096785983 | AU66: 0.121727272 | AV66: 0.01036065599
A67: 37 | B67: -1 | C67: -1 | D67: -1 | E67: -1 | F67: -1 | G67: -1 | H67: -1 | O67: 37 | P67: NS-SXMS-60 | Q67: - - - | T67: - - - | AS67: 36 | AT67: 0.009356694154 | AU67: 0.1287824853 | AV67: 0.01125303536
A68: 38 | B68: -1 | C68: -1 | D68: -1 | E68: -1 | F68: -1 | G68: -1 | H68: -1 | O68: 38 | P68: NS-SXMM-60 | Q68: - - - | T68: - - - | AS68: 37 | AT68: 0.009616602325 | AU68: 0.1360364371 | AV68: 0.01219405304
A69: 39 | B69: -1 | C69: -1 | D69: -1 | E69: -1 | F69: -1 | G69: -1 | H69: -1 | O69: 39 | P69: NS-SZMS-60 | Q69: - - - | T69: - - - | AS69: 38 | AT69: 0.009876510496 | AU69: 0.1434891272 | AV69: 0.01318487485
A70: 40 | B70: -1 | C70: -1 | D70: -1 | E70: -1 | F70: -1 | G70: -1 | H70: -1 | O70: 40 | P70: NS-SZMM-60 | Q70: - - - | T70: - - - | AS70: 39 | AT70: 0.01013641867 | AU70: 0.1511405557 | AV70: 0.01422665756
A71: 41 | B71: -1 | C71: -1 | D71: -1 | E71: -1 | F71: -1 | G71: -1 | H71: -1 | O71: 41 | P71: NS-MXMS-200 | Q71: - - - | T71: - - - | AS71: 40 | AT71: 0.01039632684 | AU71: 0.1589907226 | AV71: 0.01532054896
A72: 42 | B72: -1 | C72: -1 | D72: -1 | E72: -1 | F72: -1 | G72: -1 | H72: -1 | O72: 42 | P72: NS-MXMM-200 | Q72: - - - | T72: - - - | AS72: 41 | AT72: 0.01065623501 | AU72: 0.167039628 | AV72: 0.0164676879
A73: 43 | B73: -1 | C73: -1 | D73: -1 | E73: -1 | F73: -1 | G73: -1 | H73: -1 | O73: 43 | P73: NS-MXMXS-200 | Q73: - - - | T73: - - - | AS73: 42 | AT73: 0.01091614318 | AU73: 0.1752872717 | AV73: 0.01766920442
A74: 44 | B74: -1 | C74: -1 | D74: -1 | E74: -1 | F74: -1 | G74: -1 | H74: -1 | O74: 44 | P74: NS-MZMS-200 | Q74: - - - | T74: - - - | AS74: 43 | AT74: 0.01117605135 | AU74: 0.1837336538 | AV74: 0.01892621975
A75: 45 | B75: -1 | C75: -1 | D75: -1 | E75: -1 | F75: -1 | G75: -1 | H75: -1 | O75: 45 | P75: NS-MZMM-200 | Q75: - - - | T75: - - - | AS75: 44 | AT75: 0.01143595952 | AU75: 0.1923787744 | AV75: 0.02023984644
A76: 46 | B76: -1 | C76: -1 | D76: -1 | E76: -1 | F76: -1 | G76: -1 | H76: -1 | O76: 46 | P76: NS-LXMS-400 | Q76: - - - | T76: - - - | AS76: 45 | AT76: 0.01169586769 | AU76: 0.2012226333 | AV76: 0.02161118838
A77: 47 | B77: -1 | C77: -1 | D77: -1 | E77: -1 | F77: -1 | G77: -1 | H77: -1 | O77: 47 | P77: NS-LXMM-400 | Q77: - - - | T77: - - - | AS77: 46 | AT77: 0.01195577586 | AU77: 0.2102652307 | AV77: 0.0230413409
A78: 48 | B78: -1 | C78: -1 | D78: -1 | E78: -1 | F78: -1 | G78: -1 | H78: -1 | O78: 48 | P78: NS-LXMXS-400 | Q78: - - - | T78: - - - | AS78: 47 | AT78: 0.01221568403 | AU78: 0.2195065664 | AV78: 0.0245313908
A79: 49 | B79: -1 | C79: -1 | D79: -1 | E79: -1 | F79: -1 | G79: -1 | H79: -1 | O79: 49 | P79: NS-LZMS-400 | Q79: - - - | T79: - - - | AS79: 48 | AT79: 0.01247559221 | AU79: 0.2289466406 | AV79: 0.02608241646
A80: 50 | B80: -1 | C80: -1 | D80: -1 | E80: -1 | F80: -1 | G80: -1 | H80: -1 | O80: 50 | P80: NS-LZMM-400 | Q80: - - - | T80: - - - | AS80: 49 | AT80: 0.01273550038 | AU80: 0.2385854531 | AV80: 0.02769548788
A81: 51 | B81: -1 | C81: -1 | D81: -1 | E81: -1 | F81: -1 | G81: -1 | H81: -1 | O81: 51 | P81: RCS2-SS8C-100 | Q81: - - - | AS81: 50 | AT81: 0.01299540855 | AU81: 0.2484230041 | AV81: 0.02937166674
A82: 52 | B82: -1 | C82: -1 | D82: -1 | E82: -1 | F82: -1 | G82: -1 | H82: -1 | O82: 52 | P82: RCS2-SS8C-150 | Q82: - - - | AS82: 51 | AT82: 0.01325531672 | AU82: 0.2584592935 | AV82: 0.03111200649
A83: 53 | B83: -1 | C83: -1 | D83: -1 | E83: -1 | F83: -1 | G83: -1 | H83: -1 | O83: 53 | P83: RCS2-SS8R-100 | Q83: - - - | AS83: 52 | AT83: 0.01351522489 | AU83: 0.2686943212 | AV83: 0.03291755238
A84: 54 | B84: -1 | C84: -1 | D84: -1 | E84: -1 | F84: -1 | G84: -1 | H84: -1 | O84: 54 | P84: RCS2-SS8R-150 | Q84: - - - | AS84: 53 | AT84: 0.01377513306 | AU84: 0.2791280874 | AV84: 0.03478934156
A85: 55 | B85: -1 | C85: -1 | D85: -1 | E85: -1 | F85: -1 | G85: -1 | H85: -1 | O85: 55 | P85: RCS2-RA4D-20 | Q85: - - - | AS85: 54 | AT85: 0.01403504123 | AU85: 0.289760592 | AV85: 0.03672840311
A86: 56 | B86: -1 | C86: -1 | D86: -1 | E86: -1 | F86: -1 | G86: -1 | H86: -1 | O86: 56 | P86: RCS2-RA4D-30 | Q86: - - - | AS86: 55 | AT86: 0.0142949494 | AU86: 0.300591835 | AV86: 0.03873575812
A87: 57 | B87: -1 | C87: -1 | D87: -1 | E87: -1 | F87: -1 | G87: -1 | H87: -1 | O87: 57 | P87: RCS2-SRA7BD-60 | Q87: - - - | AS87: 56 | AT87: 0.01455485757 | AU87: 0.3116218164 | AV87: 0.04081241976
A88: 58 | B88: -1 | C88: -1 | D88: -1 | E88: -1 | F88: -1 | G88: -1 | H88: -1 | O88: 58 | P88: RCS2-SRA7BD-100 | Q88: - - - | AS88: 57 | AT88: 0.01481476574 | AU88: 0.3228505361 | AV88: 0.04295939331
A89: 59 | B89: -1 | C89: -1 | D89: -1 | E89: -1 | F89: -1 | G89: -1 | H89: -1 | O89: 59 | P89: RCS2-SRA7BD-150 | Q89: - - - | AS89: 58 | AT89: 0.01507467391 | AU89: 0.3342779943 | AV89: 0.04517767625
A90: 60 | B90: -1 | C90: -1 | D90: -1 | E90: -1 | F90: -1 | G90: -1 | H90: -1 | O90: 60 | P90: RCS2-RA4R-20 | Q90: - - - | AS90: 59 | AT90: 0.01533458209 | AU90: 0.3459041909 | AV90: 0.04746825834
A91: 61 | B91: -1 | C91: -1 | D91: -1 | E91: -1 | F91: -1 | G91: -1 | H91: -1 | O91: 61 | P91: RCS2-RA4R-30 | Q91: - - - | AS91: 60 | AT91: 0.01559449026 | AU91: 0.3577291259 | AV91: 0.04983212161
A92: 62 | B92: -1 | C92: -1 | D92: -1 | E92: -1 | F92: -1 | G92: -1 | H92: -1 | O92: 62 | P92: RCS2-RA5R-60 | Q92: - - - | AS92: 61 | AT92: 0.01585439843 | AU92: 0.3697527993 | AV92: 0.05227024048
A93: 63 | B93: -1 | C93: -1 | D93: -1 | E93: -1 | F93: -1 | G93: -1 | H93: -1 | O93: 63 | P93: RCS2-RA13R-750 | Q93: - - - | AS93: 62 | AT93: 0.0161143066 | AU93: 0.3819752111 | AV93: 0.05478358182
A94: 64 | B94: -1 | C94: -1 | D94: -1 | E94: -1 | F94: -1 | G94: -1 | H94: -1 | O94: 64 | P94: RCS2-RGS4C-20 | Q94: - - - | AS94: 63 | AT94: 0.01637421477 | AU94: 0.3943963613 | AV94: 0.05737310496
A95: =A94+1 -> 65 | B95: -1 | C95: -1 | D95: -1 | E95: -1 | F95: -1 | G95: -1 | H95: -1 | O95: 65 | P95: RCS2-RGS4C-30 | Q95: - - - | AS95: 64 | AT95: =$AP$18/$N$7*AS95 -> 0.01663412294 | AU95: 0.4070162499 | AV95: 0.0600397618
A96: 66 | B96: -1 | C96: -1 | D96: -1 | E96: -1 | F96: -1 | G96: -1 | H96: -1 | O96: 66 | P96: RCS2-RGS5C-60 | Q96: - - - | AS96: 65 | AT96: 0.01689403111 | AU96: =IF(($N$4*AT96^2/2)<=$AP$13,($N$4*AT96^2/2), IF(($AP$13+$N$6*(AT96-$AP$12))<=$AP$17, ($AP$13+$N$6*(AT96-$AP$12)), IF(AU95<$D$14, ($AP$17+($N$6-$N$5*(AT96-$AP$16)/2)*(AT96-$AP$16)), $D$14))) -> 0.4198348769 | AV96: 0.06278449683
A97: 67 | B97: -1 | C97: -1 | D97: -1 | E97: -1 | F97: -1 | G97: -1 | H97: -1 | O97: =O96+1 -> 67 | P97: RCS2-RGS5C-100 | Q97: - - - | AS97: =AS96+1 -> 66 | AT97: 0.01715393928 | AU97: 0.4328522424 | AV97: =( $AP$6*AU97 + $AP$7*AU96 + $AP$9*AV96 )/$AP$8 -> 0.06560824723
A98: 68 | B98: -1 | C98: -1 | D98: -1 | E98: -1 | F98: -1 | G98: -1 | H98: -1 | O98: 68 | P98: RCS2-RGS4D-20 | Q98: - - - | AS98: 67 | AT98: 0.01741384745 | AU98: 0.4460683462 | AV98: 0.06851194287
A99: 69 | B99: -1 | C99: -1 | D99: -1 | E99: -1 | F99: -1 | G99: -1 | H99: -1 | O99: 69 | P99: RCS2-RGS4D-30 | Q99: - - - | AS99: 68 | AT99: 0.01767375562 | AU99: 0.4594831884 | AV99: 0.07149650641
A100: 70 | B100: -1 | C100: -1 | D100: -1 | E100: -1 | F100: -1 | G100: -1 | H100: -1 | O100: 70 | P100: RCS2-SRGS7BD-60 | Q100: - - - | AS100: 69 | AT100: 0.0179336638 | AU100: 0.473096769 | AV100: 0.07456285336
A101: 71 | B101: -1 | C101: -1 | D101: -1 | E101: -1 | F101: -1 | G101: -1 | H101: -1 | O101: 71 | P101: RCS2-SRGS7BD-100 | Q101: - - - | AS101: 70 | AT101: 0.01819357197 | AU101: 0.4869090881 | AV101: 0.0777118921
A102: 72 | B102: -1 | C102: -1 | D102: -1 | E102: -1 | F102: -1 | G102: -1 | H102: -1 | O102: 72 | P102: RCS2-SRGS7BD-150 | Q102: - - - | AS102: 71 | AT102: 0.01845348014 | AU102: 0.5009201455 | AV102: 0.08094452395
A103: 73 | B103: -1 | C103: -1 | D103: -1 | E103: -1 | F103: -1 | G103: -1 | H103: -1 | O103: 73 | P103: RCS2-RGD4C-20 | Q103: - - - | AS103: 72 | AT103: 0.01871338831 | AU103: 0.5151299413 | AV103: 0.08426164326
A104: 74 | B104: -1 | C104: -1 | D104: -1 | E104: -1 | F104: -1 | G104: -1 | H104: -1 | O104: 74 | P104: RCS2-RGD4C-30 | Q104: - - - | AS104: 73 | AT104: 0.01897329648 | AU104: 0.5295384756 | AV104: 0.08766413739
A105: 75 | B105: -1 | C105: -1 | D105: -1 | E105: -1 | F105: -1 | G105: -1 | H105: -1 | O105: 75 | P105: RCS2-RGD5C-60 | Q105: - - - | AS105: 74 | AT105: 0.01923320465 | AU105: 0.5441457482 | AV105: 0.09115288685
A106: 76 | B106: -1 | C106: -1 | D106: -1 | E106: -1 | F106: -1 | G106: -1 | H106: -1 | O106: 76 | P106: RCS2-RGD5C-100 | Q106: - - - | AS106: 75 | AT106: 0.01949311282 | AU106: 0.5589517592 | AV106: 0.09472876528
A107: 77 | B107: -1 | C107: -1 | D107: -1 | E107: -1 | F107: -1 | G107: -1 | H107: -1 | O107: 77 | P107: RCS2-RGD4D-20 | Q107: - - - | AS107: 76 | AT107: 0.01975302099 | AU107: 0.5739565087 | AV107: 0.09839263955
A108: 78 | B108: -1 | C108: -1 | D108: -1 | E108: -1 | F108: -1 | G108: -1 | H108: -1 | O108: 78 | P108: RCS2-RGD4D-30 | Q108: - - - | AS108: 77 | AT108: 0.02001292916 | AU108: 0.5891599965 | AV108: 0.1021453698
A109: 79 | B109: -1 | C109: -1 | D109: -1 | E109: -1 | F109: -1 | G109: -1 | H109: -1 | O109: 79 | P109: RCS2-SRGD7BD-60 | Q109: - - - | AS109: 78 | AT109: 0.02027283733 | AU109: 0.6045622228 | AV109: 0.1059878095
A110: 80 | B110: -1 | C110: -1 | D110: -1 | E110: -1 | F110: -1 | G110: -1 | H110: -1 | O110: 80 | P110: RCS2-SRGD7BD-100 | Q110: - - - | AS110: 79 | AT110: 0.0205327455 | AU110: 0.6201631875 | AV110: 0.1099208054
A111: 81 | B111: -1 | C111: -1 | D111: -1 | E111: -1 | F111: -1 | G111: -1 | H111: -1 | O111: 81 | P111: RCS2-SRGD7BD-150 | Q111: - - - | AS111: 80 | AT111: 0.02079265368 | AU111: 0.6359628905 | AV111: 0.1139451978
A112: 82 | B112: -1 | C112: -1 | D112: -1 | E112: -1 | F112: -1 | G112: -1 | H112: -1 | O112: 82 | P112: RCS2-RGD4R-20 | Q112: - - - | AS112: 81 | AT112: 0.02105256185 | AU112: 0.651961332 | AV112: 0.1180618204
A113: 83 | B113: -1 | C113: -1 | D113: -1 | E113: -1 | F113: -1 | G113: -1 | H113: -1 | O113: 83 | P113: RCS2-RGD4R-30 | Q113: - - - | AS113: 82 | AT113: 0.02131247002 | AU113: 0.6681585119 | AV113: 0.1222715005
A114: 84 | B114: -1 | C114: -1 | D114: -1 | E114: -1 | F114: -1 | G114: -1 | H114: -1 | O114: 84 | P114: RCS2-A4R-20 | Q114: - - - | AS114: 83 | AT114: 0.02157237819 | AU114: 0.6845544301 | AV114: 0.1265750589
A115: 85 | B115: -1 | C115: -1 | D115: -1 | E115: -1 | F115: -1 | G115: -1 | H115: -1 | O115: 85 | P115: RCS2-A5R-20 | Q115: - - - | AS115: 84 | AT115: 0.02183228636 | AU115: 0.7011490868 | AV115: 0.13097331
A116: 86 | B116: -1 | C116: -1 | D116: -1 | E116: -1 | F116: -1 | G116: -1 | H116: -1 | O116: 86 | P116: RCS2-A6R-30 | Q116: - - - | AS116: 85 | AT116: 0.02209219453 | AU116: 0.7179424819 | AV116: 0.135467062
A117: 87 | B117: -1 | C117: -1 | D117: -1 | E117: -1 | F117: -1 | G117: -1 | H117: -1 | O117: 87 | P117: RCS2-F5D-60 | Q117: - - - | AS117: 86 | AT117: 0.0223521027 | AU117: 0.7349346154 | AV117: 0.1400571167
A118: 88 | B118: -1 | C118: -1 | D118: -1 | E118: -1 | F118: -1 | G118: -1 | H118: -1 | O118: 88 | P118: RCS2-F5D-100 | Q118: - - - | AS118: 87 | AT118: 0.02261201087 | AU118: 0.7521254872 | AV118: 0.1447442696
A119: 89 | B119: -1 | C119: -1 | D119: -1 | E119: -1 | F119: -1 | G119: -1 | H119: -1 | O119: 89 | P119: LSA-S6SS | Q119: - - - | AS119: 88 | AT119: 0.02287191904 | AU119: 0.7695150975 | AV119: 0.1495293103
A120: 90 | B120: -1 | C120: -1 | D120: -1 | E120: -1 | F120: -1 | G120: -1 | H120: -1 | O120: 90 | P120: LSA-S6SM | Q120: - - - | AS120: 89 | AT120: 0.02313182721 | AU120: 0.7871034462 | AV120: 0.1544130221
A121: 91 | B121: -1 | C121: -1 | D121: -1 | E121: -1 | F121: -1 | G121: -1 | H121: -1 | O121: 91 | P121: LSA-S8SS | Q121: - - - | AS121: 90 | AT121: 0.02339173539 | AU121: 0.8048905333 | AV121: 0.1593961821
A122: 92 | B122: -1 | C122: -1 | D122: -1 | E122: -1 | F122: -1 | G122: -1 | H122: -1 | O122: 92 | P122: LSA-S8SM | Q122: - - - | AS122: 91 | AT122: 0.02365164356 | AU122: 0.8228763588 | AV122: 0.1644795615
A123: 93 | B123: -1 | C123: -1 | D123: -1 | E123: -1 | F123: -1 | G123: -1 | H123: -1 | O123: 93 | P123: LSA-S8HS | Q123: - - - | AS123: 92 | AT123: 0.02391155173 | AU123: 0.8410609227 | AV123: 0.1696639256
A124: 94 | B124: -1 | C124: -1 | D124: -1 | E124: -1 | F124: -1 | G124: -1 | H124: -1 | O124: 94 | P124: LSA-S8HM | Q124: - - - | AS124: 93 | AT124: 0.0241714599 | AU124: 0.859444225 | AV124: 0.1749500336
A125: 95 | B125: -1 | C125: -1 | D125: -1 | E125: -1 | F125: -1 | G125: -1 | H125: -1 | O125: 95 | P125: LSA-S10SS | Q125: - - - | AS125: 94 | AT125: 0.02443136807 | AU125: 0.8780262657 | AV125: 0.1803386388
A126: 96 | B126: -1 | C126: -1 | D126: -1 | E126: -1 | F126: -1 | G126: -1 | H126: -1 | O126: 96 | P126: LSA-S10SM | Q126: - - - | AS126: 95 | AT126: 0.02469127624 | AU126: 0.8968070448 | AV126: 0.1858304888
A127: 97 | B127: -1 | C127: -1 | D127: -1 | E127: -1 | F127: -1 | G127: -1 | H127: -1 | O127: 97 | P127: LSA-S10HS | Q127: - - - | AS127: 96 | AT127: 0.02495118441 | AU127: 0.9157865624 | AV127: 0.1914263252
A128: 98 | B128: -1 | C128: -1 | D128: -1 | E128: -1 | F128: -1 | G128: -1 | H128: -1 | O128: 98 | P128: LSA-S10HM | Q128: - - - | AS128: 97 | AT128: 0.02521109258 | AU128: 0.9349648183 | AV128: 0.197126884
A129: 99 | B129: -1 | C129: -1 | D129: -1 | E129: -1 | F129: -1 | G129: -1 | H129: -1 | O129: 99 | P129: LSA-H8SS | Q129: - - - | AS129: 98 | AT129: 0.02547100075 | AU129: 0.9543418126 | AV129: 0.2029328954
A130: 100 | B130: -1 | C130: -1 | D130: -1 | E130: -1 | F130: -1 | G130: -1 | H130: -1 | O130: 100 | P130: LSA-H8SM | Q130: - - - | AS130: 99 | AT130: 0.02573090892 | AU130: 0.9739175453 | AV130: 0.2088450839
A131: 101 | B131: -1 | C131: -1 | D131: -1 | E131: -1 | F131: -1 | G131: -1 | H131: -1 | O131: 101 | P131: LSA-H8HS | Q131: - - - | AS131: 100 | AT131: 0.02599081709 | AU131: 0.9936920164 | AV131: 0.2148641685
A132: 102 | B132: -1 | C132: -1 | D132: -1 | E132: -1 | F132: -1 | G132: -1 | H132: -1 | O132: 102 | P132: LSA-H8HM | Q132: - - - | AS132: =AS131+1 -> 101 | AT132: 0.02625072527 | AU132: 1.013665226 | AV132: 0.2209908625
A133: 103 | B133: -1 | C133: -1 | D133: -1 | E133: -1 | F133: -1 | G133: -1 | H133: -1 | O133: 103 | P133: LSA-L15SS | Q133: - - - | AS133: 102 | AT133: 0.02651063344 | AU133: 1.033837174 | AV133: 0.2272258736
A134: 104 | B134: -1 | C134: -1 | D134: -1 | E134: -1 | F134: -1 | G134: -1 | H134: -1 | O134: 104 | P134: LSA-L15SM | Q134: - - - | AS134: 103 | AT134: 0.02677054161 | AU134: 1.05420786 | AV134: 0.2335699043
A135: 105 | B135: -1 | C135: -1 | D135: -1 | E135: -1 | F135: -1 | G135: -1 | H135: -1 | O135: 105 | P135: LSA-N10SS | Q135: - - - | AS135: 104 | AT135: 0.02703044978 | AU135: 1.074777285 | AV135: 0.2400236513
A136: 106 | B136: -1 | C136: -1 | D136: -1 | E136: -1 | F136: -1 | G136: -1 | H136: -1 | O136: 106 | P136: LSA-N10SM | Q136: - - - | AS136: 105 | AT136: 0.02729035795 | AU136: 1.095545448 | AV136: 0.2465878061
A137: 107 | B137: -1 | C137: -1 | D137: -1 | E137: -1 | F137: -1 | G137: -1 | H137: -1 | O137: 107 | P137: LSA-N15SS | Q137: - - - | AS137: 106 | AT137: 0.02755026612 | AU137: 1.11651235 | AV137: 0.2532630547
A138: 108 | B138: -1 | C138: -1 | D138: -1 | E138: -1 | F138: -1 | G138: -1 | H138: -1 | O138: 108 | P138: LSA-N15SM | Q138: - - - | AS138: 107 | AT138: 0.02781017429 | AU138: 1.13767799 | AV138: 0.2600500778
A139: 109 | B139: -1 | C139: -1 | D139: -1 | E139: -1 | F139: -1 | G139: -1 | H139: -1 | O139: 109 | P139: LSA-N15HS | Q139: - - - | AS139: 108 | AT139: 0.02807008246 | AU139: 1.159042368 | AV139: 0.266949551
A140: 110 | B140: -1 | C140: -1 | D140: -1 | E140: -1 | F140: -1 | G140: -1 | H140: -1 | O140: 110 | P140: LSA-N15HM | Q140: - - - | AS140: 109 | AT140: 0.02832999063 | AU140: 1.180605485 | AV140: 0.2739621444
A141: 111 | B141: -1 | C141: -1 | D141: -1 | E141: -1 | F141: -1 | G141: -1 | H141: -1 | O141: 111 | P141: LSA-N19SS | Q141: - - - | AS141: 110 | AT141: 0.0285898988 | AU141: 1.20236734 | AV141: 0.2810885229
A142: 112 | B142: -1 | C142: -1 | D142: -1 | E142: -1 | F142: -1 | G142: -1 | H142: -1 | O142: 112 | P142: LSA-N19SM | Q142: - - - | AS142: 111 | AT142: 0.02884980698 | AU142: 1.224327933 | AV142: 0.2883293465
A143: 113 | B143: -1 | C143: -1 | D143: -1 | E143: -1 | F143: -1 | G143: -1 | H143: -1 | O143: 113 | P143: LSA-W21SS | Q143: - - - | AS143: 112 | AT143: 0.02910971515 | AU143: 1.246487265 | AV143: 0.2956852699
A144: 114 | B144: -1 | C144: -1 | D144: -1 | E144: -1 | F144: -1 | G144: -1 | H144: -1 | O144: 114 | P144: LSA-W21SM | Q144: - - - | AS144: 113 | AT144: 0.02936962332 | AU144: 1.268845336 | AV144: 0.3031569425
A145: 115 | B145: -1 | C145: -1 | D145: -1 | E145: -1 | F145: -1 | G145: -1 | H145: -1 | O145: 115 | P145: IF-SA-60 | Q145: - - - | AS145: 114 | AT145: 0.02962953149 | AU145: 1.291402145 | AV145: 0.3107450091
A146: 116 | B146: -1 | C146: -1 | D146: -1 | E146: -1 | F146: -1 | G146: -1 | H146: -1 | O146: 116 | P146: IF-SA-100 | Q146: - - - | AS146: 115 | AT146: 0.02988943966 | AU146: 1.314157692 | AV146: 0.3184501092
A147: 117 | B147: -1 | C147: -1 | D147: -1 | E147: -1 | F147: -1 | G147: -1 | H147: -1 | O147: 117 | P147: IF-MA-200 | Q147: - - - | AS147: 116 | AT147: 0.03014934783 | AU147: 1.337111977 | AV147: 0.3262728774
A148: 118 | B148: -1 | C148: -1 | D148: -1 | E148: -1 | F148: -1 | G148: -1 | H148: -1 | O148: 118 | P148: IF-MA-400 | Q148: - - - | AS148: 117 | AT148: 0.030409256 | AU148: 1.360265001 | AV148: 0.3342139433
A149: 119 | B149: -1 | C149: -1 | D149: -1 | E149: -1 | F149: -1 | G149: -1 | H149: -1 | O149: 119 | P149: FS-12NM-60 | Q149: - - - | AS149: 118 | AT149: 0.03066916417 | AU149: 1.383616764 | AV149: 0.3422739318
A150: 120 | B150: -1 | C150: -1 | D150: -1 | E150: -1 | F150: -1 | G150: -1 | H150: -1 | O150: 120 | P150: FS-11NM-60 | Q150: - - - | AS150: 119 | AT150: 0.03092907234 | AU150: 1.407167264 | AV150: 0.3504534627
A151: 121 | B151: -1 | C151: -1 | D151: -1 | E151: -1 | F151: -1 | G151: -1 | H151: -1 | O151: 121 | P151: FS-12NM-100 | Q151: - - - | AS151: 120 | AT151: 0.03118898051 | AU151: 1.430916504 | AV151: 0.3587531512
A152: 122 | B152: -1 | C152: -1 | D152: -1 | E152: -1 | F152: -1 | G152: -1 | H152: -1 | O152: 122 | P152: FS-11NM-100 | Q152: - - - | AS152: 121 | AT152: 0.03144888868 | AU152: 1.454864481 | AV152: 0.3671736076
A153: 123 | B153: -1 | C153: -1 | D153: -1 | E153: -1 | F153: -1 | G153: -1 | H153: -1 | O153: 123 | P153: FS-12WM-100 | Q153: - - - | AS153: 122 | AT153: 0.03170879686 | AU153: 1.479011197 | AV153: 0.3757154376
A154: 124 | B154: -1 | C154: -1 | D154: -1 | E154: -1 | F154: -1 | G154: -1 | H154: -1 | O154: 124 | P154: FS-11WM-100 | Q154: - - - | AS154: 123 | AT154: 0.03196870503 | AU154: 1.503356652 | AV154: 0.3843792419
A155: 125 | B155: -1 | C155: -1 | D155: -1 | E155: -1 | F155: -1 | G155: -1 | H155: -1 | O155: 125 | P155: FS-12WM-200 | Q155: - - - | AS155: 124 | AT155: 0.0322286132 | AU155: 1.527900844 | AV155: 0.3931656168
A156: 126 | B156: -1 | C156: -1 | D156: -1 | E156: -1 | F156: -1 | G156: -1 | H156: -1 | O156: 126 | P156: FS-11WM-200 | Q156: - - - | AS156: 125 | AT156: 0.03248852137 | AU156: 1.552643776 | AV156: 0.402075154
A157: 127 | B157: -1 | C157: -1 | D157: -1 | E157: -1 | F157: -1 | G157: -1 | H157: -1 | O157: 127 | P157: FS-12LM-400 | Q157: - - - | AS157: 126 | AT157: 0.03274842954 | AU157: 1.577585445 | AV157: 0.4111084404
A158: 128 | B158: -1 | C158: -1 | D158: -1 | E158: -1 | F158: -1 | G158: -1 | H158: -1 | O158: 128 | P158: FS-11LM-400 | Q158: - - - | AS158: 127 | AT158: 0.03300833771 | AU158: 1.602725853 | AV158: 0.4202660584
A159: =A158+1 -> 129 | B159: -1 | C159: -1 | D159: -1 | E159: -1 | F159: -1 | G159: -1 | H159: -1 | O159: 129 | P159: FS-12HM-400 | Q159: - - - | AS159: 128 | AT159: =$AP$18/$N$7*AS159 -> 0.03326824588 | AU159: 1.628065 | AV159: 0.4295485859
A160: 130 | B160: -1 | C160: -1 | D160: -1 | E160: -1 | F160: -1 | G160: -1 | H160: -1 | O160: 130 | P160: FS-11HM-400 | Q160: - - - | AS160: 129 | AT160: 0.03352815405 | AU160: =IF(($N$4*AT160^2/2)<=$AP$13,($N$4*AT160^2/2), IF(($AP$13+$N$6*(AT160-$AP$12))<=$AP$17, ($AP$13+$N$6*(AT160-$AP$12)), IF(AU159<$D$14, ($AP$17+($N$6-$N$5*(AT160-$AP$16)/2)*(AT160-$AP$16)), $D$14))) -> 1.653602885 | AV160: 0.4389565965
A161: 131 | B161: -1 | C161: -1 | D161: -1 | E161: -1 | F161: -1 | G161: -1 | H161: -1 | O161: =O160+1 -> 131 | P161: ISWA-S-60 | Q161: - - - | AS161: 130 | AT161: 0.03378806222 | AU161: 1.679339508 | AV161: =( $AP$6*AU161 + $AP$7*AU160 + $AP$9*AV160 )/$AP$8 -> 0.448490659
A162: 132 | B162: -1 | C162: -1 | D162: -1 | E162: -1 | F162: -1 | G162: -1 | H162: -1 | O162: 132 | P162: ISWA-M-100 | Q162: - - - | AS162: 131 | AT162: 0.03404797039 | AU162: 1.705274869 | AV162: 0.4581513381
A163: 133 | B163: -1 | C163: -1 | D163: -1 | E163: -1 | F163: -1 | G163: -1 | H163: -1 | O163: 133 | P163: ISWA-M-200 | Q163: - - - | AS163: 132 | AT163: 0.03430787856 | AU163: 1.731408969 | AV163: 0.4679391938
A164: 134 | B164: -1 | C164: -1 | D164: -1 | E164: -1 | F164: -1 | G164: -1 | H164: -1 | O164: 134 | P164: ISWA-L-200 | Q164: - - - | AS164: 133 | AT164: 0.03456778674 | AU164: 1.757741808 | AV164: 0.477854782
A165: 135 | B165: -1 | C165: -1 | D165: -1 | E165: -1 | F165: -1 | G165: -1 | H165: -1 | O165: 135 | P165: ISWA-L-400 | Q165: - - - | AS165: 134 | AT165: 0.03482769491 | AU165: 1.784273385 | AV165: 0.4878986542
A166: 136 | B166: -1 | C166: -1 | D166: -1 | E166: -1 | F166: -1 | G166: -1 | H166: -1 | O166: 136 | P166: RS-30 | Q166: - - - | AS166: 135 | AT166: 0.03508760308 | AU166: 1.8110037 | AV166: 0.4980713576
A167: 137 | B167: -1 | C167: -1 | D167: -1 | E167: -1 | F167: -1 | G167: -1 | H167: -1 | O167: 137 | P167: RS-60 | Q167: - - - | AS167: 136 | AT167: 0.03534751125 | AU167: 1.837932754 | AV167: 0.5083734352
A168: 138 | B168: -1 | C168: -1 | D168: -1 | E168: -1 | F168: -1 | G168: -1 | H168: -1 | O168: 138 | P168: RCS2-RT6R | Q168: - - - | AS168: 137 | AT168: 0.03560741942 | AU168: 1.865060546 | AV168: 0.5188054258
A169: 139 | B169: -1 | C169: -1 | D169: -1 | E169: -1 | F169: -1 | G169: -1 | H169: -1 | O169: 139 | P169: RCS2-RT7R | Q169: - - - | AS169: 138 | AT169: 0.03586732759 | AU169: 1.892387076 | AV169: 0.5293678638
A170: 140 | B170: -1 | C170: -1 | D170: -1 | E170: -1 | F170: -1 | G170: -1 | H170: -1 | O170: 140 | P170: RCS2-RTC8L | Q170: - - - | AS170: 139 | AT170: 0.03612723576 | AU170: 1.919912345 | AV170: 0.5400612798
A171: 141 | B171: -1 | C171: -1 | D171: -1 | E171: -1 | F171: -1 | G171: -1 | H171: -1 | O171: 141 | P171: RCS2-RTC8HL | Q171: - - - | AS171: 140 | AT171: 0.03638714393 | AU171: 1.947636352 | AV171: 0.5508861999
A172: 142 | B172: -1 | C172: -1 | D172: -1 | E172: -1 | F172: -1 | G172: -1 | H172: -1 | O172: 142 | P172: RCS2-RTC10L | Q172: - - - | AS172: 141 | AT172: 0.0366470521 | AU172: 1.975559098 | AV172: 0.5618431465
A173: 143 | B173: -1 | C173: -1 | D173: -1 | E173: -1 | F173: -1 | G173: -1 | H173: -1 | O173: 143 | P173: RCS2-RTC12L | Q173: - - - | AS173: 142 | AT173: 0.03690696027 | AU173: 2.003680582 | AV173: 0.5729326376
A174: 144 | B174: -1 | C174: -1 | D174: -1 | E174: -1 | F174: -1 | G174: -1 | H174: -1 | O174: 144 | P174: RCS2-RN5N | Q174: - - - | AS174: 143 | AT174: 0.03716686845 | AU174: 2.032000804 | AV174: 0.5841551875
A175: 145 | B175: -1 | C175: -1 | D175: -1 | E175: -1 | F175: -1 | G175: -1 | H175: -1 | O175: 145 | P175: RCS2-RP5N | Q175: - - - | AS175: 144 | AT175: 0.03742677662 | AU175: 2.060519765 | AV175: 0.5955113061
A176: 146 | B176: -1 | C176: -1 | D176: -1 | E176: -1 | F176: -1 | G176: -1 | H176: -1 | O176: 146 | P176: RCS2-GS5N | Q176: - - - | AS176: 145 | AT176: 0.03768668479 | AU176: 2.089237465 | AV176: 0.6070014997
A177: 147 | B177: -1 | C177: -1 | D177: -1 | E177: -1 | F177: -1 | G177: -1 | H177: -1 | O177: 147 | P177: RCS2-GD5N | Q177: - - - | AS177: 146 | AT177: 0.03794659296 | AU177: 2.118153902 | AV177: 0.6186262705
A178: 148 | B178: -1 | C178: -1 | D178: -1 | E178: -1 | F178: -1 | G178: -1 | H178: -1 | O178: 148 | P178: RCS2-SD5N | Q178: - - - | AS178: 147 | AT178: 0.03820650113 | AU178: 2.147269078 | AV178: 0.6303861169
A179: 149 | B179: -1 | C179: -1 | D179: -1 | E179: -1 | F179: -1 | G179: -1 | H179: -1 | O179: 149 | P179: RCS2-TCA5N | Q179: - - - | AS179: 148 | AT179: 0.0384664093 | AU179: 2.176582993 | AV179: 0.6422815334
A180: 150 | B180: -1 | C180: -1 | D180: -1 | E180: -1 | F180: -1 | G180: -1 | H180: -1 | O180: 150 | P180: RCS2-TWA5N | Q180: - - - | AS180: 149 | AT180: 0.03872631747 | AU180: 2.206095646 | AV180: 0.6543130105
A181: 151 | B181: -1 | C181: -1 | D181: -1 | E181: -1 | F181: -1 | G181: -1 | H181: -1 | O181: 151 | P181: RCS2-TFA5N | Q181: - - - | AS181: 150 | AT181: 0.03898622564 | AU181: 2.235807037 | AV181: 0.666481035
A182: 152 | B182: -1 | C182: -1 | D182: -1 | E182: -1 | F182: -1 | G182: -1 | H182: -1 | O182: 152 | P182: LSA-W21HS | Q182: - - - | AS182: 151 | AT182: 0.03924613381 | AU182: 2.265717167 | AV182: 0.6787860901
A183: 153 | B183: -1 | C183: -1 | D183: -1 | E183: -1 | F183: -1 | G183: -1 | H183: -1 | O183: 153 | P183: LSA-W21HM | Q183: - - - | AS183: =AS182+1 -> 152 | AT183: 0.03950604198 | AU183: 2.295826035 | AV183: 0.6912286549
A184: 154 | B184: -1 | C184: -1 | D184: -1 | E184: -1 | F184: -1 | G184: -1 | H184: -1 | O184: 154 | P184: RCS3-CT8C-400 | Q184: - - - | AS184: 153 | AT184: 0.03976595015 | AU184: 2.326133641 | AV184: 0.7038092051
A185: 155 | B185: -1 | C185: -1 | D185: -1 | E185: -1 | F185: -1 | G185: -1 | H185: -1 | O185: 155 | P185: RCS3-CTZ5C-60 | Q185: - - - | AS185: 154 | AT185: 0.04002585833 | AU185: 2.356639986 | AV185: 0.7165282126
A186: 156 | B186: -1 | C186: -1 | D186: -1 | E186: -1 | F186: -1 | G186: -1 | H186: -1 | O186: 156 | P186: RCS2W-RA4C-20 | Q186: - - - | AS186: 155 | AT186: 0.0402857665 | AU186: 2.38734507 | AV186: 0.7293861454
A187: 157 | B187: -1 | C187: -1 | D187: -1 | E187: -1 | F187: -1 | G187: -1 | H187: -1 | O187: 157 | P187: RCS2W-RA4C-30 | Q187: - - - | AS187: 156 | AT187: 0.04054567467 | AU187: 2.418248891 | AV187: 0.7423834682
A188: 158 | B188: -1 | C188: -1 | D188: -1 | E188: -1 | F188: -1 | G188: -1 | H188: -1 | O188: 158 | P188: RCS2W-RA4D-20 | Q188: - - - | AS188: 157 | AT188: 0.04080558284 | AU188: 2.449351451 | AV188: 0.755520642
A189: 159 | B189: -1 | C189: -1 | D189: -1 | E189: -1 | F189: -1 | G189: -1 | H189: -1 | O189: 159 | P189: RCS2W-RA4D-30 | Q189: - - - | AS189: 158 | AT189: 0.04106549101 | AU189: 2.48065275 | AV189: 0.7687981241
A190: 160 | B190: -1 | C190: -1 | D190: -1 | E190: -1 | F190: -1 | G190: -1 | H190: -1 | O190: 160 | P190: RCS2W-RA4R-20 | Q190: - - - | AS190: 159 | AT190: 0.04132539918 | AU190: 2.512152787 | AV190: 0.7822163683
A191: 161 | B191: -1 | C191: -1 | D191: -1 | E191: -1 | F191: -1 | G191: -1 | H191: -1 | O191: 161 | P191: RCS2W-RA4R-30 | Q191: - - - | AS191: 160 | AT191: 0.04158530735 | AU191: 2.543851562 | AV191: 0.795775825
A192: 162 | B192: -1 | C192: -1 | D192: -1 | E192: -1 | F192: -1 | G192: -1 | H192: -1 | AS192: 161 | AT192: 0.04184521552 | AU192: 2.575749076 | AV192: 0.8094769409
A193: 163 | B193: -1 | C193: -1 | D193: -1 | E193: -1 | F193: -1 | G193: -1 | H193: -1 | AS193: 162 | AT193: 0.04210512369 | AU193: 2.607845328 | AV193: 0.8233201594
A194: 164 | B194: -1 | C194: -1 | D194: -1 | E194: -1 | F194: -1 | G194: -1 | H194: -1 | AS194: 163 | AT194: 0.04236503186 | AU194: 2.640140318 | AV194: 0.8373059203
A195: 165 | B195: -1 | C195: -1 | D195: -1 | E195: -1 | F195: -1 | G195: -1 | H195: -1 | AS195: 164 | AT195: 0.04262494004 | AU195: 2.672634047 | AV195: 0.8514346602
A196: 166 | B196: -1 | C196: -1 | D196: -1 | E196: -1 | F196: -1 | G196: -1 | H196: -1 | AS196: 165 | AT196: 0.04288484821 | AU196: 2.705326515 | AV196: 0.8657068121
A197: 167 | B197: -1 | C197: -1 | D197: -1 | E197: -1 | F197: -1 | G197: -1 | H197: -1 | AS197: 166 | AT197: 0.04314475638 | AU197: 2.738217721 | AV197: 0.8801228058
A198: 168 | B198: -1 | C198: -1 | D198: -1 | E198: -1 | F198: -1 | G198: -1 | H198: -1 | AS198: 167 | AT198: 0.04340466455 | AU198: 2.771307665 | AV198: 0.8946830675
A199: 169 | B199: -1 | C199: -1 | D199: -1 | E199: -1 | F199: -1 | G199: -1 | H199: -1 | AS199: 168 | AT199: 0.04366457272 | AU199: 2.804596347 | AV199: 0.9093880205
A200: 170 | B200: -1 | C200: -1 | D200: -1 | E200: -1 | F200: -1 | G200: -1 | H200: -1 | AS200: 169 | AT200: 0.04392448089 | AU200: 2.838083768 | AV200: 0.9242380844
A201: 171 | B201: -1 | C201: -1 | D201: -1 | E201: -1 | F201: -1 | G201: -1 | H201: -1 | AS201: 170 | AT201: 0.04418438906 | AU201: 2.871769928 | AV201: 0.9392336758
A202: 172 | B202: -1 | C202: -1 | D202: -1 | E202: -1 | F202: -1 | G202: -1 | H202: -1 | AS202: 171 | AT202: 0.04444429723 | AU202: 2.905654825 | AV202: 0.954375208
A203: 173 | B203: -1 | C203: -1 | D203: -1 | E203: -1 | F203: -1 | G203: -1 | H203: -1 | AS203: 172 | AT203: 0.0447042054 | AU203: 2.939738461 | AV203: 0.969663091
... 922 more rows

Sheet DataSerch (hidden)
A1: 選択型式 | B1: メカ機種データレコード | M1: ～$164 | N1: ：「メカ機種データ」範囲検索
A2: =CycleTime!C6 -> ISA-SXM-60 | B2: № | C2: =ModelData!$B$2 -> ｱｸﾁｭｴｰﾀ型式 | H2: =ModelData!$C$2 -> 最小ｽﾄﾛｰｸ | I2: =ModelData!$D$2 -> 最大ｽﾄﾛｰｸ | J2: =ModelData!$E$2 -> 動作種別 | N2: ：「モータ機種データ」範囲検索
B3: =MATCH(A2,ModelData!$B$4:$B$164,0) -> 1 | C3: =LOOKUP(B3,ModelData!$A$4:$A$164,ModelData!$B$4:$B$164) -> ISA-SXM-60 | H3: =LOOKUP(B3,ModelData!$A$4:$A$164,ModelData!$C$4:$C$164) -> 100 | I3: =LOOKUP(B3,ModelData!$A$4:$A$164,ModelData!$D$4:$D$164) -> 600 | J3: =LOOKUP(B3,ModelData!$A$4:$A$164,ModelData!$E$4:$E$164) -> 0 | M3: ～$297 | N3: ：「リードデータ」範囲検索
A4: リード | E4: [kg] | F4: [mm] | G4: [mm] | H4: [mm] | I4: [mm] | J4: 0/1 | K4: [K] | M4: ～$861 | N4: ：「ストロークデータ」範囲検索
A5: =CycleTime!C8 -> 4 | H5: =H3 -> 100 | I5: =I3 -> 600 | J5: =J3 -> 0 | M5: ～$5199 | N5: ：「搬送負荷データ」範囲検索
M6: ～$5339 | N6: ：「加減速・速度データ」範囲検索
A7: ストローク | B7: モータ機種レコード
A8: =CycleTime!C10 -> 100
A10: 設置姿勢 | D10: [Nm/A] | E10: [A] | F10: [kgm^2] | G10: [Nm] | H10: [Nm] | I10: [rad/s] | J10: [rad/s] | K10: [rad/s] | L10: [Nm/(rad/s)] | M10: [K] | N10: [K] | O10: [s]
A11: =IF(CycleTime!C12=CycleTime!AE20,0,1) -> 0
A13: 搬送負荷質量 | B13: リレーション | F13: リードデータレコード | I13: =LOOKUP(C15,LeadData!$A$4:$A$297,LeadData!$J$4:$J$297) -> ISA-SXM-60
A14: =CycleTime!B31 -> 30 | C14: ﾘｰﾄﾞ№ | D14: ｽﾄﾛｰｸ№ | E14: 負荷№ | F14: =LeadData!$B$2 -> ﾘｰﾄﾞ長 | H14: =LeadData!$C$2 -> 水平定格加速度 | I14: =LeadData!$D$2 -> 垂直定格加速度 | J14: =LeadData!$E$2 -> 水平最大加速度 | K14: =LeadData!$F$2 -> 垂直最大加速度 | O14: =LeadData!$G$2 -> ｷﾞｱ比分子 | P14: =LeadData!$H$2 -> ｷﾞｱ比分母 | R14: =LeadData!$I$2 -> ｽﾄﾛｰｸ刻み
B15: =ModelData!$F$2 -> リンク[0] | C15: =LOOKUP(B3,ModelData!$A$4:$A$164,ModelData!$F$4:$F$164) -> 1 | D15: =LOOKUP(B3,ModelData!$A$4:$A$164,ModelData!$G$4:$G$164) -> 1 | E15: =LOOKUP(B3,ModelData!$A$4:$A$164,ModelData!$H$4:$H$164) -> 1 | F15: =LOOKUP(C15,LeadData!$A$4:$A$297,LeadData!$B$4:$B$297) -> 4000 | H15: =LOOKUP(C15,LeadData!$A$4:$A$297,LeadData!$C$4:$C$297) -> 1470997.5 | I15: =LOOKUP(C15,LeadData!$A$4:$A$297,LeadData!$D$4:$D$297) -> 1470997.5 | J15: =LOOKUP(C15,LeadData!$A$4:$A$297,LeadData!$E$4:$E$297) -> 4903325 | K15: =LOOKUP(C15,LeadData!$A$4:$A$297,LeadData!$F$4:$F$297) -> 2941995 | O15: =LOOKUP(C15,LeadData!$A$4:$A$297,LeadData!$G$4:$G$297) -> 1 | P15: =LOOKUP(C15,LeadData!$A$4:$A$297,LeadData!$H$4:$H$297) -> 1 | R15: =LOOKUP(C15,LeadData!$A$4:$A$297,LeadData!$I$4:$I$297) -> 50
B16: =ModelData!$I$2 -> リンク[1] | C16: =LOOKUP(B3,ModelData!$A$4:$A$164,ModelData!$I$4:$I$164) -> 2 | D16: =LOOKUP(B3,ModelData!$A$4:$A$164,ModelData!$J$4:$J$164) -> 2 | E16: =LOOKUP(B3,ModelData!$A$4:$A$164,ModelData!$K$4:$K$164) -> 6 | F16: =LOOKUP(C16,LeadData!$A$4:$A$297,LeadData!$B$4:$B$297) -> 8000 | H16: =LOOKUP(C16,LeadData!$A$4:$A$297,LeadData!$C$4:$C$297) -> 2941995 | I16: =LOOKUP(C16,LeadData!$A$4:$A$297,LeadData!$D$4:$D$297) -> 2941995 | J16: =LOOKUP(C16,LeadData!$A$4:$A$297,LeadData!$E$4:$E$297) -> 5883990 | K16: =LOOKUP(C16,LeadData!$A$4:$A$297,LeadData!$F$4:$F$297) -> 4903325 | O16: =LOOKUP(C16,LeadData!$A$4:$A$297,LeadData!$G$4:$G$297) -> 1 | P16: =LOOKUP(C16,LeadData!$A$4:$A$297,LeadData!$H$4:$H$297) -> 1 | R16: =LOOKUP(C16,LeadData!$A$4:$A$297,LeadData!$I$4:$I$297) -> 50
B17: =ModelData!$L$2 -> リンク[2] | C17: =LOOKUP(B3,ModelData!$A$4:$A$164,ModelData!$L$4:$L$164) -> 3 | D17: =LOOKUP(B3,ModelData!$A$4:$A$164,ModelData!$M$4:$M$164) -> 3 | E17: =LOOKUP(B3,ModelData!$A$4:$A$164,ModelData!$N$4:$N$164) -> 13 | F17: =LOOKUP(C17,LeadData!$A$4:$A$297,LeadData!$B$4:$B$297) -> 16000 | H17: =LOOKUP(C17,LeadData!$A$4:$A$297,LeadData!$C$4:$C$297) -> 2941995 | I17: =LOOKUP(C17,LeadData!$A$4:$A$297,LeadData!$D$4:$D$297) -> 2941995 | J17: =LOOKUP(C17,LeadData!$A$4:$A$297,LeadData!$E$4:$E$297) -> 9806650 | K17: =LOOKUP(C17,LeadData!$A$4:$A$297,LeadData!$F$4:$F$297) -> 6864655 | O17: =LOOKUP(C17,LeadData!$A$4:$A$297,LeadData!$G$4:$G$297) -> 1 | P17: =LOOKUP(C17,LeadData!$A$4:$A$297,LeadData!$H$4:$H$297) -> 1 | R17: =LOOKUP(C17,LeadData!$A$4:$A$297,LeadData!$I$4:$I$297) -> 50
B18: =ModelData!$O$2 -> リンク[3] | C18: =LOOKUP(B3,ModelData!$A$4:$A$164,ModelData!$O$4:$O$164) -> -1 | D18: =LOOKUP(B3,ModelData!$A$4:$A$164,ModelData!$P$4:$P$164) -> -1 | E18: =LOOKUP(B3,ModelData!$A$4:$A$164,ModelData!$Q$4:$Q$164) -> -1 | F18: =LOOKUP(C18,LeadData!$A$4:$A$297,LeadData!$B$4:$B$297) ->  | H18: =LOOKUP(C18,LeadData!$A$4:$A$297,LeadData!$C$4:$C$297) ->  | I18: =LOOKUP(C18,LeadData!$A$4:$A$297,LeadData!$D$4:$D$297) ->  | J18: =LOOKUP(C18,LeadData!$A$4:$A$297,LeadData!$E$4:$E$297) ->  | K18: =LOOKUP(C18,LeadData!$A$4:$A$297,LeadData!$F$4:$F$297) ->  | O18: =LOOKUP(C18,LeadData!$A$4:$A$297,LeadData!$G$4:$G$297) ->  | P18: =LOOKUP(C18,LeadData!$A$4:$A$297,LeadData!$H$4:$H$297) ->  | R18: =LOOKUP(C18,LeadData!$A$4:$A$297,LeadData!$I$4:$I$297) -> 
B19: =ModelData!$R$2 -> リンク[4] | C19: =LOOKUP(B3,ModelData!$A$4:$A$164,ModelData!$R$4:$R$164) -> -1 | D19: =LOOKUP(B3,ModelData!$A$4:$A$164,ModelData!$S$4:$S$164) -> -1 | E19: =LOOKUP(B3,ModelData!$A$4:$A$164,ModelData!$T$4:$T$164) -> -1 | F19: =LOOKUP(C19,LeadData!$A$4:$A$297,LeadData!$B$4:$B$297) ->  | H19: =LOOKUP(C19,LeadData!$A$4:$A$297,LeadData!$C$4:$C$297) ->  | I19: =LOOKUP(C19,LeadData!$A$4:$A$297,LeadData!$D$4:$D$297) ->  | J19: =LOOKUP(C19,LeadData!$A$4:$A$297,LeadData!$E$4:$E$297) ->  | K19: =LOOKUP(C19,LeadData!$A$4:$A$297,LeadData!$F$4:$F$297) ->  | O19: =LOOKUP(C19,LeadData!$A$4:$A$297,LeadData!$G$4:$G$297) ->  | P19: =LOOKUP(C19,LeadData!$A$4:$A$297,LeadData!$H$4:$H$297) ->  | R19: =LOOKUP(C19,LeadData!$A$4:$A$297,LeadData!$I$4:$I$297) -> 
B20: =ModelData!$U$2 -> リンク[5] | C20: =LOOKUP(B3,ModelData!$A$4:$A$164,ModelData!$U$4:$U$164) -> -1 | D20: =LOOKUP(B3,ModelData!$A$4:$A$164,ModelData!$V$4:$V$164) -> -1 | E20: =LOOKUP(B3,ModelData!$A$4:$A$164,ModelData!$W$4:$W$164) -> -1 | F20: =LOOKUP(C20,LeadData!$A$4:$A$297,LeadData!$B$4:$B$297) ->  | H20: =LOOKUP(C20,LeadData!$A$4:$A$297,LeadData!$C$4:$C$297) ->  | I20: =LOOKUP(C20,LeadData!$A$4:$A$297,LeadData!$D$4:$D$297) ->  | J20: =LOOKUP(C20,LeadData!$A$4:$A$297,LeadData!$E$4:$E$297) ->  | K20: =LOOKUP(C20,LeadData!$A$4:$A$297,LeadData!$F$4:$F$297) ->  | O20: =LOOKUP(C20,LeadData!$A$4:$A$297,LeadData!$G$4:$G$297) ->  | P20: =LOOKUP(C20,LeadData!$A$4:$A$297,LeadData!$H$4:$H$297) ->  | R20: =LOOKUP(C20,LeadData!$A$4:$A$297,LeadData!$I$4:$I$297) -> 
B21: =ModelData!$X$2 -> リンク[6] | C21: =LOOKUP(B3,ModelData!$A$4:$A$164,ModelData!$X$4:$X$164) -> -1 | D21: =LOOKUP(B3,ModelData!$A$4:$A$164,ModelData!$Y$4:$Y$164) -> -1 | E21: =LOOKUP(B3,ModelData!$A$4:$A$164,ModelData!$Z$4:$Z$164) -> -1 | F21: =LOOKUP(C21,LeadData!$A$4:$A$297,LeadData!$B$4:$B$297) ->  | H21: =LOOKUP(C21,LeadData!$A$4:$A$297,LeadData!$C$4:$C$297) ->  | I21: =LOOKUP(C21,LeadData!$A$4:$A$297,LeadData!$D$4:$D$297) ->  | J21: =LOOKUP(C21,LeadData!$A$4:$A$297,LeadData!$E$4:$E$297) ->  | K21: =LOOKUP(C21,LeadData!$A$4:$A$297,LeadData!$F$4:$F$297) ->  | O21: =LOOKUP(C21,LeadData!$A$4:$A$297,LeadData!$G$4:$G$297) ->  | P21: =LOOKUP(C21,LeadData!$A$4:$A$297,LeadData!$H$4:$H$297) ->  | R21: =LOOKUP(C21,LeadData!$A$4:$A$297,LeadData!$I$4:$I$297) -> 
B22: =ModelData!$AA$2 -> リンク[7] | C22: =LOOKUP(B3,ModelData!$A$4:$A$164,ModelData!$AA$4:$AA$164) -> -1 | D22: =LOOKUP(B3,ModelData!$A$4:$A$164,ModelData!$AB$4:$AB$164) -> -1 | E22: =LOOKUP(B3,ModelData!$A$4:$A$164,ModelData!$AC$4:$AC$164) -> -1 | F22: =LOOKUP(C22,LeadData!$A$4:$A$297,LeadData!$B$4:$B$297) ->  | H22: =LOOKUP(C22,LeadData!$A$4:$A$297,LeadData!$C$4:$C$297) ->  | I22: =LOOKUP(C22,LeadData!$A$4:$A$297,LeadData!$D$4:$D$297) ->  | J22: =LOOKUP(C22,LeadData!$A$4:$A$297,LeadData!$E$4:$E$297) ->  | K22: =LOOKUP(C22,LeadData!$A$4:$A$297,LeadData!$F$4:$F$297) ->  | O22: =LOOKUP(C22,LeadData!$A$4:$A$297,LeadData!$G$4:$G$297) ->  | P22: =LOOKUP(C22,LeadData!$A$4:$A$297,LeadData!$H$4:$H$297) ->  | R22: =LOOKUP(C22,LeadData!$A$4:$A$297,LeadData!$I$4:$I$297) -> 
B23: リードリストとリレーション | F23: リードデータレコードの物理量変換
B24: ﾘｰﾄﾞﾘｽﾄ | D24: リンク | F24: =LeadData!$B$2 -> ﾘｰﾄﾞ長 | H24: =LeadData!$C$2 -> 水平定格加速度 | I24: =LeadData!$D$2 -> 垂直定格加速度 | J24: =LeadData!$E$2 -> 水平最大加速度 | K24: =LeadData!$F$2 -> 垂直最大加速度 | O24: =LeadData!$G$2 -> ｷﾞｱ比分子 | P24: =LeadData!$H$2 -> ｷﾞｱ比分母 | R24: =LeadData!$I$2 -> ｽﾄﾛｰｸ刻み
B25: № | C25: ﾃﾞｰﾀ | D25: =D14 -> ｽﾄﾛｰｸ№ | E25: =E14 -> 負荷№ | F25: [mm] | G25: [kgm^2] | H25: [m/s^2] | I25: [m/s^2] | J25: [m/s^2] | K25: [m/s^2] | L25: [Nm] | M25: [Nms] | N25: [Nm] | R25: [mm]
B26: 1 | C26: =IF(C15=-1,"- - -",IF(F26<=0,P26/O26,F26)) -> 4 | D26: =D15 -> 1 | E26: 1 | F26: =F15/1000 -> 4 | H26: =H15*0.000001 -> 1.4709975 | I26: 1.4709975 | J26: 4.903325 | K26: 2.941995 | O26: =O15 -> 1 | P26: =P15 -> 1 | R26: =R15 -> 50
B27: =B26+1 -> 2 | C27: 8 | D27: 2 | E27: 6 | F27: 8 | H27: 2.941995 | I27: 2.941995 | J27: 5.88399 | K27: 4.903325 | O27: =O16 -> 1 | P27: 1 | R27: =R16 -> 50
B28: =B27+1 -> 3 | C28: 16 | D28: 3 | E28: 13 | F28: 16 | H28: 2.941995 | I28: 2.941995 | J28: 9.80665 | K28: 6.864655 | O28: 1 | P28: 1 | R28: 50
B29: 4 | C29: - - - | D29: -1 | E29: -1
B30: 5 | C30: - - - | D30: -1 | E30: -1
B31: 6 | C31: - - - | D31: -1 | E31: -1
B32: 7 | C32: - - - | D32: -1 | E32: -1
B33: 8 | C33: - - - | D33: -1 | E33: -1
B35: リードリスト選択№ | D35: =MATCH(A5,C26:C33,0) -> 1 | E35: ストロークデータレコード | H35: =LOOKUP(C37,StrokeData!$A$4:$A$861,StrokeData!$M$4:$M$861) -> ISA-SXM-60-4
B36: № | C36: stﾚｺｰﾄﾞ№ | D36: =StrokeData!$B$2 -> ｽﾄﾛｰｸ長 | E36: =StrokeData!$C$2 -> 有効ｽﾄﾛｰｸ補正 | G36: =StrokeData!$D$2 -> 基準ｹﾞｲﾝ用搬送質量 | H36: =StrokeData!$E$2 -> 水平可搬質量 | I36: =StrokeData!$F$2 -> 垂直可搬質量 | J36: =StrokeData!$G$2 -> 最大速度 | K36: =StrokeData!$H$2 -> 位置ｹﾞｲﾝ | L36: =StrokeData!$I$2 -> FFｹﾞｲﾝ | M36: =StrokeData!$J$2 -> 速度制御帯域 | S36: =StrokeData!$K$2 -> 前ﾃﾞｰﾀ№ | T36: =StrokeData!$L$2 -> 次ﾃﾞｰﾀ№
B37: 1 | C37: =LOOKUP(D35,B26:B33,D26:D33) -> 1 | D37: =LOOKUP(C37,StrokeData!$A$4:$A$861,StrokeData!$B$4:$B$861) -> 600 | E37: =LOOKUP(C37,StrokeData!$A$4:$A$861,StrokeData!$C$4:$C$861) -> 0 | G37: =LOOKUP(C37,StrokeData!$A$4:$A$861,StrokeData!$D$4:$D$861) -> 50000 | H37: =LOOKUP(C37,StrokeData!$A$4:$A$861,StrokeData!$E$4:$E$861) -> 50000 | I37: =LOOKUP(C37,StrokeData!$A$4:$A$861,StrokeData!$F$4:$F$861) -> 14000 | J37: =LOOKUP(C37,StrokeData!$A$4:$A$861,StrokeData!$G$4:$G$861) -> 240 | K37: =LOOKUP(C37,StrokeData!$A$4:$A$861,StrokeData!$H$4:$H$861) -> 30 | L37: =LOOKUP(C37,StrokeData!$A$4:$A$861,StrokeData!$I$4:$I$861) -> 0 | M37: =LOOKUP(C37,StrokeData!$A$4:$A$861,StrokeData!$J$4:$J$861) -> 120 | S37: =LOOKUP(C37,StrokeData!$A$4:$A$861,StrokeData!$K$4:$K$861) -> -1 | T37: =LOOKUP(C37,StrokeData!$A$4:$A$861,StrokeData!$L$4:$L$861) -> -1
B38: =B37+1 -> 2 | C38: =IF(C37=-1,-1,LOOKUP(C37,StrokeData!$A$4:$A$861,StrokeData!$L$4:$L$861)) -> -1 | D38: =LOOKUP(C38,StrokeData!$A$4:$A$861,StrokeData!$B$4:$B$861) ->  | E38: =LOOKUP(C38,StrokeData!$A$4:$A$861,StrokeData!$C$4:$C$861) ->  | G38: =LOOKUP(C38,StrokeData!$A$4:$A$861,StrokeData!$D$4:$D$861) ->  | H38: =LOOKUP(C38,StrokeData!$A$4:$A$861,StrokeData!$E$4:$E$861) ->  | I38: =LOOKUP(C38,StrokeData!$A$4:$A$861,StrokeData!$F$4:$F$861) ->  | J38: =LOOKUP(C38,StrokeData!$A$4:$A$861,StrokeData!$G$4:$G$861) ->  | K38: =LOOKUP(C38,StrokeData!$A$4:$A$861,StrokeData!$H$4:$H$861) ->  | L38: =LOOKUP(C38,StrokeData!$A$4:$A$861,StrokeData!$I$4:$I$861) ->  | M38: =LOOKUP(C38,StrokeData!$A$4:$A$861,StrokeData!$J$4:$J$861) ->  | S38: =LOOKUP(C38,StrokeData!$A$4:$A$861,StrokeData!$K$4:$K$861) ->  | T38: =LOOKUP(C38,StrokeData!$A$4:$A$861,StrokeData!$L$4:$L$861) -> 
B39: =B38+1 -> 3 | C39: =IF(C38=-1,-1,LOOKUP(C38,StrokeData!$A$4:$A$861,StrokeData!$L$4:$L$861)) -> -1 | D39: =LOOKUP(C39,StrokeData!$A$4:$A$861,StrokeData!$B$4:$B$861) ->  | E39: =LOOKUP(C39,StrokeData!$A$4:$A$861,StrokeData!$C$4:$C$861) ->  | G39: =LOOKUP(C39,StrokeData!$A$4:$A$861,StrokeData!$D$4:$D$861) ->  | H39: =LOOKUP(C39,StrokeData!$A$4:$A$861,StrokeData!$E$4:$E$861) ->  | I39: =LOOKUP(C39,StrokeData!$A$4:$A$861,StrokeData!$F$4:$F$861) ->  | J39: =LOOKUP(C39,StrokeData!$A$4:$A$861,StrokeData!$G$4:$G$861) ->  | K39: =LOOKUP(C39,StrokeData!$A$4:$A$861,StrokeData!$H$4:$H$861) ->  | L39: =LOOKUP(C39,StrokeData!$A$4:$A$861,StrokeData!$I$4:$I$861) ->  | M39: =LOOKUP(C39,StrokeData!$A$4:$A$861,StrokeData!$J$4:$J$861) ->  | S39: =LOOKUP(C39,StrokeData!$A$4:$A$861,StrokeData!$K$4:$K$861) ->  | T39: =LOOKUP(C39,StrokeData!$A$4:$A$861,StrokeData!$L$4:$L$861) -> 
B40: 4 | C40: =IF(C39=-1,-1,LOOKUP(C39,StrokeData!$A$4:$A$861,StrokeData!$L$4:$L$861)) -> -1 | D40: =LOOKUP(C40,StrokeData!$A$4:$A$861,StrokeData!$B$4:$B$861) ->  | E40: =LOOKUP(C40,StrokeData!$A$4:$A$861,StrokeData!$C$4:$C$861) ->  | G40: =LOOKUP(C40,StrokeData!$A$4:$A$861,StrokeData!$D$4:$D$861) ->  | H40: =LOOKUP(C40,StrokeData!$A$4:$A$861,StrokeData!$E$4:$E$861) ->  | I40: =LOOKUP(C40,StrokeData!$A$4:$A$861,StrokeData!$F$4:$F$861) ->  | J40: =LOOKUP(C40,StrokeData!$A$4:$A$861,StrokeData!$G$4:$G$861) ->  | K40: =LOOKUP(C40,StrokeData!$A$4:$A$861,StrokeData!$H$4:$H$861) ->  | L40: =LOOKUP(C40,StrokeData!$A$4:$A$861,StrokeData!$I$4:$I$861) ->  | M40: =LOOKUP(C40,StrokeData!$A$4:$A$861,StrokeData!$J$4:$J$861) ->  | S40: =LOOKUP(C40,StrokeData!$A$4:$A$861,StrokeData!$K$4:$K$861) ->  | T40: =LOOKUP(C40,StrokeData!$A$4:$A$861,StrokeData!$L$4:$L$861) -> 
B41: 5 | C41: =IF(C40=-1,-1,LOOKUP(C40,StrokeData!$A$4:$A$861,StrokeData!$L$4:$L$861)) -> -1 | D41: =LOOKUP(C41,StrokeData!$A$4:$A$861,StrokeData!$B$4:$B$861) ->  | E41: =LOOKUP(C41,StrokeData!$A$4:$A$861,StrokeData!$C$4:$C$861) ->  | G41: =LOOKUP(C41,StrokeData!$A$4:$A$861,StrokeData!$D$4:$D$861) ->  | H41: =LOOKUP(C41,StrokeData!$A$4:$A$861,StrokeData!$E$4:$E$861) ->  | I41: =LOOKUP(C41,StrokeData!$A$4:$A$861,StrokeData!$F$4:$F$861) ->  | J41: =LOOKUP(C41,StrokeData!$A$4:$A$861,StrokeData!$G$4:$G$861) ->  | K41: =LOOKUP(C41,StrokeData!$A$4:$A$861,StrokeData!$H$4:$H$861) ->  | L41: =LOOKUP(C41,StrokeData!$A$4:$A$861,StrokeData!$I$4:$I$861) ->  | M41: =LOOKUP(C41,StrokeData!$A$4:$A$861,StrokeData!$J$4:$J$861) ->  | S41: =LOOKUP(C41,StrokeData!$A$4:$A$861,StrokeData!$K$4:$K$861) ->  | T41: =LOOKUP(C41,StrokeData!$A$4:$A$861,StrokeData!$L$4:$L$861) -> 
B42: 6 | C42: =IF(C41=-1,-1,LOOKUP(C41,StrokeData!$A$4:$A$861,StrokeData!$L$4:$L$861)) -> -1 | D42: =LOOKUP(C42,StrokeData!$A$4:$A$861,StrokeData!$B$4:$B$861) ->  | E42: =LOOKUP(C42,StrokeData!$A$4:$A$861,StrokeData!$C$4:$C$861) ->  | G42: =LOOKUP(C42,StrokeData!$A$4:$A$861,StrokeData!$D$4:$D$861) ->  | H42: =LOOKUP(C42,StrokeData!$A$4:$A$861,StrokeData!$E$4:$E$861) ->  | I42: =LOOKUP(C42,StrokeData!$A$4:$A$861,StrokeData!$F$4:$F$861) ->  | J42: =LOOKUP(C42,StrokeData!$A$4:$A$861,StrokeData!$G$4:$G$861) ->  | K42: =LOOKUP(C42,StrokeData!$A$4:$A$861,StrokeData!$H$4:$H$861) ->  | L42: =LOOKUP(C42,StrokeData!$A$4:$A$861,StrokeData!$I$4:$I$861) ->  | M42: =LOOKUP(C42,StrokeData!$A$4:$A$861,StrokeData!$J$4:$J$861) ->  | S42: =LOOKUP(C42,StrokeData!$A$4:$A$861,StrokeData!$K$4:$K$861) ->  | T42: =LOOKUP(C42,StrokeData!$A$4:$A$861,StrokeData!$L$4:$L$861) -> 
B43: 7 | C43: =IF(C42=-1,-1,LOOKUP(C42,StrokeData!$A$4:$A$861,StrokeData!$L$4:$L$861)) -> -1 | D43: =LOOKUP(C43,StrokeData!$A$4:$A$861,StrokeData!$B$4:$B$861) ->  | E43: =LOOKUP(C43,StrokeData!$A$4:$A$861,StrokeData!$C$4:$C$861) ->  | G43: =LOOKUP(C43,StrokeData!$A$4:$A$861,StrokeData!$D$4:$D$861) ->  | H43: =LOOKUP(C43,StrokeData!$A$4:$A$861,StrokeData!$E$4:$E$861) ->  | I43: =LOOKUP(C43,StrokeData!$A$4:$A$861,StrokeData!$F$4:$F$861) ->  | J43: =LOOKUP(C43,StrokeData!$A$4:$A$861,StrokeData!$G$4:$G$861) ->  | K43: =LOOKUP(C43,StrokeData!$A$4:$A$861,StrokeData!$H$4:$H$861) ->  | L43: =LOOKUP(C43,StrokeData!$A$4:$A$861,StrokeData!$I$4:$I$861) ->  | M43: =LOOKUP(C43,StrokeData!$A$4:$A$861,StrokeData!$J$4:$J$861) ->  | S43: =LOOKUP(C43,StrokeData!$A$4:$A$861,StrokeData!$K$4:$K$861) ->  | T43: =LOOKUP(C43,StrokeData!$A$4:$A$861,StrokeData!$L$4:$L$861) -> 
B44: 8 | C44: =IF(C43=-1,-1,LOOKUP(C43,StrokeData!$A$4:$A$861,StrokeData!$L$4:$L$861)) -> -1 | D44: =LOOKUP(C44,StrokeData!$A$4:$A$861,StrokeData!$B$4:$B$861) ->  | E44: =LOOKUP(C44,StrokeData!$A$4:$A$861,StrokeData!$C$4:$C$861) ->  | G44: =LOOKUP(C44,StrokeData!$A$4:$A$861,StrokeData!$D$4:$D$861) ->  | H44: =LOOKUP(C44,StrokeData!$A$4:$A$861,StrokeData!$E$4:$E$861) ->  | I44: =LOOKUP(C44,StrokeData!$A$4:$A$861,StrokeData!$F$4:$F$861) ->  | J44: =LOOKUP(C44,StrokeData!$A$4:$A$861,StrokeData!$G$4:$G$861) ->  | K44: =LOOKUP(C44,StrokeData!$A$4:$A$861,StrokeData!$H$4:$H$861) ->  | L44: =LOOKUP(C44,StrokeData!$A$4:$A$861,StrokeData!$I$4:$I$861) ->  | M44: =LOOKUP(C44,StrokeData!$A$4:$A$861,StrokeData!$J$4:$J$861) ->  | S44: =LOOKUP(C44,StrokeData!$A$4:$A$861,StrokeData!$K$4:$K$861) ->  | T44: =LOOKUP(C44,StrokeData!$A$4:$A$861,StrokeData!$L$4:$L$861) -> 
B45: 9 | C45: =IF(C44=-1,-1,LOOKUP(C44,StrokeData!$A$4:$A$861,StrokeData!$L$4:$L$861)) -> -1 | D45: =LOOKUP(C45,StrokeData!$A$4:$A$861,StrokeData!$B$4:$B$861) ->  | E45: =LOOKUP(C45,StrokeData!$A$4:$A$861,StrokeData!$C$4:$C$861) ->  | G45: =LOOKUP(C45,StrokeData!$A$4:$A$861,StrokeData!$D$4:$D$861) ->  | H45: =LOOKUP(C45,StrokeData!$A$4:$A$861,StrokeData!$E$4:$E$861) ->  | I45: =LOOKUP(C45,StrokeData!$A$4:$A$861,StrokeData!$F$4:$F$861) ->  | J45: =LOOKUP(C45,StrokeData!$A$4:$A$861,StrokeData!$G$4:$G$861) ->  | K45: =LOOKUP(C45,StrokeData!$A$4:$A$861,StrokeData!$H$4:$H$861) ->  | L45: =LOOKUP(C45,StrokeData!$A$4:$A$861,StrokeData!$I$4:$I$861) ->  | M45: =LOOKUP(C45,StrokeData!$A$4:$A$861,StrokeData!$J$4:$J$861) ->  | S45: =LOOKUP(C45,StrokeData!$A$4:$A$861,StrokeData!$K$4:$K$861) ->  | T45: =LOOKUP(C45,StrokeData!$A$4:$A$861,StrokeData!$L$4:$L$861) -> 
B46: 10 | C46: =IF(C45=-1,-1,LOOKUP(C45,StrokeData!$A$4:$A$861,StrokeData!$L$4:$L$861)) -> -1 | D46: =LOOKUP(C46,StrokeData!$A$4:$A$861,StrokeData!$B$4:$B$861) ->  | E46: =LOOKUP(C46,StrokeData!$A$4:$A$861,StrokeData!$C$4:$C$861) ->  | G46: =LOOKUP(C46,StrokeData!$A$4:$A$861,StrokeData!$D$4:$D$861) ->  | H46: =LOOKUP(C46,StrokeData!$A$4:$A$861,StrokeData!$E$4:$E$861) ->  | I46: =LOOKUP(C46,StrokeData!$A$4:$A$861,StrokeData!$F$4:$F$861) ->  | J46: =LOOKUP(C46,StrokeData!$A$4:$A$861,StrokeData!$G$4:$G$861) ->  | K46: =LOOKUP(C46,StrokeData!$A$4:$A$861,StrokeData!$H$4:$H$861) ->  | L46: =LOOKUP(C46,StrokeData!$A$4:$A$861,StrokeData!$I$4:$I$861) ->  | M46: =LOOKUP(C46,StrokeData!$A$4:$A$861,StrokeData!$J$4:$J$861) ->  | S46: =LOOKUP(C46,StrokeData!$A$4:$A$861,StrokeData!$K$4:$K$861) ->  | T46: =LOOKUP(C46,StrokeData!$A$4:$A$861,StrokeData!$L$4:$L$861) -> 
B47: 11 | C47: =IF(C46=-1,-1,LOOKUP(C46,StrokeData!$A$4:$A$861,StrokeData!$L$4:$L$861)) -> -1 | D47: =LOOKUP(C47,StrokeData!$A$4:$A$861,StrokeData!$B$4:$B$861) ->  | E47: =LOOKUP(C47,StrokeData!$A$4:$A$861,StrokeData!$C$4:$C$861) ->  | G47: =LOOKUP(C47,StrokeData!$A$4:$A$861,StrokeData!$D$4:$D$861) ->  | H47: =LOOKUP(C47,StrokeData!$A$4:$A$861,StrokeData!$E$4:$E$861) ->  | I47: =LOOKUP(C47,StrokeData!$A$4:$A$861,StrokeData!$F$4:$F$861) ->  | J47: =LOOKUP(C47,StrokeData!$A$4:$A$861,StrokeData!$G$4:$G$861) ->  | K47: =LOOKUP(C47,StrokeData!$A$4:$A$861,StrokeData!$H$4:$H$861) ->  | L47: =LOOKUP(C47,StrokeData!$A$4:$A$861,StrokeData!$I$4:$I$861) ->  | M47: =LOOKUP(C47,StrokeData!$A$4:$A$861,StrokeData!$J$4:$J$861) ->  | S47: =LOOKUP(C47,StrokeData!$A$4:$A$861,StrokeData!$K$4:$K$861) ->  | T47: =LOOKUP(C47,StrokeData!$A$4:$A$861,StrokeData!$L$4:$L$861) -> 
B48: 12 | C48: =IF(C47=-1,-1,LOOKUP(C47,StrokeData!$A$4:$A$861,StrokeData!$L$4:$L$861)) -> -1 | D48: =LOOKUP(C48,StrokeData!$A$4:$A$861,StrokeData!$B$4:$B$861) ->  | E48: =LOOKUP(C48,StrokeData!$A$4:$A$861,StrokeData!$C$4:$C$861) ->  | G48: =LOOKUP(C48,StrokeData!$A$4:$A$861,StrokeData!$D$4:$D$861) ->  | H48: =LOOKUP(C48,StrokeData!$A$4:$A$861,StrokeData!$E$4:$E$861) ->  | I48: =LOOKUP(C48,StrokeData!$A$4:$A$861,StrokeData!$F$4:$F$861) ->  | J48: =LOOKUP(C48,StrokeData!$A$4:$A$861,StrokeData!$G$4:$G$861) ->  | K48: =LOOKUP(C48,StrokeData!$A$4:$A$861,StrokeData!$H$4:$H$861) ->  | L48: =LOOKUP(C48,StrokeData!$A$4:$A$861,StrokeData!$I$4:$I$861) ->  | M48: =LOOKUP(C48,StrokeData!$A$4:$A$861,StrokeData!$J$4:$J$861) ->  | S48: =LOOKUP(C48,StrokeData!$A$4:$A$861,StrokeData!$K$4:$K$861) ->  | T48: =LOOKUP(C48,StrokeData!$A$4:$A$861,StrokeData!$L$4:$L$861) -> 
B49: 13 | C49: =IF(C48=-1,-1,LOOKUP(C48,StrokeData!$A$4:$A$861,StrokeData!$L$4:$L$861)) -> -1 | D49: =LOOKUP(C49,StrokeData!$A$4:$A$861,StrokeData!$B$4:$B$861) ->  | E49: =LOOKUP(C49,StrokeData!$A$4:$A$861,StrokeData!$C$4:$C$861) ->  | G49: =LOOKUP(C49,StrokeData!$A$4:$A$861,StrokeData!$D$4:$D$861) ->  | H49: =LOOKUP(C49,StrokeData!$A$4:$A$861,StrokeData!$E$4:$E$861) ->  | I49: =LOOKUP(C49,StrokeData!$A$4:$A$861,StrokeData!$F$4:$F$861) ->  | J49: =LOOKUP(C49,StrokeData!$A$4:$A$861,StrokeData!$G$4:$G$861) ->  | K49: =LOOKUP(C49,StrokeData!$A$4:$A$861,StrokeData!$H$4:$H$861) ->  | L49: =LOOKUP(C49,StrokeData!$A$4:$A$861,StrokeData!$I$4:$I$861) ->  | M49: =LOOKUP(C49,StrokeData!$A$4:$A$861,StrokeData!$J$4:$J$861) ->  | S49: =LOOKUP(C49,StrokeData!$A$4:$A$861,StrokeData!$K$4:$K$861) ->  | T49: =LOOKUP(C49,StrokeData!$A$4:$A$861,StrokeData!$L$4:$L$861) -> 
B50: 14 | C50: =IF(C49=-1,-1,LOOKUP(C49,StrokeData!$A$4:$A$861,StrokeData!$L$4:$L$861)) -> -1 | D50: =LOOKUP(C50,StrokeData!$A$4:$A$861,StrokeData!$B$4:$B$861) ->  | E50: =LOOKUP(C50,StrokeData!$A$4:$A$861,StrokeData!$C$4:$C$861) ->  | G50: =LOOKUP(C50,StrokeData!$A$4:$A$861,StrokeData!$D$4:$D$861) ->  | H50: =LOOKUP(C50,StrokeData!$A$4:$A$861,StrokeData!$E$4:$E$861) ->  | I50: =LOOKUP(C50,StrokeData!$A$4:$A$861,StrokeData!$F$4:$F$861) ->  | J50: =LOOKUP(C50,StrokeData!$A$4:$A$861,StrokeData!$G$4:$G$861) ->  | K50: =LOOKUP(C50,StrokeData!$A$4:$A$861,StrokeData!$H$4:$H$861) ->  | L50: =LOOKUP(C50,StrokeData!$A$4:$A$861,StrokeData!$I$4:$I$861) ->  | M50: =LOOKUP(C50,StrokeData!$A$4:$A$861,StrokeData!$J$4:$J$861) ->  | S50: =LOOKUP(C50,StrokeData!$A$4:$A$861,StrokeData!$K$4:$K$861) ->  | T50: =LOOKUP(C50,StrokeData!$A$4:$A$861,StrokeData!$L$4:$L$861) -> 
B51: 15 | C51: =IF(C50=-1,-1,LOOKUP(C50,StrokeData!$A$4:$A$861,StrokeData!$L$4:$L$861)) -> -1 | D51: =LOOKUP(C51,StrokeData!$A$4:$A$861,StrokeData!$B$4:$B$861) ->  | E51: =LOOKUP(C51,StrokeData!$A$4:$A$861,StrokeData!$C$4:$C$861) ->  | G51: =LOOKUP(C51,StrokeData!$A$4:$A$861,StrokeData!$D$4:$D$861) ->  | H51: =LOOKUP(C51,StrokeData!$A$4:$A$861,StrokeData!$E$4:$E$861) ->  | I51: =LOOKUP(C51,StrokeData!$A$4:$A$861,StrokeData!$F$4:$F$861) ->  | J51: =LOOKUP(C51,StrokeData!$A$4:$A$861,StrokeData!$G$4:$G$861) ->  | K51: =LOOKUP(C51,StrokeData!$A$4:$A$861,StrokeData!$H$4:$H$861) ->  | L51: =LOOKUP(C51,StrokeData!$A$4:$A$861,StrokeData!$I$4:$I$861) ->  | M51: =LOOKUP(C51,StrokeData!$A$4:$A$861,StrokeData!$J$4:$J$861) ->  | S51: =LOOKUP(C51,StrokeData!$A$4:$A$861,StrokeData!$K$4:$K$861) ->  | T51: =LOOKUP(C51,StrokeData!$A$4:$A$861,StrokeData!$L$4:$L$861) -> 
B52: 16 | C52: =IF(C51=-1,-1,LOOKUP(C51,StrokeData!$A$4:$A$861,StrokeData!$L$4:$L$861)) -> -1 | D52: =LOOKUP(C52,StrokeData!$A$4:$A$861,StrokeData!$B$4:$B$861) ->  | E52: =LOOKUP(C52,StrokeData!$A$4:$A$861,StrokeData!$C$4:$C$861) ->  | G52: =LOOKUP(C52,StrokeData!$A$4:$A$861,StrokeData!$D$4:$D$861) ->  | H52: =LOOKUP(C52,StrokeData!$A$4:$A$861,StrokeData!$E$4:$E$861) ->  | I52: =LOOKUP(C52,StrokeData!$A$4:$A$861,StrokeData!$F$4:$F$861) ->  | J52: =LOOKUP(C52,StrokeData!$A$4:$A$861,StrokeData!$G$4:$G$861) ->  | K52: =LOOKUP(C52,StrokeData!$A$4:$A$861,StrokeData!$H$4:$H$861) ->  | L52: =LOOKUP(C52,StrokeData!$A$4:$A$861,StrokeData!$I$4:$I$861) ->  | M52: =LOOKUP(C52,StrokeData!$A$4:$A$861,StrokeData!$J$4:$J$861) ->  | S52: =LOOKUP(C52,StrokeData!$A$4:$A$861,StrokeData!$K$4:$K$861) ->  | T52: =LOOKUP(C52,StrokeData!$A$4:$A$861,StrokeData!$L$4:$L$861) -> 
B53: 17 | C53: =IF(C52=-1,-1,LOOKUP(C52,StrokeData!$A$4:$A$861,StrokeData!$L$4:$L$861)) -> -1 | D53: =LOOKUP(C53,StrokeData!$A$4:$A$861,StrokeData!$B$4:$B$861) ->  | E53: =LOOKUP(C53,StrokeData!$A$4:$A$861,StrokeData!$C$4:$C$861) ->  | G53: =LOOKUP(C53,StrokeData!$A$4:$A$861,StrokeData!$D$4:$D$861) ->  | H53: =LOOKUP(C53,StrokeData!$A$4:$A$861,StrokeData!$E$4:$E$861) ->  | I53: =LOOKUP(C53,StrokeData!$A$4:$A$861,StrokeData!$F$4:$F$861) ->  | J53: =LOOKUP(C53,StrokeData!$A$4:$A$861,StrokeData!$G$4:$G$861) ->  | K53: =LOOKUP(C53,StrokeData!$A$4:$A$861,StrokeData!$H$4:$H$861) ->  | L53: =LOOKUP(C53,StrokeData!$A$4:$A$861,StrokeData!$I$4:$I$861) ->  | M53: =LOOKUP(C53,StrokeData!$A$4:$A$861,StrokeData!$J$4:$J$861) ->  | S53: =LOOKUP(C53,StrokeData!$A$4:$A$861,StrokeData!$K$4:$K$861) ->  | T53: =LOOKUP(C53,StrokeData!$A$4:$A$861,StrokeData!$L$4:$L$861) -> 
B54: 18 | C54: =IF(C53=-1,-1,LOOKUP(C53,StrokeData!$A$4:$A$861,StrokeData!$L$4:$L$861)) -> -1 | D54: =LOOKUP(C54,StrokeData!$A$4:$A$861,StrokeData!$B$4:$B$861) ->  | E54: =LOOKUP(C54,StrokeData!$A$4:$A$861,StrokeData!$C$4:$C$861) ->  | G54: =LOOKUP(C54,StrokeData!$A$4:$A$861,StrokeData!$D$4:$D$861) ->  | H54: =LOOKUP(C54,StrokeData!$A$4:$A$861,StrokeData!$E$4:$E$861) ->  | I54: =LOOKUP(C54,StrokeData!$A$4:$A$861,StrokeData!$F$4:$F$861) ->  | J54: =LOOKUP(C54,StrokeData!$A$4:$A$861,StrokeData!$G$4:$G$861) ->  | K54: =LOOKUP(C54,StrokeData!$A$4:$A$861,StrokeData!$H$4:$H$861) ->  | L54: =LOOKUP(C54,StrokeData!$A$4:$A$861,StrokeData!$I$4:$I$861) ->  | M54: =LOOKUP(C54,StrokeData!$A$4:$A$861,StrokeData!$J$4:$J$861) ->  | S54: =LOOKUP(C54,StrokeData!$A$4:$A$861,StrokeData!$K$4:$K$861) ->  | T54: =LOOKUP(C54,StrokeData!$A$4:$A$861,StrokeData!$L$4:$L$861) -> 
B55: 19 | C55: =IF(C54=-1,-1,LOOKUP(C54,StrokeData!$A$4:$A$861,StrokeData!$L$4:$L$861)) -> -1 | D55: =LOOKUP(C55,StrokeData!$A$4:$A$861,StrokeData!$B$4:$B$861) ->  | E55: =LOOKUP(C55,StrokeData!$A$4:$A$861,StrokeData!$C$4:$C$861) ->  | G55: =LOOKUP(C55,StrokeData!$A$4:$A$861,StrokeData!$D$4:$D$861) ->  | H55: =LOOKUP(C55,StrokeData!$A$4:$A$861,StrokeData!$E$4:$E$861) ->  | I55: =LOOKUP(C55,StrokeData!$A$4:$A$861,StrokeData!$F$4:$F$861) ->  | J55: =LOOKUP(C55,StrokeData!$A$4:$A$861,StrokeData!$G$4:$G$861) ->  | K55: =LOOKUP(C55,StrokeData!$A$4:$A$861,StrokeData!$H$4:$H$861) ->  | L55: =LOOKUP(C55,StrokeData!$A$4:$A$861,StrokeData!$I$4:$I$861) ->  | M55: =LOOKUP(C55,StrokeData!$A$4:$A$861,StrokeData!$J$4:$J$861) ->  | S55: =LOOKUP(C55,StrokeData!$A$4:$A$861,StrokeData!$K$4:$K$861) ->  | T55: =LOOKUP(C55,StrokeData!$A$4:$A$861,StrokeData!$L$4:$L$861) -> 
B56: 20 | C56: =IF(C55=-1,-1,LOOKUP(C55,StrokeData!$A$4:$A$861,StrokeData!$L$4:$L$861)) -> -1 | D56: =LOOKUP(C56,StrokeData!$A$4:$A$861,StrokeData!$B$4:$B$861) ->  | E56: =LOOKUP(C56,StrokeData!$A$4:$A$861,StrokeData!$C$4:$C$861) ->  | G56: =LOOKUP(C56,StrokeData!$A$4:$A$861,StrokeData!$D$4:$D$861) ->  | H56: =LOOKUP(C56,StrokeData!$A$4:$A$861,StrokeData!$E$4:$E$861) ->  | I56: =LOOKUP(C56,StrokeData!$A$4:$A$861,StrokeData!$F$4:$F$861) ->  | J56: =LOOKUP(C56,StrokeData!$A$4:$A$861,StrokeData!$G$4:$G$861) ->  | K56: =LOOKUP(C56,StrokeData!$A$4:$A$861,StrokeData!$H$4:$H$861) ->  | L56: =LOOKUP(C56,StrokeData!$A$4:$A$861,StrokeData!$I$4:$I$861) ->  | M56: =LOOKUP(C56,StrokeData!$A$4:$A$861,StrokeData!$J$4:$J$861) ->  | S56: =LOOKUP(C56,StrokeData!$A$4:$A$861,StrokeData!$K$4:$K$861) ->  | T56: =LOOKUP(C56,StrokeData!$A$4:$A$861,StrokeData!$L$4:$L$861) -> 
D57: ストローク | E57: =H5 -> 100 | F57: mm | G57: ～ | H57: =I5 -> 600 | I57: mm | K57: 刻み | L57: =LOOKUP(D35,B26:B33,R26:R33) -> 50 | M57: mm | O57: 慣性係数 | P57: =IF($J$5=1,0.000001,0.001) -> 0.001 | Q57: 有効桁数 | R57: =IF($J$5=1,6,3) -> 3
B58: stﾘｽﾄ検索用(降順) | D58: № | E58: =StrokeData!$B$2 -> ｽﾄﾛｰｸ長 | F58: stﾘｽﾄ№ | G58: =StrokeData!$C$2 -> 有効ｽﾄﾛｰｸ補正 | I58: =StrokeData!$D$2 -> 基準ｹﾞｲﾝ用搬送質量 | J58: =StrokeData!$E$2 -> 水平可搬質量 | K58: =StrokeData!$F$2 -> 垂直可搬質量 | L58: =StrokeData!$G$2 -> 最大速度 | M58: =StrokeData!$H$2 -> 位置ｹﾞｲﾝ | N58: =StrokeData!$I$2 -> FFｹﾞｲﾝ | O58: =StrokeData!$J$2 -> 速度制御帯域
B59: =B36 -> № | C59: =D36 -> ｽﾄﾛｰｸ長 | D59: 0 | E59: =H4 -> [mm] | G59: [mm] | H59: [kg/mm] | I59: =IF(J5=1,"[kgm^2]","[kg]") -> [kg] | J59: =IF(J5=1,"[kgm^2]","[kg]") -> [kg] | K59: =IF(J5=1,"[kgm^2]","[kg]") -> [kg] | L59: [mm/s] | M59: [1/s] | N59: [%] | O59: [rad/s] | Q59: [s] | T59: [Nm/rad]
B60: =B56 -> 20 | C60: =D56 ->  | D60: 1 | E60: =IF( (E57+L57*D59)<=H57,(E57+L57*D59),"- - -") -> 100 | F60: =(B60+1)-MATCH(E60,C60:C79,-1) -> 1 | G60: =LOOKUP(F60,B37:B56,E37:E56) -> 0 | I60: =LOOKUP(F60,B37:B56,G37:G56)*$P$57 -> 50 | J60: =LOOKUP(F60,B37:B56,H37:H56)*$P$57 -> 50 | K60: =LOOKUP(F60,B37:B56,I37:I56)*$P$57 -> 14 | L60: =LOOKUP(F60,B37:B56,J37:J56) -> 240 | M60: =LOOKUP(F60,B37:B56,K37:K56) -> 30 | N60: =LOOKUP(F60,B37:B56,L37:L56) -> 0 | O60: =LOOKUP(F60,B37:B56,M37:M56) -> 120
B61: =B55 -> 19 | C61: =D55 ->  | D61: =D60+1 -> 2 | E61: =IF( (E57+L57*D60)<=H57,(E57+L57*D60),"- - -") -> 150 | F61: =(B60+1)-MATCH(E61,C60:C79,-1) -> 1 | G61: =LOOKUP(F61,B37:B56,E37:E56) -> 0 | I61: =LOOKUP(F61,B37:B56,G37:G56)*$P$57 -> 50 | J61: =LOOKUP(F61,B37:B56,H37:H56)*$P$57 -> 50 | K61: =LOOKUP(F61,B37:B56,I37:I56)*$P$57 -> 14 | L61: =LOOKUP(F61,B37:B56,J37:J56) -> 240 | M61: =LOOKUP(F61,B37:B56,K37:K56) -> 30 | N61: =LOOKUP(F61,B37:B56,L37:L56) -> 0 | O61: =LOOKUP(F61,B37:B56,M37:M56) -> 120
B62: =B54 -> 18 | C62: =D54 ->  | D62: =D61+1 -> 3 | E62: =IF( (E57+L57*D61)<=H57,(E57+L57*D61),"- - -") -> 200 | F62: =(B60+1)-MATCH(E62,C60:C79,-1) -> 1 | G62: =LOOKUP(F62,B37:B56,E37:E56) -> 0 | I62: =LOOKUP(F62,B37:B56,G37:G56)*$P$57 -> 50 | J62: =LOOKUP(F62,B37:B56,H37:H56)*$P$57 -> 50 | K62: =LOOKUP(F62,B37:B56,I37:I56)*$P$57 -> 14 | L62: =LOOKUP(F62,B37:B56,J37:J56) -> 240 | M62: =LOOKUP(F62,B37:B56,K37:K56) -> 30 | N62: =LOOKUP(F62,B37:B56,L37:L56) -> 0 | O62: =LOOKUP(F62,B37:B56,M37:M56) -> 120
B63: =B53 -> 17 | C63: =D53 ->  | D63: 4 | E63: =IF( (E57+L57*D62)<=H57,(E57+L57*D62),"- - -") -> 250 | F63: =(B60+1)-MATCH(E63,C60:C79,-1) -> 1 | G63: =LOOKUP(F63,B37:B56,E37:E56) -> 0 | I63: =LOOKUP(F63,B37:B56,G37:G56)*$P$57 -> 50 | J63: =LOOKUP(F63,B37:B56,H37:H56)*$P$57 -> 50 | K63: =LOOKUP(F63,B37:B56,I37:I56)*$P$57 -> 14 | L63: =LOOKUP(F63,B37:B56,J37:J56) -> 240 | M63: =LOOKUP(F63,B37:B56,K37:K56) -> 30 | N63: =LOOKUP(F63,B37:B56,L37:L56) -> 0 | O63: =LOOKUP(F63,B37:B56,M37:M56) -> 120
B64: =B52 -> 16 | C64: =D52 ->  | D64: 5 | E64: =IF( (E57+L57*D63)<=H57,(E57+L57*D63),"- - -") -> 300 | F64: =(B60+1)-MATCH(E64,C60:C79,-1) -> 1 | G64: =LOOKUP(F64,B37:B56,E37:E56) -> 0 | I64: =LOOKUP(F64,B37:B56,G37:G56)*$P$57 -> 50 | J64: =LOOKUP(F64,B37:B56,H37:H56)*$P$57 -> 50 | K64: =LOOKUP(F64,B37:B56,I37:I56)*$P$57 -> 14 | L64: =LOOKUP(F64,B37:B56,J37:J56) -> 240 | M64: =LOOKUP(F64,B37:B56,K37:K56) -> 30 | N64: =LOOKUP(F64,B37:B56,L37:L56) -> 0 | O64: =LOOKUP(F64,B37:B56,M37:M56) -> 120
B65: =B51 -> 15 | C65: =D51 ->  | D65: 6 | E65: =IF( (E57+L57*D64)<=H57,(E57+L57*D64),"- - -") -> 350 | F65: =(B60+1)-MATCH(E65,C60:C79,-1) -> 1 | G65: =LOOKUP(F65,B37:B56,E37:E56) -> 0 | I65: =LOOKUP(F65,B37:B56,G37:G56)*$P$57 -> 50 | J65: =LOOKUP(F65,B37:B56,H37:H56)*$P$57 -> 50 | K65: =LOOKUP(F65,B37:B56,I37:I56)*$P$57 -> 14 | L65: =LOOKUP(F65,B37:B56,J37:J56) -> 240 | M65: =LOOKUP(F65,B37:B56,K37:K56) -> 30 | N65: =LOOKUP(F65,B37:B56,L37:L56) -> 0 | O65: =LOOKUP(F65,B37:B56,M37:M56) -> 120
B66: =B50 -> 14 | C66: =D50 ->  | D66: 7 | E66: =IF( (E57+L57*D65)<=H57,(E57+L57*D65),"- - -") -> 400 | F66: =(B60+1)-MATCH(E66,C60:C79,-1) -> 1 | G66: =LOOKUP(F66,B37:B56,E37:E56) -> 0 | I66: =LOOKUP(F66,B37:B56,G37:G56)*$P$57 -> 50 | J66: =LOOKUP(F66,B37:B56,H37:H56)*$P$57 -> 50 | K66: =LOOKUP(F66,B37:B56,I37:I56)*$P$57 -> 14 | L66: =LOOKUP(F66,B37:B56,J37:J56) -> 240 | M66: =LOOKUP(F66,B37:B56,K37:K56) -> 30 | N66: =LOOKUP(F66,B37:B56,L37:L56) -> 0 | O66: =LOOKUP(F66,B37:B56,M37:M56) -> 120
B67: =B49 -> 13 | C67: =D49 ->  | D67: 8 | E67: =IF( (E57+L57*D66)<=H57,(E57+L57*D66),"- - -") -> 450 | F67: =(B60+1)-MATCH(E67,C60:C79,-1) -> 1 | G67: =LOOKUP(F67,B37:B56,E37:E56) -> 0 | I67: =LOOKUP(F67,B37:B56,G37:G56)*$P$57 -> 50 | J67: =LOOKUP(F67,B37:B56,H37:H56)*$P$57 -> 50 | K67: =LOOKUP(F67,B37:B56,I37:I56)*$P$57 -> 14 | L67: =LOOKUP(F67,B37:B56,J37:J56) -> 240 | M67: =LOOKUP(F67,B37:B56,K37:K56) -> 30 | N67: =LOOKUP(F67,B37:B56,L37:L56) -> 0 | O67: =LOOKUP(F67,B37:B56,M37:M56) -> 120
B68: =B48 -> 12 | C68: =D48 ->  | D68: 9 | E68: =IF( (E57+L57*D67)<=H57,(E57+L57*D67),"- - -") -> 500 | F68: =(B60+1)-MATCH(E68,C60:C79,-1) -> 1 | G68: =LOOKUP(F68,B37:B56,E37:E56) -> 0 | I68: =LOOKUP(F68,B37:B56,G37:G56)*$P$57 -> 50 | J68: =LOOKUP(F68,B37:B56,H37:H56)*$P$57 -> 50 | K68: =LOOKUP(F68,B37:B56,I37:I56)*$P$57 -> 14 | L68: =LOOKUP(F68,B37:B56,J37:J56) -> 240 | M68: =LOOKUP(F68,B37:B56,K37:K56) -> 30 | N68: =LOOKUP(F68,B37:B56,L37:L56) -> 0 | O68: =LOOKUP(F68,B37:B56,M37:M56) -> 120
B69: =B47 -> 11 | C69: =D47 ->  | D69: 10 | E69: =IF( (E57+L57*D68)<=H57,(E57+L57*D68),"- - -") -> 550 | F69: =(B60+1)-MATCH(E69,C60:C79,-1) -> 1 | G69: =LOOKUP(F69,B37:B56,E37:E56) -> 0 | I69: =LOOKUP(F69,B37:B56,G37:G56)*$P$57 -> 50 | J69: =LOOKUP(F69,B37:B56,H37:H56)*$P$57 -> 50 | K69: =LOOKUP(F69,B37:B56,I37:I56)*$P$57 -> 14 | L69: =LOOKUP(F69,B37:B56,J37:J56) -> 240 | M69: =LOOKUP(F69,B37:B56,K37:K56) -> 30 | N69: =LOOKUP(F69,B37:B56,L37:L56) -> 0 | O69: =LOOKUP(F69,B37:B56,M37:M56) -> 120
B70: =B46 -> 10 | C70: =D46 ->  | D70: 11 | E70: =IF( (E57+L57*D69)<=H57,(E57+L57*D69),"- - -") -> 600 | F70: =(B60+1)-MATCH(E70,C60:C79,-1) -> 1 | G70: =LOOKUP(F70,B37:B56,E37:E56) -> 0 | I70: =LOOKUP(F70,B37:B56,G37:G56)*$P$57 -> 50 | J70: =LOOKUP(F70,B37:B56,H37:H56)*$P$57 -> 50 | K70: =LOOKUP(F70,B37:B56,I37:I56)*$P$57 -> 14 | L70: =LOOKUP(F70,B37:B56,J37:J56) -> 240 | M70: =LOOKUP(F70,B37:B56,K37:K56) -> 30 | N70: =LOOKUP(F70,B37:B56,L37:L56) -> 0 | O70: =LOOKUP(F70,B37:B56,M37:M56) -> 120
B71: =B45 -> 9 | C71: =D45 ->  | D71: 12 | E71: =IF( (E57+L57*D70)<=H57,(E57+L57*D70),"- - -") -> - - - | F71: =(B60+1)-MATCH(E71,C60:C79,-1) ->  | G71: =LOOKUP(F71,B37:B56,E37:E56) ->  | I71: =LOOKUP(F71,B37:B56,G37:G56)*$P$57 ->  | J71: =LOOKUP(F71,B37:B56,H37:H56)*$P$57 ->  | K71: =LOOKUP(F71,B37:B56,I37:I56)*$P$57 ->  | L71: =LOOKUP(F71,B37:B56,J37:J56) ->  | M71: =LOOKUP(F71,B37:B56,K37:K56) ->  | N71: =LOOKUP(F71,B37:B56,L37:L56) ->  | O71: =LOOKUP(F71,B37:B56,M37:M56) -> 
B72: =B44 -> 8 | C72: =D44 ->  | D72: 13 | E72: =IF( (E57+L57*D71)<=H57,(E57+L57*D71),"- - -") -> - - - | F72: =(B60+1)-MATCH(E72,C60:C79,-1) ->  | G72: =LOOKUP(F72,B37:B56,E37:E56) ->  | I72: =LOOKUP(F72,B37:B56,G37:G56)*$P$57 ->  | J72: =LOOKUP(F72,B37:B56,H37:H56)*$P$57 ->  | K72: =LOOKUP(F72,B37:B56,I37:I56)*$P$57 ->  | L72: =LOOKUP(F72,B37:B56,J37:J56) ->  | M72: =LOOKUP(F72,B37:B56,K37:K56) ->  | N72: =LOOKUP(F72,B37:B56,L37:L56) ->  | O72: =LOOKUP(F72,B37:B56,M37:M56) -> 
B73: =B43 -> 7 | C73: =D43 ->  | D73: 14 | E73: =IF( (E57+L57*D72)<=H57,(E57+L57*D72),"- - -") -> - - - | F73: =(B60+1)-MATCH(E73,C60:C79,-1) ->  | G73: =LOOKUP(F73,B37:B56,E37:E56) ->  | I73: =LOOKUP(F73,B37:B56,G37:G56)*$P$57 ->  | J73: =LOOKUP(F73,B37:B56,H37:H56)*$P$57 ->  | K73: =LOOKUP(F73,B37:B56,I37:I56)*$P$57 ->  | L73: =LOOKUP(F73,B37:B56,J37:J56) ->  | M73: =LOOKUP(F73,B37:B56,K37:K56) ->  | N73: =LOOKUP(F73,B37:B56,L37:L56) ->  | O73: =LOOKUP(F73,B37:B56,M37:M56) -> 
B74: =B42 -> 6 | C74: =D42 ->  | D74: 15 | E74: =IF( (E57+L57*D73)<=H57,(E57+L57*D73),"- - -") -> - - - | F74: =(B60+1)-MATCH(E74,C60:C79,-1) ->  | G74: =LOOKUP(F74,B37:B56,E37:E56) ->  | I74: =LOOKUP(F74,B37:B56,G37:G56)*$P$57 ->  | J74: =LOOKUP(F74,B37:B56,H37:H56)*$P$57 ->  | K74: =LOOKUP(F74,B37:B56,I37:I56)*$P$57 ->  | L74: =LOOKUP(F74,B37:B56,J37:J56) ->  | M74: =LOOKUP(F74,B37:B56,K37:K56) ->  | N74: =LOOKUP(F74,B37:B56,L37:L56) ->  | O74: =LOOKUP(F74,B37:B56,M37:M56) -> 
B75: =B41 -> 5 | C75: =D41 ->  | D75: 16 | E75: =IF( (E57+L57*D74)<=H57,(E57+L57*D74),"- - -") -> - - - | F75: =(B60+1)-MATCH(E75,C60:C79,-1) ->  | G75: =LOOKUP(F75,B37:B56,E37:E56) ->  | I75: =LOOKUP(F75,B37:B56,G37:G56)*$P$57 ->  | J75: =LOOKUP(F75,B37:B56,H37:H56)*$P$57 ->  | K75: =LOOKUP(F75,B37:B56,I37:I56)*$P$57 ->  | L75: =LOOKUP(F75,B37:B56,J37:J56) ->  | M75: =LOOKUP(F75,B37:B56,K37:K56) ->  | N75: =LOOKUP(F75,B37:B56,L37:L56) ->  | O75: =LOOKUP(F75,B37:B56,M37:M56) -> 
B76: =B40 -> 4 | C76: =D40 ->  | D76: 17 | E76: =IF( (E57+L57*D75)<=H57,(E57+L57*D75),"- - -") -> - - - | F76: =(B60+1)-MATCH(E76,C60:C79,-1) ->  | G76: =LOOKUP(F76,B37:B56,E37:E56) ->  | I76: =LOOKUP(F76,B37:B56,G37:G56)*$P$57 ->  | J76: =LOOKUP(F76,B37:B56,H37:H56)*$P$57 ->  | K76: =LOOKUP(F76,B37:B56,I37:I56)*$P$57 ->  | L76: =LOOKUP(F76,B37:B56,J37:J56) ->  | M76: =LOOKUP(F76,B37:B56,K37:K56) ->  | N76: =LOOKUP(F76,B37:B56,L37:L56) ->  | O76: =LOOKUP(F76,B37:B56,M37:M56) -> 
B77: =B39 -> 3 | C77: =D39 ->  | D77: 18 | E77: =IF( (E57+L57*D76)<=H57,(E57+L57*D76),"- - -") -> - - - | F77: =(B60+1)-MATCH(E77,C60:C79,-1) ->  | G77: =LOOKUP(F77,B37:B56,E37:E56) ->  | I77: =LOOKUP(F77,B37:B56,G37:G56)*$P$57 ->  | J77: =LOOKUP(F77,B37:B56,H37:H56)*$P$57 ->  | K77: =LOOKUP(F77,B37:B56,I37:I56)*$P$57 ->  | L77: =LOOKUP(F77,B37:B56,J37:J56) ->  | M77: =LOOKUP(F77,B37:B56,K37:K56) ->  | N77: =LOOKUP(F77,B37:B56,L37:L56) ->  | O77: =LOOKUP(F77,B37:B56,M37:M56) -> 
B78: =B38 -> 2 | C78: =D38 ->  | D78: 19 | E78: =IF( (E57+L57*D77)<=H57,(E57+L57*D77),"- - -") -> - - - | F78: =(B60+1)-MATCH(E78,C60:C79,-1) ->  | G78: =LOOKUP(F78,B37:B56,E37:E56) ->  | I78: =LOOKUP(F78,B37:B56,G37:G56)*$P$57 ->  | J78: =LOOKUP(F78,B37:B56,H37:H56)*$P$57 ->  | K78: =LOOKUP(F78,B37:B56,I37:I56)*$P$57 ->  | L78: =LOOKUP(F78,B37:B56,J37:J56) ->  | M78: =LOOKUP(F78,B37:B56,K37:K56) ->  | N78: =LOOKUP(F78,B37:B56,L37:L56) ->  | O78: =LOOKUP(F78,B37:B56,M37:M56) -> 
B79: =B37 -> 1 | C79: =D37 -> 600 | D79: 20 | E79: =IF( (E57+L57*D78)<=H57,(E57+L57*D78),"- - -") -> - - - | F79: =(B60+1)-MATCH(E79,C60:C79,-1) ->  | G79: =LOOKUP(F79,B37:B56,E37:E56) ->  | I79: =LOOKUP(F79,B37:B56,G37:G56)*$P$57 ->  | J79: =LOOKUP(F79,B37:B56,H37:H56)*$P$57 ->  | K79: =LOOKUP(F79,B37:B56,I37:I56)*$P$57 ->  | L79: =LOOKUP(F79,B37:B56,J37:J56) ->  | M79: =LOOKUP(F79,B37:B56,K37:K56) ->  | N79: =LOOKUP(F79,B37:B56,L37:L56) ->  | O79: =LOOKUP(F79,B37:B56,M37:M56) -> 
D80: 21 | E80: =IF( (E57+L57*D79)<=H57,(E57+L57*D79),"- - -") -> - - - | F80: =(B60+1)-MATCH(E80,C60:C79,-1) ->  | G80: =LOOKUP(F80,B37:B56,E37:E56) ->  | I80: =LOOKUP(F80,B37:B56,G37:G56)*$P$57 ->  | J80: =LOOKUP(F80,B37:B56,H37:H56)*$P$57 ->  | K80: =LOOKUP(F80,B37:B56,I37:I56)*$P$57 ->  | L80: =LOOKUP(F80,B37:B56,J37:J56) ->  | M80: =LOOKUP(F80,B37:B56,K37:K56) ->  | N80: =LOOKUP(F80,B37:B56,L37:L56) ->  | O80: =LOOKUP(F80,B37:B56,M37:M56) -> 
D81: 22 | E81: =IF( (E57+L57*D80)<=H57,(E57+L57*D80),"- - -") -> - - - | F81: =(B60+1)-MATCH(E81,C60:C79,-1) ->  | G81: =LOOKUP(F81,B37:B56,E37:E56) ->  | I81: =LOOKUP(F81,B37:B56,G37:G56)*$P$57 ->  | J81: =LOOKUP(F81,B37:B56,H37:H56)*$P$57 ->  | K81: =LOOKUP(F81,B37:B56,I37:I56)*$P$57 ->  | L81: =LOOKUP(F81,B37:B56,J37:J56) ->  | M81: =LOOKUP(F81,B37:B56,K37:K56) ->  | N81: =LOOKUP(F81,B37:B56,L37:L56) ->  | O81: =LOOKUP(F81,B37:B56,M37:M56) -> 
D82: 23 | E82: =IF( (E57+L57*D81)<=H57,(E57+L57*D81),"- - -") -> - - - | F82: =(B60+1)-MATCH(E82,C60:C79,-1) ->  | G82: =LOOKUP(F82,B37:B56,E37:E56) ->  | I82: =LOOKUP(F82,B37:B56,G37:G56)*$P$57 ->  | J82: =LOOKUP(F82,B37:B56,H37:H56)*$P$57 ->  | K82: =LOOKUP(F82,B37:B56,I37:I56)*$P$57 ->  | L82: =LOOKUP(F82,B37:B56,J37:J56) ->  | M82: =LOOKUP(F82,B37:B56,K37:K56) ->  | N82: =LOOKUP(F82,B37:B56,L37:L56) ->  | O82: =LOOKUP(F82,B37:B56,M37:M56) -> 
D83: 24 | E83: =IF( (E57+L57*D82)<=H57,(E57+L57*D82),"- - -") -> - - - | F83: =(B60+1)-MATCH(E83,C60:C79,-1) ->  | G83: =LOOKUP(F83,B37:B56,E37:E56) ->  | I83: =LOOKUP(F83,B37:B56,G37:G56)*$P$57 ->  | J83: =LOOKUP(F83,B37:B56,H37:H56)*$P$57 ->  | K83: =LOOKUP(F83,B37:B56,I37:I56)*$P$57 ->  | L83: =LOOKUP(F83,B37:B56,J37:J56) ->  | M83: =LOOKUP(F83,B37:B56,K37:K56) ->  | N83: =LOOKUP(F83,B37:B56,L37:L56) ->  | O83: =LOOKUP(F83,B37:B56,M37:M56) -> 
D84: 25 | E84: =IF( (E57+L57*D83)<=H57,(E57+L57*D83),"- - -") -> - - - | F84: =(B60+1)-MATCH(E84,C60:C79,-1) ->  | G84: =LOOKUP(F84,B37:B56,E37:E56) ->  | I84: =LOOKUP(F84,B37:B56,G37:G56)*$P$57 ->  | J84: =LOOKUP(F84,B37:B56,H37:H56)*$P$57 ->  | K84: =LOOKUP(F84,B37:B56,I37:I56)*$P$57 ->  | L84: =LOOKUP(F84,B37:B56,J37:J56) ->  | M84: =LOOKUP(F84,B37:B56,K37:K56) ->  | N84: =LOOKUP(F84,B37:B56,L37:L56) ->  | O84: =LOOKUP(F84,B37:B56,M37:M56) -> 
D85: 26 | E85: =IF( (E57+L57*D84)<=H57,(E57+L57*D84),"- - -") -> - - - | F85: =(B60+1)-MATCH(E85,C60:C79,-1) ->  | G85: =LOOKUP(F85,B37:B56,E37:E56) ->  | I85: =LOOKUP(F85,B37:B56,G37:G56)*$P$57 ->  | J85: =LOOKUP(F85,B37:B56,H37:H56)*$P$57 ->  | K85: =LOOKUP(F85,B37:B56,I37:I56)*$P$57 ->  | L85: =LOOKUP(F85,B37:B56,J37:J56) ->  | M85: =LOOKUP(F85,B37:B56,K37:K56) ->  | N85: =LOOKUP(F85,B37:B56,L37:L56) ->  | O85: =LOOKUP(F85,B37:B56,M37:M56) -> 
D86: 27 | E86: =IF( (E57+L57*D85)<=H57,(E57+L57*D85),"- - -") -> - - - | F86: =(B60+1)-MATCH(E86,C60:C79,-1) ->  | G86: =LOOKUP(F86,B37:B56,E37:E56) ->  | I86: =LOOKUP(F86,B37:B56,G37:G56)*$P$57 ->  | J86: =LOOKUP(F86,B37:B56,H37:H56)*$P$57 ->  | K86: =LOOKUP(F86,B37:B56,I37:I56)*$P$57 ->  | L86: =LOOKUP(F86,B37:B56,J37:J56) ->  | M86: =LOOKUP(F86,B37:B56,K37:K56) ->  | N86: =LOOKUP(F86,B37:B56,L37:L56) ->  | O86: =LOOKUP(F86,B37:B56,M37:M56) -> 
D87: 28 | E87: =IF( (E57+L57*D86)<=H57,(E57+L57*D86),"- - -") -> - - - | F87: =(B60+1)-MATCH(E87,C60:C79,-1) ->  | G87: =LOOKUP(F87,B37:B56,E37:E56) ->  | I87: =LOOKUP(F87,B37:B56,G37:G56)*$P$57 ->  | J87: =LOOKUP(F87,B37:B56,H37:H56)*$P$57 ->  | K87: =LOOKUP(F87,B37:B56,I37:I56)*$P$57 ->  | L87: =LOOKUP(F87,B37:B56,J37:J56) ->  | M87: =LOOKUP(F87,B37:B56,K37:K56) ->  | N87: =LOOKUP(F87,B37:B56,L37:L56) ->  | O87: =LOOKUP(F87,B37:B56,M37:M56) -> 
D88: 29 | E88: =IF( (E57+L57*D87)<=H57,(E57+L57*D87),"- - -") -> - - - | F88: =(B60+1)-MATCH(E88,C60:C79,-1) ->  | G88: =LOOKUP(F88,B37:B56,E37:E56) ->  | I88: =LOOKUP(F88,B37:B56,G37:G56)*$P$57 ->  | J88: =LOOKUP(F88,B37:B56,H37:H56)*$P$57 ->  | K88: =LOOKUP(F88,B37:B56,I37:I56)*$P$57 ->  | L88: =LOOKUP(F88,B37:B56,J37:J56) ->  | M88: =LOOKUP(F88,B37:B56,K37:K56) ->  | N88: =LOOKUP(F88,B37:B56,L37:L56) ->  | O88: =LOOKUP(F88,B37:B56,M37:M56) -> 
D89: 30 | E89: =IF( (E57+L57*D88)<=H57,(E57+L57*D88),"- - -") -> - - - | F89: =(B60+1)-MATCH(E89,C60:C79,-1) ->  | G89: =LOOKUP(F89,B37:B56,E37:E56) ->  | I89: =LOOKUP(F89,B37:B56,G37:G56)*$P$57 ->  | J89: =LOOKUP(F89,B37:B56,H37:H56)*$P$57 ->  | K89: =LOOKUP(F89,B37:B56,I37:I56)*$P$57 ->  | L89: =LOOKUP(F89,B37:B56,J37:J56) ->  | M89: =LOOKUP(F89,B37:B56,K37:K56) ->  | N89: =LOOKUP(F89,B37:B56,L37:L56) ->  | O89: =LOOKUP(F89,B37:B56,M37:M56) -> 
D90: =D89+1 -> 31 | E90: =IF( (E57+L57*D89)<=H57,(E57+L57*D89),"- - -") -> - - - | F90: =(B60+1)-MATCH(E90,C60:C79,-1) ->  | G90: =LOOKUP(F90,B37:B56,E37:E56) ->  | I90: =LOOKUP(F90,B37:B56,G37:G56)*$P$57 ->  | J90: =LOOKUP(F90,B37:B56,H37:H56)*$P$57 ->  | K90: =LOOKUP(F90,B37:B56,I37:I56)*$P$57 ->  | L90: =LOOKUP(F90,B37:B56,J37:J56) ->  | M90: =LOOKUP(F90,B37:B56,K37:K56) ->  | N90: =LOOKUP(F90,B37:B56,L37:L56) ->  | O90: =LOOKUP(F90,B37:B56,M37:M56) -> 
D91: 32 | E91: =IF( (E57+L57*D90)<=H57,(E57+L57*D90),"- - -") -> - - - | F91: =(B60+1)-MATCH(E91,C60:C79,-1) ->  | G91: =LOOKUP(F91,B37:B56,E37:E56) ->  | I91: =LOOKUP(F91,B37:B56,G37:G56)*$P$57 ->  | J91: =LOOKUP(F91,B37:B56,H37:H56)*$P$57 ->  | K91: =LOOKUP(F91,B37:B56,I37:I56)*$P$57 ->  | L91: =LOOKUP(F91,B37:B56,J37:J56) ->  | M91: =LOOKUP(F91,B37:B56,K37:K56) ->  | N91: =LOOKUP(F91,B37:B56,L37:L56) ->  | O91: =LOOKUP(F91,B37:B56,M37:M56) -> 
D92: 33 | E92: =IF( (E57+L57*D91)<=H57,(E57+L57*D91),"- - -") -> - - - | F92: =(B60+1)-MATCH(E92,C60:C79,-1) ->  | G92: =LOOKUP(F92,B37:B56,E37:E56) ->  | I92: =LOOKUP(F92,B37:B56,G37:G56)*$P$57 ->  | J92: =LOOKUP(F92,B37:B56,H37:H56)*$P$57 ->  | K92: =LOOKUP(F92,B37:B56,I37:I56)*$P$57 ->  | L92: =LOOKUP(F92,B37:B56,J37:J56) ->  | M92: =LOOKUP(F92,B37:B56,K37:K56) ->  | N92: =LOOKUP(F92,B37:B56,L37:L56) ->  | O92: =LOOKUP(F92,B37:B56,M37:M56) -> 
D93: 34 | E93: =IF( (E57+L57*D92)<=H57,(E57+L57*D92),"- - -") -> - - - | F93: =(B60+1)-MATCH(E93,C60:C79,-1) ->  | G93: =LOOKUP(F93,B37:B56,E37:E56) ->  | I93: =LOOKUP(F93,B37:B56,G37:G56)*$P$57 ->  | J93: =LOOKUP(F93,B37:B56,H37:H56)*$P$57 ->  | K93: =LOOKUP(F93,B37:B56,I37:I56)*$P$57 ->  | L93: =LOOKUP(F93,B37:B56,J37:J56) ->  | M93: =LOOKUP(F93,B37:B56,K37:K56) ->  | N93: =LOOKUP(F93,B37:B56,L37:L56) ->  | O93: =LOOKUP(F93,B37:B56,M37:M56) -> 
D94: 35 | E94: =IF( (E57+L57*D93)<=H57,(E57+L57*D93),"- - -") -> - - - | F94: =(B60+1)-MATCH(E94,C60:C79,-1) ->  | G94: =LOOKUP(F94,B37:B56,E37:E56) ->  | I94: =LOOKUP(F94,B37:B56,G37:G56)*$P$57 ->  | J94: =LOOKUP(F94,B37:B56,H37:H56)*$P$57 ->  | K94: =LOOKUP(F94,B37:B56,I37:I56)*$P$57 ->  | L94: =LOOKUP(F94,B37:B56,J37:J56) ->  | M94: =LOOKUP(F94,B37:B56,K37:K56) ->  | N94: =LOOKUP(F94,B37:B56,L37:L56) ->  | O94: =LOOKUP(F94,B37:B56,M37:M56) -> 
D95: 36 | E95: =IF( (E57+L57*D94)<=H57,(E57+L57*D94),"- - -") -> - - - | F95: =(B60+1)-MATCH(E95,C60:C79,-1) ->  | G95: =LOOKUP(F95,B37:B56,E37:E56) ->  | I95: =LOOKUP(F95,B37:B56,G37:G56)*$P$57 ->  | J95: =LOOKUP(F95,B37:B56,H37:H56)*$P$57 ->  | K95: =LOOKUP(F95,B37:B56,I37:I56)*$P$57 ->  | L95: =LOOKUP(F95,B37:B56,J37:J56) ->  | M95: =LOOKUP(F95,B37:B56,K37:K56) ->  | N95: =LOOKUP(F95,B37:B56,L37:L56) ->  | O95: =LOOKUP(F95,B37:B56,M37:M56) -> 
D96: 37 | E96: =IF( (E57+L57*D95)<=H57,(E57+L57*D95),"- - -") -> - - - | F96: =(B60+1)-MATCH(E96,C60:C79,-1) ->  | G96: =LOOKUP(F96,B37:B56,E37:E56) ->  | I96: =LOOKUP(F96,B37:B56,G37:G56)*$P$57 ->  | J96: =LOOKUP(F96,B37:B56,H37:H56)*$P$57 ->  | K96: =LOOKUP(F96,B37:B56,I37:I56)*$P$57 ->  | L96: =LOOKUP(F96,B37:B56,J37:J56) ->  | M96: =LOOKUP(F96,B37:B56,K37:K56) ->  | N96: =LOOKUP(F96,B37:B56,L37:L56) ->  | O96: =LOOKUP(F96,B37:B56,M37:M56) -> 
D97: 38 | E97: =IF( (E57+L57*D96)<=H57,(E57+L57*D96),"- - -") -> - - - | F97: =(B60+1)-MATCH(E97,C60:C79,-1) ->  | G97: =LOOKUP(F97,B37:B56,E37:E56) ->  | I97: =LOOKUP(F97,B37:B56,G37:G56)*$P$57 ->  | J97: =LOOKUP(F97,B37:B56,H37:H56)*$P$57 ->  | K97: =LOOKUP(F97,B37:B56,I37:I56)*$P$57 ->  | L97: =LOOKUP(F97,B37:B56,J37:J56) ->  | M97: =LOOKUP(F97,B37:B56,K37:K56) ->  | N97: =LOOKUP(F97,B37:B56,L37:L56) ->  | O97: =LOOKUP(F97,B37:B56,M37:M56) -> 
D98: 39 | E98: =IF( (E57+L57*D97)<=H57,(E57+L57*D97),"- - -") -> - - - | F98: =(B60+1)-MATCH(E98,C60:C79,-1) ->  | G98: =LOOKUP(F98,B37:B56,E37:E56) ->  | I98: =LOOKUP(F98,B37:B56,G37:G56)*$P$57 ->  | J98: =LOOKUP(F98,B37:B56,H37:H56)*$P$57 ->  | K98: =LOOKUP(F98,B37:B56,I37:I56)*$P$57 ->  | L98: =LOOKUP(F98,B37:B56,J37:J56) ->  | M98: =LOOKUP(F98,B37:B56,K37:K56) ->  | N98: =LOOKUP(F98,B37:B56,L37:L56) ->  | O98: =LOOKUP(F98,B37:B56,M37:M56) -> 
D99: 40 | E99: =IF( (E57+L57*D98)<=H57,(E57+L57*D98),"- - -") -> - - - | F99: =(B60+1)-MATCH(E99,C60:C79,-1) ->  | G99: =LOOKUP(F99,B37:B56,E37:E56) ->  | I99: =LOOKUP(F99,B37:B56,G37:G56)*$P$57 ->  | J99: =LOOKUP(F99,B37:B56,H37:H56)*$P$57 ->  | K99: =LOOKUP(F99,B37:B56,I37:I56)*$P$57 ->  | L99: =LOOKUP(F99,B37:B56,J37:J56) ->  | M99: =LOOKUP(F99,B37:B56,K37:K56) ->  | N99: =LOOKUP(F99,B37:B56,L37:L56) ->  | O99: =LOOKUP(F99,B37:B56,M37:M56) -> 
D100: 41 | E100: =IF( (E57+L57*D99)<=H57,(E57+L57*D99),"- - -") -> - - - | F100: =(B60+1)-MATCH(E100,C60:C79,-1) ->  | G100: =LOOKUP(F100,B37:B56,E37:E56) ->  | I100: =LOOKUP(F100,B37:B56,G37:G56)*$P$57 ->  | J100: =LOOKUP(F100,B37:B56,H37:H56)*$P$57 ->  | K100: =LOOKUP(F100,B37:B56,I37:I56)*$P$57 ->  | L100: =LOOKUP(F100,B37:B56,J37:J56) ->  | M100: =LOOKUP(F100,B37:B56,K37:K56) ->  | N100: =LOOKUP(F100,B37:B56,L37:L56) ->  | O100: =LOOKUP(F100,B37:B56,M37:M56) -> 
D101: 42 | E101: =IF( (E57+L57*D100)<=H57,(E57+L57*D100),"- - -") -> - - - | F101: =(B60+1)-MATCH(E101,C60:C79,-1) ->  | G101: =LOOKUP(F101,B37:B56,E37:E56) ->  | I101: =LOOKUP(F101,B37:B56,G37:G56)*$P$57 ->  | J101: =LOOKUP(F101,B37:B56,H37:H56)*$P$57 ->  | K101: =LOOKUP(F101,B37:B56,I37:I56)*$P$57 ->  | L101: =LOOKUP(F101,B37:B56,J37:J56) ->  | M101: =LOOKUP(F101,B37:B56,K37:K56) ->  | N101: =LOOKUP(F101,B37:B56,L37:L56) ->  | O101: =LOOKUP(F101,B37:B56,M37:M56) -> 
D102: 43 | E102: =IF( (E57+L57*D101)<=H57,(E57+L57*D101),"- - -") -> - - - | F102: =(B60+1)-MATCH(E102,C60:C79,-1) ->  | G102: =LOOKUP(F102,B37:B56,E37:E56) ->  | I102: =LOOKUP(F102,B37:B56,G37:G56)*$P$57 ->  | J102: =LOOKUP(F102,B37:B56,H37:H56)*$P$57 ->  | K102: =LOOKUP(F102,B37:B56,I37:I56)*$P$57 ->  | L102: =LOOKUP(F102,B37:B56,J37:J56) ->  | M102: =LOOKUP(F102,B37:B56,K37:K56) ->  | N102: =LOOKUP(F102,B37:B56,L37:L56) ->  | O102: =LOOKUP(F102,B37:B56,M37:M56) -> 
D103: 44 | E103: =IF( (E57+L57*D102)<=H57,(E57+L57*D102),"- - -") -> - - - | F103: =(B60+1)-MATCH(E103,C60:C79,-1) ->  | G103: =LOOKUP(F103,B37:B56,E37:E56) ->  | I103: =LOOKUP(F103,B37:B56,G37:G56)*$P$57 ->  | J103: =LOOKUP(F103,B37:B56,H37:H56)*$P$57 ->  | K103: =LOOKUP(F103,B37:B56,I37:I56)*$P$57 ->  | L103: =LOOKUP(F103,B37:B56,J37:J56) ->  | M103: =LOOKUP(F103,B37:B56,K37:K56) ->  | N103: =LOOKUP(F103,B37:B56,L37:L56) ->  | O103: =LOOKUP(F103,B37:B56,M37:M56) -> 
D104: 45 | E104: =IF( (E57+L57*D103)<=H57,(E57+L57*D103),"- - -") -> - - - | F104: =(B60+1)-MATCH(E104,C60:C79,-1) ->  | G104: =LOOKUP(F104,B37:B56,E37:E56) ->  | I104: =LOOKUP(F104,B37:B56,G37:G56)*$P$57 ->  | J104: =LOOKUP(F104,B37:B56,H37:H56)*$P$57 ->  | K104: =LOOKUP(F104,B37:B56,I37:I56)*$P$57 ->  | L104: =LOOKUP(F104,B37:B56,J37:J56) ->  | M104: =LOOKUP(F104,B37:B56,K37:K56) ->  | N104: =LOOKUP(F104,B37:B56,L37:L56) ->  | O104: =LOOKUP(F104,B37:B56,M37:M56) -> 
D105: 46 | E105: =IF( (E57+L57*D104)<=H57,(E57+L57*D104),"- - -") -> - - - | F105: =(B60+1)-MATCH(E105,C60:C79,-1) ->  | G105: =LOOKUP(F105,B37:B56,E37:E56) ->  | I105: =LOOKUP(F105,B37:B56,G37:G56)*$P$57 ->  | J105: =LOOKUP(F105,B37:B56,H37:H56)*$P$57 ->  | K105: =LOOKUP(F105,B37:B56,I37:I56)*$P$57 ->  | L105: =LOOKUP(F105,B37:B56,J37:J56) ->  | M105: =LOOKUP(F105,B37:B56,K37:K56) ->  | N105: =LOOKUP(F105,B37:B56,L37:L56) ->  | O105: =LOOKUP(F105,B37:B56,M37:M56) -> 
D106: 47 | E106: =IF( (E57+L57*D105)<=H57,(E57+L57*D105),"- - -") -> - - - | F106: =(B60+1)-MATCH(E106,C60:C79,-1) ->  | G106: =LOOKUP(F106,B37:B56,E37:E56) ->  | I106: =LOOKUP(F106,B37:B56,G37:G56)*$P$57 ->  | J106: =LOOKUP(F106,B37:B56,H37:H56)*$P$57 ->  | K106: =LOOKUP(F106,B37:B56,I37:I56)*$P$57 ->  | L106: =LOOKUP(F106,B37:B56,J37:J56) ->  | M106: =LOOKUP(F106,B37:B56,K37:K56) ->  | N106: =LOOKUP(F106,B37:B56,L37:L56) ->  | O106: =LOOKUP(F106,B37:B56,M37:M56) -> 
D107: 48 | E107: =IF( (E57+L57*D106)<=H57,(E57+L57*D106),"- - -") -> - - - | F107: =(B60+1)-MATCH(E107,C60:C79,-1) ->  | G107: =LOOKUP(F107,B37:B56,E37:E56) ->  | I107: =LOOKUP(F107,B37:B56,G37:G56)*$P$57 ->  | J107: =LOOKUP(F107,B37:B56,H37:H56)*$P$57 ->  | K107: =LOOKUP(F107,B37:B56,I37:I56)*$P$57 ->  | L107: =LOOKUP(F107,B37:B56,J37:J56) ->  | M107: =LOOKUP(F107,B37:B56,K37:K56) ->  | N107: =LOOKUP(F107,B37:B56,L37:L56) ->  | O107: =LOOKUP(F107,B37:B56,M37:M56) -> 
D108: 49 | E108: =IF( (E57+L57*D107)<=H57,(E57+L57*D107),"- - -") -> - - - | F108: =(B60+1)-MATCH(E108,C60:C79,-1) ->  | G108: =LOOKUP(F108,B37:B56,E37:E56) ->  | I108: =LOOKUP(F108,B37:B56,G37:G56)*$P$57 ->  | J108: =LOOKUP(F108,B37:B56,H37:H56)*$P$57 ->  | K108: =LOOKUP(F108,B37:B56,I37:I56)*$P$57 ->  | L108: =LOOKUP(F108,B37:B56,J37:J56) ->  | M108: =LOOKUP(F108,B37:B56,K37:K56) ->  | N108: =LOOKUP(F108,B37:B56,L37:L56) ->  | O108: =LOOKUP(F108,B37:B56,M37:M56) -> 
D109: 50 | E109: =IF( (E57+L57*D108)<=H57,(E57+L57*D108),"- - -") -> - - - | F109: =(B60+1)-MATCH(E109,C60:C79,-1) ->  | G109: =LOOKUP(F109,B37:B56,E37:E56) ->  | I109: =LOOKUP(F109,B37:B56,G37:G56)*$P$57 ->  | J109: =LOOKUP(F109,B37:B56,H37:H56)*$P$57 ->  | K109: =LOOKUP(F109,B37:B56,I37:I56)*$P$57 ->  | L109: =LOOKUP(F109,B37:B56,J37:J56) ->  | M109: =LOOKUP(F109,B37:B56,K37:K56) ->  | N109: =LOOKUP(F109,B37:B56,L37:L56) ->  | O109: =LOOKUP(F109,B37:B56,M37:M56) -> 
B112: 搬送負荷データレコード | E112: =LOOKUP(C114,MassDataLink!$A$4:$A$5199,MassDataLink!$G$4:$G$5199) -> ISA-SXM-60-4-水平 | J112: 設置姿勢で絞込み | L112: - - - | N112: 加減速・速度データレコード
B113: № | C113: Ldﾚｺｰﾄﾞ№ | D113: =MassDataLink!B2 -> ｱｸﾁｭｴｰﾀ姿勢 | E113: =MassDataLink!C2 -> 搬送負荷質量 | F113: =MassDataLink!D2 -> 加減速・速度ﾃﾞｰﾀ | G113: =MassDataLink!E2 -> 前ﾃﾞｰﾀ№ | H113: =MassDataLink!F2 -> 次ﾃﾞｰﾀ№ | J113: № | K113: 搬送負荷質量 | L113: avﾚｺｰﾄﾞ№ | N113: 備考 | O113: =LOOKUP(O115,AccVelDataLink!$A$4:$A$5339,AccVelDataLink!$F$4:$F$5339) -> ISA-SXM-60-4-水平
B114: 1 | C114: =LOOKUP(D35,B26:B33,E26:E33) -> 1 | D114: =LOOKUP(C114,MassDataLink!$A$4:$A$5199,MassDataLink!$B$4:$B$5199) -> 0 | E114: =LOOKUP(C114,MassDataLink!$A$4:$A$5199,MassDataLink!$C$4:$C$5199) -> 30000 | F114: =LOOKUP(C114,MassDataLink!$A$4:$A$5199,MassDataLink!$D$4:$D$5199) -> 1 | G114: =LOOKUP(C114,MassDataLink!$A$4:$A$5199,MassDataLink!$E$4:$E$5199) -> -1 | H114: =LOOKUP(C114,MassDataLink!$A$4:$A$5199,MassDataLink!$F$4:$F$5199) -> 2 | J114: 1 | K114: =IF(C114=-1,$L$112,IF($A$11=D114,ROUND((E114*$P$57),$R$57),$L$112)) -> 30 | L114: =IF(K114=$L$112,$L$112,F114) -> 1 | N114: № | O114: avﾚｺｰﾄﾞ№ | P114: 加速度 | Q114: 速度 | R114: 前ﾃﾞｰﾀ | S114: 次ﾃﾞｰﾀ
B115: =B114+1 -> 2 | C115: =IF(C114=-1,-1,H114) -> 2 | D115: =LOOKUP(C115,MassDataLink!$A$4:$A$5199,MassDataLink!$B$4:$B$5199) -> 0 | E115: =LOOKUP(C115,MassDataLink!$A$4:$A$5199,MassDataLink!$C$4:$C$5199) -> 37500 | F115: =LOOKUP(C115,MassDataLink!$A$4:$A$5199,MassDataLink!$D$4:$D$5199) -> 2 | G115: =LOOKUP(C115,MassDataLink!$A$4:$A$5199,MassDataLink!$E$4:$E$5199) -> 1 | H115: =LOOKUP(C115,MassDataLink!$A$4:$A$5199,MassDataLink!$F$4:$F$5199) -> 3 | J115: =J114+1 -> 2 | K115: =IF(C115=-1,$L$112,IF($A$11=D115,ROUND((E115*$P$57),$R$57),$L$112)) -> 37.5 | L115: =IF(K115=$L$112,$L$112,F115) -> 2 | N115: 1 | O115: =LOOKUP(A14,K114:K338,L114:L338) -> 1 | P115: =LOOKUP(O115,AccVelDataLink!$A$4:$A$5339,AccVelDataLink!$B$4:$B$5339) -> 4903325 | Q115: =LOOKUP(O115,AccVelDataLink!$A$4:$A$5339,AccVelDataLink!$C$4:$C$5339) -> 240 | R115: =LOOKUP(O115,AccVelDataLink!$A$4:$A$5339,AccVelDataLink!$D$4:$D$5339) -> -1 | S115: =LOOKUP(O115,AccVelDataLink!$A$4:$A$5339,AccVelDataLink!$E$4:$E$5339) -> -1
B116: =B115+1 -> 3 | C116: =IF(C115=-1,-1,H115) -> 3 | D116: =LOOKUP(C116,MassDataLink!$A$4:$A$5199,MassDataLink!$B$4:$B$5199) -> 0 | E116: =LOOKUP(C116,MassDataLink!$A$4:$A$5199,MassDataLink!$C$4:$C$5199) -> 50000 | F116: =LOOKUP(C116,MassDataLink!$A$4:$A$5199,MassDataLink!$D$4:$D$5199) -> 3 | G116: =LOOKUP(C116,MassDataLink!$A$4:$A$5199,MassDataLink!$E$4:$E$5199) -> 2 | H116: =LOOKUP(C116,MassDataLink!$A$4:$A$5199,MassDataLink!$F$4:$F$5199) -> 4 | J116: =J115+1 -> 3 | K116: 50 | L116: 3 | N116: =N115+1 -> 2 | O116: =IF(O115=-1,-1,S115) -> -1 | P116: =LOOKUP(O116,AccVelDataLink!$A$4:$A$5339,AccVelDataLink!$B$4:$B$5339) ->  | Q116: =LOOKUP(O116,AccVelDataLink!$A$4:$A$5339,AccVelDataLink!$C$4:$C$5339) ->  | R116: =LOOKUP(O116,AccVelDataLink!$A$4:$A$5339,AccVelDataLink!$D$4:$D$5339) ->  | S116: =LOOKUP(O116,AccVelDataLink!$A$4:$A$5339,AccVelDataLink!$E$4:$E$5339) -> 
B117: =B116+1 -> 4 | C117: =IF(C116=-1,-1,H116) -> 4 | D117: =LOOKUP(C117,MassDataLink!$A$4:$A$5199,MassDataLink!$B$4:$B$5199) -> 1 | E117: =LOOKUP(C117,MassDataLink!$A$4:$A$5199,MassDataLink!$C$4:$C$5199) -> 12000 | F117: =LOOKUP(C117,MassDataLink!$A$4:$A$5199,MassDataLink!$D$4:$D$5199) -> 4 | G117: =LOOKUP(C117,MassDataLink!$A$4:$A$5199,MassDataLink!$E$4:$E$5199) -> 3 | H117: =LOOKUP(C117,MassDataLink!$A$4:$A$5199,MassDataLink!$F$4:$F$5199) -> 5 | J117: =J116+1 -> 4 | K117: - - - | L117: - - - | N117: 3 | O117: =IF(O116=-1,-1,S116) -> -1 | P117: =LOOKUP(O117,AccVelDataLink!$A$4:$A$5339,AccVelDataLink!$B$4:$B$5339) ->  | Q117: =LOOKUP(O117,AccVelDataLink!$A$4:$A$5339,AccVelDataLink!$C$4:$C$5339) ->  | R117: =LOOKUP(O117,AccVelDataLink!$A$4:$A$5339,AccVelDataLink!$D$4:$D$5339) ->  | S117: =LOOKUP(O117,AccVelDataLink!$A$4:$A$5339,AccVelDataLink!$E$4:$E$5339) -> 
B118: =B117+1 -> 5 | C118: =IF(C117=-1,-1,H117) -> 5 | D118: =LOOKUP(C118,MassDataLink!$A$4:$A$5199,MassDataLink!$B$4:$B$5199) -> 1 | E118: =LOOKUP(C118,MassDataLink!$A$4:$A$5199,MassDataLink!$C$4:$C$5199) -> 14000 | F118: =LOOKUP(C118,MassDataLink!$A$4:$A$5199,MassDataLink!$D$4:$D$5199) -> 5 | G118: =LOOKUP(C118,MassDataLink!$A$4:$A$5199,MassDataLink!$E$4:$E$5199) -> 4 | H118: =LOOKUP(C118,MassDataLink!$A$4:$A$5199,MassDataLink!$F$4:$F$5199) -> -1 | J118: =J117+1 -> 5 | K118: - - - | L118: - - - | N118: 4 | O118: -1 | P118: =LOOKUP(O118,AccVelDataLink!$A$4:$A$5339,AccVelDataLink!$B$4:$B$5339) ->  | Q118: =LOOKUP(O118,AccVelDataLink!$A$4:$A$5339,AccVelDataLink!$C$4:$C$5339) ->  | R118: =LOOKUP(O118,AccVelDataLink!$A$4:$A$5339,AccVelDataLink!$D$4:$D$5339) ->  | S118: =LOOKUP(O118,AccVelDataLink!$A$4:$A$5339,AccVelDataLink!$E$4:$E$5339) -> 
B119: =B118+1 -> 6 | C119: =IF(C118=-1,-1,H118) -> -1 | D119: =LOOKUP(C119,MassDataLink!$A$4:$A$5199,MassDataLink!$B$4:$B$5199) ->  | E119: =LOOKUP(C119,MassDataLink!$A$4:$A$5199,MassDataLink!$C$4:$C$5199) ->  | F119: =LOOKUP(C119,MassDataLink!$A$4:$A$5199,MassDataLink!$D$4:$D$5199) ->  | G119: =LOOKUP(C119,MassDataLink!$A$4:$A$5199,MassDataLink!$E$4:$E$5199) ->  | H119: =LOOKUP(C119,MassDataLink!$A$4:$A$5199,MassDataLink!$F$4:$F$5199) ->  | J119: =J118+1 -> 6 | K119: - - - | L119: - - - | N119: 5 | O119: -1 | P119: =LOOKUP(O119,AccVelDataLink!$A$4:$A$5339,AccVelDataLink!$B$4:$B$5339) ->  | Q119: =LOOKUP(O119,AccVelDataLink!$A$4:$A$5339,AccVelDataLink!$C$4:$C$5339) ->  | R119: =LOOKUP(O119,AccVelDataLink!$A$4:$A$5339,AccVelDataLink!$D$4:$D$5339) ->  | S119: =LOOKUP(O119,AccVelDataLink!$A$4:$A$5339,AccVelDataLink!$E$4:$E$5339) -> 
B120: 7 | C120: -1 | D120: =LOOKUP(C120,MassDataLink!$A$4:$A$5199,MassDataLink!$B$4:$B$5199) ->  | E120: =LOOKUP(C120,MassDataLink!$A$4:$A$5199,MassDataLink!$C$4:$C$5199) ->  | F120: =LOOKUP(C120,MassDataLink!$A$4:$A$5199,MassDataLink!$D$4:$D$5199) ->  | G120: =LOOKUP(C120,MassDataLink!$A$4:$A$5199,MassDataLink!$E$4:$E$5199) ->  | H120: =LOOKUP(C120,MassDataLink!$A$4:$A$5199,MassDataLink!$F$4:$F$5199) ->  | J120: 7 | K120: - - - | L120: - - - | N120: 6 | O120: -1 | P120: =LOOKUP(O120,AccVelDataLink!$A$4:$A$5339,AccVelDataLink!$B$4:$B$5339) ->  | Q120: =LOOKUP(O120,AccVelDataLink!$A$4:$A$5339,AccVelDataLink!$C$4:$C$5339) ->  | R120: =LOOKUP(O120,AccVelDataLink!$A$4:$A$5339,AccVelDataLink!$D$4:$D$5339) ->  | S120: =LOOKUP(O120,AccVelDataLink!$A$4:$A$5339,AccVelDataLink!$E$4:$E$5339) -> 
B121: 8 | C121: -1 | D121: =LOOKUP(C121,MassDataLink!$A$4:$A$5199,MassDataLink!$B$4:$B$5199) ->  | E121: =LOOKUP(C121,MassDataLink!$A$4:$A$5199,MassDataLink!$C$4:$C$5199) ->  | F121: =LOOKUP(C121,MassDataLink!$A$4:$A$5199,MassDataLink!$D$4:$D$5199) ->  | G121: =LOOKUP(C121,MassDataLink!$A$4:$A$5199,MassDataLink!$E$4:$E$5199) ->  | H121: =LOOKUP(C121,MassDataLink!$A$4:$A$5199,MassDataLink!$F$4:$F$5199) ->  | J121: 8 | K121: - - - | L121: - - - | N121: 7 | O121: -1 | P121: =LOOKUP(O121,AccVelDataLink!$A$4:$A$5339,AccVelDataLink!$B$4:$B$5339) ->  | Q121: =LOOKUP(O121,AccVelDataLink!$A$4:$A$5339,AccVelDataLink!$C$4:$C$5339) ->  | R121: =LOOKUP(O121,AccVelDataLink!$A$4:$A$5339,AccVelDataLink!$D$4:$D$5339) ->  | S121: =LOOKUP(O121,AccVelDataLink!$A$4:$A$5339,AccVelDataLink!$E$4:$E$5339) -> 
B122: 9 | C122: -1 | D122: =LOOKUP(C122,MassDataLink!$A$4:$A$5199,MassDataLink!$B$4:$B$5199) ->  | E122: =LOOKUP(C122,MassDataLink!$A$4:$A$5199,MassDataLink!$C$4:$C$5199) ->  | F122: =LOOKUP(C122,MassDataLink!$A$4:$A$5199,MassDataLink!$D$4:$D$5199) ->  | G122: =LOOKUP(C122,MassDataLink!$A$4:$A$5199,MassDataLink!$E$4:$E$5199) ->  | H122: =LOOKUP(C122,MassDataLink!$A$4:$A$5199,MassDataLink!$F$4:$F$5199) ->  | J122: 9 | K122: - - - | L122: - - - | N122: 8 | O122: -1 | P122: =LOOKUP(O122,AccVelDataLink!$A$4:$A$5339,AccVelDataLink!$B$4:$B$5339) ->  | Q122: =LOOKUP(O122,AccVelDataLink!$A$4:$A$5339,AccVelDataLink!$C$4:$C$5339) ->  | R122: =LOOKUP(O122,AccVelDataLink!$A$4:$A$5339,AccVelDataLink!$D$4:$D$5339) ->  | S122: =LOOKUP(O122,AccVelDataLink!$A$4:$A$5339,AccVelDataLink!$E$4:$E$5339) -> 
B123: 10 | C123: -1 | D123: =LOOKUP(C123,MassDataLink!$A$4:$A$5199,MassDataLink!$B$4:$B$5199) ->  | E123: =LOOKUP(C123,MassDataLink!$A$4:$A$5199,MassDataLink!$C$4:$C$5199) ->  | F123: =LOOKUP(C123,MassDataLink!$A$4:$A$5199,MassDataLink!$D$4:$D$5199) ->  | G123: =LOOKUP(C123,MassDataLink!$A$4:$A$5199,MassDataLink!$E$4:$E$5199) ->  | H123: =LOOKUP(C123,MassDataLink!$A$4:$A$5199,MassDataLink!$F$4:$F$5199) ->  | J123: 10 | K123: - - - | L123: - - - | N123: 9 | O123: -1 | P123: =LOOKUP(O123,AccVelDataLink!$A$4:$A$5339,AccVelDataLink!$B$4:$B$5339) ->  | Q123: =LOOKUP(O123,AccVelDataLink!$A$4:$A$5339,AccVelDataLink!$C$4:$C$5339) ->  | R123: =LOOKUP(O123,AccVelDataLink!$A$4:$A$5339,AccVelDataLink!$D$4:$D$5339) ->  | S123: =LOOKUP(O123,AccVelDataLink!$A$4:$A$5339,AccVelDataLink!$E$4:$E$5339) -> 
B124: 11 | C124: -1 | D124: =LOOKUP(C124,MassDataLink!$A$4:$A$5199,MassDataLink!$B$4:$B$5199) ->  | E124: =LOOKUP(C124,MassDataLink!$A$4:$A$5199,MassDataLink!$C$4:$C$5199) ->  | F124: =LOOKUP(C124,MassDataLink!$A$4:$A$5199,MassDataLink!$D$4:$D$5199) ->  | G124: =LOOKUP(C124,MassDataLink!$A$4:$A$5199,MassDataLink!$E$4:$E$5199) ->  | H124: =LOOKUP(C124,MassDataLink!$A$4:$A$5199,MassDataLink!$F$4:$F$5199) ->  | J124: 11 | K124: - - - | L124: - - - | N124: 10 | O124: -1 | P124: =LOOKUP(O124,AccVelDataLink!$A$4:$A$5339,AccVelDataLink!$B$4:$B$5339) ->  | Q124: =LOOKUP(O124,AccVelDataLink!$A$4:$A$5339,AccVelDataLink!$C$4:$C$5339) ->  | R124: =LOOKUP(O124,AccVelDataLink!$A$4:$A$5339,AccVelDataLink!$D$4:$D$5339) ->  | S124: =LOOKUP(O124,AccVelDataLink!$A$4:$A$5339,AccVelDataLink!$E$4:$E$5339) -> 
B125: 12 | C125: -1 | D125: =LOOKUP(C125,MassDataLink!$A$4:$A$5199,MassDataLink!$B$4:$B$5199) ->  | E125: =LOOKUP(C125,MassDataLink!$A$4:$A$5199,MassDataLink!$C$4:$C$5199) ->  | F125: =LOOKUP(C125,MassDataLink!$A$4:$A$5199,MassDataLink!$D$4:$D$5199) ->  | G125: =LOOKUP(C125,MassDataLink!$A$4:$A$5199,MassDataLink!$E$4:$E$5199) ->  | H125: =LOOKUP(C125,MassDataLink!$A$4:$A$5199,MassDataLink!$F$4:$F$5199) ->  | J125: 12 | K125: - - - | L125: - - - | O125: 加速度系数 | P125: 1e-06
B126: 13 | C126: -1 | D126: =LOOKUP(C126,MassDataLink!$A$4:$A$5199,MassDataLink!$B$4:$B$5199) ->  | E126: =LOOKUP(C126,MassDataLink!$A$4:$A$5199,MassDataLink!$C$4:$C$5199) ->  | F126: =LOOKUP(C126,MassDataLink!$A$4:$A$5199,MassDataLink!$D$4:$D$5199) ->  | G126: =LOOKUP(C126,MassDataLink!$A$4:$A$5199,MassDataLink!$E$4:$E$5199) ->  | H126: =LOOKUP(C126,MassDataLink!$A$4:$A$5199,MassDataLink!$F$4:$F$5199) ->  | J126: 13 | K126: - - - | L126: - - - | N126: G | O126: № | P126: 加速度 | Q126: 速度
B127: 14 | C127: -1 | D127: =LOOKUP(C127,MassDataLink!$A$4:$A$5199,MassDataLink!$B$4:$B$5199) ->  | E127: =LOOKUP(C127,MassDataLink!$A$4:$A$5199,MassDataLink!$C$4:$C$5199) ->  | F127: =LOOKUP(C127,MassDataLink!$A$4:$A$5199,MassDataLink!$D$4:$D$5199) ->  | G127: =LOOKUP(C127,MassDataLink!$A$4:$A$5199,MassDataLink!$E$4:$E$5199) ->  | H127: =LOOKUP(C127,MassDataLink!$A$4:$A$5199,MassDataLink!$F$4:$F$5199) ->  | J127: 14 | K127: - - - | L127: - - - | N127: =LeadData!A1 -> 9.80665 | O127: 1 | P127: =IF(O115=-1,$L$112,(P115/$N$127)*$P$125) -> 0.5 | Q127: =IF(O115=-1,$L$112,Q115) -> 240
B128: 15 | C128: -1 | D128: =LOOKUP(C128,MassDataLink!$A$4:$A$5199,MassDataLink!$B$4:$B$5199) ->  | E128: =LOOKUP(C128,MassDataLink!$A$4:$A$5199,MassDataLink!$C$4:$C$5199) ->  | F128: =LOOKUP(C128,MassDataLink!$A$4:$A$5199,MassDataLink!$D$4:$D$5199) ->  | G128: =LOOKUP(C128,MassDataLink!$A$4:$A$5199,MassDataLink!$E$4:$E$5199) ->  | H128: =LOOKUP(C128,MassDataLink!$A$4:$A$5199,MassDataLink!$F$4:$F$5199) ->  | J128: 15 | K128: - - - | L128: - - - | O128: =O127+1 -> 2 | P128: =IF(O116=-1,$L$112,(P116/$N$127)*$P$125) -> - - - | Q128: =IF(O116=-1,$L$112,Q116) -> - - -
B129: 16 | C129: -1 | D129: =LOOKUP(C129,MassDataLink!$A$4:$A$5199,MassDataLink!$B$4:$B$5199) ->  | E129: =LOOKUP(C129,MassDataLink!$A$4:$A$5199,MassDataLink!$C$4:$C$5199) ->  | F129: =LOOKUP(C129,MassDataLink!$A$4:$A$5199,MassDataLink!$D$4:$D$5199) ->  | G129: =LOOKUP(C129,MassDataLink!$A$4:$A$5199,MassDataLink!$E$4:$E$5199) ->  | H129: =LOOKUP(C129,MassDataLink!$A$4:$A$5199,MassDataLink!$F$4:$F$5199) ->  | J129: 16 | K129: - - - | L129: - - - | O129: 3 | P129: - - - | Q129: - - -
B130: 17 | C130: -1 | D130: =LOOKUP(C130,MassDataLink!$A$4:$A$5199,MassDataLink!$B$4:$B$5199) ->  | E130: =LOOKUP(C130,MassDataLink!$A$4:$A$5199,MassDataLink!$C$4:$C$5199) ->  | F130: =LOOKUP(C130,MassDataLink!$A$4:$A$5199,MassDataLink!$D$4:$D$5199) ->  | G130: =LOOKUP(C130,MassDataLink!$A$4:$A$5199,MassDataLink!$E$4:$E$5199) ->  | H130: =LOOKUP(C130,MassDataLink!$A$4:$A$5199,MassDataLink!$F$4:$F$5199) ->  | J130: 17 | K130: - - - | L130: - - - | O130: 4 | P130: - - - | Q130: - - -
B131: 18 | C131: -1 | D131: =LOOKUP(C131,MassDataLink!$A$4:$A$5199,MassDataLink!$B$4:$B$5199) ->  | E131: =LOOKUP(C131,MassDataLink!$A$4:$A$5199,MassDataLink!$C$4:$C$5199) ->  | F131: =LOOKUP(C131,MassDataLink!$A$4:$A$5199,MassDataLink!$D$4:$D$5199) ->  | G131: =LOOKUP(C131,MassDataLink!$A$4:$A$5199,MassDataLink!$E$4:$E$5199) ->  | H131: =LOOKUP(C131,MassDataLink!$A$4:$A$5199,MassDataLink!$F$4:$F$5199) ->  | J131: 18 | K131: - - - | L131: - - - | O131: 5 | P131: - - - | Q131: - - -
B132: 19 | C132: -1 | D132: =LOOKUP(C132,MassDataLink!$A$4:$A$5199,MassDataLink!$B$4:$B$5199) ->  | E132: =LOOKUP(C132,MassDataLink!$A$4:$A$5199,MassDataLink!$C$4:$C$5199) ->  | F132: =LOOKUP(C132,MassDataLink!$A$4:$A$5199,MassDataLink!$D$4:$D$5199) ->  | G132: =LOOKUP(C132,MassDataLink!$A$4:$A$5199,MassDataLink!$E$4:$E$5199) ->  | H132: =LOOKUP(C132,MassDataLink!$A$4:$A$5199,MassDataLink!$F$4:$F$5199) ->  | J132: 19 | K132: - - - | L132: - - - | O132: 6 | P132: - - - | Q132: - - -
B133: 20 | C133: -1 | D133: =LOOKUP(C133,MassDataLink!$A$4:$A$5199,MassDataLink!$B$4:$B$5199) ->  | E133: =LOOKUP(C133,MassDataLink!$A$4:$A$5199,MassDataLink!$C$4:$C$5199) ->  | F133: =LOOKUP(C133,MassDataLink!$A$4:$A$5199,MassDataLink!$D$4:$D$5199) ->  | G133: =LOOKUP(C133,MassDataLink!$A$4:$A$5199,MassDataLink!$E$4:$E$5199) ->  | H133: =LOOKUP(C133,MassDataLink!$A$4:$A$5199,MassDataLink!$F$4:$F$5199) ->  | J133: 20 | K133: - - - | L133: - - - | O133: 7 | P133: - - - | Q133: - - -
B134: 21 | C134: -1 | D134: =LOOKUP(C134,MassDataLink!$A$4:$A$5199,MassDataLink!$B$4:$B$5199) ->  | E134: =LOOKUP(C134,MassDataLink!$A$4:$A$5199,MassDataLink!$C$4:$C$5199) ->  | F134: =LOOKUP(C134,MassDataLink!$A$4:$A$5199,MassDataLink!$D$4:$D$5199) ->  | G134: =LOOKUP(C134,MassDataLink!$A$4:$A$5199,MassDataLink!$E$4:$E$5199) ->  | H134: =LOOKUP(C134,MassDataLink!$A$4:$A$5199,MassDataLink!$F$4:$F$5199) ->  | J134: 21 | K134: - - - | L134: - - - | O134: 8 | P134: - - - | Q134: - - -
B135: 22 | C135: -1 | D135: =LOOKUP(C135,MassDataLink!$A$4:$A$5199,MassDataLink!$B$4:$B$5199) ->  | E135: =LOOKUP(C135,MassDataLink!$A$4:$A$5199,MassDataLink!$C$4:$C$5199) ->  | F135: =LOOKUP(C135,MassDataLink!$A$4:$A$5199,MassDataLink!$D$4:$D$5199) ->  | G135: =LOOKUP(C135,MassDataLink!$A$4:$A$5199,MassDataLink!$E$4:$E$5199) ->  | H135: =LOOKUP(C135,MassDataLink!$A$4:$A$5199,MassDataLink!$F$4:$F$5199) ->  | J135: 22 | K135: - - - | L135: - - - | O135: 9 | P135: - - - | Q135: - - -
B136: 23 | C136: -1 | D136: =LOOKUP(C136,MassDataLink!$A$4:$A$5199,MassDataLink!$B$4:$B$5199) ->  | E136: =LOOKUP(C136,MassDataLink!$A$4:$A$5199,MassDataLink!$C$4:$C$5199) ->  | F136: =LOOKUP(C136,MassDataLink!$A$4:$A$5199,MassDataLink!$D$4:$D$5199) ->  | G136: =LOOKUP(C136,MassDataLink!$A$4:$A$5199,MassDataLink!$E$4:$E$5199) ->  | H136: =LOOKUP(C136,MassDataLink!$A$4:$A$5199,MassDataLink!$F$4:$F$5199) ->  | J136: 23 | K136: - - - | L136: - - - | O136: 10 | P136: - - - | Q136: - - -
B137: 24 | C137: -1 | D137: =LOOKUP(C137,MassDataLink!$A$4:$A$5199,MassDataLink!$B$4:$B$5199) ->  | E137: =LOOKUP(C137,MassDataLink!$A$4:$A$5199,MassDataLink!$C$4:$C$5199) ->  | F137: =LOOKUP(C137,MassDataLink!$A$4:$A$5199,MassDataLink!$D$4:$D$5199) ->  | G137: =LOOKUP(C137,MassDataLink!$A$4:$A$5199,MassDataLink!$E$4:$E$5199) ->  | H137: =LOOKUP(C137,MassDataLink!$A$4:$A$5199,MassDataLink!$F$4:$F$5199) ->  | J137: 24 | K137: - - - | L137: - - -
B138: 25 | C138: -1 | D138: =LOOKUP(C138,MassDataLink!$A$4:$A$5199,MassDataLink!$B$4:$B$5199) ->  | E138: =LOOKUP(C138,MassDataLink!$A$4:$A$5199,MassDataLink!$C$4:$C$5199) ->  | F138: =LOOKUP(C138,MassDataLink!$A$4:$A$5199,MassDataLink!$D$4:$D$5199) ->  | G138: =LOOKUP(C138,MassDataLink!$A$4:$A$5199,MassDataLink!$E$4:$E$5199) ->  | H138: =LOOKUP(C138,MassDataLink!$A$4:$A$5199,MassDataLink!$F$4:$F$5199) ->  | J138: 25 | K138: - - - | L138: - - -
B139: 26 | C139: -1 | D139: =LOOKUP(C139,MassDataLink!$A$4:$A$5199,MassDataLink!$B$4:$B$5199) ->  | E139: =LOOKUP(C139,MassDataLink!$A$4:$A$5199,MassDataLink!$C$4:$C$5199) ->  | F139: =LOOKUP(C139,MassDataLink!$A$4:$A$5199,MassDataLink!$D$4:$D$5199) ->  | G139: =LOOKUP(C139,MassDataLink!$A$4:$A$5199,MassDataLink!$E$4:$E$5199) ->  | H139: =LOOKUP(C139,MassDataLink!$A$4:$A$5199,MassDataLink!$F$4:$F$5199) ->  | J139: 26 | K139: - - - | L139: - - -
B140: 27 | C140: -1 | D140: =LOOKUP(C140,MassDataLink!$A$4:$A$5199,MassDataLink!$B$4:$B$5199) ->  | E140: =LOOKUP(C140,MassDataLink!$A$4:$A$5199,MassDataLink!$C$4:$C$5199) ->  | F140: =LOOKUP(C140,MassDataLink!$A$4:$A$5199,MassDataLink!$D$4:$D$5199) ->  | G140: =LOOKUP(C140,MassDataLink!$A$4:$A$5199,MassDataLink!$E$4:$E$5199) ->  | H140: =LOOKUP(C140,MassDataLink!$A$4:$A$5199,MassDataLink!$F$4:$F$5199) ->  | J140: 27 | K140: - - - | L140: - - -
B141: 28 | C141: -1 | D141: =LOOKUP(C141,MassDataLink!$A$4:$A$5199,MassDataLink!$B$4:$B$5199) ->  | E141: =LOOKUP(C141,MassDataLink!$A$4:$A$5199,MassDataLink!$C$4:$C$5199) ->  | F141: =LOOKUP(C141,MassDataLink!$A$4:$A$5199,MassDataLink!$D$4:$D$5199) ->  | G141: =LOOKUP(C141,MassDataLink!$A$4:$A$5199,MassDataLink!$E$4:$E$5199) ->  | H141: =LOOKUP(C141,MassDataLink!$A$4:$A$5199,MassDataLink!$F$4:$F$5199) ->  | J141: 28 | K141: - - - | L141: - - -
B142: 29 | C142: -1 | D142: =LOOKUP(C142,MassDataLink!$A$4:$A$5199,MassDataLink!$B$4:$B$5199) ->  | E142: =LOOKUP(C142,MassDataLink!$A$4:$A$5199,MassDataLink!$C$4:$C$5199) ->  | F142: =LOOKUP(C142,MassDataLink!$A$4:$A$5199,MassDataLink!$D$4:$D$5199) ->  | G142: =LOOKUP(C142,MassDataLink!$A$4:$A$5199,MassDataLink!$E$4:$E$5199) ->  | H142: =LOOKUP(C142,MassDataLink!$A$4:$A$5199,MassDataLink!$F$4:$F$5199) ->  | J142: 29 | K142: - - - | L142: - - -
B143: 30 | C143: -1 | D143: =LOOKUP(C143,MassDataLink!$A$4:$A$5199,MassDataLink!$B$4:$B$5199) ->  | E143: =LOOKUP(C143,MassDataLink!$A$4:$A$5199,MassDataLink!$C$4:$C$5199) ->  | F143: =LOOKUP(C143,MassDataLink!$A$4:$A$5199,MassDataLink!$D$4:$D$5199) ->  | G143: =LOOKUP(C143,MassDataLink!$A$4:$A$5199,MassDataLink!$E$4:$E$5199) ->  | H143: =LOOKUP(C143,MassDataLink!$A$4:$A$5199,MassDataLink!$F$4:$F$5199) ->  | J143: 30 | K143: - - - | L143: - - -
B144: 31 | C144: -1 | D144: =LOOKUP(C144,MassDataLink!$A$4:$A$5199,MassDataLink!$B$4:$B$5199) ->  | E144: =LOOKUP(C144,MassDataLink!$A$4:$A$5199,MassDataLink!$C$4:$C$5199) ->  | F144: =LOOKUP(C144,MassDataLink!$A$4:$A$5199,MassDataLink!$D$4:$D$5199) ->  | G144: =LOOKUP(C144,MassDataLink!$A$4:$A$5199,MassDataLink!$E$4:$E$5199) ->  | H144: =LOOKUP(C144,MassDataLink!$A$4:$A$5199,MassDataLink!$F$4:$F$5199) ->  | J144: 31 | K144: - - - | L144: - - -
B145: 32 | C145: -1 | D145: =LOOKUP(C145,MassDataLink!$A$4:$A$5199,MassDataLink!$B$4:$B$5199) ->  | E145: =LOOKUP(C145,MassDataLink!$A$4:$A$5199,MassDataLink!$C$4:$C$5199) ->  | F145: =LOOKUP(C145,MassDataLink!$A$4:$A$5199,MassDataLink!$D$4:$D$5199) ->  | G145: =LOOKUP(C145,MassDataLink!$A$4:$A$5199,MassDataLink!$E$4:$E$5199) ->  | H145: =LOOKUP(C145,MassDataLink!$A$4:$A$5199,MassDataLink!$F$4:$F$5199) ->  | J145: 32 | K145: - - - | L145: - - -
B146: 33 | C146: -1 | D146: =LOOKUP(C146,MassDataLink!$A$4:$A$5199,MassDataLink!$B$4:$B$5199) ->  | E146: =LOOKUP(C146,MassDataLink!$A$4:$A$5199,MassDataLink!$C$4:$C$5199) ->  | F146: =LOOKUP(C146,MassDataLink!$A$4:$A$5199,MassDataLink!$D$4:$D$5199) ->  | G146: =LOOKUP(C146,MassDataLink!$A$4:$A$5199,MassDataLink!$E$4:$E$5199) ->  | H146: =LOOKUP(C146,MassDataLink!$A$4:$A$5199,MassDataLink!$F$4:$F$5199) ->  | J146: 33 | K146: - - - | L146: - - -
B147: 34 | C147: -1 | D147: =LOOKUP(C147,MassDataLink!$A$4:$A$5199,MassDataLink!$B$4:$B$5199) ->  | E147: =LOOKUP(C147,MassDataLink!$A$4:$A$5199,MassDataLink!$C$4:$C$5199) ->  | F147: =LOOKUP(C147,MassDataLink!$A$4:$A$5199,MassDataLink!$D$4:$D$5199) ->  | G147: =LOOKUP(C147,MassDataLink!$A$4:$A$5199,MassDataLink!$E$4:$E$5199) ->  | H147: =LOOKUP(C147,MassDataLink!$A$4:$A$5199,MassDataLink!$F$4:$F$5199) ->  | J147: 34 | K147: - - - | L147: - - -
B148: 35 | C148: -1 | D148: =LOOKUP(C148,MassDataLink!$A$4:$A$5199,MassDataLink!$B$4:$B$5199) ->  | E148: =LOOKUP(C148,MassDataLink!$A$4:$A$5199,MassDataLink!$C$4:$C$5199) ->  | F148: =LOOKUP(C148,MassDataLink!$A$4:$A$5199,MassDataLink!$D$4:$D$5199) ->  | G148: =LOOKUP(C148,MassDataLink!$A$4:$A$5199,MassDataLink!$E$4:$E$5199) ->  | H148: =LOOKUP(C148,MassDataLink!$A$4:$A$5199,MassDataLink!$F$4:$F$5199) ->  | J148: 35 | K148: - - - | L148: - - -
B149: 36 | C149: -1 | D149: =LOOKUP(C149,MassDataLink!$A$4:$A$5199,MassDataLink!$B$4:$B$5199) ->  | E149: =LOOKUP(C149,MassDataLink!$A$4:$A$5199,MassDataLink!$C$4:$C$5199) ->  | F149: =LOOKUP(C149,MassDataLink!$A$4:$A$5199,MassDataLink!$D$4:$D$5199) ->  | G149: =LOOKUP(C149,MassDataLink!$A$4:$A$5199,MassDataLink!$E$4:$E$5199) ->  | H149: =LOOKUP(C149,MassDataLink!$A$4:$A$5199,MassDataLink!$F$4:$F$5199) ->  | J149: 36 | K149: - - - | L149: - - -
B150: 37 | C150: -1 | D150: =LOOKUP(C150,MassDataLink!$A$4:$A$5199,MassDataLink!$B$4:$B$5199) ->  | E150: =LOOKUP(C150,MassDataLink!$A$4:$A$5199,MassDataLink!$C$4:$C$5199) ->  | F150: =LOOKUP(C150,MassDataLink!$A$4:$A$5199,MassDataLink!$D$4:$D$5199) ->  | G150: =LOOKUP(C150,MassDataLink!$A$4:$A$5199,MassDataLink!$E$4:$E$5199) ->  | H150: =LOOKUP(C150,MassDataLink!$A$4:$A$5199,MassDataLink!$F$4:$F$5199) ->  | J150: 37 | K150: - - - | L150: - - -
B151: 38 | C151: -1 | D151: =LOOKUP(C151,MassDataLink!$A$4:$A$5199,MassDataLink!$B$4:$B$5199) ->  | E151: =LOOKUP(C151,MassDataLink!$A$4:$A$5199,MassDataLink!$C$4:$C$5199) ->  | F151: =LOOKUP(C151,MassDataLink!$A$4:$A$5199,MassDataLink!$D$4:$D$5199) ->  | G151: =LOOKUP(C151,MassDataLink!$A$4:$A$5199,MassDataLink!$E$4:$E$5199) ->  | H151: =LOOKUP(C151,MassDataLink!$A$4:$A$5199,MassDataLink!$F$4:$F$5199) ->  | J151: 38 | K151: - - - | L151: - - -
B152: 39 | C152: -1 | D152: =LOOKUP(C152,MassDataLink!$A$4:$A$5199,MassDataLink!$B$4:$B$5199) ->  | E152: =LOOKUP(C152,MassDataLink!$A$4:$A$5199,MassDataLink!$C$4:$C$5199) ->  | F152: =LOOKUP(C152,MassDataLink!$A$4:$A$5199,MassDataLink!$D$4:$D$5199) ->  | G152: =LOOKUP(C152,MassDataLink!$A$4:$A$5199,MassDataLink!$E$4:$E$5199) ->  | H152: =LOOKUP(C152,MassDataLink!$A$4:$A$5199,MassDataLink!$F$4:$F$5199) ->  | J152: 39 | K152: - - - | L152: - - -
B153: 40 | C153: -1 | D153: =LOOKUP(C153,MassDataLink!$A$4:$A$5199,MassDataLink!$B$4:$B$5199) ->  | E153: =LOOKUP(C153,MassDataLink!$A$4:$A$5199,MassDataLink!$C$4:$C$5199) ->  | F153: =LOOKUP(C153,MassDataLink!$A$4:$A$5199,MassDataLink!$D$4:$D$5199) ->  | G153: =LOOKUP(C153,MassDataLink!$A$4:$A$5199,MassDataLink!$E$4:$E$5199) ->  | H153: =LOOKUP(C153,MassDataLink!$A$4:$A$5199,MassDataLink!$F$4:$F$5199) ->  | J153: 40 | K153: - - - | L153: - - -
B154: 41 | C154: -1 | D154: =LOOKUP(C154,MassDataLink!$A$4:$A$5199,MassDataLink!$B$4:$B$5199) ->  | E154: =LOOKUP(C154,MassDataLink!$A$4:$A$5199,MassDataLink!$C$4:$C$5199) ->  | F154: =LOOKUP(C154,MassDataLink!$A$4:$A$5199,MassDataLink!$D$4:$D$5199) ->  | G154: =LOOKUP(C154,MassDataLink!$A$4:$A$5199,MassDataLink!$E$4:$E$5199) ->  | H154: =LOOKUP(C154,MassDataLink!$A$4:$A$5199,MassDataLink!$F$4:$F$5199) ->  | J154: 41 | K154: - - - | L154: - - -
B155: 42 | C155: -1 | D155: =LOOKUP(C155,MassDataLink!$A$4:$A$5199,MassDataLink!$B$4:$B$5199) ->  | E155: =LOOKUP(C155,MassDataLink!$A$4:$A$5199,MassDataLink!$C$4:$C$5199) ->  | F155: =LOOKUP(C155,MassDataLink!$A$4:$A$5199,MassDataLink!$D$4:$D$5199) ->  | G155: =LOOKUP(C155,MassDataLink!$A$4:$A$5199,MassDataLink!$E$4:$E$5199) ->  | H155: =LOOKUP(C155,MassDataLink!$A$4:$A$5199,MassDataLink!$F$4:$F$5199) ->  | J155: 42 | K155: - - - | L155: - - -
B156: 43 | C156: -1 | D156: =LOOKUP(C156,MassDataLink!$A$4:$A$5199,MassDataLink!$B$4:$B$5199) ->  | E156: =LOOKUP(C156,MassDataLink!$A$4:$A$5199,MassDataLink!$C$4:$C$5199) ->  | F156: =LOOKUP(C156,MassDataLink!$A$4:$A$5199,MassDataLink!$D$4:$D$5199) ->  | G156: =LOOKUP(C156,MassDataLink!$A$4:$A$5199,MassDataLink!$E$4:$E$5199) ->  | H156: =LOOKUP(C156,MassDataLink!$A$4:$A$5199,MassDataLink!$F$4:$F$5199) ->  | J156: 43 | K156: - - - | L156: - - -
B157: 44 | C157: -1 | D157: =LOOKUP(C157,MassDataLink!$A$4:$A$5199,MassDataLink!$B$4:$B$5199) ->  | E157: =LOOKUP(C157,MassDataLink!$A$4:$A$5199,MassDataLink!$C$4:$C$5199) ->  | F157: =LOOKUP(C157,MassDataLink!$A$4:$A$5199,MassDataLink!$D$4:$D$5199) ->  | G157: =LOOKUP(C157,MassDataLink!$A$4:$A$5199,MassDataLink!$E$4:$E$5199) ->  | H157: =LOOKUP(C157,MassDataLink!$A$4:$A$5199,MassDataLink!$F$4:$F$5199) ->  | J157: 44 | K157: - - - | L157: - - -
B158: 45 | C158: -1 | D158: =LOOKUP(C158,MassDataLink!$A$4:$A$5199,MassDataLink!$B$4:$B$5199) ->  | E158: =LOOKUP(C158,MassDataLink!$A$4:$A$5199,MassDataLink!$C$4:$C$5199) ->  | F158: =LOOKUP(C158,MassDataLink!$A$4:$A$5199,MassDataLink!$D$4:$D$5199) ->  | G158: =LOOKUP(C158,MassDataLink!$A$4:$A$5199,MassDataLink!$E$4:$E$5199) ->  | H158: =LOOKUP(C158,MassDataLink!$A$4:$A$5199,MassDataLink!$F$4:$F$5199) ->  | J158: 45 | K158: - - - | L158: - - -
B159: 46 | C159: -1 | D159: =LOOKUP(C159,MassDataLink!$A$4:$A$5199,MassDataLink!$B$4:$B$5199) ->  | E159: =LOOKUP(C159,MassDataLink!$A$4:$A$5199,MassDataLink!$C$4:$C$5199) ->  | F159: =LOOKUP(C159,MassDataLink!$A$4:$A$5199,MassDataLink!$D$4:$D$5199) ->  | G159: =LOOKUP(C159,MassDataLink!$A$4:$A$5199,MassDataLink!$E$4:$E$5199) ->  | H159: =LOOKUP(C159,MassDataLink!$A$4:$A$5199,MassDataLink!$F$4:$F$5199) ->  | J159: 46 | K159: - - - | L159: - - -
B160: 47 | C160: -1 | D160: =LOOKUP(C160,MassDataLink!$A$4:$A$5199,MassDataLink!$B$4:$B$5199) ->  | E160: =LOOKUP(C160,MassDataLink!$A$4:$A$5199,MassDataLink!$C$4:$C$5199) ->  | F160: =LOOKUP(C160,MassDataLink!$A$4:$A$5199,MassDataLink!$D$4:$D$5199) ->  | G160: =LOOKUP(C160,MassDataLink!$A$4:$A$5199,MassDataLink!$E$4:$E$5199) ->  | H160: =LOOKUP(C160,MassDataLink!$A$4:$A$5199,MassDataLink!$F$4:$F$5199) ->  | J160: 47 | K160: - - - | L160: - - -
B161: 48 | C161: -1 | D161: =LOOKUP(C161,MassDataLink!$A$4:$A$5199,MassDataLink!$B$4:$B$5199) ->  | E161: =LOOKUP(C161,MassDataLink!$A$4:$A$5199,MassDataLink!$C$4:$C$5199) ->  | F161: =LOOKUP(C161,MassDataLink!$A$4:$A$5199,MassDataLink!$D$4:$D$5199) ->  | G161: =LOOKUP(C161,MassDataLink!$A$4:$A$5199,MassDataLink!$E$4:$E$5199) ->  | H161: =LOOKUP(C161,MassDataLink!$A$4:$A$5199,MassDataLink!$F$4:$F$5199) ->  | J161: 48 | K161: - - - | L161: - - -
B162: 49 | C162: -1 | D162: =LOOKUP(C162,MassDataLink!$A$4:$A$5199,MassDataLink!$B$4:$B$5199) ->  | E162: =LOOKUP(C162,MassDataLink!$A$4:$A$5199,MassDataLink!$C$4:$C$5199) ->  | F162: =LOOKUP(C162,MassDataLink!$A$4:$A$5199,MassDataLink!$D$4:$D$5199) ->  | G162: =LOOKUP(C162,MassDataLink!$A$4:$A$5199,MassDataLink!$E$4:$E$5199) ->  | H162: =LOOKUP(C162,MassDataLink!$A$4:$A$5199,MassDataLink!$F$4:$F$5199) ->  | J162: 49 | K162: - - - | L162: - - -
B163: 50 | C163: -1 | D163: =LOOKUP(C163,MassDataLink!$A$4:$A$5199,MassDataLink!$B$4:$B$5199) ->  | E163: =LOOKUP(C163,MassDataLink!$A$4:$A$5199,MassDataLink!$C$4:$C$5199) ->  | F163: =LOOKUP(C163,MassDataLink!$A$4:$A$5199,MassDataLink!$D$4:$D$5199) ->  | G163: =LOOKUP(C163,MassDataLink!$A$4:$A$5199,MassDataLink!$E$4:$E$5199) ->  | H163: =LOOKUP(C163,MassDataLink!$A$4:$A$5199,MassDataLink!$F$4:$F$5199) ->  | J163: 50 | K163: - - - | L163: - - -
B164: 51 | C164: =IF(C163=-1,-1,H163) -> -1 | D164: =LOOKUP(C164,MassDataLink!$A$4:$A$5199,MassDataLink!$B$4:$B$5199) ->  | E164: =LOOKUP(C164,MassDataLink!$A$4:$A$5199,MassDataLink!$C$4:$C$5199) ->  | F164: =LOOKUP(C164,MassDataLink!$A$4:$A$5199,MassDataLink!$D$4:$D$5199) ->  | G164: =LOOKUP(C164,MassDataLink!$A$4:$A$5199,MassDataLink!$E$4:$E$5199) ->  | H164: =LOOKUP(C164,MassDataLink!$A$4:$A$5199,MassDataLink!$F$4:$F$5199) ->  | J164: 51 | K164: =IF(C164=-1,$L$112,IF($A$11=D164,ROUND((E164*$P$57),$R$57),$L$112)) -> - - - | L164: =IF(K164=$L$112,$L$112,F164) -> - - -
B165: 52 | C165: -1 | D165: =LOOKUP(C165,MassDataLink!$A$4:$A$5199,MassDataLink!$B$4:$B$5199) ->  | E165: =LOOKUP(C165,MassDataLink!$A$4:$A$5199,MassDataLink!$C$4:$C$5199) ->  | F165: =LOOKUP(C165,MassDataLink!$A$4:$A$5199,MassDataLink!$D$4:$D$5199) ->  | G165: =LOOKUP(C165,MassDataLink!$A$4:$A$5199,MassDataLink!$E$4:$E$5199) ->  | H165: =LOOKUP(C165,MassDataLink!$A$4:$A$5199,MassDataLink!$F$4:$F$5199) ->  | J165: 52 | K165: - - - | L165: - - -
B166: 53 | C166: -1 | D166: =LOOKUP(C166,MassDataLink!$A$4:$A$5199,MassDataLink!$B$4:$B$5199) ->  | E166: =LOOKUP(C166,MassDataLink!$A$4:$A$5199,MassDataLink!$C$4:$C$5199) ->  | F166: =LOOKUP(C166,MassDataLink!$A$4:$A$5199,MassDataLink!$D$4:$D$5199) ->  | G166: =LOOKUP(C166,MassDataLink!$A$4:$A$5199,MassDataLink!$E$4:$E$5199) ->  | H166: =LOOKUP(C166,MassDataLink!$A$4:$A$5199,MassDataLink!$F$4:$F$5199) ->  | J166: 53 | K166: - - - | L166: - - -
B167: 54 | C167: -1 | D167: =LOOKUP(C167,MassDataLink!$A$4:$A$5199,MassDataLink!$B$4:$B$5199) ->  | E167: =LOOKUP(C167,MassDataLink!$A$4:$A$5199,MassDataLink!$C$4:$C$5199) ->  | F167: =LOOKUP(C167,MassDataLink!$A$4:$A$5199,MassDataLink!$D$4:$D$5199) ->  | G167: =LOOKUP(C167,MassDataLink!$A$4:$A$5199,MassDataLink!$E$4:$E$5199) ->  | H167: =LOOKUP(C167,MassDataLink!$A$4:$A$5199,MassDataLink!$F$4:$F$5199) ->  | J167: 54 | K167: - - - | L167: - - -
B168: 55 | C168: -1 | D168: =LOOKUP(C168,MassDataLink!$A$4:$A$5199,MassDataLink!$B$4:$B$5199) ->  | E168: =LOOKUP(C168,MassDataLink!$A$4:$A$5199,MassDataLink!$C$4:$C$5199) ->  | F168: =LOOKUP(C168,MassDataLink!$A$4:$A$5199,MassDataLink!$D$4:$D$5199) ->  | G168: =LOOKUP(C168,MassDataLink!$A$4:$A$5199,MassDataLink!$E$4:$E$5199) ->  | H168: =LOOKUP(C168,MassDataLink!$A$4:$A$5199,MassDataLink!$F$4:$F$5199) ->  | J168: 55 | K168: - - - | L168: - - -
B169: 56 | C169: -1 | D169: =LOOKUP(C169,MassDataLink!$A$4:$A$5199,MassDataLink!$B$4:$B$5199) ->  | E169: =LOOKUP(C169,MassDataLink!$A$4:$A$5199,MassDataLink!$C$4:$C$5199) ->  | F169: =LOOKUP(C169,MassDataLink!$A$4:$A$5199,MassDataLink!$D$4:$D$5199) ->  | G169: =LOOKUP(C169,MassDataLink!$A$4:$A$5199,MassDataLink!$E$4:$E$5199) ->  | H169: =LOOKUP(C169,MassDataLink!$A$4:$A$5199,MassDataLink!$F$4:$F$5199) ->  | J169: 56 | K169: - - - | L169: - - -
B170: 57 | C170: -1 | D170: =LOOKUP(C170,MassDataLink!$A$4:$A$5199,MassDataLink!$B$4:$B$5199) ->  | E170: =LOOKUP(C170,MassDataLink!$A$4:$A$5199,MassDataLink!$C$4:$C$5199) ->  | F170: =LOOKUP(C170,MassDataLink!$A$4:$A$5199,MassDataLink!$D$4:$D$5199) ->  | G170: =LOOKUP(C170,MassDataLink!$A$4:$A$5199,MassDataLink!$E$4:$E$5199) ->  | H170: =LOOKUP(C170,MassDataLink!$A$4:$A$5199,MassDataLink!$F$4:$F$5199) ->  | J170: 57 | K170: - - - | L170: - - -
B171: 58 | C171: -1 | D171: =LOOKUP(C171,MassDataLink!$A$4:$A$5199,MassDataLink!$B$4:$B$5199) ->  | E171: =LOOKUP(C171,MassDataLink!$A$4:$A$5199,MassDataLink!$C$4:$C$5199) ->  | F171: =LOOKUP(C171,MassDataLink!$A$4:$A$5199,MassDataLink!$D$4:$D$5199) ->  | G171: =LOOKUP(C171,MassDataLink!$A$4:$A$5199,MassDataLink!$E$4:$E$5199) ->  | H171: =LOOKUP(C171,MassDataLink!$A$4:$A$5199,MassDataLink!$F$4:$F$5199) ->  | J171: 58 | K171: - - - | L171: - - -
B172: 59 | C172: -1 | D172: =LOOKUP(C172,MassDataLink!$A$4:$A$5199,MassDataLink!$B$4:$B$5199) ->  | E172: =LOOKUP(C172,MassDataLink!$A$4:$A$5199,MassDataLink!$C$4:$C$5199) ->  | F172: =LOOKUP(C172,MassDataLink!$A$4:$A$5199,MassDataLink!$D$4:$D$5199) ->  | G172: =LOOKUP(C172,MassDataLink!$A$4:$A$5199,MassDataLink!$E$4:$E$5199) ->  | H172: =LOOKUP(C172,MassDataLink!$A$4:$A$5199,MassDataLink!$F$4:$F$5199) ->  | J172: 59 | K172: - - - | L172: - - -
B173: 60 | C173: -1 | D173: =LOOKUP(C173,MassDataLink!$A$4:$A$5199,MassDataLink!$B$4:$B$5199) ->  | E173: =LOOKUP(C173,MassDataLink!$A$4:$A$5199,MassDataLink!$C$4:$C$5199) ->  | F173: =LOOKUP(C173,MassDataLink!$A$4:$A$5199,MassDataLink!$D$4:$D$5199) ->  | G173: =LOOKUP(C173,MassDataLink!$A$4:$A$5199,MassDataLink!$E$4:$E$5199) ->  | H173: =LOOKUP(C173,MassDataLink!$A$4:$A$5199,MassDataLink!$F$4:$F$5199) ->  | J173: 60 | K173: - - - | L173: - - -
B174: 61 | C174: -1 | D174: =LOOKUP(C174,MassDataLink!$A$4:$A$5199,MassDataLink!$B$4:$B$5199) ->  | E174: =LOOKUP(C174,MassDataLink!$A$4:$A$5199,MassDataLink!$C$4:$C$5199) ->  | F174: =LOOKUP(C174,MassDataLink!$A$4:$A$5199,MassDataLink!$D$4:$D$5199) ->  | G174: =LOOKUP(C174,MassDataLink!$A$4:$A$5199,MassDataLink!$E$4:$E$5199) ->  | H174: =LOOKUP(C174,MassDataLink!$A$4:$A$5199,MassDataLink!$F$4:$F$5199) ->  | J174: 61 | K174: - - - | L174: - - -
B175: 62 | C175: -1 | D175: =LOOKUP(C175,MassDataLink!$A$4:$A$5199,MassDataLink!$B$4:$B$5199) ->  | E175: =LOOKUP(C175,MassDataLink!$A$4:$A$5199,MassDataLink!$C$4:$C$5199) ->  | F175: =LOOKUP(C175,MassDataLink!$A$4:$A$5199,MassDataLink!$D$4:$D$5199) ->  | G175: =LOOKUP(C175,MassDataLink!$A$4:$A$5199,MassDataLink!$E$4:$E$5199) ->  | H175: =LOOKUP(C175,MassDataLink!$A$4:$A$5199,MassDataLink!$F$4:$F$5199) ->  | J175: 62 | K175: - - - | L175: - - -
B176: 63 | C176: -1 | D176: =LOOKUP(C176,MassDataLink!$A$4:$A$5199,MassDataLink!$B$4:$B$5199) ->  | E176: =LOOKUP(C176,MassDataLink!$A$4:$A$5199,MassDataLink!$C$4:$C$5199) ->  | F176: =LOOKUP(C176,MassDataLink!$A$4:$A$5199,MassDataLink!$D$4:$D$5199) ->  | G176: =LOOKUP(C176,MassDataLink!$A$4:$A$5199,MassDataLink!$E$4:$E$5199) ->  | H176: =LOOKUP(C176,MassDataLink!$A$4:$A$5199,MassDataLink!$F$4:$F$5199) ->  | J176: 63 | K176: - - - | L176: - - -
B177: 64 | C177: -1 | D177: =LOOKUP(C177,MassDataLink!$A$4:$A$5199,MassDataLink!$B$4:$B$5199) ->  | E177: =LOOKUP(C177,MassDataLink!$A$4:$A$5199,MassDataLink!$C$4:$C$5199) ->  | F177: =LOOKUP(C177,MassDataLink!$A$4:$A$5199,MassDataLink!$D$4:$D$5199) ->  | G177: =LOOKUP(C177,MassDataLink!$A$4:$A$5199,MassDataLink!$E$4:$E$5199) ->  | H177: =LOOKUP(C177,MassDataLink!$A$4:$A$5199,MassDataLink!$F$4:$F$5199) ->  | J177: 64 | K177: - - - | L177: - - -
B178: 65 | C178: -1 | D178: =LOOKUP(C178,MassDataLink!$A$4:$A$5199,MassDataLink!$B$4:$B$5199) ->  | E178: =LOOKUP(C178,MassDataLink!$A$4:$A$5199,MassDataLink!$C$4:$C$5199) ->  | F178: =LOOKUP(C178,MassDataLink!$A$4:$A$5199,MassDataLink!$D$4:$D$5199) ->  | G178: =LOOKUP(C178,MassDataLink!$A$4:$A$5199,MassDataLink!$E$4:$E$5199) ->  | H178: =LOOKUP(C178,MassDataLink!$A$4:$A$5199,MassDataLink!$F$4:$F$5199) ->  | J178: 65 | K178: - - - | L178: - - -
B179: 66 | C179: -1 | D179: =LOOKUP(C179,MassDataLink!$A$4:$A$5199,MassDataLink!$B$4:$B$5199) ->  | E179: =LOOKUP(C179,MassDataLink!$A$4:$A$5199,MassDataLink!$C$4:$C$5199) ->  | F179: =LOOKUP(C179,MassDataLink!$A$4:$A$5199,MassDataLink!$D$4:$D$5199) ->  | G179: =LOOKUP(C179,MassDataLink!$A$4:$A$5199,MassDataLink!$E$4:$E$5199) ->  | H179: =LOOKUP(C179,MassDataLink!$A$4:$A$5199,MassDataLink!$F$4:$F$5199) ->  | J179: 66 | K179: - - - | L179: - - -
B180: 67 | C180: -1 | D180: =LOOKUP(C180,MassDataLink!$A$4:$A$5199,MassDataLink!$B$4:$B$5199) ->  | E180: =LOOKUP(C180,MassDataLink!$A$4:$A$5199,MassDataLink!$C$4:$C$5199) ->  | F180: =LOOKUP(C180,MassDataLink!$A$4:$A$5199,MassDataLink!$D$4:$D$5199) ->  | G180: =LOOKUP(C180,MassDataLink!$A$4:$A$5199,MassDataLink!$E$4:$E$5199) ->  | H180: =LOOKUP(C180,MassDataLink!$A$4:$A$5199,MassDataLink!$F$4:$F$5199) ->  | J180: 67 | K180: - - - | L180: - - -
B181: 68 | C181: -1 | D181: =LOOKUP(C181,MassDataLink!$A$4:$A$5199,MassDataLink!$B$4:$B$5199) ->  | E181: =LOOKUP(C181,MassDataLink!$A$4:$A$5199,MassDataLink!$C$4:$C$5199) ->  | F181: =LOOKUP(C181,MassDataLink!$A$4:$A$5199,MassDataLink!$D$4:$D$5199) ->  | G181: =LOOKUP(C181,MassDataLink!$A$4:$A$5199,MassDataLink!$E$4:$E$5199) ->  | H181: =LOOKUP(C181,MassDataLink!$A$4:$A$5199,MassDataLink!$F$4:$F$5199) ->  | J181: 68 | K181: - - - | L181: - - -
B182: 69 | C182: -1 | D182: =LOOKUP(C182,MassDataLink!$A$4:$A$5199,MassDataLink!$B$4:$B$5199) ->  | E182: =LOOKUP(C182,MassDataLink!$A$4:$A$5199,MassDataLink!$C$4:$C$5199) ->  | F182: =LOOKUP(C182,MassDataLink!$A$4:$A$5199,MassDataLink!$D$4:$D$5199) ->  | G182: =LOOKUP(C182,MassDataLink!$A$4:$A$5199,MassDataLink!$E$4:$E$5199) ->  | H182: =LOOKUP(C182,MassDataLink!$A$4:$A$5199,MassDataLink!$F$4:$F$5199) ->  | J182: 69 | K182: - - - | L182: - - -
B183: =B182+1 -> 70 | C183: -1 | D183: =LOOKUP(C183,MassDataLink!$A$4:$A$5199,MassDataLink!$B$4:$B$5199) ->  | E183: =LOOKUP(C183,MassDataLink!$A$4:$A$5199,MassDataLink!$C$4:$C$5199) ->  | F183: =LOOKUP(C183,MassDataLink!$A$4:$A$5199,MassDataLink!$D$4:$D$5199) ->  | G183: =LOOKUP(C183,MassDataLink!$A$4:$A$5199,MassDataLink!$E$4:$E$5199) ->  | H183: =LOOKUP(C183,MassDataLink!$A$4:$A$5199,MassDataLink!$F$4:$F$5199) ->  | J183: =J182+1 -> 70 | K183: - - - | L183: - - -
B184: 71 | C184: -1 | D184: =LOOKUP(C184,MassDataLink!$A$4:$A$5199,MassDataLink!$B$4:$B$5199) ->  | E184: =LOOKUP(C184,MassDataLink!$A$4:$A$5199,MassDataLink!$C$4:$C$5199) ->  | F184: =LOOKUP(C184,MassDataLink!$A$4:$A$5199,MassDataLink!$D$4:$D$5199) ->  | G184: =LOOKUP(C184,MassDataLink!$A$4:$A$5199,MassDataLink!$E$4:$E$5199) ->  | H184: =LOOKUP(C184,MassDataLink!$A$4:$A$5199,MassDataLink!$F$4:$F$5199) ->  | J184: 71 | K184: - - - | L184: - - -
B185: 72 | C185: -1 | D185: =LOOKUP(C185,MassDataLink!$A$4:$A$5199,MassDataLink!$B$4:$B$5199) ->  | E185: =LOOKUP(C185,MassDataLink!$A$4:$A$5199,MassDataLink!$C$4:$C$5199) ->  | F185: =LOOKUP(C185,MassDataLink!$A$4:$A$5199,MassDataLink!$D$4:$D$5199) ->  | G185: =LOOKUP(C185,MassDataLink!$A$4:$A$5199,MassDataLink!$E$4:$E$5199) ->  | H185: =LOOKUP(C185,MassDataLink!$A$4:$A$5199,MassDataLink!$F$4:$F$5199) ->  | J185: 72 | K185: - - - | L185: - - -
B186: 73 | C186: -1 | D186: =LOOKUP(C186,MassDataLink!$A$4:$A$5199,MassDataLink!$B$4:$B$5199) ->  | E186: =LOOKUP(C186,MassDataLink!$A$4:$A$5199,MassDataLink!$C$4:$C$5199) ->  | F186: =LOOKUP(C186,MassDataLink!$A$4:$A$5199,MassDataLink!$D$4:$D$5199) ->  | G186: =LOOKUP(C186,MassDataLink!$A$4:$A$5199,MassDataLink!$E$4:$E$5199) ->  | H186: =LOOKUP(C186,MassDataLink!$A$4:$A$5199,MassDataLink!$F$4:$F$5199) ->  | J186: 73 | K186: - - - | L186: - - -
B187: 74 | C187: -1 | D187: =LOOKUP(C187,MassDataLink!$A$4:$A$5199,MassDataLink!$B$4:$B$5199) ->  | E187: =LOOKUP(C187,MassDataLink!$A$4:$A$5199,MassDataLink!$C$4:$C$5199) ->  | F187: =LOOKUP(C187,MassDataLink!$A$4:$A$5199,MassDataLink!$D$4:$D$5199) ->  | G187: =LOOKUP(C187,MassDataLink!$A$4:$A$5199,MassDataLink!$E$4:$E$5199) ->  | H187: =LOOKUP(C187,MassDataLink!$A$4:$A$5199,MassDataLink!$F$4:$F$5199) ->  | J187: 74 | K187: - - - | L187: - - -
B188: 75 | C188: -1 | D188: =LOOKUP(C188,MassDataLink!$A$4:$A$5199,MassDataLink!$B$4:$B$5199) ->  | E188: =LOOKUP(C188,MassDataLink!$A$4:$A$5199,MassDataLink!$C$4:$C$5199) ->  | F188: =LOOKUP(C188,MassDataLink!$A$4:$A$5199,MassDataLink!$D$4:$D$5199) ->  | G188: =LOOKUP(C188,MassDataLink!$A$4:$A$5199,MassDataLink!$E$4:$E$5199) ->  | H188: =LOOKUP(C188,MassDataLink!$A$4:$A$5199,MassDataLink!$F$4:$F$5199) ->  | J188: 75 | K188: - - - | L188: - - -
B189: 76 | C189: -1 | D189: =LOOKUP(C189,MassDataLink!$A$4:$A$5199,MassDataLink!$B$4:$B$5199) ->  | E189: =LOOKUP(C189,MassDataLink!$A$4:$A$5199,MassDataLink!$C$4:$C$5199) ->  | F189: =LOOKUP(C189,MassDataLink!$A$4:$A$5199,MassDataLink!$D$4:$D$5199) ->  | G189: =LOOKUP(C189,MassDataLink!$A$4:$A$5199,MassDataLink!$E$4:$E$5199) ->  | H189: =LOOKUP(C189,MassDataLink!$A$4:$A$5199,MassDataLink!$F$4:$F$5199) ->  | J189: 76 | K189: - - - | L189: - - -
B190: 77 | C190: -1 | D190: =LOOKUP(C190,MassDataLink!$A$4:$A$5199,MassDataLink!$B$4:$B$5199) ->  | E190: =LOOKUP(C190,MassDataLink!$A$4:$A$5199,MassDataLink!$C$4:$C$5199) ->  | F190: =LOOKUP(C190,MassDataLink!$A$4:$A$5199,MassDataLink!$D$4:$D$5199) ->  | G190: =LOOKUP(C190,MassDataLink!$A$4:$A$5199,MassDataLink!$E$4:$E$5199) ->  | H190: =LOOKUP(C190,MassDataLink!$A$4:$A$5199,MassDataLink!$F$4:$F$5199) ->  | J190: 77 | K190: - - - | L190: - - -
B191: 78 | C191: -1 | D191: =LOOKUP(C191,MassDataLink!$A$4:$A$5199,MassDataLink!$B$4:$B$5199) ->  | E191: =LOOKUP(C191,MassDataLink!$A$4:$A$5199,MassDataLink!$C$4:$C$5199) ->  | F191: =LOOKUP(C191,MassDataLink!$A$4:$A$5199,MassDataLink!$D$4:$D$5199) ->  | G191: =LOOKUP(C191,MassDataLink!$A$4:$A$5199,MassDataLink!$E$4:$E$5199) ->  | H191: =LOOKUP(C191,MassDataLink!$A$4:$A$5199,MassDataLink!$F$4:$F$5199) ->  | J191: 78 | K191: - - - | L191: - - -
B192: 79 | C192: -1 | D192: =LOOKUP(C192,MassDataLink!$A$4:$A$5199,MassDataLink!$B$4:$B$5199) ->  | E192: =LOOKUP(C192,MassDataLink!$A$4:$A$5199,MassDataLink!$C$4:$C$5199) ->  | F192: =LOOKUP(C192,MassDataLink!$A$4:$A$5199,MassDataLink!$D$4:$D$5199) ->  | G192: =LOOKUP(C192,MassDataLink!$A$4:$A$5199,MassDataLink!$E$4:$E$5199) ->  | H192: =LOOKUP(C192,MassDataLink!$A$4:$A$5199,MassDataLink!$F$4:$F$5199) ->  | J192: 79 | K192: - - - | L192: - - -
B193: 80 | C193: -1 | D193: =LOOKUP(C193,MassDataLink!$A$4:$A$5199,MassDataLink!$B$4:$B$5199) ->  | E193: =LOOKUP(C193,MassDataLink!$A$4:$A$5199,MassDataLink!$C$4:$C$5199) ->  | F193: =LOOKUP(C193,MassDataLink!$A$4:$A$5199,MassDataLink!$D$4:$D$5199) ->  | G193: =LOOKUP(C193,MassDataLink!$A$4:$A$5199,MassDataLink!$E$4:$E$5199) ->  | H193: =LOOKUP(C193,MassDataLink!$A$4:$A$5199,MassDataLink!$F$4:$F$5199) ->  | J193: 80 | K193: - - - | L193: - - -
B194: 81 | C194: -1 | D194: =LOOKUP(C194,MassDataLink!$A$4:$A$5199,MassDataLink!$B$4:$B$5199) ->  | E194: =LOOKUP(C194,MassDataLink!$A$4:$A$5199,MassDataLink!$C$4:$C$5199) ->  | F194: =LOOKUP(C194,MassDataLink!$A$4:$A$5199,MassDataLink!$D$4:$D$5199) ->  | G194: =LOOKUP(C194,MassDataLink!$A$4:$A$5199,MassDataLink!$E$4:$E$5199) ->  | H194: =LOOKUP(C194,MassDataLink!$A$4:$A$5199,MassDataLink!$F$4:$F$5199) ->  | J194: 81 | K194: - - - | L194: - - -
B195: 82 | C195: -1 | D195: =LOOKUP(C195,MassDataLink!$A$4:$A$5199,MassDataLink!$B$4:$B$5199) ->  | E195: =LOOKUP(C195,MassDataLink!$A$4:$A$5199,MassDataLink!$C$4:$C$5199) ->  | F195: =LOOKUP(C195,MassDataLink!$A$4:$A$5199,MassDataLink!$D$4:$D$5199) ->  | G195: =LOOKUP(C195,MassDataLink!$A$4:$A$5199,MassDataLink!$E$4:$E$5199) ->  | H195: =LOOKUP(C195,MassDataLink!$A$4:$A$5199,MassDataLink!$F$4:$F$5199) ->  | J195: 82 | K195: - - - | L195: - - -
B196: 83 | C196: -1 | D196: =LOOKUP(C196,MassDataLink!$A$4:$A$5199,MassDataLink!$B$4:$B$5199) ->  | E196: =LOOKUP(C196,MassDataLink!$A$4:$A$5199,MassDataLink!$C$4:$C$5199) ->  | F196: =LOOKUP(C196,MassDataLink!$A$4:$A$5199,MassDataLink!$D$4:$D$5199) ->  | G196: =LOOKUP(C196,MassDataLink!$A$4:$A$5199,MassDataLink!$E$4:$E$5199) ->  | H196: =LOOKUP(C196,MassDataLink!$A$4:$A$5199,MassDataLink!$F$4:$F$5199) ->  | J196: 83 | K196: - - - | L196: - - -
B197: 84 | C197: -1 | D197: =LOOKUP(C197,MassDataLink!$A$4:$A$5199,MassDataLink!$B$4:$B$5199) ->  | E197: =LOOKUP(C197,MassDataLink!$A$4:$A$5199,MassDataLink!$C$4:$C$5199) ->  | F197: =LOOKUP(C197,MassDataLink!$A$4:$A$5199,MassDataLink!$D$4:$D$5199) ->  | G197: =LOOKUP(C197,MassDataLink!$A$4:$A$5199,MassDataLink!$E$4:$E$5199) ->  | H197: =LOOKUP(C197,MassDataLink!$A$4:$A$5199,MassDataLink!$F$4:$F$5199) ->  | J197: 84 | K197: - - - | L197: - - -
B198: 85 | C198: -1 | D198: =LOOKUP(C198,MassDataLink!$A$4:$A$5199,MassDataLink!$B$4:$B$5199) ->  | E198: =LOOKUP(C198,MassDataLink!$A$4:$A$5199,MassDataLink!$C$4:$C$5199) ->  | F198: =LOOKUP(C198,MassDataLink!$A$4:$A$5199,MassDataLink!$D$4:$D$5199) ->  | G198: =LOOKUP(C198,MassDataLink!$A$4:$A$5199,MassDataLink!$E$4:$E$5199) ->  | H198: =LOOKUP(C198,MassDataLink!$A$4:$A$5199,MassDataLink!$F$4:$F$5199) ->  | J198: 85 | K198: - - - | L198: - - -
B199: 86 | C199: -1 | D199: =LOOKUP(C199,MassDataLink!$A$4:$A$5199,MassDataLink!$B$4:$B$5199) ->  | E199: =LOOKUP(C199,MassDataLink!$A$4:$A$5199,MassDataLink!$C$4:$C$5199) ->  | F199: =LOOKUP(C199,MassDataLink!$A$4:$A$5199,MassDataLink!$D$4:$D$5199) ->  | G199: =LOOKUP(C199,MassDataLink!$A$4:$A$5199,MassDataLink!$E$4:$E$5199) ->  | H199: =LOOKUP(C199,MassDataLink!$A$4:$A$5199,MassDataLink!$F$4:$F$5199) ->  | J199: 86 | K199: - - - | L199: - - -
B200: 87 | C200: -1 | D200: =LOOKUP(C200,MassDataLink!$A$4:$A$5199,MassDataLink!$B$4:$B$5199) ->  | E200: =LOOKUP(C200,MassDataLink!$A$4:$A$5199,MassDataLink!$C$4:$C$5199) ->  | F200: =LOOKUP(C200,MassDataLink!$A$4:$A$5199,MassDataLink!$D$4:$D$5199) ->  | G200: =LOOKUP(C200,MassDataLink!$A$4:$A$5199,MassDataLink!$E$4:$E$5199) ->  | H200: =LOOKUP(C200,MassDataLink!$A$4:$A$5199,MassDataLink!$F$4:$F$5199) ->  | J200: 87 | K200: - - - | L200: - - -
B201: 88 | C201: -1 | D201: =LOOKUP(C201,MassDataLink!$A$4:$A$5199,MassDataLink!$B$4:$B$5199) ->  | E201: =LOOKUP(C201,MassDataLink!$A$4:$A$5199,MassDataLink!$C$4:$C$5199) ->  | F201: =LOOKUP(C201,MassDataLink!$A$4:$A$5199,MassDataLink!$D$4:$D$5199) ->  | G201: =LOOKUP(C201,MassDataLink!$A$4:$A$5199,MassDataLink!$E$4:$E$5199) ->  | H201: =LOOKUP(C201,MassDataLink!$A$4:$A$5199,MassDataLink!$F$4:$F$5199) ->  | J201: 88 | K201: - - - | L201: - - -
B202: 89 | C202: -1 | D202: =LOOKUP(C202,MassDataLink!$A$4:$A$5199,MassDataLink!$B$4:$B$5199) ->  | E202: =LOOKUP(C202,MassDataLink!$A$4:$A$5199,MassDataLink!$C$4:$C$5199) ->  | F202: =LOOKUP(C202,MassDataLink!$A$4:$A$5199,MassDataLink!$D$4:$D$5199) ->  | G202: =LOOKUP(C202,MassDataLink!$A$4:$A$5199,MassDataLink!$E$4:$E$5199) ->  | H202: =LOOKUP(C202,MassDataLink!$A$4:$A$5199,MassDataLink!$F$4:$F$5199) ->  | J202: 89 | K202: - - - | L202: - - -
B203: 90 | C203: -1 | D203: =LOOKUP(C203,MassDataLink!$A$4:$A$5199,MassDataLink!$B$4:$B$5199) ->  | E203: =LOOKUP(C203,MassDataLink!$A$4:$A$5199,MassDataLink!$C$4:$C$5199) ->  | F203: =LOOKUP(C203,MassDataLink!$A$4:$A$5199,MassDataLink!$D$4:$D$5199) ->  | G203: =LOOKUP(C203,MassDataLink!$A$4:$A$5199,MassDataLink!$E$4:$E$5199) ->  | H203: =LOOKUP(C203,MassDataLink!$A$4:$A$5199,MassDataLink!$F$4:$F$5199) ->  | J203: 90 | K203: - - - | L203: - - -
B204: 91 | C204: -1 | D204: =LOOKUP(C204,MassDataLink!$A$4:$A$5199,MassDataLink!$B$4:$B$5199) ->  | E204: =LOOKUP(C204,MassDataLink!$A$4:$A$5199,MassDataLink!$C$4:$C$5199) ->  | F204: =LOOKUP(C204,MassDataLink!$A$4:$A$5199,MassDataLink!$D$4:$D$5199) ->  | G204: =LOOKUP(C204,MassDataLink!$A$4:$A$5199,MassDataLink!$E$4:$E$5199) ->  | H204: =LOOKUP(C204,MassDataLink!$A$4:$A$5199,MassDataLink!$F$4:$F$5199) ->  | J204: 91 | K204: - - - | L204: - - -
B205: 92 | C205: -1 | D205: =LOOKUP(C205,MassDataLink!$A$4:$A$5199,MassDataLink!$B$4:$B$5199) ->  | E205: =LOOKUP(C205,MassDataLink!$A$4:$A$5199,MassDataLink!$C$4:$C$5199) ->  | F205: =LOOKUP(C205,MassDataLink!$A$4:$A$5199,MassDataLink!$D$4:$D$5199) ->  | G205: =LOOKUP(C205,MassDataLink!$A$4:$A$5199,MassDataLink!$E$4:$E$5199) ->  | H205: =LOOKUP(C205,MassDataLink!$A$4:$A$5199,MassDataLink!$F$4:$F$5199) ->  | J205: 92 | K205: - - - | L205: - - -
... 133 more rows

Sheet ModelData (hidden)
B1: =A1+1 -> 1 | C1: 6 | D1: 7 | E1: 8 | F1: 10 | G1: 11 | H1: 12 | I1: 13 | J1: 14 | K1: 15 | L1: 16 | M1: 17 | N1: 18 | O1: 19 | P1: 20 | Q1: 21 | R1: 22 | S1: 23 | T1: 24 | U1: 25 | V1: 26 | W1: 27 | X1: 28 | Y1: 29 | Z1: 30 | AA1: 31 | AB1: 32 | AC1: 33
A2: データ№ | B2: ｱｸﾁｭｴｰﾀ型式 | C2: 最小ｽﾄﾛｰｸ | D2: 最大ｽﾄﾛｰｸ | E2: 動作種別 | F2: リンク[0] | I2: リンク[1] | L2: リンク[2] | O2: リンク[3] | R2: リンク[4] | U2: リンク[5] | X2: リンク[6] | AA2: リンク[7]
A3: 0 | C3: ㎜ | D3: ㎜ | E3: 1/0:回/直 | F3: ﾘｰﾄﾞ | G3: ｽﾄﾛｰｸ | H3: 搬送負荷 | I3: ﾘｰﾄﾞ | J3: ｽﾄﾛｰｸ | K3: 搬送負荷 | L3: ﾘｰﾄﾞ | M3: ｽﾄﾛｰｸ | N3: 搬送負荷 | O3: ﾘｰﾄﾞ | P3: ｽﾄﾛｰｸ | Q3: 搬送負荷 | R3: ﾘｰﾄﾞ | S3: ｽﾄﾛｰｸ | T3: 搬送負荷 | U3: ﾘｰﾄﾞ | V3: ｽﾄﾛｰｸ | W3: 搬送負荷 | X3: ﾘｰﾄﾞ | Y3: ｽﾄﾛｰｸ | Z3: 搬送負荷 | AA3: ﾘｰﾄﾞ | AB3: ｽﾄﾛｰｸ | AC3: 搬送負荷
A4: =A3+1 -> 1 | B4: ISA-SXM-60 | C4: 100 | D4: 600 | E4: 0 | F4: =LeadData!A4 -> 1 | G4: =StrokeData!A4 -> 1 | H4: =MassDataLink!A4 -> 1 | I4: =LeadData!A5 -> 2 | J4: =StrokeData!A5 -> 2 | K4: =MassDataLink!A9 -> 6 | L4: =LeadData!A6 -> 3 | M4: =StrokeData!A6 -> 3 | N4: =MassDataLink!A16 -> 13 | O4: -1 | P4: -1 | Q4: -1 | R4: -1 | S4: -1 | T4: -1 | U4: -1 | V4: -1 | W4: -1 | X4: -1 | Y4: -1 | Z4: -1 | AA4: -1 | AB4: -1 | AC4: -1
A5: 2 | B5: ISA-SYM-60 | C5: 100 | D5: 600 | E5: 0 | F5: =LeadData!A7 -> 4 | G5: =StrokeData!A7 -> 4 | H5: =MassDataLink!A29 -> 26 | I5: =LeadData!A8 -> 5 | J5: =StrokeData!A8 -> 5 | K5: =MassDataLink!A34 -> 31 | L5: =LeadData!A9 -> 6 | M5: =StrokeData!A9 -> 6 | N5: =MassDataLink!A41 -> 38 | O5: -1 | P5: -1 | Q5: -1 | R5: -1 | S5: -1 | T5: -1 | U5: -1 | V5: -1 | W5: -1 | X5: -1 | Y5: -1 | Z5: -1 | AA5: -1 | AB5: -1 | AC5: -1
A6: 3 | B6: ISA-SZM-60 | C6: 100 | D6: 600 | E6: 0 | F6: =LeadData!A10 -> 7 | G6: =StrokeData!A10 -> 7 | H6: =MassDataLink!A54 -> 51 | I6: =LeadData!A11 -> 8 | J6: =StrokeData!A11 -> 8 | K6: =MassDataLink!A56 -> 53 | L6: -1 | M6: -1 | N6: -1 | O6: -1 | P6: -1 | Q6: -1 | R6: -1 | S6: -1 | T6: -1 | U6: -1 | V6: -1 | W6: -1 | X6: -1 | Y6: -1 | Z6: -1 | AA6: -1 | AB6: -1 | AC6: -1
A7: 4 | B7: ISA-MXM-100 | C7: 100 | D7: 1000 | E7: 0 | F7: =LeadData!A12 -> 9 | G7: =StrokeData!A12 -> 9 | H7: =MassDataLink!A59 -> 56 | I7: =LeadData!A13 -> 10 | J7: =StrokeData!A16 -> 13 | K7: =MassDataLink!A64 -> 61 | L7: =LeadData!A14 -> 11 | M7: =StrokeData!A20 -> 17 | N7: =MassDataLink!A71 -> 68 | O7: =LeadData!A15 -> 12 | P7: =StrokeData!A24 -> 21 | Q7: =MassDataLink!A85 -> 82 | R7: -1 | S7: -1 | T7: -1 | U7: -1 | V7: -1 | W7: -1 | X7: -1 | Y7: -1 | Z7: -1 | AA7: -1 | AB7: -1 | AC7: -1
A8: 5 | B8: ISA-MXM-200 | C8: 100 | D8: 1000 | E8: 0 | F8: =LeadData!A16 -> 13 | G8: =StrokeData!A28 -> 25 | H8: =MassDataLink!A93 -> 90 | I8: =LeadData!A17 -> 14 | J8: =StrokeData!A33 -> 30 | K8: =MassDataLink!A100 -> 97 | L8: =LeadData!A18 -> 15 | M8: =StrokeData!A38 -> 35 | N8: =MassDataLink!A114 -> 111 | O8: -1 | P8: -1 | Q8: -1 | R8: -1 | S8: -1 | T8: -1 | U8: -1 | V8: -1 | W8: -1 | X8: -1 | Y8: -1 | Z8: -1 | AA8: -1 | AB8: -1 | AC8: -1
A9: 6 | B9: ISA-MXMX-200 | C9: 800 | D9: 2000 | E9: 0 | F9: =LeadData!A19 -> 16 | G9: =StrokeData!A42 -> 39 | H9: =MassDataLink!A130 -> 127 | I9: =LeadData!A20 -> 17 | J9: =StrokeData!A53 -> 50 | K9: =MassDataLink!A131 -> 128 | L9: -1 | M9: -1 | N9: -1 | O9: -1 | P9: -1 | Q9: -1 | R9: -1 | S9: -1 | T9: -1 | U9: -1 | V9: -1 | W9: -1 | X9: -1 | Y9: -1 | Z9: -1 | AA9: -1 | AB9: -1 | AC9: -1
A10: 7 | B10: ISA-MYM-100 | C10: 100 | D10: 1000 | E10: 0 | F10: =LeadData!A21 -> 18 | G10: =StrokeData!A64 -> 61 | H10: =MassDataLink!A132 -> 129 | I10: =LeadData!A22 -> 19 | J10: =StrokeData!A68 -> 65 | K10: =MassDataLink!A137 -> 134 | L10: =LeadData!A23 -> 20 | M10: =StrokeData!A72 -> 69 | N10: =MassDataLink!A144 -> 141 | O10: =LeadData!A24 -> 21 | P10: =StrokeData!A76 -> 73 | Q10: =MassDataLink!A158 -> 155 | R10: -1 | S10: -1 | T10: -1 | U10: -1 | V10: -1 | W10: -1 | X10: -1 | Y10: -1 | Z10: -1 | AA10: -1 | AB10: -1 | AC10: -1
A11: 8 | B11: ISA-MYM-200 | C11: 100 | D11: 1000 | E11: 0 | F11: =LeadData!A25 -> 22 | G11: =StrokeData!A80 -> 77 | H11: =MassDataLink!A166 -> 163 | I11: =LeadData!A26 -> 23 | J11: =StrokeData!A85 -> 82 | K11: =MassDataLink!A173 -> 170 | L11: =LeadData!A27 -> 24 | M11: =StrokeData!A90 -> 87 | N11: =MassDataLink!A187 -> 184 | O11: -1 | P11: -1 | Q11: -1 | R11: -1 | S11: -1 | T11: -1 | U11: -1 | V11: -1 | W11: -1 | X11: -1 | Y11: -1 | Z11: -1 | AA11: -1 | AB11: -1 | AC11: -1
A12: 9 | B12: ISA-MZM-100 | C12: 100 | D12: 1000 | E12: 0 | F12: =LeadData!A28 -> 25 | G12: =StrokeData!A94 -> 91 | H12: =MassDataLink!A203 -> 200 | I12: =LeadData!A29 -> 26 | J12: =StrokeData!A98 -> 95 | K12: =MassDataLink!A205 -> 202 | L12: -1 | M12: -1 | N12: -1 | O12: -1 | P12: -1 | Q12: -1 | R12: -1 | S12: -1 | T12: -1 | U12: -1 | V12: -1 | W12: -1 | X12: -1 | Y12: -1 | Z12: -1 | AA12: -1 | AB12: -1 | AC12: -1
A13: 10 | B13: ISA-MZM-200 | C13: 100 | D13: 1000 | E13: 0 | F13: =LeadData!A30 -> 27 | G13: =StrokeData!A102 -> 99 | H13: =MassDataLink!A208 -> 205 | I13: -1 | J13: -1 | K13: -1 | L13: -1 | M13: -1 | N13: -1 | O13: -1 | P13: -1 | Q13: -1 | R13: -1 | S13: -1 | T13: -1 | U13: -1 | V13: -1 | W13: -1 | X13: -1 | Y13: -1 | Z13: -1 | AA13: -1 | AB13: -1 | AC13: -1
A14: 11 | B14: ISA-LXM-200 | C14: 100 | D14: 1200 | E14: 0 | F14: =LeadData!A31 -> 28 | G14: =StrokeData!A107 -> 104 | H14: =MassDataLink!A211 -> 208 | I14: =LeadData!A32 -> 29 | J14: =StrokeData!A113 -> 110 | K14: =MassDataLink!A218 -> 215 | L14: -1 | M14: -1 | N14: -1 | O14: -1 | P14: -1 | Q14: -1 | R14: -1 | S14: -1 | T14: -1 | U14: -1 | V14: -1 | W14: -1 | X14: -1 | Y14: -1 | Z14: -1 | AA14: -1 | AB14: -1 | AC14: -1
A15: 12 | B15: ISA-LXM-400 | C15: 100 | D15: 1200 | E15: 0 | F15: =LeadData!A33 -> 30 | G15: =StrokeData!A119 -> 116 | H15: =MassDataLink!A232 -> 229 | I15: =LeadData!A34 -> 31 | J15: =StrokeData!A125 -> 122 | K15: =MassDataLink!A246 -> 243 | L15: -1 | M15: -1 | N15: -1 | O15: -1 | P15: -1 | Q15: -1 | R15: -1 | S15: -1 | T15: -1 | U15: -1 | V15: -1 | W15: -1 | X15: -1 | Y15: -1 | Z15: -1 | AA15: -1 | AB15: -1 | AC15: -1
A16: 13 | B16: ISA-LXMX-200 | C16: 1000 | D16: 2500 | E16: 0 | F16: =LeadData!A35 -> 32 | G16: =StrokeData!A131 -> 128 | H16: =MassDataLink!A262 -> 259 | I16: -1 | J16: -1 | K16: -1 | L16: -1 | M16: -1 | N16: -1 | O16: -1 | P16: -1 | Q16: -1 | R16: -1 | S16: -1 | T16: -1 | U16: -1 | V16: -1 | W16: -1 | X16: -1 | Y16: -1 | Z16: -1 | AA16: -1 | AB16: -1 | AC16: -1
A17: 14 | B17: ISA-LXMX-400 | C17: 1000 | D17: 2500 | E17: 0 | F17: =LeadData!A36 -> 33 | G17: =StrokeData!A146 -> 143 | H17: =MassDataLink!A263 -> 260 | I17: =LeadData!A37 -> 34 | J17: =StrokeData!A161 -> 158 | K17: =MassDataLink!A264 -> 261 | L17: -1 | M17: -1 | N17: -1 | O17: -1 | P17: -1 | Q17: -1 | R17: -1 | S17: -1 | T17: -1 | U17: -1 | V17: -1 | W17: -1 | X17: -1 | Y17: -1 | Z17: -1 | AA17: -1 | AB17: -1 | AC17: -1
A18: 15 | B18: ISA-LXUWX-200 | C18: 1000 | D18: 2500 | E18: 0 | F18: =LeadData!A38 -> 35 | G18: =StrokeData!A175 -> 172 | H18: =MassDataLink!A265 -> 262 | I18: -1 | J18: -1 | K18: -1 | L18: -1 | M18: -1 | N18: -1 | O18: -1 | P18: -1 | Q18: -1 | R18: -1 | S18: -1 | T18: -1 | U18: -1 | V18: -1 | W18: -1 | X18: -1 | Y18: -1 | Z18: -1 | AA18: -1 | AB18: -1 | AC18: -1
A19: 16 | B19: ISA-LXUWX-400 | C19: 1000 | D19: 2500 | E19: 0 | F19: =LeadData!A39 -> 36 | G19: =StrokeData!A190 -> 187 | H19: =MassDataLink!A266 -> 263 | I19: =LeadData!A40 -> 37 | J19: =StrokeData!A205 -> 202 | K19: =MassDataLink!A267 -> 264 | L19: -1 | M19: -1 | N19: -1 | O19: -1 | P19: -1 | Q19: -1 | R19: -1 | S19: -1 | T19: -1 | U19: -1 | V19: -1 | W19: -1 | X19: -1 | Y19: -1 | Z19: -1 | AA19: -1 | AB19: -1 | AC19: -1
A20: 17 | B20: ISA-LYM-200 | C20: 100 | D20: 1200 | E20: 0 | F20: =LeadData!A41 -> 38 | G20: =StrokeData!A219 -> 216 | H20: =MassDataLink!A268 -> 265 | I20: =LeadData!A42 -> 39 | J20: =StrokeData!A225 -> 222 | K20: =MassDataLink!A275 -> 272 | L20: -1 | M20: -1 | N20: -1 | O20: -1 | P20: -1 | Q20: -1 | R20: -1 | S20: -1 | T20: -1 | U20: -1 | V20: -1 | W20: -1 | X20: -1 | Y20: -1 | Z20: -1 | AA20: -1 | AB20: -1 | AC20: -1
A21: 18 | B21: ISA-LYM-400 | C21: 100 | D21: 1200 | E21: 0 | F21: =LeadData!A43 -> 40 | G21: =StrokeData!A231 -> 228 | H21: =MassDataLink!A289 -> 286 | I21: =LeadData!A44 -> 41 | J21: =StrokeData!A237 -> 234 | K21: =MassDataLink!A303 -> 300 | L21: -1 | M21: -1 | N21: -1 | O21: -1 | P21: -1 | Q21: -1 | R21: -1 | S21: -1 | T21: -1 | U21: -1 | V21: -1 | W21: -1 | X21: -1 | Y21: -1 | Z21: -1 | AA21: -1 | AB21: -1 | AC21: -1
A22: 19 | B22: ISA-LZM-200 | C22: 100 | D22: 1200 | E22: 0 | F22: =LeadData!A45 -> 42 | G22: =StrokeData!A243 -> 240 | H22: =MassDataLink!A319 -> 316 | I22: -1 | J22: -1 | K22: -1 | L22: -1 | M22: -1 | N22: -1 | O22: -1 | P22: -1 | Q22: -1 | R22: -1 | S22: -1 | T22: -1 | U22: -1 | V22: -1 | W22: -1 | X22: -1 | Y22: -1 | Z22: -1 | AA22: -1 | AB22: -1 | AC22: -1
A23: 20 | B23: ISA-LZM-400 | C23: 100 | D23: 1200 | E23: 0 | F23: =LeadData!A46 -> 43 | G23: =StrokeData!A249 -> 246 | H23: =MassDataLink!A322 -> 319 | I23: -1 | J23: -1 | K23: -1 | L23: -1 | M23: -1 | N23: -1 | O23: -1 | P23: -1 | Q23: -1 | R23: -1 | S23: -1 | T23: -1 | U23: -1 | V23: -1 | W23: -1 | X23: -1 | Y23: -1 | Z23: -1 | AA23: -1 | AB23: -1 | AC23: -1
A24: 21 | B24: ISA-WXM-600 | C24: 100 | D24: 1300 | E24: 0 | F24: =LeadData!A47 -> 44 | G24: =StrokeData!A255 -> 252 | H24: =MassDataLink!A325 -> 322 | I24: =LeadData!A48 -> 45 | J24: =StrokeData!A263 -> 260 | K24: =MassDataLink!A332 -> 329 | L24: =LeadData!A49 -> 46 | M24: =StrokeData!A271 -> 268 | N24: =MassDataLink!A346 -> 343 | O24: -1 | P24: -1 | Q24: -1 | R24: -1 | S24: -1 | T24: -1 | U24: -1 | V24: -1 | W24: -1 | X24: -1 | Y24: -1 | Z24: -1 | AA24: -1 | AB24: -1 | AC24: -1
A25: 22 | B25: ISA-WXM-750 | C25: 100 | D25: 1300 | E25: 0 | F25: =LeadData!A50 -> 47 | G25: =StrokeData!A278 -> 275 | H25: =MassDataLink!A362 -> 359 | I25: =LeadData!A51 -> 48 | J25: =StrokeData!A284 -> 281 | K25: =MassDataLink!A376 -> 373 | L25: -1 | M25: -1 | N25: -1 | O25: -1 | P25: -1 | Q25: -1 | R25: -1 | S25: -1 | T25: -1 | U25: -1 | V25: -1 | W25: -1 | X25: -1 | Y25: -1 | Z25: -1 | AA25: -1 | AB25: -1 | AC25: -1
A26: 23 | B26: ISA-WXMX-600 | C26: 900 | D26: 2500 | E26: 0 | F26: =LeadData!A52 -> 49 | G26: =StrokeData!A290 -> 287 | H26: =MassDataLink!A392 -> 389 | I26: =LeadData!A53 -> 50 | J26: =StrokeData!A305 -> 302 | K26: =MassDataLink!A393 -> 390 | L26: -1 | M26: -1 | N26: -1 | O26: -1 | P26: -1 | Q26: -1 | R26: -1 | S26: -1 | T26: -1 | U26: -1 | V26: -1 | W26: -1 | X26: -1 | Y26: -1 | Z26: -1 | AA26: -1 | AB26: -1 | AC26: -1
A27: 24 | B27: ISA-WXMX-750 | C27: 900 | D27: 2500 | E27: 0 | F27: =LeadData!A54 -> 51 | G27: =StrokeData!A320 -> 317 | H27: =MassDataLink!A394 -> 391 | I27: =LeadData!A55 -> 52 | J27: =StrokeData!A333 -> 330 | K27: =MassDataLink!A395 -> 392 | L27: -1 | M27: -1 | N27: -1 | O27: -1 | P27: -1 | Q27: -1 | R27: -1 | S27: -1 | T27: -1 | U27: -1 | V27: -1 | W27: -1 | X27: -1 | Y27: -1 | Z27: -1 | AA27: -1 | AB27: -1 | AC27: -1
A28: 25 | B28: ISDA-S-60 | C28: 100 | D28: 600 | E28: 0 | F28: =LeadData!A56 -> 53 | G28: =StrokeData!A344 -> 341 | H28: =MassDataLink!A396 -> 393 | I28: =LeadData!A57 -> 54 | J28: =StrokeData!A346 -> 343 | K28: =MassDataLink!A401 -> 398 | L28: =LeadData!A58 -> 55 | M28: =StrokeData!A348 -> 345 | N28: =MassDataLink!A408 -> 405 | O28: -1 | P28: -1 | Q28: -1 | R28: -1 | S28: -1 | T28: -1 | U28: -1 | V28: -1 | W28: -1 | X28: -1 | Y28: -1 | Z28: -1 | AA28: -1 | AB28: -1 | AC28: -1
A29: 26 | B29: ISDA-M-100 | C29: 100 | D29: 1000 | E29: 0 | F29: =LeadData!A59 -> 56 | G29: =StrokeData!A350 -> 347 | H29: =MassDataLink!A421 -> 418 | I29: =LeadData!A60 -> 57 | J29: =StrokeData!A355 -> 352 | K29: =MassDataLink!A426 -> 423 | L29: =LeadData!A61 -> 58 | M29: =StrokeData!A360 -> 357 | N29: =MassDataLink!A433 -> 430 | O29: -1 | P29: -1 | Q29: -1 | R29: -1 | S29: -1 | T29: -1 | U29: -1 | V29: -1 | W29: -1 | X29: -1 | Y29: -1 | Z29: -1 | AA29: -1 | AB29: -1 | AC29: -1
A30: 27 | B30: ISDA-M-200 | C30: 100 | D30: 1000 | E30: 0 | F30: =LeadData!A62 -> 59 | G30: =StrokeData!A365 -> 362 | H30: =MassDataLink!A447 -> 444 | I30: =LeadData!A63 -> 60 | J30: =StrokeData!A370 -> 367 | K30: =MassDataLink!A454 -> 451 | L30: -1 | M30: -1 | N30: -1 | O30: -1 | P30: -1 | Q30: -1 | R30: -1 | S30: -1 | T30: -1 | U30: -1 | V30: -1 | W30: -1 | X30: -1 | Y30: -1 | Z30: -1 | AA30: -1 | AB30: -1 | AC30: -1
A31: 28 | B31: ISDA-MX-200 | C31: 800 | D31: 1600 | E31: 0 | F31: =LeadData!A64 -> 61 | G31: =StrokeData!A376 -> 373 | H31: =MassDataLink!A468 -> 465 | I31: -1 | J31: -1 | K31: -1 | L31: -1 | M31: -1 | N31: -1 | O31: -1 | P31: -1 | Q31: -1 | R31: -1 | S31: -1 | T31: -1 | U31: -1 | V31: -1 | W31: -1 | X31: -1 | Y31: -1 | Z31: -1 | AA31: -1 | AB31: -1 | AC31: -1
A32: 29 | B32: ISDA-L-200 | C32: 100 | D32: 1200 | E32: 0 | F32: =LeadData!A65 -> 62 | G32: =StrokeData!A381 -> 378 | H32: =MassDataLink!A469 -> 466 | I32: =LeadData!A66 -> 63 | J32: =StrokeData!A388 -> 385 | K32: =MassDataLink!A476 -> 473 | L32: -1 | M32: -1 | N32: -1 | O32: -1 | P32: -1 | Q32: -1 | R32: -1 | S32: -1 | T32: -1 | U32: -1 | V32: -1 | W32: -1 | X32: -1 | Y32: -1 | Z32: -1 | AA32: -1 | AB32: -1 | AC32: -1
A33: 30 | B33: ISDA-L-400 | C33: 100 | D33: 1200 | E33: 0 | F33: =LeadData!A67 -> 64 | G33: =StrokeData!A395 -> 392 | H33: =MassDataLink!A490 -> 487 | I33: -1 | J33: -1 | K33: -1 | L33: -1 | M33: -1 | N33: -1 | O33: -1 | P33: -1 | Q33: -1 | R33: -1 | S33: -1 | T33: -1 | U33: -1 | V33: -1 | W33: -1 | X33: -1 | Y33: -1 | Z33: -1 | AA33: -1 | AB33: -1 | AC33: -1
A34: 31 | B34: ISDA-LX-200 | C34: 1000 | D34: 1600 | E34: 0 | F34: =LeadData!A68 -> 65 | G34: =StrokeData!A402 -> 399 | H34: =MassDataLink!A504 -> 501 | I34: -1 | J34: -1 | K34: -1 | L34: -1 | M34: -1 | N34: -1 | O34: -1 | P34: -1 | Q34: -1 | R34: -1 | S34: -1 | T34: -1 | U34: -1 | V34: -1 | W34: -1 | X34: -1 | Y34: -1 | Z34: -1 | AA34: -1 | AB34: -1 | AC34: -1
A35: 32 | B35: ISDA-LX-400 | C35: 1000 | D35: 1600 | E35: 0 | F35: =LeadData!A69 -> 66 | G35: =StrokeData!A406 -> 403 | H35: =MassDataLink!A505 -> 502 | I35: -1 | J35: -1 | K35: -1 | L35: -1 | M35: -1 | N35: -1 | O35: -1 | P35: -1 | Q35: -1 | R35: -1 | S35: -1 | T35: -1 | U35: -1 | V35: -1 | W35: -1 | X35: -1 | Y35: -1 | Z35: -1 | AA35: -1 | AB35: -1 | AC35: -1
A36: =A35+1 -> 33 | B36: ISDACR-W-600 | C36: 100 | D36: 1300 | E36: 0 | F36: =LeadData!A70 -> 67 | G36: =StrokeData!A410 -> 407 | H36: =MassDataLink!A506 -> 503 | I36: =LeadData!A71 -> 68 | J36: =StrokeData!A418 -> 415 | K36: =MassDataLink!A513 -> 510 | L36: =LeadData!A72 -> 69 | M36: =StrokeData!A426 -> 423 | N36: =MassDataLink!A527 -> 524 | O36: -1 | P36: -1 | Q36: -1 | R36: -1 | S36: -1 | T36: -1 | U36: -1 | V36: -1 | W36: -1 | X36: -1 | Y36: -1 | Z36: -1 | AA36: -1 | AB36: -1 | AC36: -1
A37: 34 | B37: ISDACR-W-750 | C37: 100 | D37: 1300 | E37: 0 | F37: =LeadData!A73 -> 70 | G37: =StrokeData!A433 -> 430 | H37: =MassDataLink!A543 -> 540 | I37: =LeadData!A74 -> 71 | J37: =StrokeData!A439 -> 436 | K37: =MassDataLink!A557 -> 554 | L37: -1 | M37: -1 | N37: -1 | O37: -1 | P37: -1 | Q37: -1 | R37: -1 | S37: -1 | T37: -1 | U37: -1 | V37: -1 | W37: -1 | X37: -1 | Y37: -1 | Z37: -1 | AA37: -1 | AB37: -1 | AC37: -1
A38: 35 | B38: ISDACR-WX-600 | C38: 900 | D38: 2500 | E38: 0 | F38: =LeadData!A75 -> 72 | G38: =StrokeData!A445 -> 442 | H38: =MassDataLink!A573 -> 570 | I38: =LeadData!A76 -> 73 | J38: =StrokeData!A459 -> 456 | K38: =MassDataLink!A574 -> 571 | L38: -1 | M38: -1 | N38: -1 | O38: -1 | P38: -1 | Q38: -1 | R38: -1 | S38: -1 | T38: -1 | U38: -1 | V38: -1 | W38: -1 | X38: -1 | Y38: -1 | Z38: -1 | AA38: -1 | AB38: -1 | AC38: -1
A39: 36 | B39: ISDACR-WX-750 | C39: 900 | D39: 2500 | E39: 0 | F39: =LeadData!A77 -> 74 | G39: =StrokeData!A473 -> 470 | H39: =MassDataLink!A575 -> 572 | I39: =LeadData!A78 -> 75 | J39: =StrokeData!A486 -> 483 | K39: =MassDataLink!A576 -> 573 | L39: -1 | M39: -1 | N39: -1 | O39: -1 | P39: -1 | Q39: -1 | R39: -1 | S39: -1 | T39: -1 | U39: -1 | V39: -1 | W39: -1 | X39: -1 | Y39: -1 | Z39: -1 | AA39: -1 | AB39: -1 | AC39: -1
A40: 37 | B40: NS-SXMS-60 | C40: 400 | D40: 800 | E40: 0 | F40: =LeadData!A79 -> 76 | G40: =StrokeData!A497 -> 494 | H40: =MassDataLink!A577 -> 574 | I40: -1 | J40: -1 | K40: -1 | L40: -1 | M40: -1 | N40: -1 | O40: -1 | P40: -1 | Q40: -1 | R40: -1 | S40: -1 | T40: -1 | U40: -1 | V40: -1 | W40: -1 | X40: -1 | Y40: -1 | Z40: -1 | AA40: -1 | AB40: -1 | AC40: -1
A41: 38 | B41: NS-SXMM-60 | C41: 200 | D41: 800 | E41: 0 | F41: =LeadData!A80 -> 77 | G41: =StrokeData!A498 -> 495 | H41: =MassDataLink!A583 -> 580 | I41: -1 | J41: -1 | K41: -1 | L41: -1 | M41: -1 | N41: -1 | O41: -1 | P41: -1 | Q41: -1 | R41: -1 | S41: -1 | T41: -1 | U41: -1 | V41: -1 | W41: -1 | X41: -1 | Y41: -1 | Z41: -1 | AA41: -1 | AB41: -1 | AC41: -1
A42: 39 | B42: NS-SZMS-60 | C42: 400 | D42: 800 | E42: 0 | F42: =LeadData!A81 -> 78 | G42: =StrokeData!A499 -> 496 | H42: =MassDataLink!A589 -> 586 | I42: -1 | J42: -1 | K42: -1 | L42: -1 | M42: -1 | N42: -1 | O42: -1 | P42: -1 | Q42: -1 | R42: -1 | S42: -1 | T42: -1 | U42: -1 | V42: -1 | W42: -1 | X42: -1 | Y42: -1 | Z42: -1 | AA42: -1 | AB42: -1 | AC42: -1
A43: 40 | B43: NS-SZMM-60 | C43: 200 | D43: 800 | E43: 0 | F43: =LeadData!A82 -> 79 | G43: =StrokeData!A500 -> 497 | H43: =MassDataLink!A594 -> 591 | I43: -1 | J43: -1 | K43: -1 | L43: -1 | M43: -1 | N43: -1 | O43: -1 | P43: -1 | Q43: -1 | R43: -1 | S43: -1 | T43: -1 | U43: -1 | V43: -1 | W43: -1 | X43: -1 | Y43: -1 | Z43: -1 | AA43: -1 | AB43: -1 | AC43: -1
A44: 41 | B44: NS-MXMS-200 | C44: 500 | D44: 1500 | E44: 0 | F44: =LeadData!A83 -> 80 | G44: =StrokeData!A501 -> 498 | H44: =MassDataLink!A599 -> 596 | I44: =LeadData!A84 -> 81 | J44: =StrokeData!A502 -> 499 | K44: =MassDataLink!A605 -> 602 | L44: -1 | M44: -1 | N44: -1 | O44: -1 | P44: -1 | Q44: -1 | R44: -1 | S44: -1 | T44: -1 | U44: -1 | V44: -1 | W44: -1 | X44: -1 | Y44: -1 | Z44: -1 | AA44: -1 | AB44: -1 | AC44: -1
A45: 42 | B45: NS-MXMM-200 | C45: 300 | D45: 1500 | E45: 0 | F45: =LeadData!A85 -> 82 | G45: =StrokeData!A503 -> 500 | H45: =MassDataLink!A613 -> 610 | I45: =LeadData!A86 -> 83 | J45: =StrokeData!A504 -> 501 | K45: =MassDataLink!A619 -> 616 | L45: -1 | M45: -1 | N45: -1 | O45: -1 | P45: -1 | Q45: -1 | R45: -1 | S45: -1 | T45: -1 | U45: -1 | V45: -1 | W45: -1 | X45: -1 | Y45: -1 | Z45: -1 | AA45: -1 | AB45: -1 | AC45: -1
A46: 43 | B46: NS-MXMXS-200 | C46: 1600 | D46: 2200 | E46: 0 | F46: =LeadData!A87 -> 84 | G46: =StrokeData!A505 -> 502 | H46: =MassDataLink!A627 -> 624 | I46: =LeadData!A88 -> 85 | J46: =StrokeData!A506 -> 503 | K46: =MassDataLink!A628 -> 625 | L46: -1 | M46: -1 | N46: -1 | O46: -1 | P46: -1 | Q46: -1 | R46: -1 | S46: -1 | T46: -1 | U46: -1 | V46: -1 | W46: -1 | X46: -1 | Y46: -1 | Z46: -1 | AA46: -1 | AB46: -1 | AC46: -1
A47: 44 | B47: NS-MZMS-200 | C47: 500 | D47: 800 | E47: 0 | F47: =LeadData!A89 -> 86 | G47: =StrokeData!A507 -> 504 | H47: =MassDataLink!A629 -> 626 | I47: -1 | J47: -1 | K47: -1 | L47: -1 | M47: -1 | N47: -1 | O47: -1 | P47: -1 | Q47: -1 | R47: -1 | S47: -1 | T47: -1 | U47: -1 | V47: -1 | W47: -1 | X47: -1 | Y47: -1 | Z47: -1 | AA47: -1 | AB47: -1 | AC47: -1
A48: 45 | B48: NS-MZMM-200 | C48: 300 | D48: 800 | E48: 0 | F48: =LeadData!A90 -> 87 | G48: =StrokeData!A508 -> 505 | H48: =MassDataLink!A632 -> 629 | I48: -1 | J48: -1 | K48: -1 | L48: -1 | M48: -1 | N48: -1 | O48: -1 | P48: -1 | Q48: -1 | R48: -1 | S48: -1 | T48: -1 | U48: -1 | V48: -1 | W48: -1 | X48: -1 | Y48: -1 | Z48: -1 | AA48: -1 | AB48: -1 | AC48: -1
A49: 46 | B49: NS-LXMS-400 | C49: 500 | D49: 2200 | E49: 0 | F49: =LeadData!A91 -> 88 | G49: =StrokeData!A509 -> 506 | H49: =MassDataLink!A635 -> 632 | I49: =LeadData!A92 -> 89 | J49: =StrokeData!A510 -> 507 | K49: =MassDataLink!A643 -> 640 | L49: -1 | M49: -1 | N49: -1 | O49: -1 | P49: -1 | Q49: -1 | R49: -1 | S49: -1 | T49: -1 | U49: -1 | V49: -1 | W49: -1 | X49: -1 | Y49: -1 | Z49: -1 | AA49: -1 | AB49: -1 | AC49: -1
A50: 47 | B50: NS-LXMM-400 | C50: 250 | D50: 2250 | E50: 0 | F50: =LeadData!A93 -> 90 | G50: =StrokeData!A511 -> 508 | H50: =MassDataLink!A651 -> 648 | I50: =LeadData!A94 -> 91 | J50: =StrokeData!A512 -> 509 | K50: =MassDataLink!A659 -> 656 | L50: -1 | M50: -1 | N50: -1 | O50: -1 | P50: -1 | Q50: -1 | R50: -1 | S50: -1 | T50: -1 | U50: -1 | V50: -1 | W50: -1 | X50: -1 | Y50: -1 | Z50: -1 | AA50: -1 | AB50: -1 | AC50: -1
A51: 48 | B51: NS-LXMXS-400 | C51: 2300 | D51: 3000 | E51: 0 | F51: =LeadData!A95 -> 92 | G51: =StrokeData!A513 -> 510 | H51: =MassDataLink!A667 -> 664 | I51: =LeadData!A96 -> 93 | J51: =StrokeData!A514 -> 511 | K51: =MassDataLink!A668 -> 665 | L51: -1 | M51: -1 | N51: -1 | O51: -1 | P51: -1 | Q51: -1 | R51: -1 | S51: -1 | T51: -1 | U51: -1 | V51: -1 | W51: -1 | X51: -1 | Y51: -1 | Z51: -1 | AA51: -1 | AB51: -1 | AC51: -1
A52: 49 | B52: NS-LZMS-400 | C52: 500 | D52: 1000 | E52: 0 | F52: =LeadData!A97 -> 94 | G52: =StrokeData!A515 -> 512 | H52: =MassDataLink!A669 -> 666 | I52: -1 | J52: -1 | K52: -1 | L52: -1 | M52: -1 | N52: -1 | O52: -1 | P52: -1 | Q52: -1 | R52: -1 | S52: -1 | T52: -1 | U52: -1 | V52: -1 | W52: -1 | X52: -1 | Y52: -1 | Z52: -1 | AA52: -1 | AB52: -1 | AC52: -1
A53: 50 | B53: NS-LZMM-400 | C53: 250 | D53: 950 | E53: 0 | F53: =LeadData!A98 -> 95 | G53: =StrokeData!A516 -> 513 | H53: =MassDataLink!A675 -> 672 | I53: -1 | J53: -1 | K53: -1 | L53: -1 | M53: -1 | N53: -1 | O53: -1 | P53: -1 | Q53: -1 | R53: -1 | S53: -1 | T53: -1 | U53: -1 | V53: -1 | W53: -1 | X53: -1 | Y53: -1 | Z53: -1 | AA53: -1 | AB53: -1 | AC53: -1
A54: 51 | B54: RCS2-SS8C-100 | C54: 50 | D54: 1000 | E54: 0 | F54: =LeadData!A99 -> 96 | G54: =StrokeData!A517 -> 514 | H54: =MassDataLink!A681 -> 678 | I54: =LeadData!A100 -> 97 | J54: =StrokeData!A522 -> 519 | K54: =MassDataLink!A683 -> 680 | L54: -1 | M54: -1 | N54: -1 | O54: -1 | P54: -1 | Q54: -1 | R54: -1 | S54: -1 | T54: -1 | U54: -1 | V54: -1 | W54: -1 | X54: -1 | Y54: -1 | Z54: -1 | AA54: -1 | AB54: -1 | AC54: -1
A55: 52 | B55: RCS2-SS8C-150 | C55: 50 | D55: 1000 | E55: 0 | F55: =LeadData!A101 -> 98 | G55: =StrokeData!A527 -> 524 | H55: =MassDataLink!A685 -> 682 | I55: =LeadData!A102 -> 99 | J55: =StrokeData!A532 -> 529 | K55: =MassDataLink!A687 -> 684 | L55: -1 | M55: -1 | N55: -1 | O55: -1 | P55: -1 | Q55: -1 | R55: -1 | S55: -1 | T55: -1 | U55: -1 | V55: -1 | W55: -1 | X55: -1 | Y55: -1 | Z55: -1 | AA55: -1 | AB55: -1 | AC55: -1
A56: 53 | B56: RCS2-SS8R-100 | C56: 50 | D56: 1000 | E56: 0 | F56: =LeadData!A103 -> 100 | G56: =StrokeData!A537 -> 534 | H56: =MassDataLink!A689 -> 686 | I56: =LeadData!A104 -> 101 | J56: =StrokeData!A542 -> 539 | K56: =MassDataLink!A691 -> 688 | L56: -1 | M56: -1 | N56: -1 | O56: -1 | P56: -1 | Q56: -1 | R56: -1 | S56: -1 | T56: -1 | U56: -1 | V56: -1 | W56: -1 | X56: -1 | Y56: -1 | Z56: -1 | AA56: -1 | AB56: -1 | AC56: -1
A57: 54 | B57: RCS2-SS8R-150 | C57: 50 | D57: 1000 | E57: 0 | F57: =LeadData!A105 -> 102 | G57: =StrokeData!A547 -> 544 | H57: =MassDataLink!A693 -> 690 | I57: =LeadData!A106 -> 103 | J57: =StrokeData!A552 -> 549 | K57: =MassDataLink!A695 -> 692 | L57: -1 | M57: -1 | N57: -1 | O57: -1 | P57: -1 | Q57: -1 | R57: -1 | S57: -1 | T57: -1 | U57: -1 | V57: -1 | W57: -1 | X57: -1 | Y57: -1 | Z57: -1 | AA57: -1 | AB57: -1 | AC57: -1
A58: 55 | B58: RCS2-RA4D-20 | C58: 50 | D58: 300 | E58: 0 | F58: =LeadData!A107 -> 104 | G58: =StrokeData!A557 -> 554 | H58: =MassDataLink!A697 -> 694 | I58: =LeadData!A108 -> 105 | J58: =StrokeData!A558 -> 555 | K58: =MassDataLink!A699 -> 696 | L58: =LeadData!A109 -> 106 | M58: =StrokeData!A559 -> 556 | N58: =MassDataLink!A701 -> 698 | O58: -1 | P58: -1 | Q58: -1 | R58: -1 | S58: -1 | T58: -1 | U58: -1 | V58: -1 | W58: -1 | X58: -1 | Y58: -1 | Z58: -1 | AA58: -1 | AB58: -1 | AC58: -1
A59: 56 | B59: RCS2-RA4D-30 | C59: 50 | D59: 300 | E59: 0 | F59: =LeadData!A110 -> 107 | G59: =StrokeData!A560 -> 557 | H59: =MassDataLink!A703 -> 700 | I59: =LeadData!A111 -> 108 | J59: =StrokeData!A561 -> 558 | K59: =MassDataLink!A705 -> 702 | L59: =LeadData!A112 -> 109 | M59: =StrokeData!A562 -> 559 | N59: =MassDataLink!A707 -> 704 | O59: -1 | P59: -1 | Q59: -1 | R59: -1 | S59: -1 | T59: -1 | U59: -1 | V59: -1 | W59: -1 | X59: -1 | Y59: -1 | Z59: -1 | AA59: -1 | AB59: -1 | AC59: -1
A60: 57 | B60: RCS2-SRA7BD-60 | C60: 50 | D60: 300 | E60: 0 | F60: =LeadData!A113 -> 110 | G60: =StrokeData!A563 -> 560 | H60: =MassDataLink!A709 -> 706 | I60: =LeadData!A114 -> 111 | J60: =StrokeData!A564 -> 561 | K60: =MassDataLink!A713 -> 710 | L60: =LeadData!A115 -> 112 | M60: =StrokeData!A565 -> 562 | N60: =MassDataLink!A717 -> 714 | O60: -1 | P60: -1 | Q60: -1 | R60: -1 | S60: -1 | T60: -1 | U60: -1 | V60: -1 | W60: -1 | X60: -1 | Y60: -1 | Z60: -1 | AA60: -1 | AB60: -1 | AC60: -1
A61: 58 | B61: RCS2-SRA7BD-100 | C61: 50 | D61: 300 | E61: 0 | F61: =LeadData!A116 -> 113 | G61: =StrokeData!A566 -> 563 | H61: =MassDataLink!A721 -> 718 | I61: =LeadData!A117 -> 114 | J61: =StrokeData!A567 -> 564 | K61: =MassDataLink!A725 -> 722 | L61: =LeadData!A118 -> 115 | M61: =StrokeData!A568 -> 565 | N61: =MassDataLink!A729 -> 726 | O61: -1 | P61: -1 | Q61: -1 | R61: -1 | S61: -1 | T61: -1 | U61: -1 | V61: -1 | W61: -1 | X61: -1 | Y61: -1 | Z61: -1 | AA61: -1 | AB61: -1 | AC61: -1
A62: 59 | B62: RCS2-SRA7BD-150 | C62: 50 | D62: 300 | E62: 0 | F62: =LeadData!A119 -> 116 | G62: =StrokeData!A569 -> 566 | H62: =MassDataLink!A733 -> 730 | I62: =LeadData!A120 -> 117 | J62: =StrokeData!A570 -> 567 | K62: =MassDataLink!A737 -> 734 | L62: =LeadData!A121 -> 118 | M62: =StrokeData!A571 -> 568 | N62: =MassDataLink!A741 -> 738 | O62: -1 | P62: -1 | Q62: -1 | R62: -1 | S62: -1 | T62: -1 | U62: -1 | V62: -1 | W62: -1 | X62: -1 | Y62: -1 | Z62: -1 | AA62: -1 | AB62: -1 | AC62: -1
A63: 60 | B63: RCS2-RA4R-20 | C63: 50 | D63: 300 | E63: 0 | F63: =LeadData!A122 -> 119 | G63: =StrokeData!A572 -> 569 | H63: =MassDataLink!A745 -> 742 | I63: =LeadData!A123 -> 120 | J63: =StrokeData!A573 -> 570 | K63: =MassDataLink!A747 -> 744 | L63: =LeadData!A124 -> 121 | M63: =StrokeData!A574 -> 571 | N63: =MassDataLink!A749 -> 746 | O63: -1 | P63: -1 | Q63: -1 | R63: -1 | S63: -1 | T63: -1 | U63: -1 | V63: -1 | W63: -1 | X63: -1 | Y63: -1 | Z63: -1 | AA63: -1 | AB63: -1 | AC63: -1
A64: 61 | B64: RCS2-RA4R-30 | C64: 50 | D64: 300 | E64: 0 | F64: =LeadData!A125 -> 122 | G64: =StrokeData!A575 -> 572 | H64: =MassDataLink!A751 -> 748 | I64: =LeadData!A126 -> 123 | J64: =StrokeData!A576 -> 573 | K64: =MassDataLink!A753 -> 750 | L64: =LeadData!A127 -> 124 | M64: =StrokeData!A577 -> 574 | N64: =MassDataLink!A755 -> 752 | O64: -1 | P64: -1 | Q64: -1 | R64: -1 | S64: -1 | T64: -1 | U64: -1 | V64: -1 | W64: -1 | X64: -1 | Y64: -1 | Z64: -1 | AA64: -1 | AB64: -1 | AC64: -1
A65: 62 | B65: RCS2-RA5R-60 | C65: 50 | D65: 300 | E65: 0 | F65: =LeadData!A128 -> 125 | G65: =StrokeData!A578 -> 575 | H65: =MassDataLink!A757 -> 754 | I65: =LeadData!A129 -> 126 | J65: =StrokeData!A580 -> 577 | K65: =MassDataLink!A759 -> 756 | L65: =LeadData!A130 -> 127 | M65: =StrokeData!A582 -> 579 | N65: =MassDataLink!A761 -> 758 | O65: -1 | P65: -1 | Q65: -1 | R65: -1 | S65: -1 | T65: -1 | U65: -1 | V65: -1 | W65: -1 | X65: -1 | Y65: -1 | Z65: -1 | AA65: -1 | AB65: -1 | AC65: -1
A66: 63 | B66: RCS2-RA13R-750 | C66: 50 | D66: 200 | E66: 0 | F66: =LeadData!A131 -> 128 | G66: =StrokeData!A584 -> 581 | H66: =MassDataLink!A763 -> 760 | I66: =LeadData!A132 -> 129 | J66: =StrokeData!A585 -> 582 | K66: =MassDataLink!A765 -> 762 | L66: -1 | M66: -1 | N66: -1 | O66: -1 | P66: -1 | Q66: -1 | R66: -1 | S66: -1 | T66: -1 | U66: -1 | V66: -1 | W66: -1 | X66: -1 | Y66: -1 | Z66: -1 | AA66: -1 | AB66: -1 | AC66: -1
A67: 64 | B67: RCS2-RGS4C-20 | C67: 50 | D67: 300 | E67: 0 | F67: =LeadData!A133 -> 130 | G67: =StrokeData!A588 -> 585 | H67: =MassDataLink!A767 -> 764 | I67: =LeadData!A134 -> 131 | J67: =StrokeData!A589 -> 586 | K67: =MassDataLink!A769 -> 766 | L67: =LeadData!A135 -> 132 | M67: =StrokeData!A590 -> 587 | N67: =MassDataLink!A771 -> 768 | O67: -1 | P67: -1 | Q67: -1 | R67: -1 | S67: -1 | T67: -1 | U67: -1 | V67: -1 | W67: -1 | X67: -1 | Y67: -1 | Z67: -1 | AA67: -1 | AB67: -1 | AC67: -1
A68: =A67+1 -> 65 | B68: RCS2-RGS4C-30 | C68: 50 | D68: 300 | E68: 0 | F68: =LeadData!A136 -> 133 | G68: =StrokeData!A591 -> 588 | H68: =MassDataLink!A773 -> 770 | I68: =LeadData!A137 -> 134 | J68: =StrokeData!A592 -> 589 | K68: =MassDataLink!A775 -> 772 | L68: =LeadData!A138 -> 135 | M68: =StrokeData!A593 -> 590 | N68: =MassDataLink!A777 -> 774 | O68: -1 | P68: -1 | Q68: -1 | R68: -1 | S68: -1 | T68: -1 | U68: -1 | V68: -1 | W68: -1 | X68: -1 | Y68: -1 | Z68: -1 | AA68: -1 | AB68: -1 | AC68: -1
A69: 66 | B69: RCS2-RGS5C-60 | C69: 50 | D69: 300 | E69: 0 | F69: =LeadData!A139 -> 136 | G69: =StrokeData!A594 -> 591 | H69: =MassDataLink!A779 -> 776 | I69: =LeadData!A140 -> 137 | J69: =StrokeData!A596 -> 593 | K69: =MassDataLink!A781 -> 778 | L69: =LeadData!A141 -> 138 | M69: =StrokeData!A598 -> 595 | N69: =MassDataLink!A783 -> 780 | O69: -1 | P69: -1 | Q69: -1 | R69: -1 | S69: -1 | T69: -1 | U69: -1 | V69: -1 | W69: -1 | X69: -1 | Y69: -1 | Z69: -1 | AA69: -1 | AB69: -1 | AC69: -1
A70: 67 | B70: RCS2-RGS5C-100 | C70: 50 | D70: 300 | E70: 0 | F70: =LeadData!A142 -> 139 | G70: =StrokeData!A600 -> 597 | H70: =MassDataLink!A785 -> 782 | I70: =LeadData!A143 -> 140 | J70: =StrokeData!A602 -> 599 | K70: =MassDataLink!A787 -> 784 | L70: =LeadData!A144 -> 141 | M70: =StrokeData!A604 -> 601 | N70: =MassDataLink!A789 -> 786 | O70: -1 | P70: -1 | Q70: -1 | R70: -1 | S70: -1 | T70: -1 | U70: -1 | V70: -1 | W70: -1 | X70: -1 | Y70: -1 | Z70: -1 | AA70: -1 | AB70: -1 | AC70: -1
A71: 68 | B71: RCS2-RGS4D-20 | C71: 50 | D71: 300 | E71: 0 | F71: =LeadData!A145 -> 142 | G71: =StrokeData!A606 -> 603 | H71: =MassDataLink!A791 -> 788 | I71: =LeadData!A146 -> 143 | J71: =StrokeData!A607 -> 604 | K71: =MassDataLink!A793 -> 790 | L71: =LeadData!A147 -> 144 | M71: =StrokeData!A608 -> 605 | N71: =MassDataLink!A795 -> 792 | O71: -1 | P71: -1 | Q71: -1 | R71: -1 | S71: -1 | T71: -1 | U71: -1 | V71: -1 | W71: -1 | X71: -1 | Y71: -1 | Z71: -1 | AA71: -1 | AB71: -1 | AC71: -1
A72: 69 | B72: RCS2-RGS4D-30 | C72: 50 | D72: 300 | E72: 0 | F72: =LeadData!A148 -> 145 | G72: =StrokeData!A609 -> 606 | H72: =MassDataLink!A797 -> 794 | I72: =LeadData!A149 -> 146 | J72: =StrokeData!A610 -> 607 | K72: =MassDataLink!A799 -> 796 | L72: =LeadData!A150 -> 147 | M72: =StrokeData!A611 -> 608 | N72: =MassDataLink!A801 -> 798 | O72: -1 | P72: -1 | Q72: -1 | R72: -1 | S72: -1 | T72: -1 | U72: -1 | V72: -1 | W72: -1 | X72: -1 | Y72: -1 | Z72: -1 | AA72: -1 | AB72: -1 | AC72: -1
A73: 70 | B73: RCS2-SRGS7BD-60 | C73: 50 | D73: 300 | E73: 0 | F73: =LeadData!A151 -> 148 | G73: =StrokeData!A612 -> 609 | H73: =MassDataLink!A803 -> 800 | I73: =LeadData!A152 -> 149 | J73: =StrokeData!A613 -> 610 | K73: =MassDataLink!A807 -> 804 | L73: =LeadData!A153 -> 150 | M73: =StrokeData!A614 -> 611 | N73: =MassDataLink!A811 -> 808 | O73: -1 | P73: -1 | Q73: -1 | R73: -1 | S73: -1 | T73: -1 | U73: -1 | V73: -1 | W73: -1 | X73: -1 | Y73: -1 | Z73: -1 | AA73: -1 | AB73: -1 | AC73: -1
A74: 71 | B74: RCS2-SRGS7BD-100 | C74: 50 | D74: 300 | E74: 0 | F74: =LeadData!A154 -> 151 | G74: =StrokeData!A615 -> 612 | H74: =MassDataLink!A815 -> 812 | I74: =LeadData!A155 -> 152 | J74: =StrokeData!A616 -> 613 | K74: =MassDataLink!A819 -> 816 | L74: =LeadData!A156 -> 153 | M74: =StrokeData!A617 -> 614 | N74: =MassDataLink!A823 -> 820 | O74: -1 | P74: -1 | Q74: -1 | R74: -1 | S74: -1 | T74: -1 | U74: -1 | V74: -1 | W74: -1 | X74: -1 | Y74: -1 | Z74: -1 | AA74: -1 | AB74: -1 | AC74: -1
A75: 72 | B75: RCS2-SRGS7BD-150 | C75: 50 | D75: 300 | E75: 0 | F75: =LeadData!A157 -> 154 | G75: =StrokeData!A618 -> 615 | H75: =MassDataLink!A827 -> 824 | I75: =LeadData!A158 -> 155 | J75: =StrokeData!A619 -> 616 | K75: =MassDataLink!A831 -> 828 | L75: =LeadData!A159 -> 156 | M75: =StrokeData!A620 -> 617 | N75: =MassDataLink!A835 -> 832 | O75: -1 | P75: -1 | Q75: -1 | R75: -1 | S75: -1 | T75: -1 | U75: -1 | V75: -1 | W75: -1 | X75: -1 | Y75: -1 | Z75: -1 | AA75: -1 | AB75: -1 | AC75: -1
A76: 73 | B76: RCS2-RGD4C-20 | C76: 50 | D76: 300 | E76: 0 | F76: =LeadData!A160 -> 157 | G76: =StrokeData!A621 -> 618 | H76: =MassDataLink!A839 -> 836 | I76: =LeadData!A161 -> 158 | J76: =StrokeData!A622 -> 619 | K76: =MassDataLink!A841 -> 838 | L76: =LeadData!A162 -> 159 | M76: =StrokeData!A623 -> 620 | N76: =MassDataLink!A843 -> 840 | O76: -1 | P76: -1 | Q76: -1 | R76: -1 | S76: -1 | T76: -1 | U76: -1 | V76: -1 | W76: -1 | X76: -1 | Y76: -1 | Z76: -1 | AA76: -1 | AB76: -1 | AC76: -1
A77: 74 | B77: RCS2-RGD4C-30 | C77: 50 | D77: 300 | E77: 0 | F77: =LeadData!A163 -> 160 | G77: =StrokeData!A624 -> 621 | H77: =MassDataLink!A845 -> 842 | I77: =LeadData!A164 -> 161 | J77: =StrokeData!A625 -> 622 | K77: =MassDataLink!A847 -> 844 | L77: =LeadData!A165 -> 162 | M77: =StrokeData!A626 -> 623 | N77: =MassDataLink!A849 -> 846 | O77: -1 | P77: -1 | Q77: -1 | R77: -1 | S77: -1 | T77: -1 | U77: -1 | V77: -1 | W77: -1 | X77: -1 | Y77: -1 | Z77: -1 | AA77: -1 | AB77: -1 | AC77: -1
A78: 75 | B78: RCS2-RGD5C-60 | C78: 50 | D78: 300 | E78: 0 | F78: =LeadData!A166 -> 163 | G78: =StrokeData!A627 -> 624 | H78: =MassDataLink!A851 -> 848 | I78: =LeadData!A167 -> 164 | J78: =StrokeData!A629 -> 626 | K78: =MassDataLink!A853 -> 850 | L78: =LeadData!A168 -> 165 | M78: =StrokeData!A631 -> 628 | N78: =MassDataLink!A855 -> 852 | O78: -1 | P78: -1 | Q78: -1 | R78: -1 | S78: -1 | T78: -1 | U78: -1 | V78: -1 | W78: -1 | X78: -1 | Y78: -1 | Z78: -1 | AA78: -1 | AB78: -1 | AC78: -1
A79: 76 | B79: RCS2-RGD5C-100 | C79: 50 | D79: 300 | E79: 0 | F79: =LeadData!A169 -> 166 | G79: =StrokeData!A633 -> 630 | H79: =MassDataLink!A857 -> 854 | I79: =LeadData!A170 -> 167 | J79: =StrokeData!A635 -> 632 | K79: =MassDataLink!A859 -> 856 | L79: =LeadData!A171 -> 168 | M79: =StrokeData!A637 -> 634 | N79: =MassDataLink!A861 -> 858 | O79: -1 | P79: -1 | Q79: -1 | R79: -1 | S79: -1 | T79: -1 | U79: -1 | V79: -1 | W79: -1 | X79: -1 | Y79: -1 | Z79: -1 | AA79: -1 | AB79: -1 | AC79: -1
A80: 77 | B80: RCS2-RGD4D-20 | C80: 50 | D80: 300 | E80: 0 | F80: =LeadData!A172 -> 169 | G80: =StrokeData!A639 -> 636 | H80: =MassDataLink!A863 -> 860 | I80: =LeadData!A173 -> 170 | J80: =StrokeData!A640 -> 637 | K80: =MassDataLink!A865 -> 862 | L80: =LeadData!A174 -> 171 | M80: =StrokeData!A641 -> 638 | N80: =MassDataLink!A867 -> 864 | O80: -1 | P80: -1 | Q80: -1 | R80: -1 | S80: -1 | T80: -1 | U80: -1 | V80: -1 | W80: -1 | X80: -1 | Y80: -1 | Z80: -1 | AA80: -1 | AB80: -1 | AC80: -1
A81: 78 | B81: RCS2-RGD4D-30 | C81: 50 | D81: 300 | E81: 0 | F81: =LeadData!A175 -> 172 | G81: =StrokeData!A642 -> 639 | H81: =MassDataLink!A869 -> 866 | I81: =LeadData!A176 -> 173 | J81: =StrokeData!A643 -> 640 | K81: =MassDataLink!A871 -> 868 | L81: =LeadData!A177 -> 174 | M81: =StrokeData!A644 -> 641 | N81: =MassDataLink!A873 -> 870 | O81: -1 | P81: -1 | Q81: -1 | R81: -1 | S81: -1 | T81: -1 | U81: -1 | V81: -1 | W81: -1 | X81: -1 | Y81: -1 | Z81: -1 | AA81: -1 | AB81: -1 | AC81: -1
A82: 79 | B82: RCS2-SRGD7BD-60 | C82: 50 | D82: 300 | E82: 0 | F82: =LeadData!A178 -> 175 | G82: =StrokeData!A645 -> 642 | H82: =MassDataLink!A875 -> 872 | I82: =LeadData!A179 -> 176 | J82: =StrokeData!A646 -> 643 | K82: =MassDataLink!A879 -> 876 | L82: =LeadData!A180 -> 177 | M82: =StrokeData!A647 -> 644 | N82: =MassDataLink!A883 -> 880 | O82: -1 | P82: -1 | Q82: -1 | R82: -1 | S82: -1 | T82: -1 | U82: -1 | V82: -1 | W82: -1 | X82: -1 | Y82: -1 | Z82: -1 | AA82: -1 | AB82: -1 | AC82: -1
A83: 80 | B83: RCS2-SRGD7BD-100 | C83: 50 | D83: 300 | E83: 0 | F83: =LeadData!A181 -> 178 | G83: =StrokeData!A648 -> 645 | H83: =MassDataLink!A886 -> 883 | I83: =LeadData!A182 -> 179 | J83: =StrokeData!A649 -> 646 | K83: =MassDataLink!A890 -> 887 | L83: =LeadData!A183 -> 180 | M83: =StrokeData!A650 -> 647 | N83: =MassDataLink!A894 -> 891 | O83: -1 | P83: -1 | Q83: -1 | R83: -1 | S83: -1 | T83: -1 | U83: -1 | V83: -1 | W83: -1 | X83: -1 | Y83: -1 | Z83: -1 | AA83: -1 | AB83: -1 | AC83: -1
A84: 81 | B84: RCS2-SRGD7BD-150 | C84: 50 | D84: 300 | E84: 0 | F84: =LeadData!A184 -> 181 | G84: =StrokeData!A651 -> 648 | H84: =MassDataLink!A898 -> 895 | I84: =LeadData!A185 -> 182 | J84: =StrokeData!A652 -> 649 | K84: =MassDataLink!A902 -> 899 | L84: =LeadData!A186 -> 183 | M84: =StrokeData!A653 -> 650 | N84: =MassDataLink!A906 -> 903 | O84: -1 | P84: -1 | Q84: -1 | R84: -1 | S84: -1 | T84: -1 | U84: -1 | V84: -1 | W84: -1 | X84: -1 | Y84: -1 | Z84: -1 | AA84: -1 | AB84: -1 | AC84: -1
A85: 82 | B85: RCS2-RGD4R-20 | C85: 50 | D85: 300 | E85: 0 | F85: =LeadData!A187 -> 184 | G85: =StrokeData!A654 -> 651 | H85: =MassDataLink!A910 -> 907 | I85: =LeadData!A188 -> 185 | J85: =StrokeData!A655 -> 652 | K85: =MassDataLink!A912 -> 909 | L85: =LeadData!A189 -> 186 | M85: =StrokeData!A656 -> 653 | N85: =MassDataLink!A914 -> 911 | O85: -1 | P85: -1 | Q85: -1 | R85: -1 | S85: -1 | T85: -1 | U85: -1 | V85: -1 | W85: -1 | X85: -1 | Y85: -1 | Z85: -1 | AA85: -1 | AB85: -1 | AC85: -1
A86: 83 | B86: RCS2-RGD4R-30 | C86: 50 | D86: 300 | E86: 0 | F86: =LeadData!A190 -> 187 | G86: =StrokeData!A657 -> 654 | H86: =MassDataLink!A916 -> 913 | I86: =LeadData!A191 -> 188 | J86: =StrokeData!A658 -> 655 | K86: =MassDataLink!A918 -> 915 | L86: =LeadData!A192 -> 189 | M86: =StrokeData!A659 -> 656 | N86: =MassDataLink!A920 -> 917 | O86: -1 | P86: -1 | Q86: -1 | R86: -1 | S86: -1 | T86: -1 | U86: -1 | V86: -1 | W86: -1 | X86: -1 | Y86: -1 | Z86: -1 | AA86: -1 | AB86: -1 | AC86: -1
A87: 84 | B87: RCS2-A4R-20 | C87: 50 | D87: 200 | E87: 0 | F87: =LeadData!A193 -> 190 | G87: =StrokeData!A660 -> 657 | H87: =MassDataLink!A922 -> 919 | I87: =LeadData!A194 -> 191 | J87: =StrokeData!A661 -> 658 | K87: =MassDataLink!A923 -> 920 | L87: -1 | M87: -1 | N87: -1 | O87: -1 | P87: -1 | Q87: -1 | R87: -1 | S87: -1 | T87: -1 | U87: -1 | V87: -1 | W87: -1 | X87: -1 | Y87: -1 | Z87: -1 | AA87: -1 | AB87: -1 | AC87: -1
A88: 85 | B88: RCS2-A5R-20 | C88: 50 | D88: 200 | E88: 0 | F88: =LeadData!A195 -> 192 | G88: =StrokeData!A662 -> 659 | H88: =MassDataLink!A924 -> 921 | I88: =LeadData!A196 -> 193 | J88: =StrokeData!A663 -> 660 | K88: =MassDataLink!A925 -> 922 | L88: -1 | M88: -1 | N88: -1 | O88: -1 | P88: -1 | Q88: -1 | R88: -1 | S88: -1 | T88: -1 | U88: -1 | V88: -1 | W88: -1 | X88: -1 | Y88: -1 | Z88: -1 | AA88: -1 | AB88: -1 | AC88: -1
A89: 86 | B89: RCS2-A6R-30 | C89: 50 | D89: 200 | E89: 0 | F89: =LeadData!A197 -> 194 | G89: =StrokeData!A664 -> 661 | H89: =MassDataLink!A926 -> 923 | I89: =LeadData!A198 -> 195 | J89: =StrokeData!A665 -> 662 | K89: =MassDataLink!A927 -> 924 | L89: -1 | M89: -1 | N89: -1 | O89: -1 | P89: -1 | Q89: -1 | R89: -1 | S89: -1 | T89: -1 | U89: -1 | V89: -1 | W89: -1 | X89: -1 | Y89: -1 | Z89: -1 | AA89: -1 | AB89: -1 | AC89: -1
A90: 87 | B90: RCS2-F5D-60 | C90: 50 | D90: 300 | E90: 0 | F90: =LeadData!A199 -> 196 | G90: =StrokeData!A666 -> 663 | H90: =MassDataLink!A928 -> 925 | I90: =LeadData!A200 -> 197 | J90: =StrokeData!A672 -> 669 | K90: =MassDataLink!A930 -> 927 | L90: =LeadData!A201 -> 198 | M90: =StrokeData!A678 -> 675 | N90: =MassDataLink!A932 -> 929 | O90: -1 | P90: -1 | Q90: -1 | R90: -1 | S90: -1 | T90: -1 | U90: -1 | V90: -1 | W90: -1 | X90: -1 | Y90: -1 | Z90: -1 | AA90: -1 | AB90: -1 | AC90: -1
A91: 88 | B91: RCS2-F5D-100 | C91: 50 | D91: 300 | E91: 0 | F91: =LeadData!A202 -> 199 | G91: =StrokeData!A684 -> 681 | H91: =MassDataLink!A934 -> 931 | I91: =LeadData!A203 -> 200 | J91: =StrokeData!A690 -> 687 | K91: =MassDataLink!A936 -> 933 | L91: =LeadData!A204 -> 201 | M91: =StrokeData!A696 -> 693 | N91: =MassDataLink!A938 -> 935 | O91: -1 | P91: -1 | Q91: -1 | R91: -1 | S91: -1 | T91: -1 | U91: -1 | V91: -1 | W91: -1 | X91: -1 | Y91: -1 | Z91: -1 | AA91: -1 | AB91: -1 | AC91: -1
A92: 89 | B92: LSA-S6SS | C92: 48 | D92: 1248 | E92: 0 | F92: =LeadData!A205 -> 202 | G92: =StrokeData!A702 -> 699 | H92: =MassDataLink!A940 -> 937 | I92: -1 | J92: -1 | K92: -1 | L92: -1 | M92: -1 | N92: -1 | O92: -1 | P92: -1 | Q92: -1 | R92: -1 | S92: -1 | T92: -1 | U92: -1 | V92: -1 | W92: -1 | X92: -1 | Y92: -1 | Z92: -1 | AA92: -1 | AB92: -1 | AC92: -1
A93: 90 | B93: LSA-S6SM | C93: 40 | D93: 1048 | E93: 0 | F93: =LeadData!A206 -> 203 | G93: =StrokeData!A703 -> 700 | H93: =MassDataLink!A1078 -> 1075 | I93: -1 | J93: -1 | K93: -1 | L93: -1 | M93: -1 | N93: -1 | O93: -1 | P93: -1 | Q93: -1 | R93: -1 | S93: -1 | T93: -1 | U93: -1 | V93: -1 | W93: -1 | X93: -1 | Y93: -1 | Z93: -1 | AA93: -1 | AB93: -1 | AC93: -1
A94: 91 | B94: LSA-S8SS | C94: 60 | D94: 1620 | E94: 0 | F94: =LeadData!A207 -> 204 | G94: =StrokeData!A704 -> 701 | H94: =MassDataLink!A1216 -> 1213 | I94: -1 | J94: -1 | K94: -1 | L94: -1 | M94: -1 | N94: -1 | O94: -1 | P94: -1 | Q94: -1 | R94: -1 | S94: -1 | T94: -1 | U94: -1 | V94: -1 | W94: -1 | X94: -1 | Y94: -1 | Z94: -1 | AA94: -1 | AB94: -1 | AC94: -1
A95: 92 | B95: LSA-S8SM | C95: 60 | D95: 1440 | E95: 0 | F95: =LeadData!A208 -> 205 | G95: =StrokeData!A705 -> 702 | H95: =MassDataLink!A1349 -> 1346 | I95: -1 | J95: -1 | K95: -1 | L95: -1 | M95: -1 | N95: -1 | O95: -1 | P95: -1 | Q95: -1 | R95: -1 | S95: -1 | T95: -1 | U95: -1 | V95: -1 | W95: -1 | X95: -1 | Y95: -1 | Z95: -1 | AA95: -1 | AB95: -1 | AC95: -1
A96: 93 | B96: LSA-S8HS | C96: 60 | D96: 1620 | E96: 0 | F96: =LeadData!A209 -> 206 | G96: =StrokeData!A706 -> 703 | H96: =MassDataLink!A1482 -> 1479 | I96: -1 | J96: -1 | K96: -1 | L96: -1 | M96: -1 | N96: -1 | O96: -1 | P96: -1 | Q96: -1 | R96: -1 | S96: -1 | T96: -1 | U96: -1 | V96: -1 | W96: -1 | X96: -1 | Y96: -1 | Z96: -1 | AA96: -1 | AB96: -1 | AC96: -1
A97: 94 | B97: LSA-S8HM | C97: 60 | D97: 1380 | E97: 0 | F97: =LeadData!A210 -> 207 | G97: =StrokeData!A707 -> 704 | H97: =MassDataLink!A1612 -> 1609 | I97: -1 | J97: -1 | K97: -1 | L97: -1 | M97: -1 | N97: -1 | O97: -1 | P97: -1 | Q97: -1 | R97: -1 | S97: -1 | T97: -1 | U97: -1 | V97: -1 | W97: -1 | X97: -1 | Y97: -1 | Z97: -1 | AA97: -1 | AB97: -1 | AC97: -1
A98: 95 | B98: LSA-S10SS | C98: 90 | D98: 2070 | E98: 0 | F98: =LeadData!A211 -> 208 | G98: =StrokeData!A708 -> 705 | H98: =MassDataLink!A1742 -> 1739 | I98: -1 | J98: -1 | K98: -1 | L98: -1 | M98: -1 | N98: -1 | O98: -1 | P98: -1 | Q98: -1 | R98: -1 | S98: -1 | T98: -1 | U98: -1 | V98: -1 | W98: -1 | X98: -1 | Y98: -1 | Z98: -1 | AA98: -1 | AB98: -1 | AC98: -1
A99: 96 | B99: LSA-S10SM | C99: 60 | D99: 1860 | E99: 0 | F99: =LeadData!A212 -> 209 | G99: =StrokeData!A709 -> 706 | H99: =MassDataLink!A1883 -> 1880 | I99: -1 | J99: -1 | K99: -1 | L99: -1 | M99: -1 | N99: -1 | O99: -1 | P99: -1 | Q99: -1 | R99: -1 | S99: -1 | T99: -1 | U99: -1 | V99: -1 | W99: -1 | X99: -1 | Y99: -1 | Z99: -1 | AA99: -1 | AB99: -1 | AC99: -1
A100: =A99+1 -> 97 | B100: LSA-S10HS | C100: 90 | D100: 2070 | E100: 0 | F100: =LeadData!A213 -> 210 | G100: =StrokeData!A710 -> 707 | H100: =MassDataLink!A2024 -> 2021 | I100: -1 | J100: -1 | K100: -1 | L100: -1 | M100: -1 | N100: -1 | O100: -1 | P100: -1 | Q100: -1 | R100: -1 | S100: -1 | T100: -1 | U100: -1 | V100: -1 | W100: -1 | X100: -1 | Y100: -1 | Z100: -1 | AA100: -1 | AB100: -1 | AC100: -1
A101: 98 | B101: LSA-S10HM | C101: 105 | D101: 1815 | E101: 0 | F101: =LeadData!A214 -> 211 | G101: =StrokeData!A711 -> 708 | H101: =MassDataLink!A2164 -> 2161 | I101: -1 | J101: -1 | K101: -1 | L101: -1 | M101: -1 | N101: -1 | O101: -1 | P101: -1 | Q101: -1 | R101: -1 | S101: -1 | T101: -1 | U101: -1 | V101: -1 | W101: -1 | X101: -1 | Y101: -1 | Z101: -1 | AA101: -1 | AB101: -1 | AC101: -1
A102: 99 | B102: LSA-H8SS | C102: 50 | D102: 1650 | E102: 0 | F102: =LeadData!A215 -> 212 | G102: =StrokeData!A712 -> 709 | H102: =MassDataLink!A2304 -> 2301 | I102: -1 | J102: -1 | K102: -1 | L102: -1 | M102: -1 | N102: -1 | O102: -1 | P102: -1 | Q102: -1 | R102: -1 | S102: -1 | T102: -1 | U102: -1 | V102: -1 | W102: -1 | X102: -1 | Y102: -1 | Z102: -1 | AA102: -1 | AB102: -1 | AC102: -1
A103: 100 | B103: LSA-H8SM | C103: 130 | D103: 1430 | E103: 0 | F103: =LeadData!A216 -> 213 | G103: =StrokeData!A713 -> 710 | H103: =MassDataLink!A2445 -> 2442 | I103: -1 | J103: -1 | K103: -1 | L103: -1 | M103: -1 | N103: -1 | O103: -1 | P103: -1 | Q103: -1 | R103: -1 | S103: -1 | T103: -1 | U103: -1 | V103: -1 | W103: -1 | X103: -1 | Y103: -1 | Z103: -1 | AA103: -1 | AB103: -1 | AC103: -1
A104: 101 | B104: LSA-H8HS | C104: 50 | D104: 1550 | E104: 0 | F104: =LeadData!A217 -> 214 | G104: =StrokeData!A714 -> 711 | H104: =MassDataLink!A2586 -> 2583 | I104: -1 | J104: -1 | K104: -1 | L104: -1 | M104: -1 | N104: -1 | O104: -1 | P104: -1 | Q104: -1 | R104: -1 | S104: -1 | T104: -1 | U104: -1 | V104: -1 | W104: -1 | X104: -1 | Y104: -1 | Z104: -1 | AA104: -1 | AB104: -1 | AC104: -1
A105: 102 | B105: LSA-H8HM | C105: 130 | D105: 1230 | E105: 0 | F105: =LeadData!A218 -> 215 | G105: =StrokeData!A715 -> 712 | H105: =MassDataLink!A2692 -> 2689 | I105: -1 | J105: -1 | K105: -1 | L105: -1 | M105: -1 | N105: -1 | O105: -1 | P105: -1 | Q105: -1 | R105: -1 | S105: -1 | T105: -1 | U105: -1 | V105: -1 | W105: -1 | X105: -1 | Y105: -1 | Z105: -1 | AA105: -1 | AB105: -1 | AC105: -1
A106: 103 | B106: LSA-L15SS | C106: 150 | D106: 1650 | E106: 0 | F106: =LeadData!A219 -> 216 | G106: =StrokeData!A716 -> 713 | H106: =MassDataLink!A2798 -> 2795 | I106: -1 | J106: -1 | K106: -1 | L106: -1 | M106: -1 | N106: -1 | O106: -1 | P106: -1 | Q106: -1 | R106: -1 | S106: -1 | T106: -1 | U106: -1 | V106: -1 | W106: -1 | X106: -1 | Y106: -1 | Z106: -1 | AA106: -1 | AB106: -1 | AC106: -1
A107: 104 | B107: LSA-L15SM | C107: 50 | D107: 1450 | E107: 0 | F107: =LeadData!A220 -> 217 | G107: =StrokeData!A717 -> 714 | H107: =MassDataLink!A2939 -> 2936 | I107: -1 | J107: -1 | K107: -1 | L107: -1 | M107: -1 | N107: -1 | O107: -1 | P107: -1 | Q107: -1 | R107: -1 | S107: -1 | T107: -1 | U107: -1 | V107: -1 | W107: -1 | X107: -1 | Y107: -1 | Z107: -1 | AA107: -1 | AB107: -1 | AC107: -1
A108: 105 | B108: LSA-N10SS | C108: 100 | D108: 4100 | E108: 0 | F108: =LeadData!A221 -> 218 | G108: =StrokeData!A718 -> 715 | H108: =MassDataLink!A3080 -> 3077 | I108: -1 | J108: -1 | K108: -1 | L108: -1 | M108: -1 | N108: -1 | O108: -1 | P108: -1 | Q108: -1 | R108: -1 | S108: -1 | T108: -1 | U108: -1 | V108: -1 | W108: -1 | X108: -1 | Y108: -1 | Z108: -1 | AA108: -1 | AB108: -1 | AC108: -1
A109: 106 | B109: LSA-N10SM | C109: 100 | D109: 3900 | E109: 0 | F109: =LeadData!A222 -> 219 | G109: =StrokeData!A719 -> 716 | H109: =MassDataLink!A3256 -> 3253 | I109: -1 | J109: -1 | K109: -1 | L109: -1 | M109: -1 | N109: -1 | O109: -1 | P109: -1 | Q109: -1 | R109: -1 | S109: -1 | T109: -1 | U109: -1 | V109: -1 | W109: -1 | X109: -1 | Y109: -1 | Z109: -1 | AA109: -1 | AB109: -1 | AC109: -1
A110: 107 | B110: LSA-N15SS | C110: 150 | D110: 4150 | E110: 0 | F110: =LeadData!A223 -> 220 | G110: =StrokeData!A720 -> 717 | H110: =MassDataLink!A3432 -> 3429 | I110: -1 | J110: -1 | K110: -1 | L110: -1 | M110: -1 | N110: -1 | O110: -1 | P110: -1 | Q110: -1 | R110: -1 | S110: -1 | T110: -1 | U110: -1 | V110: -1 | W110: -1 | X110: -1 | Y110: -1 | Z110: -1 | AA110: -1 | AB110: -1 | AC110: -1
A111: 108 | B111: LSA-N15SM | C111: 150 | D111: 3950 | E111: 0 | F111: =LeadData!A224 -> 221 | G111: =StrokeData!A721 -> 718 | H111: =MassDataLink!A3596 -> 3593 | I111: -1 | J111: -1 | K111: -1 | L111: -1 | M111: -1 | N111: -1 | O111: -1 | P111: -1 | Q111: -1 | R111: -1 | S111: -1 | T111: -1 | U111: -1 | V111: -1 | W111: -1 | X111: -1 | Y111: -1 | Z111: -1 | AA111: -1 | AB111: -1 | AC111: -1
A112: 109 | B112: LSA-N15HS | C112: 100 | D112: 4100 | E112: 0 | F112: =LeadData!A225 -> 222 | G112: =StrokeData!A722 -> 719 | H112: =MassDataLink!A3760 -> 3757 | I112: -1 | J112: -1 | K112: -1 | L112: -1 | M112: -1 | N112: -1 | O112: -1 | P112: -1 | Q112: -1 | R112: -1 | S112: -1 | T112: -1 | U112: -1 | V112: -1 | W112: -1 | X112: -1 | Y112: -1 | Z112: -1 | AA112: -1 | AB112: -1 | AC112: -1
A113: 110 | B113: LSA-N15HM | C113: 150 | D113: 3850 | E113: 0 | F113: =LeadData!A226 -> 223 | G113: =StrokeData!A723 -> 720 | H113: =MassDataLink!A3929 -> 3926 | I113: -1 | J113: -1 | K113: -1 | L113: -1 | M113: -1 | N113: -1 | O113: -1 | P113: -1 | Q113: -1 | R113: -1 | S113: -1 | T113: -1 | U113: -1 | V113: -1 | W113: -1 | X113: -1 | Y113: -1 | Z113: -1 | AA113: -1 | AB113: -1 | AC113: -1
A114: 111 | B114: LSA-N19SS | C114: 144 | D114: 2592 | E114: 0 | F114: =LeadData!A227 -> 224 | G114: =StrokeData!A724 -> 721 | H114: =MassDataLink!A4098 -> 4095 | I114: -1 | J114: -1 | K114: -1 | L114: -1 | M114: -1 | N114: -1 | O114: -1 | P114: -1 | Q114: -1 | R114: -1 | S114: -1 | T114: -1 | U114: -1 | V114: -1 | W114: -1 | X114: -1 | Y114: -1 | Z114: -1 | AA114: -1 | AB114: -1 | AC114: -1
A115: 112 | B115: LSA-N19SM | C115: 72 | D115: 2232 | E115: 0 | F115: =LeadData!A228 -> 225 | G115: =StrokeData!A725 -> 722 | H115: =MassDataLink!A4252 -> 4249 | I115: -1 | J115: -1 | K115: -1 | L115: -1 | M115: -1 | N115: -1 | O115: -1 | P115: -1 | Q115: -1 | R115: -1 | S115: -1 | T115: -1 | U115: -1 | V115: -1 | W115: -1 | X115: -1 | Y115: -1 | Z115: -1 | AA115: -1 | AB115: -1 | AC115: -1
A116: 113 | B116: LSA-W21SS | C116: 1050 | D116: 4155 | E116: 0 | F116: =LeadData!A229 -> 226 | G116: =StrokeData!A726 -> 723 | H116: =MassDataLink!A4406 -> 4403 | I116: -1 | J116: -1 | K116: -1 | L116: -1 | M116: -1 | N116: -1 | O116: -1 | P116: -1 | Q116: -1 | R116: -1 | S116: -1 | T116: -1 | U116: -1 | V116: -1 | W116: -1 | X116: -1 | Y116: -1 | Z116: -1 | AA116: -1 | AB116: -1 | AC116: -1
A117: 114 | B117: LSA-W21SM | C117: 730 | D117: 3835 | E117: 0 | F117: =LeadData!A230 -> 227 | G117: =StrokeData!A727 -> 724 | H117: =MassDataLink!A4586 -> 4583 | I117: -1 | J117: -1 | K117: -1 | L117: -1 | M117: -1 | N117: -1 | O117: -1 | P117: -1 | Q117: -1 | R117: -1 | S117: -1 | T117: -1 | U117: -1 | V117: -1 | W117: -1 | X117: -1 | Y117: -1 | Z117: -1 | AA117: -1 | AB117: -1 | AC117: -1
A118: 115 | B118: IF-SA-60 | C118: 200 | D118: 2000 | E118: 0 | F118: =LeadData!A231 -> 228 | G118: =StrokeData!A728 -> 725 | H118: =MassDataLink!A4766 -> 4763 | I118: -1 | J118: -1 | K118: -1 | L118: -1 | M118: -1 | N118: -1 | O118: -1 | P118: -1 | Q118: -1 | R118: -1 | S118: -1 | T118: -1 | U118: -1 | V118: -1 | W118: -1 | X118: -1 | Y118: -1 | Z118: -1 | AA118: -1 | AB118: -1 | AC118: -1
A119: 116 | B119: IF-SA-100 | C119: 200 | D119: 2000 | E119: 0 | F119: =LeadData!A232 -> 229 | G119: =StrokeData!A729 -> 726 | H119: =MassDataLink!A4767 -> 4764 | I119: -1 | J119: -1 | K119: -1 | L119: -1 | M119: -1 | N119: -1 | O119: -1 | P119: -1 | Q119: -1 | R119: -1 | S119: -1 | T119: -1 | U119: -1 | V119: -1 | W119: -1 | X119: -1 | Y119: -1 | Z119: -1 | AA119: -1 | AB119: -1 | AC119: -1
A120: 117 | B120: IF-MA-200 | C120: 200 | D120: 2500 | E120: 0 | F120: =LeadData!A233 -> 230 | G120: =StrokeData!A732 -> 729 | H120: =MassDataLink!A4768 -> 4765 | I120: -1 | J120: -1 | K120: -1 | L120: -1 | M120: -1 | N120: -1 | O120: -1 | P120: -1 | Q120: -1 | R120: -1 | S120: -1 | T120: -1 | U120: -1 | V120: -1 | W120: -1 | X120: -1 | Y120: -1 | Z120: -1 | AA120: -1 | AB120: -1 | AC120: -1
A121: 118 | B121: IF-MA-400 | C121: 200 | D121: 2500 | E121: 0 | F121: =LeadData!A234 -> 231 | G121: =StrokeData!A733 -> 730 | H121: =MassDataLink!A4769 -> 4766 | I121: -1 | J121: -1 | K121: -1 | L121: -1 | M121: -1 | N121: -1 | O121: -1 | P121: -1 | Q121: -1 | R121: -1 | S121: -1 | T121: -1 | U121: -1 | V121: -1 | W121: -1 | X121: -1 | Y121: -1 | Z121: -1 | AA121: -1 | AB121: -1 | AC121: -1
A122: 119 | B122: FS-12NM-60 | C122: 300 | D122: 1000 | E122: 0 | F122: =LeadData!A235 -> 232 | G122: =StrokeData!A734 -> 731 | H122: =MassDataLink!A4770 -> 4767 | I122: -1 | J122: -1 | K122: -1 | L122: -1 | M122: -1 | N122: -1 | O122: -1 | P122: -1 | Q122: -1 | R122: -1 | S122: -1 | T122: -1 | U122: -1 | V122: -1 | W122: -1 | X122: -1 | Y122: -1 | Z122: -1 | AA122: -1 | AB122: -1 | AC122: -1
A123: 120 | B123: FS-11NM-60 | C123: 300 | D123: 1000 | E123: 0 | F123: =LeadData!A236 -> 233 | G123: =StrokeData!A737 -> 734 | H123: =MassDataLink!A4771 -> 4768 | I123: -1 | J123: -1 | K123: -1 | L123: -1 | M123: -1 | N123: -1 | O123: -1 | P123: -1 | Q123: -1 | R123: -1 | S123: -1 | T123: -1 | U123: -1 | V123: -1 | W123: -1 | X123: -1 | Y123: -1 | Z123: -1 | AA123: -1 | AB123: -1 | AC123: -1
A124: 121 | B124: FS-12NM-100 | C124: 300 | D124: 1000 | E124: 0 | F124: =LeadData!A237 -> 234 | G124: =StrokeData!A740 -> 737 | H124: =MassDataLink!A4772 -> 4769 | I124: -1 | J124: -1 | K124: -1 | L124: -1 | M124: -1 | N124: -1 | O124: -1 | P124: -1 | Q124: -1 | R124: -1 | S124: -1 | T124: -1 | U124: -1 | V124: -1 | W124: -1 | X124: -1 | Y124: -1 | Z124: -1 | AA124: -1 | AB124: -1 | AC124: -1
A125: 122 | B125: FS-11NM-100 | C125: 300 | D125: 1000 | E125: 0 | F125: =LeadData!A238 -> 235 | G125: =StrokeData!A743 -> 740 | H125: =MassDataLink!A4773 -> 4770 | I125: -1 | J125: -1 | K125: -1 | L125: -1 | M125: -1 | N125: -1 | O125: -1 | P125: -1 | Q125: -1 | R125: -1 | S125: -1 | T125: -1 | U125: -1 | V125: -1 | W125: -1 | X125: -1 | Y125: -1 | Z125: -1 | AA125: -1 | AB125: -1 | AC125: -1
A126: 123 | B126: FS-12WM-100 | C126: 300 | D126: 2500 | E126: 0 | F126: =LeadData!A239 -> 236 | G126: =StrokeData!A746 -> 743 | H126: =MassDataLink!A4774 -> 4771 | I126: -1 | J126: -1 | K126: -1 | L126: -1 | M126: -1 | N126: -1 | O126: -1 | P126: -1 | Q126: -1 | R126: -1 | S126: -1 | T126: -1 | U126: -1 | V126: -1 | W126: -1 | X126: -1 | Y126: -1 | Z126: -1 | AA126: -1 | AB126: -1 | AC126: -1
A127: 124 | B127: FS-11WM-100 | C127: 300 | D127: 2500 | E127: 0 | F127: =LeadData!A240 -> 237 | G127: =StrokeData!A749 -> 746 | H127: =MassDataLink!A4775 -> 4772 | I127: -1 | J127: -1 | K127: -1 | L127: -1 | M127: -1 | N127: -1 | O127: -1 | P127: -1 | Q127: -1 | R127: -1 | S127: -1 | T127: -1 | U127: -1 | V127: -1 | W127: -1 | X127: -1 | Y127: -1 | Z127: -1 | AA127: -1 | AB127: -1 | AC127: -1
A128: 125 | B128: FS-12WM-200 | C128: 300 | D128: 2500 | E128: 0 | F128: =LeadData!A241 -> 238 | G128: =StrokeData!A752 -> 749 | H128: =MassDataLink!A4776 -> 4773 | I128: -1 | J128: -1 | K128: -1 | L128: -1 | M128: -1 | N128: -1 | O128: -1 | P128: -1 | Q128: -1 | R128: -1 | S128: -1 | T128: -1 | U128: -1 | V128: -1 | W128: -1 | X128: -1 | Y128: -1 | Z128: -1 | AA128: -1 | AB128: -1 | AC128: -1
A129: 126 | B129: FS-11WM-200 | C129: 300 | D129: 2500 | E129: 0 | F129: =LeadData!A242 -> 239 | G129: =StrokeData!A755 -> 752 | H129: =MassDataLink!A4777 -> 4774 | I129: -1 | J129: -1 | K129: -1 | L129: -1 | M129: -1 | N129: -1 | O129: -1 | P129: -1 | Q129: -1 | R129: -1 | S129: -1 | T129: -1 | U129: -1 | V129: -1 | W129: -1 | X129: -1 | Y129: -1 | Z129: -1 | AA129: -1 | AB129: -1 | AC129: -1
A130: 127 | B130: FS-12LM-400 | C130: 1000 | D130: 3000 | E130: 0 | F130: =LeadData!A243 -> 240 | G130: =StrokeData!A758 -> 755 | H130: =MassDataLink!A4778 -> 4775 | I130: -1 | J130: -1 | K130: -1 | L130: -1 | M130: -1 | N130: -1 | O130: -1 | P130: -1 | Q130: -1 | R130: -1 | S130: -1 | T130: -1 | U130: -1 | V130: -1 | W130: -1 | X130: -1 | Y130: -1 | Z130: -1 | AA130: -1 | AB130: -1 | AC130: -1
A131: 128 | B131: FS-11LM-400 | C131: 1000 | D131: 3000 | E131: 0 | F131: =LeadData!A244 -> 241 | G131: =StrokeData!A762 -> 759 | H131: =MassDataLink!A4779 -> 4776 | I131: -1 | J131: -1 | K131: -1 | L131: -1 | M131: -1 | N131: -1 | O131: -1 | P131: -1 | Q131: -1 | R131: -1 | S131: -1 | T131: -1 | U131: -1 | V131: -1 | W131: -1 | X131: -1 | Y131: -1 | Z131: -1 | AA131: -1 | AB131: -1 | AC131: -1
A132: =A131+1 -> 129 | B132: FS-12HM-400 | C132: 1000 | D132: 3000 | E132: 0 | F132: =LeadData!A245 -> 242 | G132: =StrokeData!A766 -> 763 | H132: =MassDataLink!A4780 -> 4777 | I132: -1 | J132: -1 | K132: -1 | L132: -1 | M132: -1 | N132: -1 | O132: -1 | P132: -1 | Q132: -1 | R132: -1 | S132: -1 | T132: -1 | U132: -1 | V132: -1 | W132: -1 | X132: -1 | Y132: -1 | Z132: -1 | AA132: -1 | AB132: -1 | AC132: -1
A133: 130 | B133: FS-11HM-400 | C133: 1000 | D133: 3000 | E133: 0 | F133: =LeadData!A246 -> 243 | G133: =StrokeData!A770 -> 767 | H133: =MassDataLink!A4781 -> 4778 | I133: -1 | J133: -1 | K133: -1 | L133: -1 | M133: -1 | N133: -1 | O133: -1 | P133: -1 | Q133: -1 | R133: -1 | S133: -1 | T133: -1 | U133: -1 | V133: -1 | W133: -1 | X133: -1 | Y133: -1 | Z133: -1 | AA133: -1 | AB133: -1 | AC133: -1
A134: 131 | B134: ISWA-S-60 | C134: 100 | D134: 600 | E134: 0 | F134: =LeadData!A247 -> 244 | G134: =StrokeData!A774 -> 771 | H134: =MassDataLink!A4782 -> 4779 | I134: =LeadData!A248 -> 245 | J134: =StrokeData!A776 -> 773 | K134: =MassDataLink!A4783 -> 4780 | L134: =LeadData!A249 -> 246 | M134: =StrokeData!A778 -> 775 | N134: =MassDataLink!A4784 -> 4781 | O134: -1 | P134: -1 | Q134: -1 | R134: -1 | S134: -1 | T134: -1 | U134: -1 | V134: -1 | W134: -1 | X134: -1 | Y134: -1 | Z134: -1 | AA134: -1 | AB134: -1 | AC134: -1
A135: 132 | B135: ISWA-M-100 | C135: 100 | D135: 1000 | E135: 0 | F135: =LeadData!A250 -> 247 | G135: =StrokeData!A780 -> 777 | H135: =MassDataLink!A4785 -> 4782 | I135: =LeadData!A251 -> 248 | J135: =StrokeData!A785 -> 782 | K135: =MassDataLink!A4786 -> 4783 | L135: -1 | M135: -1 | N135: -1 | O135: -1 | P135: -1 | Q135: -1 | R135: -1 | S135: -1 | T135: -1 | U135: -1 | V135: -1 | W135: -1 | X135: -1 | Y135: -1 | Z135: -1 | AA135: -1 | AB135: -1 | AC135: -1
A136: 133 | B136: ISWA-M-200 | C136: 100 | D136: 1000 | E136: 0 | F136: =LeadData!A252 -> 249 | G136: =StrokeData!A790 -> 787 | H136: =MassDataLink!A4787 -> 4784 | I136: =LeadData!A253 -> 250 | J136: =StrokeData!A795 -> 792 | K136: =MassDataLink!A4788 -> 4785 | L136: -1 | M136: -1 | N136: -1 | O136: -1 | P136: -1 | Q136: -1 | R136: -1 | S136: -1 | T136: -1 | U136: -1 | V136: -1 | W136: -1 | X136: -1 | Y136: -1 | Z136: -1 | AA136: -1 | AB136: -1 | AC136: -1
A137: 134 | B137: ISWA-L-200 | C137: 100 | D137: 1200 | E137: 0 | F137: =LeadData!A254 -> 251 | G137: =StrokeData!A800 -> 797 | H137: =MassDataLink!A4789 -> 4786 | I137: =LeadData!A255 -> 252 | J137: =StrokeData!A807 -> 804 | K137: =MassDataLink!A4790 -> 4787 | L137: -1 | M137: -1 | N137: -1 | O137: -1 | P137: -1 | Q137: -1 | R137: -1 | S137: -1 | T137: -1 | U137: -1 | V137: -1 | W137: -1 | X137: -1 | Y137: -1 | Z137: -1 | AA137: -1 | AB137: -1 | AC137: -1
A138: 135 | B138: ISWA-L-400 | C138: 100 | D138: 1200 | E138: 0 | F138: =LeadData!A256 -> 253 | G138: =StrokeData!A814 -> 811 | H138: =MassDataLink!A4791 -> 4788 | I138: -1 | J138: -1 | K138: -1 | L138: -1 | M138: -1 | N138: -1 | O138: -1 | P138: -1 | Q138: -1 | R138: -1 | S138: -1 | T138: -1 | U138: -1 | V138: -1 | W138: -1 | X138: -1 | Y138: -1 | Z138: -1 | AA138: -1 | AB138: -1 | AC138: -1
A139: 136 | B139: RS-30 | C139: 360 | D139: 360 | E139: 1 | F139: =LeadData!A257 -> 254 | G139: =StrokeData!A821 -> 818 | H139: =MassDataLink!A4792 -> 4789 | I139: =LeadData!A258 -> 255 | J139: =StrokeData!A822 -> 819 | K139: =MassDataLink!A4793 -> 4790 | L139: -1 | M139: -1 | N139: -1 | O139: -1 | P139: -1 | Q139: -1 | R139: -1 | S139: -1 | T139: -1 | U139: -1 | V139: -1 | W139: -1 | X139: -1 | Y139: -1 | Z139: -1 | AA139: -1 | AB139: -1 | AC139: -1
A140: 137 | B140: RS-60 | C140: 360 | D140: 360 | E140: 1 | F140: =LeadData!A259 -> 256 | G140: =StrokeData!A823 -> 820 | H140: =MassDataLink!A4794 -> 4791 | I140: =LeadData!A260 -> 257 | J140: =StrokeData!A824 -> 821 | K140: =MassDataLink!A4795 -> 4792 | L140: -1 | M140: -1 | N140: -1 | O140: -1 | P140: -1 | Q140: -1 | R140: -1 | S140: -1 | T140: -1 | U140: -1 | V140: -1 | W140: -1 | X140: -1 | Y140: -1 | Z140: -1 | AA140: -1 | AB140: -1 | AC140: -1
A141: 138 | B141: RCS2-RT6R | C141: 300 | D141: 300 | E141: 1 | F141: =LeadData!A261 -> 258 | G141: =StrokeData!A825 -> 822 | H141: =MassDataLink!A4796 -> 4793 | I141: -1 | J141: -1 | K141: -1 | L141: -1 | M141: -1 | N141: -1 | O141: -1 | P141: -1 | Q141: -1 | R141: -1 | S141: -1 | T141: -1 | U141: -1 | V141: -1 | W141: -1 | X141: -1 | Y141: -1 | Z141: -1 | AA141: -1 | AB141: -1 | AC141: -1
A142: 139 | B142: RCS2-RT7R | C142: 300 | D142: 300 | E142: 1 | F142: =LeadData!A262 -> 259 | G142: =StrokeData!A826 -> 823 | H142: =MassDataLink!A4797 -> 4794 | I142: -1 | J142: -1 | K142: -1 | L142: -1 | M142: -1 | N142: -1 | O142: -1 | P142: -1 | Q142: -1 | R142: -1 | S142: -1 | T142: -1 | U142: -1 | V142: -1 | W142: -1 | X142: -1 | Y142: -1 | Z142: -1 | AA142: -1 | AB142: -1 | AC142: -1
A143: 140 | B143: RCS2-RTC8L | C143: 360 | D143: 360 | E143: 1 | F143: =LeadData!A263 -> 260 | G143: =StrokeData!A827 -> 824 | H143: =MassDataLink!A4798 -> 4795 | I143: -1 | J143: -1 | K143: -1 | L143: -1 | M143: -1 | N143: -1 | O143: -1 | P143: -1 | Q143: -1 | R143: -1 | S143: -1 | T143: -1 | U143: -1 | V143: -1 | W143: -1 | X143: -1 | Y143: -1 | Z143: -1 | AA143: -1 | AB143: -1 | AC143: -1
A144: 141 | B144: RCS2-RTC8HL | C144: 360 | D144: 360 | E144: 1 | F144: =LeadData!A264 -> 261 | G144: =StrokeData!A828 -> 825 | H144: =MassDataLink!A4799 -> 4796 | I144: =LeadData!A265 -> 262 | J144: =StrokeData!A829 -> 826 | K144: =MassDataLink!A4800 -> 4797 | L144: -1 | M144: -1 | N144: -1 | O144: -1 | P144: -1 | Q144: -1 | R144: -1 | S144: -1 | T144: -1 | U144: -1 | V144: -1 | W144: -1 | X144: -1 | Y144: -1 | Z144: -1 | AA144: -1 | AB144: -1 | AC144: -1
A145: 142 | B145: RCS2-RTC10L | C145: 360 | D145: 360 | E145: 1 | F145: =LeadData!A266 -> 263 | G145: =StrokeData!A830 -> 827 | H145: =MassDataLink!A4801 -> 4798 | I145: =LeadData!A267 -> 264 | J145: =StrokeData!A831 -> 828 | K145: =MassDataLink!A4802 -> 4799 | L145: -1 | M145: -1 | N145: -1 | O145: -1 | P145: -1 | Q145: -1 | R145: -1 | S145: -1 | T145: -1 | U145: -1 | V145: -1 | W145: -1 | X145: -1 | Y145: -1 | Z145: -1 | AA145: -1 | AB145: -1 | AC145: -1
A146: 143 | B146: RCS2-RTC12L | C146: 360 | D146: 360 | E146: 1 | F146: =LeadData!A268 -> 265 | G146: =StrokeData!A832 -> 829 | H146: =MassDataLink!A4803 -> 4800 | I146: =LeadData!A269 -> 266 | J146: =StrokeData!A833 -> 830 | K146: =MassDataLink!A4804 -> 4801 | L146: -1 | M146: -1 | N146: -1 | O146: -1 | P146: -1 | Q146: -1 | R146: -1 | S146: -1 | T146: -1 | U146: -1 | V146: -1 | W146: -1 | X146: -1 | Y146: -1 | Z146: -1 | AA146: -1 | AB146: -1 | AC146: -1
A147: 144 | B147: RCS2-RN5N | C147: 50 | D147: 75 | E147: 0 | F147: =LeadData!A270 -> 267 | G147: =StrokeData!A834 -> 831 | H147: =MassDataLink!A4805 -> 4802 | I147: =LeadData!A271 -> 268 | J147: =StrokeData!A835 -> 832 | K147: =MassDataLink!A4807 -> 4804 | L147: =LeadData!A272 -> 269 | M147: =StrokeData!A836 -> 833 | N147: =MassDataLink!A4809 -> 4806 | O147: -1 | P147: -1 | Q147: -1 | R147: -1 | S147: -1 | T147: -1 | U147: -1 | V147: -1 | W147: -1 | X147: -1 | Y147: -1 | Z147: -1 | AA147: -1 | AB147: -1 | AC147: -1
A148: 145 | B148: RCS2-RP5N | C148: 50 | D148: 75 | E148: 0 | F148: =LeadData!A273 -> 270 | G148: =StrokeData!A837 -> 834 | H148: =MassDataLink!A4811 -> 4808 | I148: =LeadData!A274 -> 271 | J148: =StrokeData!A838 -> 835 | K148: =MassDataLink!A4813 -> 4810 | L148: =LeadData!A275 -> 272 | M148: =StrokeData!A839 -> 836 | N148: =MassDataLink!A4815 -> 4812 | O148: -1 | P148: -1 | Q148: -1 | R148: -1 | S148: -1 | T148: -1 | U148: -1 | V148: -1 | W148: -1 | X148: -1 | Y148: -1 | Z148: -1 | AA148: -1 | AB148: -1 | AC148: -1
A149: 146 | B149: RCS2-GS5N | C149: 50 | D149: 75 | E149: 0 | F149: =LeadData!A276 -> 273 | G149: =StrokeData!A840 -> 837 | H149: =MassDataLink!A4817 -> 4814 | I149: =LeadData!A277 -> 274 | J149: =StrokeData!A841 -> 838 | K149: =MassDataLink!A4819 -> 4816 | L149: =LeadData!A278 -> 275 | M149: =StrokeData!A842 -> 839 | N149: =MassDataLink!A4821 -> 4818 | O149: -1 | P149: -1 | Q149: -1 | R149: -1 | S149: -1 | T149: -1 | U149: -1 | V149: -1 | W149: -1 | X149: -1 | Y149: -1 | Z149: -1 | AA149: -1 | AB149: -1 | AC149: -1
A150: 147 | B150: RCS2-GD5N | C150: 50 | D150: 75 | E150: 0 | F150: =LeadData!A279 -> 276 | G150: =StrokeData!A843 -> 840 | H150: =MassDataLink!A4823 -> 4820 | I150: =LeadData!A280 -> 277 | J150: =StrokeData!A844 -> 841 | K150: =MassDataLink!A4825 -> 4822 | L150: =LeadData!A281 -> 278 | M150: =StrokeData!A845 -> 842 | N150: =MassDataLink!A4827 -> 4824 | O150: -1 | P150: -1 | Q150: -1 | R150: -1 | S150: -1 | T150: -1 | U150: -1 | V150: -1 | W150: -1 | X150: -1 | Y150: -1 | Z150: -1 | AA150: -1 | AB150: -1 | AC150: -1
A151: 148 | B151: RCS2-SD5N | C151: 50 | D151: 75 | E151: 0 | F151: =LeadData!A282 -> 279 | G151: =StrokeData!A846 -> 843 | H151: =MassDataLink!A4829 -> 4826 | I151: =LeadData!A283 -> 280 | J151: =StrokeData!A847 -> 844 | K151: =MassDataLink!A4831 -> 4828 | L151: =LeadData!A284 -> 281 | M151: =StrokeData!A848 -> 845 | N151: =MassDataLink!A4833 -> 4830 | O151: -1 | P151: -1 | Q151: -1 | R151: -1 | S151: -1 | T151: -1 | U151: -1 | V151: -1 | W151: -1 | X151: -1 | Y151: -1 | Z151: -1 | AA151: -1 | AB151: -1 | AC151: -1
A152: 149 | B152: RCS2-TCA5N | C152: 50 | D152: 75 | E152: 0 | F152: =LeadData!A285 -> 282 | G152: =StrokeData!A849 -> 846 | H152: =MassDataLink!A4835 -> 4832 | I152: =LeadData!A286 -> 283 | J152: =StrokeData!A850 -> 847 | K152: =MassDataLink!A4837 -> 4834 | L152: =LeadData!A287 -> 284 | M152: =StrokeData!A851 -> 848 | N152: =MassDataLink!A4839 -> 4836 | O152: -1 | P152: -1 | Q152: -1 | R152: -1 | S152: -1 | T152: -1 | U152: -1 | V152: -1 | W152: -1 | X152: -1 | Y152: -1 | Z152: -1 | AA152: -1 | AB152: -1 | AC152: -1
A153: 150 | B153: RCS2-TWA5N | C153: 50 | D153: 75 | E153: 0 | F153: =LeadData!A288 -> 285 | G153: =StrokeData!A852 -> 849 | H153: =MassDataLink!A4841 -> 4838 | I153: =LeadData!A289 -> 286 | J153: =StrokeData!A853 -> 850 | K153: =MassDataLink!A4843 -> 4840 | L153: =LeadData!A290 -> 287 | M153: =StrokeData!A854 -> 851 | N153: =MassDataLink!A4845 -> 4842 | O153: -1 | P153: -1 | Q153: -1 | R153: -1 | S153: -1 | T153: -1 | U153: -1 | V153: -1 | W153: -1 | X153: -1 | Y153: -1 | Z153: -1 | AA153: -1 | AB153: -1 | AC153: -1
A154: 151 | B154: RCS2-TFA5N | C154: 50 | D154: 75 | E154: 0 | F154: =LeadData!A291 -> 288 | G154: =StrokeData!A855 -> 852 | H154: =MassDataLink!A4847 -> 4844 | I154: =LeadData!A292 -> 289 | J154: =StrokeData!A856 -> 853 | K154: =MassDataLink!A4849 -> 4846 | L154: =LeadData!A293 -> 290 | M154: =StrokeData!A857 -> 854 | N154: =MassDataLink!A4851 -> 4848 | O154: -1 | P154: -1 | Q154: -1 | R154: -1 | S154: -1 | T154: -1 | U154: -1 | V154: -1 | W154: -1 | X154: -1 | Y154: -1 | Z154: -1 | AA154: -1 | AB154: -1 | AC154: -1
A155: 152 | B155: LSA-W21HS | C155: 895 | D155: 4000 | E155: 0 | F155: =LeadData!A294 -> 291 | G155: =StrokeData!A858 -> 855 | H155: =MassDataLink!A4853 -> 4850 | I155: -1 | J155: -1 | K155: -1 | L155: -1 | M155: -1 | N155: -1 | O155: -1 | P155: -1 | Q155: -1 | R155: -1 | S155: -1 | T155: -1 | U155: -1 | V155: -1 | W155: -1 | X155: -1 | Y155: -1 | Z155: -1 | AA155: -1 | AB155: -1 | AC155: -1
A156: 153 | B156: LSA-W21HM | C156: 420 | D156: 3525 | E156: 0 | F156: =LeadData!A295 -> 292 | G156: =StrokeData!A859 -> 856 | H156: =MassDataLink!A5025 -> 5022 | I156: -1 | J156: -1 | K156: -1 | L156: -1 | M156: -1 | N156: -1 | O156: -1 | P156: -1 | Q156: -1 | R156: -1 | S156: -1 | T156: -1 | U156: -1 | V156: -1 | W156: -1 | X156: -1 | Y156: -1 | Z156: -1 | AA156: -1 | AB156: -1 | AC156: -1
A157: 154 | B157: RCS3-CT8C-400 | C157: 100 | D157: 500 | E157: 0 | F157: =LeadData!A296 -> 293 | G157: =StrokeData!A860 -> 857 | H157: =MassDataLink!A5197 -> 5194 | I157: -1 | J157: -1 | K157: -1 | L157: -1 | M157: -1 | N157: -1 | O157: -1 | P157: -1 | Q157: -1 | R157: -1 | S157: -1 | T157: -1 | U157: -1 | V157: -1 | W157: -1 | X157: -1 | Y157: -1 | Z157: -1 | AA157: -1 | AB157: -1 | AC157: -1
A158: 155 | B158: RCS3-CTZ5C-60 | C158: 25 | D158: 100 | E158: 0 | F158: =LeadData!A297 -> 294 | G158: =StrokeData!A861 -> 858 | H158: =MassDataLink!A5198 -> 5195 | I158: -1 | J158: -1 | K158: -1 | L158: -1 | M158: -1 | N158: -1 | O158: -1 | P158: -1 | Q158: -1 | R158: -1 | S158: -1 | T158: -1 | U158: -1 | V158: -1 | W158: -1 | X158: -1 | Y158: -1 | Z158: -1 | AA158: -1 | AB158: -1 | AC158: -1
A159: 156 | B159: RCS2W-RA4C-20 | C159: 50 | D159: 300 | E159: 0 | F159: =LeadData!A107 -> 104 | G159: =StrokeData!A557 -> 554 | H159: =MassDataLink!A697 -> 694 | I159: =LeadData!A108 -> 105 | J159: =StrokeData!A558 -> 555 | K159: =MassDataLink!A699 -> 696 | L159: =LeadData!A109 -> 106 | M159: =StrokeData!A559 -> 556 | N159: =MassDataLink!A701 -> 698 | O159: -1 | P159: -1 | Q159: -1 | R159: -1 | S159: -1 | T159: -1 | U159: -1 | V159: -1 | W159: -1 | X159: -1 | Y159: -1 | Z159: -1 | AA159: -1 | AB159: -1 | AC159: -1
A160: 157 | B160: RCS2W-RA4C-30 | C160: 50 | D160: 300 | E160: 0 | F160: =LeadData!A110 -> 107 | G160: =StrokeData!A560 -> 557 | H160: =MassDataLink!A703 -> 700 | I160: =LeadData!A111 -> 108 | J160: =StrokeData!A561 -> 558 | K160: =MassDataLink!A705 -> 702 | L160: =LeadData!A112 -> 109 | M160: =StrokeData!A562 -> 559 | N160: =MassDataLink!A707 -> 704 | O160: -1 | P160: -1 | Q160: -1 | R160: -1 | S160: -1 | T160: -1 | U160: -1 | V160: -1 | W160: -1 | X160: -1 | Y160: -1 | Z160: -1 | AA160: -1 | AB160: -1 | AC160: -1
A161: 158 | B161: RCS2W-RA4D-20 | C161: 50 | D161: 300 | E161: 0 | F161: =F159 -> 104 | G161: 554 | H161: 694 | I161: 105 | J161: 555 | K161: 696 | L161: 106 | M161: 556 | N161: 698 | O161: -1 | P161: -1 | Q161: -1 | R161: -1 | S161: -1 | T161: -1 | U161: -1 | V161: -1 | W161: -1 | X161: -1 | Y161: -1 | Z161: -1 | AA161: -1 | AB161: -1 | AC161: -1
A162: 159 | B162: RCS2W-RA4D-30 | C162: 50 | D162: 300 | E162: 0 | F162: =F160 -> 107 | G162: 557 | H162: 700 | I162: 108 | J162: 558 | K162: 702 | L162: 109 | M162: 559 | N162: 704 | O162: -1 | P162: -1 | Q162: -1 | R162: -1 | S162: -1 | T162: -1 | U162: -1 | V162: -1 | W162: -1 | X162: -1 | Y162: -1 | Z162: -1 | AA162: -1 | AB162: -1 | AC162: -1
A163: 160 | B163: RCS2W-RA4R-20 | C163: 50 | D163: 300 | E163: 0 | F163: =F159 -> 104 | G163: 554 | H163: 694 | I163: 105 | J163: 555 | K163: 696 | L163: 106 | M163: 556 | N163: 698 | O163: -1 | P163: -1 | Q163: -1 | R163: -1 | S163: -1 | T163: -1 | U163: -1 | V163: -1 | W163: -1 | X163: -1 | Y163: -1 | Z163: -1 | AA163: -1 | AB163: -1 | AC163: -1
A164: =A163+1 -> 161 | B164: RCS2W-RA4R-30 | C164: 50 | D164: 300 | E164: 0 | F164: =F160 -> 107 | G164: 557 | H164: 700 | I164: 108 | J164: 558 | K164: 702 | L164: 109 | M164: 559 | N164: 704 | O164: -1 | P164: -1 | Q164: -1 | R164: -1 | S164: -1 | T164: -1 | U164: -1 | V164: -1 | W164: -1 | X164: -1 | Y164: -1 | Z164: -1 | AA164: -1 | AB164: -1 | AC164: -1
A165: =A164+1 -> 162
A166: =A165+1 -> 163

Sheet LeadData (hidden)
A1: 9.80665 | B1: 1 | C1: 3 | D1: 4 | E1: 5 | F1: 6 | G1: 10 | H1: 11 | I1: 13
A2: データ№ | B2: ﾘｰﾄﾞ長 | C2: 水平定格加速度 | D2: 垂直定格加速度 | E2: 水平最大加速度 | F2: 垂直最大加速度 | G2: ｷﾞｱ比分子 | H2: ｷﾞｱ比分母 | I2: ｽﾄﾛｰｸ刻み | J2: 備考
A3: =ModelData!A3 -> 0 | B3: 0.001㎜ | C3: 0.001mm/s^2 | D3: 0.001mm/s^2 | E3: 0.001mm/s^2 | F3: 0.001mm/s^2 | I3: mm
A4: =A3+1 -> 1 | B4: 4000 | C4: =0.15*$A$1*1000*1000 -> 1470997.5 | D4: =0.15*$A$1*1000*1000 -> 1470997.5 | E4: =0.5*$A$1*1000*1000 -> 4903325 | F4: =0.3*$A$1*1000*1000 -> 2941995 | G4: 1 | H4: 1 | I4: 50 | J4: ISA-SXM-60
A5: =A4+1 -> 2 | B5: 8000 | C5: =0.3*$A$1*1000*1000 -> 2941995 | D5: =0.3*$A$1*1000*1000 -> 2941995 | E5: =0.6*$A$1*1000*1000 -> 5883990 | F5: =0.5*$A$1*1000*1000 -> 4903325 | G5: 1 | H5: 1 | I5: 50
A6: =A5+1 -> 3 | B6: 16000 | C6: =0.3*$A$1*1000*1000 -> 2941995 | D6: =0.3*$A$1*1000*1000 -> 2941995 | E6: =1*$A$1*1000*1000 -> 9806650 | F6: =0.7*$A$1*1000*1000 -> 6864655 | G6: 1 | H6: 1 | I6: 50
A7: 4 | B7: 4000 | C7: =0.15*$A$1*1000*1000 -> 1470997.5 | D7: =0.15*$A$1*1000*1000 -> 1470997.5 | E7: =0.5*$A$1*1000*1000 -> 4903325 | F7: =0.3*$A$1*1000*1000 -> 2941995 | G7: 1 | H7: 1 | I7: 50 | J7: ISA-SYM-60
A8: 5 | B8: 8000 | C8: =0.3*$A$1*1000*1000 -> 2941995 | D8: =0.3*$A$1*1000*1000 -> 2941995 | E8: =0.6*$A$1*1000*1000 -> 5883990 | F8: =0.5*$A$1*1000*1000 -> 4903325 | G8: 1 | H8: 1 | I8: 50
A9: 6 | B9: 16000 | C9: =0.3*$A$1*1000*1000 -> 2941995 | D9: =0.3*$A$1*1000*1000 -> 2941995 | E9: =1*$A$1*1000*1000 -> 9806650 | F9: =0.7*$A$1*1000*1000 -> 6864655 | G9: 1 | H9: 1 | I9: 50
A10: 7 | B10: 4000 | C10: -1 | D10: =0.15*$A$1*1000*1000 -> 1470997.5 | E10: -1 | F10: =0.3*$A$1*1000*1000 -> 2941995 | G10: 1 | H10: 1 | I10: 50 | J10: ISA-SZM-60
A11: 8 | B11: 8000 | C11: -1 | D11: =0.3*$A$1*1000*1000 -> 2941995 | E11: -1 | F11: =0.5*$A$1*1000*1000 -> 4903325 | G11: 1 | H11: 1 | I11: 50
A12: 9 | B12: 5000 | C12: =0.15*$A$1*1000*1000 -> 1470997.5 | D12: =0.15*$A$1*1000*1000 -> 1470997.5 | E12: =0.5*$A$1*1000*1000 -> 4903325 | F12: =0.3*$A$1*1000*1000 -> 2941995 | G12: 1 | H12: 1 | I12: 50 | J12: ISA-MXM-100
A13: 10 | B13: 10000 | C13: =0.3*$A$1*1000*1000 -> 2941995 | D13: =0.3*$A$1*1000*1000 -> 2941995 | E13: =0.6*$A$1*1000*1000 -> 5883990 | F13: =0.5*$A$1*1000*1000 -> 4903325 | G13: 1 | H13: 1 | I13: 50
A14: 11 | B14: 20000 | C14: =0.3*$A$1*1000*1000 -> 2941995 | D14: =0.3*$A$1*1000*1000 -> 2941995 | E14: =1*$A$1*1000*1000 -> 9806650 | F14: =0.8*$A$1*1000*1000 -> 7845320 | G14: 1 | H14: 1 | I14: 50
A15: 12 | B15: 30000 | C15: =0.3*$A$1*1000*1000 -> 2941995 | D15: -1 | E15: =1*$A$1*1000*1000 -> 9806650 | F15: -1 | G15: 1 | H15: 1 | I15: 50
A16: 13 | B16: 10000 | C16: 2941995 | D16: =0.3*$A$1*1000*1000 -> 2941995 | E16: =0.6*$A$1*1000*1000 -> 5883990 | F16: =0.5*$A$1*1000*1000 -> 4903325 | G16: 1 | H16: 1 | I16: 50 | J16: ISA-MXM-200
A17: 14 | B17: 20000 | C17: 2941995 | D17: =0.3*$A$1*1000*1000 -> 2941995 | E17: =1*$A$1*1000*1000 -> 9806650 | F17: =0.8*$A$1*1000*1000 -> 7845320 | G17: 1 | H17: 1 | I17: 50
A18: 15 | B18: 30000 | C18: 2941995 | D18: =0.3*$A$1*1000*1000 -> 2941995 | E18: =1*$A$1*1000*1000 -> 9806650 | F18: =1*$A$1*1000*1000 -> 9806650 | G18: 1 | H18: 1 | I18: 50
A19: 16 | B19: 20000 | C19: 2941995 | D19: -1 | E19: =0.3*$A$1*1000*1000 -> 2941995 | F19: -1 | G19: 1 | H19: 1 | I19: 100 | J19: ISA-MXMX-200
A20: 17 | B20: 30000 | C20: 2941995 | D20: -1 | E20: =0.3*$A$1*1000*1000 -> 2941995 | F20: -1 | G20: 1 | H20: 1 | I20: 100
A21: 18 | B21: 5000 | C21: =0.15*$A$1*1000*1000 -> 1470997.5 | D21: =0.15*$A$1*1000*1000 -> 1470997.5 | E21: =0.5*$A$1*1000*1000 -> 4903325 | F21: =0.3*$A$1*1000*1000 -> 2941995 | G21: 1 | H21: 1 | I21: 50 | J21: ISA-MYM-100
A22: 19 | B22: 10000 | C22: =0.3*$A$1*1000*1000 -> 2941995 | D22: =0.3*$A$1*1000*1000 -> 2941995 | E22: =0.6*$A$1*1000*1000 -> 5883990 | F22: =0.5*$A$1*1000*1000 -> 4903325 | G22: 1 | H22: 1 | I22: 50
A23: 20 | B23: 20000 | C23: =0.3*$A$1*1000*1000 -> 2941995 | D23: =0.3*$A$1*1000*1000 -> 2941995 | E23: =1*$A$1*1000*1000 -> 9806650 | F23: =0.8*$A$1*1000*1000 -> 7845320 | G23: 1 | H23: 1 | I23: 50
A24: 21 | B24: 30000 | C24: =0.3*$A$1*1000*1000 -> 2941995 | D24: -1 | E24: =1*$A$1*1000*1000 -> 9806650 | F24: -1 | G24: 1 | H24: 1 | I24: 50
A25: 22 | B25: 10000 | C25: =0.3*$A$1*1000*1000 -> 2941995 | D25: =0.3*$A$1*1000*1000 -> 2941995 | E25: =0.6*$A$1*1000*1000 -> 5883990 | F25: =0.5*$A$1*1000*1000 -> 4903325 | G25: 1 | H25: 1 | I25: 50 | J25: ISA-MYM-200
A26: 23 | B26: 20000 | C26: =0.3*$A$1*1000*1000 -> 2941995 | D26: 2941995 | E26: =1*$A$1*1000*1000 -> 9806650 | F26: =0.8*$A$1*1000*1000 -> 7845320 | G26: 1 | H26: 1 | I26: 50
A27: 24 | B27: 30000 | C27: =0.3*$A$1*1000*1000 -> 2941995 | D27: 2941995 | E27: =1*$A$1*1000*1000 -> 9806650 | F27: =1*$A$1*1000*1000 -> 9806650 | G27: 1 | H27: 1 | I27: 50
A28: 25 | B28: 5000 | C28: -1 | D28: =0.15*$A$1*1000*1000 -> 1470997.5 | E28: -1 | F28: =0.3*$A$1*1000*1000 -> 2941995 | G28: 1 | H28: 1 | I28: 50 | J28: ISA-MZM-100
A29: 26 | B29: 10000 | C29: -1 | D29: =0.3*$A$1*1000*1000 -> 2941995 | E29: -1 | F29: =0.5*$A$1*1000*1000 -> 4903325 | G29: 1 | H29: 1 | I29: 50
A30: 27 | B30: 10000 | C30: -1 | D30: =0.3*$A$1*1000*1000 -> 2941995 | E30: -1 | F30: =0.5*$A$1*1000*1000 -> 4903325 | G30: 1 | H30: 1 | I30: 50 | J30: ISA-MZM-200
A31: 28 | B31: 10000 | C31: =0.3*$A$1*1000*1000 -> 2941995 | D31: 2941995 | E31: =0.6*$A$1*1000*1000 -> 5883990 | F31: =0.5*$A$1*1000*1000 -> 4903325 | G31: 1 | H31: 1 | I31: 50 | J31: ISA-LXM-200
A32: 29 | B32: 20000 | C32: 2941995 | D32: 2941995 | E32: =1*$A$1*1000*1000 -> 9806650 | F32: =0.8*$A$1*1000*1000 -> 7845320 | G32: 1 | H32: 1 | I32: 50
A33: 30 | B33: 20000 | C33: 2941995 | D33: 2941995 | E33: =1*$A$1*1000*1000 -> 9806650 | F33: =0.8*$A$1*1000*1000 -> 7845320 | G33: 1 | H33: 1 | I33: 50 | J33: ISA-LXM-400
A34: 31 | B34: 40000 | C34: 2941995 | D34: 2941995 | E34: =1*$A$1*1000*1000 -> 9806650 | F34: =1*$A$1*1000*1000 -> 9806650 | G34: 1 | H34: 1 | I34: 50
A35: 32 | B35: 20000 | C35: 2941995 | D35: -1 | E35: =0.3*$A$1*1000*1000 -> 2941995 | F35: -1 | G35: 1 | H35: 1 | I35: 100 | J35: ISA-LXMX-200
A36: 33 | B36: 20000 | C36: 2941995 | D36: -1 | E36: 2941995 | F36: -1 | G36: 1 | H36: 1 | I36: 100 | J36: ISA-LXMX-400
A37: 34 | B37: 40000 | C37: 2941995 | D37: -1 | E37: 2941995 | F37: -1 | G37: 1 | H37: 1 | I37: 100
A38: 35 | B38: 20000 | C38: 2941995 | D38: -1 | E38: 2941995 | F38: -1 | G38: 1 | H38: 1 | I38: 100 | J38: ISA-LXUWX-200
A39: 36 | B39: 20000 | C39: 2941995 | D39: -1 | E39: 2941995 | F39: -1 | G39: 1 | H39: 1 | I39: 100 | J39: ISA-LXUWX-400
A40: 37 | B40: 40000 | C40: 2941995 | D40: -1 | E40: 2941995 | F40: -1 | G40: 1 | H40: 1 | I40: 100
A41: 38 | B41: 10000 | C41: 2941995 | D41: 2941995 | E41: =0.6*$A$1*1000*1000 -> 5883990 | F41: =0.5*$A$1*1000*1000 -> 4903325 | G41: 1 | H41: 1 | I41: 50 | J41: ISA-LYM-200
A42: 39 | B42: 20000 | C42: 2941995 | D42: 2941995 | E42: =1*$A$1*1000*1000 -> 9806650 | F42: =0.8*$A$1*1000*1000 -> 7845320 | G42: 1 | H42: 1 | I42: 50
A43: 40 | B43: 20000 | C43: 2941995 | D43: 2941995 | E43: =1*$A$1*1000*1000 -> 9806650 | F43: =0.8*$A$1*1000*1000 -> 7845320 | G43: 1 | H43: 1 | I43: 50 | J43: ISA-LYM-400
A44: 41 | B44: 40000 | C44: 2941995 | D44: 2941995 | E44: =1*$A$1*1000*1000 -> 9806650 | F44: =1*$A$1*1000*1000 -> 9806650 | G44: 1 | H44: 1 | I44: 50
A45: 42 | B45: 10000 | C45: -1 | D45: 2941995 | E45: -1 | F45: =0.5*$A$1*1000*1000 -> 4903325 | G45: 1 | H45: 1 | I45: 50 | J45: ISA-LZM-200
A46: 43 | B46: 10000 | C46: -1 | D46: 2941995 | E46: -1 | F46: =0.5*$A$1*1000*1000 -> 4903325 | G46: 1 | H46: 1 | I46: 50 | J46: ISA-LZM-400
A47: 44 | B47: 10000 | C47: =0.3*$A$1*1000*1000 -> 2941995 | D47: 2941995 | E47: =0.6*$A$1*1000*1000 -> 5883990 | F47: =0.5*$A$1*1000*1000 -> 4903325 | G47: 1 | H47: 1 | I47: 100 | J47: ISA-WXM-600
A48: 45 | B48: 20000 | C48: 2941995 | D48: 2941995 | E48: =1*$A$1*1000*1000 -> 9806650 | F48: =0.8*$A$1*1000*1000 -> 7845320 | G48: 1 | H48: 1 | I48: 100
A49: 46 | B49: 40000 | C49: 2941995 | D49: 2941995 | E49: =1*$A$1*1000*1000 -> 9806650 | F49: =1*$A$1*1000*1000 -> 9806650 | G49: 1 | H49: 1 | I49: 100
A50: 47 | B50: 25000 | C50: 2941995 | D50: 2941995 | E50: =1*$A$1*1000*1000 -> 9806650 | F50: =0.8*$A$1*1000*1000 -> 7845320 | G50: 1 | H50: 1 | I50: 100 | J50: ISA-WXM-750
A51: 48 | B51: 50000 | C51: 2941995 | D51: 2941995 | E51: =1*$A$1*1000*1000 -> 9806650 | F51: =1*$A$1*1000*1000 -> 9806650 | G51: 1 | H51: 1 | I51: 100
A52: 49 | B52: 20000 | C52: 2941995 | D52: -1 | E52: =0.3*$A$1*1000*1000 -> 2941995 | F52: -1 | G52: 1 | H52: 1 | I52: 100 | J52: ISA-WXMX-600
A53: 50 | B53: 40000 | C53: 2941995 | D53: -1 | E53: =0.3*$A$1*1000*1000 -> 2941995 | F53: -1 | G53: 1 | H53: 1 | I53: 100
A54: 51 | B54: 25000 | C54: 2941995 | D54: -1 | E54: =0.3*$A$1*1000*1000 -> 2941995 | F54: -1 | G54: 1 | H54: 1 | I54: 100 | J54: ISA-WXMX-750
A55: 52 | B55: 50000 | C55: 2941995 | D55: -1 | E55: =0.3*$A$1*1000*1000 -> 2941995 | F55: -1 | G55: 1 | H55: 1 | I55: 100
A56: 53 | B56: 4000 | C56: =0.15*$A$1*1000*1000 -> 1470997.5 | D56: =0.15*$A$1*1000*1000 -> 1470997.5 | E56: =0.5*$A$1*1000*1000 -> 4903325 | F56: =0.3*$A$1*1000*1000 -> 2941995 | G56: 1 | H56: 1 | I56: 50 | J56: ISDA-S-60
A57: 54 | B57: 8000 | C57: =0.3*$A$1*1000*1000 -> 2941995 | D57: =0.3*$A$1*1000*1000 -> 2941995 | E57: =0.6*$A$1*1000*1000 -> 5883990 | F57: =0.5*$A$1*1000*1000 -> 4903325 | G57: 1 | H57: 1 | I57: 50
A58: 55 | B58: 16000 | C58: =0.3*$A$1*1000*1000 -> 2941995 | D58: =0.3*$A$1*1000*1000 -> 2941995 | E58: =1*$A$1*1000*1000 -> 9806650 | F58: =0.7*$A$1*1000*1000 -> 6864655 | G58: 1 | H58: 1 | I58: 50
A59: 56 | B59: 5000 | C59: =0.15*$A$1*1000*1000 -> 1470997.5 | D59: =0.15*$A$1*1000*1000 -> 1470997.5 | E59: =0.5*$A$1*1000*1000 -> 4903325 | F59: =0.3*$A$1*1000*1000 -> 2941995 | G59: 1 | H59: 1 | I59: 50 | J59: ISDA-M-100
A60: 57 | B60: 10000 | C60: =0.3*$A$1*1000*1000 -> 2941995 | D60: 2941995 | E60: =0.6*$A$1*1000*1000 -> 5883990 | F60: =0.5*$A$1*1000*1000 -> 4903325 | G60: 1 | H60: 1 | I60: 50
A61: 58 | B61: 20000 | C61: 2941995 | D61: 2941995 | E61: =1*$A$1*1000*1000 -> 9806650 | F61: =0.8*$A$1*1000*1000 -> 7845320 | G61: 1 | H61: 1 | I61: 50
A62: 59 | B62: 10000 | C62: 2941995 | D62: 2941995 | E62: =0.6*$A$1*1000*1000 -> 5883990 | F62: =0.5*$A$1*1000*1000 -> 4903325 | G62: 1 | H62: 1 | I62: 50 | J62: ISDA-M-200
A63: 60 | B63: 20000 | C63: 2941995 | D63: 2941995 | E63: =1*$A$1*1000*1000 -> 9806650 | F63: =0.8*$A$1*1000*1000 -> 7845320 | G63: 1 | H63: 1 | I63: 50
A64: 61 | B64: 20000 | C64: =0.3*$A$1*1000*1000 -> 2941995 | D64: -1 | E64: =0.3*$A$1*1000*1000 -> 2941995 | F64: -1 | G64: 1 | H64: 1 | I64: 100 | J64: ISDA-MX-200
A65: 62 | B65: 10000 | C65: 2941995 | D65: 2941995 | E65: =0.6*$A$1*1000*1000 -> 5883990 | F65: =0.5*$A$1*1000*1000 -> 4903325 | G65: 1 | H65: 1 | I65: 50 | J65: ISDA-L-200
A66: 63 | B66: 20000 | C66: 2941995 | D66: 2941995 | E66: =1*$A$1*1000*1000 -> 9806650 | F66: =0.8*$A$1*1000*1000 -> 7845320 | G66: 1 | H66: 1 | I66: 50
A67: 64 | B67: 20000 | C67: =0.3*$A$1*1000*1000 -> 2941995 | D67: =0.3*$A$1*1000*1000 -> 2941995 | E67: =1*$A$1*1000*1000 -> 9806650 | F67: =0.8*$A$1*1000*1000 -> 7845320 | G67: 1 | H67: 1 | I67: 50 | J67: ISDA-L-400
A68: 65 | B68: 20000 | C68: =0.3*$A$1*1000*1000 -> 2941995 | D68: -1 | E68: =0.3*$A$1*1000*1000 -> 2941995 | F68: -1 | G68: 1 | H68: 1 | I68: 100 | J68: ISDA-LX-200
A69: 66 | B69: 20000 | C69: =0.3*$A$1*1000*1000 -> 2941995 | D69: -1 | E69: =0.3*$A$1*1000*1000 -> 2941995 | F69: -1 | G69: 1 | H69: 1 | I69: 100 | J69: ISDA-LX-400
A70: 67 | B70: 10000 | C70: =0.3*$A$1*1000*1000 -> 2941995 | D70: =0.3*$A$1*1000*1000 -> 2941995 | E70: =0.6*$A$1*1000*1000 -> 5883990 | F70: =0.5*$A$1*1000*1000 -> 4903325 | G70: 1 | H70: 1 | I70: 100 | J70: ISDACR-W-600
A71: 68 | B71: 20000 | C71: =0.3*$A$1*1000*1000 -> 2941995 | D71: =0.3*$A$1*1000*1000 -> 2941995 | E71: =1*$A$1*1000*1000 -> 9806650 | F71: =0.8*$A$1*1000*1000 -> 7845320 | G71: 1 | H71: 1 | I71: 100
A72: 69 | B72: 40000 | C72: =0.3*$A$1*1000*1000 -> 2941995 | D72: =0.3*$A$1*1000*1000 -> 2941995 | E72: =1*$A$1*1000*1000 -> 9806650 | F72: =1*$A$1*1000*1000 -> 9806650 | G72: 1 | H72: 1 | I72: 100
A73: =A72+1 -> 70 | B73: 25000 | C73: =0.3*$A$1*1000*1000 -> 2941995 | D73: 2941995 | E73: =1*$A$1*1000*1000 -> 9806650 | F73: =0.8*$A$1*1000*1000 -> 7845320 | G73: 1 | H73: 1 | I73: 100 | J73: ISDACR-W-750
A74: 71 | B74: 50000 | C74: 2941995 | D74: 2941995 | E74: =1*$A$1*1000*1000 -> 9806650 | F74: =1*$A$1*1000*1000 -> 9806650 | G74: 1 | H74: 1 | I74: 100
A75: 72 | B75: 20000 | C75: 2941995 | D75: -1 | E75: =0.3*$A$1*1000*1000 -> 2941995 | F75: -1 | G75: 1 | H75: 1 | I75: 100 | J75: ISDACR-WX-600
A76: 73 | B76: 40000 | C76: 2941995 | D76: -1 | E76: =0.3*$A$1*1000*1000 -> 2941995 | F76: -1 | G76: 1 | H76: 1 | I76: 100
A77: 74 | B77: 25000 | C77: 2941995 | D77: -1 | E77: =0.3*$A$1*1000*1000 -> 2941995 | F77: -1 | G77: 1 | H77: 1 | I77: 100 | J77: ISDACR-WX-750
A78: 75 | B78: 50000 | C78: 2941995 | D78: -1 | E78: =0.3*$A$1*1000*1000 -> 2941995 | F78: -1 | G78: 1 | H78: 1 | I78: 100
A79: 76 | B79: 12000 | C79: =0.3*$A$1*1000*1000 -> 2941995 | D79: -1 | E79: =0.8*$A$1*1000*1000 -> 7845320 | F79: -1 | G79: 1 | H79: 1 | I79: 100 | J79: NS-SXMS-60
A80: 77 | B80: 12000 | C80: =0.3*$A$1*1000*1000 -> 2941995 | D80: -1 | E80: =0.8*$A$1*1000*1000 -> 7845320 | F80: -1 | G80: 1 | H80: 1 | I80: 100 | J80: NS-SXMM-60
A81: 78 | B81: 12000 | C81: -1 | D81: =0.3*$A$1*1000*1000 -> 2941995 | E81: -1 | F81: =0.7*$A$1*1000*1000 -> 6864655 | G81: 1 | H81: 1 | I81: 100 | J81: NS-SZMS-60
A82: 79 | B82: 12000 | C82: -1 | D82: =0.3*$A$1*1000*1000 -> 2941995 | E82: -1 | F82: =0.7*$A$1*1000*1000 -> 6864655 | G82: 1 | H82: 1 | I82: 100 | J82: NS-SZMM-60
A83: 80 | B83: 20000 | C83: =0.3*$A$1*1000*1000 -> 2941995 | D83: -1 | E83: =0.8*$A$1*1000*1000 -> 7845320 | F83: -1 | G83: 1 | H83: 1 | I83: 100 | J83: NS-MXMS-200
A84: 81 | B84: 30000 | C84: 2941995 | D84: -1 | E84: =1*$A$1*1000*1000 -> 9806650 | F84: -1 | G84: 1 | H84: 1 | I84: 100
A85: 82 | B85: 20000 | C85: 2941995 | D85: -1 | E85: =0.8*$A$1*1000*1000 -> 7845320 | F85: -1 | G85: 1 | H85: 1 | I85: 100 | J85: NS-MXMM-200
A86: 83 | B86: 30000 | C86: 2941995 | D86: -1 | E86: =1*$A$1*1000*1000 -> 9806650 | F86: -1 | G86: 1 | H86: 1 | I86: 100
A87: 84 | B87: 20000 | C87: 2941995 | D87: -1 | E87: =0.3*$A$1*1000*1000 -> 2941995 | F87: -1 | G87: 1 | H87: 1 | I87: 100 | J87: NS-MXMXS-200
A88: 85 | B88: 30000 | C88: 2941995 | D88: -1 | E88: =0.3*$A$1*1000*1000 -> 2941995 | F88: -1 | G88: 1 | H88: 1 | I88: 100
A89: 86 | B89: 20000 | C89: -1 | D89: 2941995 | E89: -1 | F89: =0.5*$A$1*1000*1000 -> 4903325 | G89: 1 | H89: 1 | I89: 100 | J89: NS-MZMS-200
A90: 87 | B90: 20000 | C90: -1 | D90: 2941995 | E90: -1 | F90: =0.5*$A$1*1000*1000 -> 4903325 | G90: 1 | H90: 1 | I90: 100 | J90: NS-MZMM-200
A91: 88 | B91: 20000 | C91: 2941995 | D91: -1 | E91: =1*$A$1*1000*1000 -> 9806650 | F91: -1 | G91: 1 | H91: 1 | I91: 100 | J91: NS-LXMS-400
A92: 89 | B92: 40000 | C92: 2941995 | D92: -1 | E92: =1*$A$1*1000*1000 -> 9806650 | F92: -1 | G92: 1 | H92: 1 | I92: 100
A93: 90 | B93: 20000 | C93: 2941995 | D93: -1 | E93: =1*$A$1*1000*1000 -> 9806650 | F93: -1 | G93: 1 | H93: 1 | I93: 100 | J93: NS-LXMM-400
A94: 91 | B94: 40000 | C94: 2941995 | D94: -1 | E94: =1*$A$1*1000*1000 -> 9806650 | F94: -1 | G94: 1 | H94: 1 | I94: 100
A95: 92 | B95: 20000 | C95: 2941995 | D95: -1 | E95: =0.3*$A$1*1000*1000 -> 2941995 | F95: -1 | G95: 1 | H95: 1 | I95: 100 | J95: NS-LXMXS-400
A96: 93 | B96: 40000 | C96: 2941995 | D96: -1 | E96: =0.3*$A$1*1000*1000 -> 2941995 | F96: -1 | G96: 1 | H96: 1 | I96: 100
A97: 94 | B97: 20000 | C97: -1 | D97: 2941995 | E97: -1 | F97: =0.8*$A$1*1000*1000 -> 7845320 | G97: 1 | H97: 1 | I97: 100 | J97: NS-LZMS-400
A98: =A97+1 -> 95 | B98: 20000 | C98: -1 | D98: 2941995 | E98: -1 | F98: =0.8*$A$1*1000*1000 -> 7845320 | G98: 1 | H98: 1 | I98: 100 | J98: NS-LZMM-400
A99: =A98+1 -> 96 | B99: 10000 | C99: =0.3*$A$1*1000*1000 -> 2941995 | D99: 2941995 | E99: =0.3*$A$1*1000*1000 -> 2941995 | F99: 2941995 | G99: 1 | H99: 1 | I99: 50 | J99: RCS2-SS8C-100
A100: 97 | B100: 20000 | C100: 2941995 | D100: 2941995 | E100: 2941995 | F100: 2941995 | G100: 1 | H100: 1 | I100: 50
A101: 98 | B101: 10000 | C101: 2941995 | D101: 2941995 | E101: 2941995 | F101: 2941995 | G101: 1 | H101: 1 | I101: 50 | J101: RCS2-SS8C-150
A102: =A101+1 -> 99 | B102: 20000 | C102: 2941995 | D102: 2941995 | E102: 2941995 | F102: 2941995 | G102: 1 | H102: 1 | I102: 50
A103: =A102+1 -> 100 | B103: 10000 | C103: =0.3*$A$1*1000*1000 -> 2941995 | D103: 2941995 | E103: 2941995 | F103: 2941995 | G103: 1 | H103: 1 | I103: 50 | J103: RCS2-SS8R-100
A104: =A103+1 -> 101 | B104: 20000 | C104: 2941995 | D104: 2941995 | E104: 2941995 | F104: 2941995 | G104: 1 | H104: 1 | I104: 50
A105: 102 | B105: 10000 | C105: 2941995 | D105: 2941995 | E105: 2941995 | F105: 2941995 | G105: 1 | H105: 1 | I105: 50 | J105: RCS2-SS8R-150
A106: =A105+1 -> 103 | B106: 20000 | C106: 2941995 | D106: 2941995 | E106: 2941995 | F106: 2941995 | G106: 1 | H106: 1 | I106: 50
A107: =A106+1 -> 104 | B107: 3000 | C107: =0.2*$A$1*1000*1000 -> 1961330 | D107: =0.2*$A$1*1000*1000 -> 1961330 | E107: =0.2*$A$1*1000*1000 -> 1961330 | F107: =0.2*$A$1*1000*1000 -> 1961330 | G107: 1 | H107: 1 | I107: 50 | J107: RCS2-RA4D-20
A108: 105 | B108: 6000 | C108: =0.3*$A$1*1000*1000 -> 2941995 | D108: 2941995 | E108: 2941995 | F108: 2941995 | G108: 1 | H108: 1 | I108: 50
A109: 106 | B109: 12000 | C109: 2941995 | D109: 2941995 | E109: 2941995 | F109: 2941995 | G109: 1 | H109: 1 | I109: 50
A110: 107 | B110: 3000 | C110: =0.2*$A$1*1000*1000 -> 1961330 | D110: =0.2*$A$1*1000*1000 -> 1961330 | E110: =0.2*$A$1*1000*1000 -> 1961330 | F110: =0.2*$A$1*1000*1000 -> 1961330 | G110: 1 | H110: 1 | I110: 50 | J110: RCS2-RA4D-30
A111: 108 | B111: 6000 | C111: =0.3*$A$1*1000*1000 -> 2941995 | D111: 2941995 | E111: 2941995 | F111: 2941995 | G111: 1 | H111: 1 | I111: 50
A112: 109 | B112: 12000 | C112: 2941995 | D112: 2941995 | E112: 2941995 | F112: 2941995 | G112: 1 | H112: 1 | I112: 50
A113: 110 | B113: 4000 | C113: =0.05*$A$1*1000*1000 -> 490332.5 | D113: =0.05*$A$1*1000*1000 -> 490332.5 | E113: =0.15*$A$1*1000*1000 -> 1470997.5 | F113: =0.15*$A$1*1000*1000 -> 1470997.5 | G113: 1 | H113: 1 | I113: 50 | J113: RCS2-SRA7BD-60
A114: 111 | B114: 8000 | C114: =0.15*$A$1*1000*1000 -> 1470997.5 | D114: =0.15*$A$1*1000*1000 -> 1470997.5 | E114: =0.25*$A$1*1000*1000 -> 2451662.5 | F114: =0.25*$A$1*1000*1000 -> 2451662.5 | G114: 1 | H114: 1 | I114: 50
A115: 112 | B115: 16000 | C115: =0.25*$A$1*1000*1000 -> 2451662.5 | D115: =0.25*$A$1*1000*1000 -> 2451662.5 | E115: =0.35*$A$1*1000*1000 -> 3432327.5 | F115: =0.35*$A$1*1000*1000 -> 3432327.5 | G115: 1 | H115: 1 | I115: 50
A116: 113 | B116: 4000 | C116: =0.1*$A$1*1000*1000 -> 980665 | D116: =0.1*$A$1*1000*1000 -> 980665 | E116: =0.2*$A$1*1000*1000 -> 1961330 | F116: =0.2*$A$1*1000*1000 -> 1961330 | G116: 1 | H116: 1 | I116: 50 | J116: RCS2-SRA7BD-100
A117: 114 | B117: 8000 | C117: =0.2*$A$1*1000*1000 -> 1961330 | D117: =0.2*$A$1*1000*1000 -> 1961330 | E117: =0.3*$A$1*1000*1000 -> 2941995 | F117: =0.3*$A$1*1000*1000 -> 2941995 | G117: 1 | H117: 1 | I117: 50
A118: 115 | B118: 16000 | C118: =0.3*$A$1*1000*1000 -> 2941995 | D118: =0.3*$A$1*1000*1000 -> 2941995 | E118: =0.4*$A$1*1000*1000 -> 3922660 | F118: =0.4*$A$1*1000*1000 -> 3922660 | G118: 1 | H118: 1 | I118: 50
A119: 116 | B119: 4000 | C119: =0.1*$A$1*1000*1000 -> 980665 | D119: =0.1*$A$1*1000*1000 -> 980665 | E119: =0.2*$A$1*1000*1000 -> 1961330 | F119: =0.2*$A$1*1000*1000 -> 1961330 | G119: 1 | H119: 1 | I119: 50 | J119: RCS2-SRA7BD-150
A120: 117 | B120: 8000 | C120: =0.2*$A$1*1000*1000 -> 1961330 | D120: =0.2*$A$1*1000*1000 -> 1961330 | E120: =0.3*$A$1*1000*1000 -> 2941995 | F120: =0.3*$A$1*1000*1000 -> 2941995 | G120: 1 | H120: 1 | I120: 50
A121: 118 | B121: 16000 | C121: =0.3*$A$1*1000*1000 -> 2941995 | D121: =0.3*$A$1*1000*1000 -> 2941995 | E121: =0.4*$A$1*1000*1000 -> 3922660 | F121: =0.4*$A$1*1000*1000 -> 3922660 | G121: 1 | H121: 1 | I121: 50
A122: 119 | B122: 3000 | C122: =0.2*$A$1*1000*1000 -> 1961330 | D122: =0.2*$A$1*1000*1000 -> 1961330 | E122: =0.2*$A$1*1000*1000 -> 1961330 | F122: =0.2*$A$1*1000*1000 -> 1961330 | G122: 1 | H122: 1 | I122: 50 | J122: RCS2-RA4R-20
A123: 120 | B123: 6000 | C123: =0.3*$A$1*1000*1000 -> 2941995 | D123: 2941995 | E123: 2941995 | F123: 2941995 | G123: 1 | H123: 1 | I123: 50
A124: 121 | B124: 12000 | C124: 2941995 | D124: 2941995 | E124: 2941995 | F124: 2941995 | G124: 1 | H124: 1 | I124: 50
A125: 122 | B125: 3000 | C125: =0.2*$A$1*1000*1000 -> 1961330 | D125: =0.2*$A$1*1000*1000 -> 1961330 | E125: =0.2*$A$1*1000*1000 -> 1961330 | F125: =0.2*$A$1*1000*1000 -> 1961330 | G125: 1 | H125: 1 | I125: 50 | J125: RCS2-RA4R-30
A126: 123 | B126: 6000 | C126: =0.3*$A$1*1000*1000 -> 2941995 | D126: 2941995 | E126: 2941995 | F126: 2941995 | G126: 1 | H126: 1 | I126: 50
A127: 124 | B127: 12000 | C127: 2941995 | D127: 2941995 | E127: 2941995 | F127: 2941995 | G127: 1 | H127: 1 | I127: 50
A128: 125 | B128: 4000 | C128: =0.2*$A$1*1000*1000 -> 1961330 | D128: =0.2*$A$1*1000*1000 -> 1961330 | E128: =0.2*$A$1*1000*1000 -> 1961330 | F128: =0.2*$A$1*1000*1000 -> 1961330 | G128: 1 | H128: 1 | I128: 50 | J128: RCS2-RA5R-60
A129: 126 | B129: 8000 | C129: =0.3*$A$1*1000*1000 -> 2941995 | D129: 2941995 | E129: 2941995 | F129: 2941995 | G129: 1 | H129: 1 | I129: 50
A130: 127 | B130: 16000 | C130: 2941995 | D130: 2941995 | E130: 2941995 | F130: 2941995 | G130: 1 | H130: 1 | I130: 50
A131: 128 | B131: 1250 | C131: =0.01*$A$1*1000*1000 -> 98066.5 | D131: =0.01*$A$1*1000*1000 -> 98066.5 | E131: =0.01*$A$1*1000*1000 -> 98066.5 | F131: =0.01*$A$1*1000*1000 -> 98066.5 | G131: 1 | H131: 1 | I131: 50 | J131: RCS2-RA13R-750
A132: 129 | B132: 2500 | C132: =0.02*$A$1*1000*1000 -> 196133 | D132: =0.02*$A$1*1000*1000 -> 196133 | E132: =0.02*$A$1*1000*1000 -> 196133 | F132: =0.02*$A$1*1000*1000 -> 196133 | G132: 1 | H132: 1 | I132: 50
A133: 130 | B133: 3000 | C133: =0.2*$A$1*1000*1000 -> 1961330 | D133: =0.2*$A$1*1000*1000 -> 1961330 | E133: =0.2*$A$1*1000*1000 -> 1961330 | F133: =0.2*$A$1*1000*1000 -> 1961330 | G133: 1 | H133: 1 | I133: 50 | J133: RCS2-RGS4C-20
A134: 131 | B134: 6000 | C134: =0.3*$A$1*1000*1000 -> 2941995 | D134: 2941995 | E134: 2941995 | F134: 2941995 | G134: 1 | H134: 1 | I134: 50
A135: 132 | B135: 12000 | C135: 2941995 | D135: 2941995 | E135: 2941995 | F135: 2941995 | G135: 1 | H135: 1 | I135: 50
A136: 133 | B136: 3000 | C136: =0.2*$A$1*1000*1000 -> 1961330 | D136: =0.2*$A$1*1000*1000 -> 1961330 | E136: =0.2*$A$1*1000*1000 -> 1961330 | F136: =0.2*$A$1*1000*1000 -> 1961330 | G136: 1 | H136: 1 | I136: 50 | J136: RCS2-RGS4C-30
A137: 134 | B137: 6000 | C137: =0.3*$A$1*1000*1000 -> 2941995 | D137: 2941995 | E137: 2941995 | F137: 2941995 | G137: 1 | H137: 1 | I137: 50
A138: =A137+1 -> 135 | B138: 12000 | C138: 2941995 | D138: 2941995 | E138: 2941995 | F138: 2941995 | G138: 1 | H138: 1 | I138: 50
A139: =A138+1 -> 136 | B139: 4000 | C139: =0.2*$A$1*1000*1000 -> 1961330 | D139: =0.2*$A$1*1000*1000 -> 1961330 | E139: =0.2*$A$1*1000*1000 -> 1961330 | F139: =0.2*$A$1*1000*1000 -> 1961330 | G139: 1 | H139: 1 | I139: 50 | J139: RCS2-RGS5C-60
A140: =A139+1 -> 137 | B140: 8000 | C140: =0.3*$A$1*1000*1000 -> 2941995 | D140: 2941995 | E140: 2941995 | F140: 2941995 | G140: 1 | H140: 1 | I140: 50
A141: 138 | B141: 16000 | C141: 2941995 | D141: 2941995 | E141: 2941995 | F141: 2941995 | G141: 1 | H141: 1 | I141: 50
A142: 139 | B142: 4000 | C142: =0.2*$A$1*1000*1000 -> 1961330 | D142: =0.2*$A$1*1000*1000 -> 1961330 | E142: =0.2*$A$1*1000*1000 -> 1961330 | F142: =0.2*$A$1*1000*1000 -> 1961330 | G142: 1 | H142: 1 | I142: 50 | J142: RCS2-RGS5C-100
A143: 140 | B143: 8000 | C143: =0.3*$A$1*1000*1000 -> 2941995 | D143: 2941995 | E143: 2941995 | F143: 2941995 | G143: 1 | H143: 1 | I143: 50
A144: =A143+1 -> 141 | B144: 16000 | C144: 2941995 | D144: 2941995 | E144: 2941995 | F144: 2941995 | G144: 1 | H144: 1 | I144: 50
A145: =A144+1 -> 142 | B145: 3000 | C145: =0.2*$A$1*1000*1000 -> 1961330 | D145: =0.2*$A$1*1000*1000 -> 1961330 | E145: =0.2*$A$1*1000*1000 -> 1961330 | F145: =0.2*$A$1*1000*1000 -> 1961330 | G145: 1 | H145: 1 | I145: 50 | J145: RCS2-RGS4D-20
A146: 143 | B146: 6000 | C146: =0.3*$A$1*1000*1000 -> 2941995 | D146: 2941995 | E146: 2941995 | F146: 2941995 | G146: 1 | H146: 1 | I146: 50
A147: 144 | B147: 12000 | C147: 2941995 | D147: 2941995 | E147: 2941995 | F147: 2941995 | G147: 1 | H147: 1 | I147: 50
A148: 145 | B148: 3000 | C148: =0.2*$A$1*1000*1000 -> 1961330 | D148: =0.2*$A$1*1000*1000 -> 1961330 | E148: =0.2*$A$1*1000*1000 -> 1961330 | F148: =0.2*$A$1*1000*1000 -> 1961330 | G148: 1 | H148: 1 | I148: 50 | J148: RCS2-RGS4D-30
A149: 146 | B149: 6000 | C149: =0.3*$A$1*1000*1000 -> 2941995 | D149: 2941995 | E149: 2941995 | F149: 2941995 | G149: 1 | H149: 1 | I149: 50
A150: 147 | B150: 12000 | C150: 2941995 | D150: 2941995 | E150: 2941995 | F150: 2941995 | G150: 1 | H150: 1 | I150: 50
A151: 148 | B151: 4000 | C151: =0.05*$A$1*1000*1000 -> 490332.5 | D151: =0.05*$A$1*1000*1000 -> 490332.5 | E151: =0.15*$A$1*1000*1000 -> 1470997.5 | F151: =0.15*$A$1*1000*1000 -> 1470997.5 | G151: 1 | H151: 1 | I151: 50 | J151: RCS2-SRGS7BD-60
A152: 149 | B152: 8000 | C152: =0.15*$A$1*1000*1000 -> 1470997.5 | D152: =0.15*$A$1*1000*1000 -> 1470997.5 | E152: =0.25*$A$1*1000*1000 -> 2451662.5 | F152: =0.25*$A$1*1000*1000 -> 2451662.5 | G152: 1 | H152: 1 | I152: 50
A153: 150 | B153: 16000 | C153: =0.25*$A$1*1000*1000 -> 2451662.5 | D153: =0.25*$A$1*1000*1000 -> 2451662.5 | E153: =0.35*$A$1*1000*1000 -> 3432327.5 | F153: =0.35*$A$1*1000*1000 -> 3432327.5 | G153: 1 | H153: 1 | I153: 50
A154: 151 | B154: 4000 | C154: =0.1*$A$1*1000*1000 -> 980665 | D154: =0.1*$A$1*1000*1000 -> 980665 | E154: =0.2*$A$1*1000*1000 -> 1961330 | F154: =0.2*$A$1*1000*1000 -> 1961330 | G154: 1 | H154: 1 | I154: 50 | J154: RCS2-SRGS7BD-100
A155: 152 | B155: 8000 | C155: =0.2*$A$1*1000*1000 -> 1961330 | D155: =0.2*$A$1*1000*1000 -> 1961330 | E155: =0.3*$A$1*1000*1000 -> 2941995 | F155: =0.3*$A$1*1000*1000 -> 2941995 | G155: 1 | H155: 1 | I155: 50
A156: 153 | B156: 16000 | C156: =0.3*$A$1*1000*1000 -> 2941995 | D156: =0.3*$A$1*1000*1000 -> 2941995 | E156: =0.4*$A$1*1000*1000 -> 3922660 | F156: =0.4*$A$1*1000*1000 -> 3922660 | G156: 1 | H156: 1 | I156: 50
A157: 154 | B157: 4000 | C157: =0.1*$A$1*1000*1000 -> 980665 | D157: =0.1*$A$1*1000*1000 -> 980665 | E157: =0.2*$A$1*1000*1000 -> 1961330 | F157: =0.2*$A$1*1000*1000 -> 1961330 | G157: 1 | H157: 1 | I157: 50 | J157: RCS2-SRGS7BD-150
A158: 155 | B158: 8000 | C158: =0.2*$A$1*1000*1000 -> 1961330 | D158: =0.2*$A$1*1000*1000 -> 1961330 | E158: =0.3*$A$1*1000*1000 -> 2941995 | F158: =0.3*$A$1*1000*1000 -> 2941995 | G158: 1 | H158: 1 | I158: 50
A159: 156 | B159: 16000 | C159: =0.3*$A$1*1000*1000 -> 2941995 | D159: =0.3*$A$1*1000*1000 -> 2941995 | E159: =0.4*$A$1*1000*1000 -> 3922660 | F159: =0.4*$A$1*1000*1000 -> 3922660 | G159: 1 | H159: 1 | I159: 50
A160: 157 | B160: 3000 | C160: =0.2*$A$1*1000*1000 -> 1961330 | D160: =0.2*$A$1*1000*1000 -> 1961330 | E160: =0.2*$A$1*1000*1000 -> 1961330 | F160: =0.2*$A$1*1000*1000 -> 1961330 | G160: 1 | H160: 1 | I160: 50 | J160: RCS2-RGD4C-20
A161: 158 | B161: 6000 | C161: =0.3*$A$1*1000*1000 -> 2941995 | D161: 2941995 | E161: 2941995 | F161: 2941995 | G161: 1 | H161: 1 | I161: 50
A162: 159 | B162: 12000 | C162: 2941995 | D162: 2941995 | E162: 2941995 | F162: 2941995 | G162: 1 | H162: 1 | I162: 50
A163: 160 | B163: 3000 | C163: =0.2*$A$1*1000*1000 -> 1961330 | D163: =0.2*$A$1*1000*1000 -> 1961330 | E163: =0.2*$A$1*1000*1000 -> 1961330 | F163: =0.2*$A$1*1000*1000 -> 1961330 | G163: 1 | H163: 1 | I163: 50 | J163: RCS2-RGD4C-30
A164: 161 | B164: 6000 | C164: =0.3*$A$1*1000*1000 -> 2941995 | D164: 2941995 | E164: 2941995 | F164: 2941995 | G164: 1 | H164: 1 | I164: 50
A165: =A164+1 -> 162 | B165: 12000 | C165: 2941995 | D165: 2941995 | E165: 2941995 | F165: 2941995 | G165: 1 | H165: 1 | I165: 50
A166: =A165+1 -> 163 | B166: 4000 | C166: =0.2*$A$1*1000*1000 -> 1961330 | D166: =0.2*$A$1*1000*1000 -> 1961330 | E166: =0.2*$A$1*1000*1000 -> 1961330 | F166: =0.2*$A$1*1000*1000 -> 1961330 | G166: 1 | H166: 1 | I166: 50 | J166: RCS2-RGD5C-60
A167: 164 | B167: 8000 | C167: =0.3*$A$1*1000*1000 -> 2941995 | D167: 2941995 | E167: 2941995 | F167: 2941995 | G167: 1 | H167: 1 | I167: 50
A168: 165 | B168: 16000 | C168: 2941995 | D168: 2941995 | E168: 2941995 | F168: 2941995 | G168: 1 | H168: 1 | I168: 50
A169: 166 | B169: 4000 | C169: =0.2*$A$1*1000*1000 -> 1961330 | D169: =0.2*$A$1*1000*1000 -> 1961330 | E169: =0.2*$A$1*1000*1000 -> 1961330 | F169: =0.2*$A$1*1000*1000 -> 1961330 | G169: 1 | H169: 1 | I169: 50 | J169: RCS2-RGD5C-100
A170: 167 | B170: 8000 | C170: =0.3*$A$1*1000*1000 -> 2941995 | D170: 2941995 | E170: 2941995 | F170: 2941995 | G170: 1 | H170: 1 | I170: 50
A171: =A170+1 -> 168 | B171: 16000 | C171: 2941995 | D171: 2941995 | E171: 2941995 | F171: 2941995 | G171: 1 | H171: 1 | I171: 50
A172: =A171+1 -> 169 | B172: 3000 | C172: =0.2*$A$1*1000*1000 -> 1961330 | D172: =0.2*$A$1*1000*1000 -> 1961330 | E172: =0.2*$A$1*1000*1000 -> 1961330 | F172: =0.2*$A$1*1000*1000 -> 1961330 | G172: 1 | H172: 1 | I172: 50 | J172: RCS2-RGD4D-20
A173: 170 | B173: 6000 | C173: =0.3*$A$1*1000*1000 -> 2941995 | D173: 2941995 | E173: 2941995 | F173: 2941995 | G173: 1 | H173: 1 | I173: 50
A174: 171 | B174: 12000 | C174: 2941995 | D174: 2941995 | E174: 2941995 | F174: 2941995 | G174: 1 | H174: 1 | I174: 50
A175: 172 | B175: 3000 | C175: =0.2*$A$1*1000*1000 -> 1961330 | D175: =0.2*$A$1*1000*1000 -> 1961330 | E175: =0.2*$A$1*1000*1000 -> 1961330 | F175: =0.2*$A$1*1000*1000 -> 1961330 | G175: 1 | H175: 1 | I175: 50 | J175: RCS2-RGD4D-30
A176: 173 | B176: 6000 | C176: =0.3*$A$1*1000*1000 -> 2941995 | D176: 2941995 | E176: 2941995 | F176: 2941995 | G176: 1 | H176: 1 | I176: 50
A177: 174 | B177: 12000 | C177: 2941995 | D177: 2941995 | E177: 2941995 | F177: 2941995 | G177: 1 | H177: 1 | I177: 50
A178: 175 | B178: 4000 | C178: =0.05*$A$1*1000*1000 -> 490332.5 | D178: =0.05*$A$1*1000*1000 -> 490332.5 | E178: =0.15*$A$1*1000*1000 -> 1470997.5 | F178: =0.15*$A$1*1000*1000 -> 1470997.5 | G178: 1 | H178: 1 | I178: 50 | J178: RCS2-SRGD7BD-60
A179: 176 | B179: 8000 | C179: =0.15*$A$1*1000*1000 -> 1470997.5 | D179: =0.15*$A$1*1000*1000 -> 1470997.5 | E179: =0.25*$A$1*1000*1000 -> 2451662.5 | F179: =0.25*$A$1*1000*1000 -> 2451662.5 | G179: 1 | H179: 1 | I179: 50
A180: 177 | B180: 16000 | C180: =0.25*$A$1*1000*1000 -> 2451662.5 | D180: =0.25*$A$1*1000*1000 -> 2451662.5 | E180: =0.35*$A$1*1000*1000 -> 3432327.5 | F180: =0.25*$A$1*1000*1000 -> 2451662.5 | G180: 1 | H180: 1 | I180: 50
A181: 178 | B181: 4000 | C181: =0.1*$A$1*1000*1000 -> 980665 | D181: =0.1*$A$1*1000*1000 -> 980665 | E181: =0.2*$A$1*1000*1000 -> 1961330 | F181: =0.2*$A$1*1000*1000 -> 1961330 | G181: 1 | H181: 1 | I181: 50 | J181: RCS2-SRGD7BD-100
A182: 179 | B182: 8000 | C182: =0.2*$A$1*1000*1000 -> 1961330 | D182: =0.2*$A$1*1000*1000 -> 1961330 | E182: =0.3*$A$1*1000*1000 -> 2941995 | F182: =0.3*$A$1*1000*1000 -> 2941995 | G182: 1 | H182: 1 | I182: 50
A183: 180 | B183: 16000 | C183: =0.3*$A$1*1000*1000 -> 2941995 | D183: =0.3*$A$1*1000*1000 -> 2941995 | E183: =0.4*$A$1*1000*1000 -> 3922660 | F183: =0.4*$A$1*1000*1000 -> 3922660 | G183: 1 | H183: 1 | I183: 50
A184: 181 | B184: 4000 | C184: =0.1*$A$1*1000*1000 -> 980665 | D184: =0.1*$A$1*1000*1000 -> 980665 | E184: =0.2*$A$1*1000*1000 -> 1961330 | F184: =0.2*$A$1*1000*1000 -> 1961330 | G184: 1 | H184: 1 | I184: 50 | J184: RCS2-SRGD7BD-150
A185: 182 | B185: 8000 | C185: =0.2*$A$1*1000*1000 -> 1961330 | D185: =0.2*$A$1*1000*1000 -> 1961330 | E185: =0.3*$A$1*1000*1000 -> 2941995 | F185: =0.3*$A$1*1000*1000 -> 2941995 | G185: 1 | H185: 1 | I185: 50
A186: 183 | B186: 16000 | C186: =0.3*$A$1*1000*1000 -> 2941995 | D186: =0.3*$A$1*1000*1000 -> 2941995 | E186: =0.4*$A$1*1000*1000 -> 3922660 | F186: =0.4*$A$1*1000*1000 -> 3922660 | G186: 1 | H186: 1 | I186: 50
A187: 184 | B187: 3000 | C187: =0.2*$A$1*1000*1000 -> 1961330 | D187: =0.2*$A$1*1000*1000 -> 1961330 | E187: =0.2*$A$1*1000*1000 -> 1961330 | F187: =0.2*$A$1*1000*1000 -> 1961330 | G187: 1 | H187: 1 | I187: 50 | J187: RCS2-RGD4R-20
A188: 185 | B188: 6000 | C188: =0.3*$A$1*1000*1000 -> 2941995 | D188: 2941995 | E188: 2941995 | F188: 2941995 | G188: 1 | H188: 1 | I188: 50
A189: 186 | B189: 12000 | C189: 2941995 | D189: 2941995 | E189: 2941995 | F189: 2941995 | G189: 1 | H189: 1 | I189: 50
A190: 187 | B190: 3000 | C190: =0.2*$A$1*1000*1000 -> 1961330 | D190: =0.2*$A$1*1000*1000 -> 1961330 | E190: =0.2*$A$1*1000*1000 -> 1961330 | F190: =0.2*$A$1*1000*1000 -> 1961330 | G190: 1 | H190: 1 | I190: 50 | J190: RCS2-RGD4R-30
A191: 188 | B191: 6000 | C191: =0.3*$A$1*1000*1000 -> 2941995 | D191: 2941995 | E191: 2941995 | F191: 2941995 | G191: 1 | H191: 1 | I191: 50
A192: 189 | B192: 12000 | C192: 2941995 | D192: 2941995 | E192: 2941995 | F192: 2941995 | G192: 1 | H192: 1 | I192: 50
A193: 190 | B193: 5000 | C193: -1 | D193: =0.2*$A$1*1000*1000 -> 1961330 | E193: -1 | F193: =0.2*$A$1*1000*1000 -> 1961330 | G193: 1 | H193: 2 | I193: 50 | J193: RCS2-A4R-20
A194: 191 | B194: 10000 | C194: -1 | D194: 1961330 | E194: -1 | F194: 1961330 | G194: 1 | H194: 2 | I194: 50
A195: 192 | B195: 6000 | C195: -1 | D195: 1961330 | E195: -1 | F195: 1961330 | G195: 1 | H195: 2 | I195: 50 | J195: RCS2-A5R-20
A196: =A195+1 -> 193 | B196: 12000 | C196: -1 | D196: 1961330 | E196: -1 | F196: 1961330 | G196: 1 | H196: 2 | I196: 50
A197: 194 | B197: 6000 | C197: -1 | D197: 1961330 | E197: -1 | F197: 1961330 | G197: 1 | H197: 2 | I197: 50 | J197: RCS2-A6R-30
A198: 195 | B198: 12000 | C198: -1 | D198: 1961330 | E198: -1 | F198: 1961330 | G198: 1 | H198: 2 | I198: 50
A199: 196 | B199: 4000 | C199: =0.2*$A$1*1000*1000 -> 1961330 | D199: =0.2*$A$1*1000*1000 -> 1961330 | E199: =0.2*$A$1*1000*1000 -> 1961330 | F199: =0.2*$A$1*1000*1000 -> 1961330 | G199: 1 | H199: 1 | I199: 50 | J199: RCS2-F5D-60
A200: 197 | B200: 8000 | C200: =0.3*$A$1*1000*1000 -> 2941995 | D200: 2941995 | E200: 2941995 | F200: 2941995 | G200: 1 | H200: 1 | I200: 50
... 97 more rows

Sheet StrokeData (hidden)
B1: 1 | C1: 2 | D1: 4 | E1: 5 | F1: 6 | G1: 7 | H1: 8 | I1: 9 | J1: 10 | K1: 16 | L1: 17
A2: ﾃﾞｰﾀ№ | B2: ｽﾄﾛｰｸ長 | C2: 有効ｽﾄﾛｰｸ補正 | D2: 基準ｹﾞｲﾝ用搬送質量 | E2: 水平可搬質量 | F2: 垂直可搬質量 | G2: 最大速度 | H2: 位置ｹﾞｲﾝ | I2: FFｹﾞｲﾝ | J2: 速度制御帯域 | K2: 前ﾃﾞｰﾀ№ | L2: 次ﾃﾞｰﾀ№ | M2: 備考
A3: =ModelData!A3 -> 0 | B3: ㎜ | C3: ㎜ | D3: 1g | E3: 1g | F3: 1g | G3: ㎜/s | H3: 1/s | I3: % | J3: rad/s
A4: =A3+1 -> 1 | B4: 600 | C4: 0 | D4: 50000 | E4: =D4 -> 50000 | F4: 14000 | G4: 240 | H4: 30 | I4: 0 | J4: 120 | K4: -1 | L4: -1 | M4: ISA-SXM-60-4
A5: =A4+1 -> 2 | B5: 600 | C5: 0 | D5: 25000 | E5: 25000 | F5: 6000 | G5: 480 | H5: 30 | I5: 0 | J5: 80 | K5: -1 | L5: -1 | M5: ISA-SXM-60-8
A6: =A5+1 -> 3 | B6: 600 | C6: 0 | D6: 12000 | E6: 12000 | F6: 3000 | G6: 960 | H6: 30 | I6: 0 | J6: 80 | K6: -1 | L6: -1 | M6: ISA-SXM-60-16
A7: 4 | B7: 600 | C7: 0 | D7: 50000 | E7: 50000 | F7: 14000 | G7: 240 | H7: 30 | I7: 0 | J7: 120 | K7: -1 | L7: -1 | M7: ISA-SYM-60-4
A8: 5 | B8: 600 | C8: 0 | D8: 25000 | E8: 25000 | F8: 6000 | G8: 480 | H8: 30 | I8: 0 | J8: 80 | K8: -1 | L8: -1 | M8: ISA-SYM-60-8
A9: 6 | B9: 600 | C9: 0 | D9: 12000 | E9: 12000 | F9: 3000 | G9: 960 | H9: 30 | I9: 0 | J9: 80 | K9: -1 | L9: -1 | M9: ISA-SYM-60-16
A10: 7 | B10: 600 | C10: 0 | D10: 50000 | E10: -1 | F10: 14000 | G10: 240 | H10: 30 | I10: 0 | J10: 120 | K10: -1 | L10: -1 | M10: ISA-SZM-60-4
A11: 8 | B11: 600 | C11: 0 | D11: 25000 | E11: -1 | F11: 6000 | G11: 480 | H11: 30 | I11: 0 | J11: 80 | K11: -1 | L11: -1 | M11: ISA-SZM-60-8
A12: 9 | B12: 700 | C12: 0 | D12: 80000 | E12: =D12 -> 80000 | F12: 19000 | G12: 300 | H12: 30 | I12: 0 | J12: 120 | K12: -1 | L12: =A13 -> 10 | M12: ISA-MXM-100-5
A13: 10 | B13: 800 | C13: 0 | D13: 80000 | E13: 80000 | F13: 19000 | G13: 215 | H13: 30 | I13: 0 | J13: 120 | K13: =A12 -> 9 | L13: =A14 -> 11
A14: 11 | B14: 900 | C14: 0 | D14: 80000 | E14: 80000 | F14: 19000 | G14: 170 | H14: 30 | I14: 0 | J14: 120 | K14: =A13 -> 10 | L14: =A15 -> 12
A15: 12 | B15: 1000 | C15: 0 | D15: 80000 | E15: 80000 | F15: 19000 | G15: 140 | H15: 30 | I15: 0 | J15: 120 | K15: =A14 -> 11 | L15: -1
A16: 13 | B16: 700 | C16: 0 | D16: 40000 | E16: 40000 | F16: 9000 | G16: 600 | H16: 30 | I16: 0 | J16: 80 | K16: -1 | L16: =A17 -> 14 | M16: ISA-MXM-100-10
A17: 14 | B17: 800 | C17: 0 | D17: 40000 | E17: 40000 | F17: 9000 | G17: 430 | H17: 30 | I17: 0 | J17: 80 | K17: =A16 -> 13 | L17: =A18 -> 15
A18: 15 | B18: 900 | C18: 0 | D18: 40000 | E18: 40000 | F18: 9000 | G18: 345 | H18: 30 | I18: 0 | J18: 80 | K18: =A17 -> 14 | L18: =A19 -> 16
A19: 16 | B19: 1000 | C19: 0 | D19: 40000 | E19: 40000 | F19: 9000 | G19: 280 | H19: 30 | I19: 0 | J19: 80 | K19: =A18 -> 15 | L19: -1
A20: 17 | B20: 700 | C20: 0 | D20: 20000 | E20: 20000 | F20: 3500 | G20: 1200 | H20: 30 | I20: 0 | J20: 80 | K20: -1 | L20: =A21 -> 18 | M20: ISA-MXM-100-20
A21: 18 | B21: 800 | C21: 0 | D21: 20000 | E21: 20000 | F21: 3500 | G21: 860 | H21: 30 | I21: 0 | J21: 80 | K21: =A20 -> 17 | L21: =A22 -> 19
A22: 19 | B22: 900 | C22: 0 | D22: 20000 | E22: 20000 | F22: 3500 | G22: 695 | H22: 30 | I22: 0 | J22: 80 | K22: =A21 -> 18 | L22: =A23 -> 20
A23: 20 | B23: 1000 | C23: 0 | D23: 20000 | E23: 20000 | F23: 3500 | G23: 570 | H23: 30 | I23: 0 | J23: 80 | K23: =A22 -> 19 | L23: -1
A24: 21 | B24: 700 | C24: 0 | D24: 12000 | E24: 12000 | F24: -1 | G24: 1800 | H24: 30 | I24: 0 | J24: 80 | K24: -1 | L24: =A25 -> 22 | M24: ISA-MXM-100-30
A25: 22 | B25: 800 | C25: 0 | D25: 12000 | E25: 12000 | F25: -1 | G25: 1290 | H25: 30 | I25: 0 | J25: 80 | K25: =A24 -> 21 | L25: =A26 -> 23
A26: 23 | B26: 900 | C26: 0 | D26: 12000 | E26: 12000 | F26: -1 | G26: 1045 | H26: 30 | I26: 0 | J26: 80 | K26: =A25 -> 22 | L26: =A27 -> 24
A27: 24 | B27: 1000 | C27: 0 | D27: 12000 | E27: 12000 | F27: -1 | G27: 860 | H27: 30 | I27: 0 | J27: 80 | K27: =A26 -> 23 | L27: -1
A28: 25 | B28: 600 | C28: 0 | D28: 80000 | E28: 80000 | F28: 19000 | G28: 600 | H28: 30 | I28: 0 | J28: 80 | K28: -1 | L28: =A29 -> 26 | M28: ISA-MXM-200-10
A29: 26 | B29: 700 | C29: 0 | D29: 80000 | E29: 80000 | F29: 19000 | G29: 600 | H29: 30 | I29: 0 | J29: 80 | K29: =A28 -> 25 | L29: =A30 -> 27
A30: 27 | B30: 800 | C30: 0 | D30: 80000 | E30: 80000 | F30: 19000 | G30: 430 | H30: 30 | I30: 0 | J30: 80 | K30: =A29 -> 26 | L30: =A31 -> 28
A31: 28 | B31: 900 | C31: 0 | D31: 80000 | E31: 80000 | F31: 19000 | G31: 345 | H31: 30 | I31: 0 | J31: 80 | K31: =A30 -> 27 | L31: =A32 -> 29
A32: 29 | B32: 1000 | C32: 0 | D32: 80000 | E32: 80000 | F32: 19000 | G32: 280 | H32: 30 | I32: 0 | J32: 80 | K32: =A31 -> 28 | L32: -1
A33: 30 | B33: 600 | C33: 0 | D33: 40000 | E33: 40000 | F33: 9000 | G33: 1200 | H33: 30 | I33: 0 | J33: 80 | K33: -1 | L33: =A34 -> 31 | M33: ISA-MXM-200-20
A34: 31 | B34: 700 | C34: 0 | D34: 40000 | E34: 40000 | F34: 9000 | G34: 1200 | H34: 30 | I34: 0 | J34: 80 | K34: =A33 -> 30 | L34: =A35 -> 32
A35: 32 | B35: 800 | C35: 0 | D35: 40000 | E35: 40000 | F35: 9000 | G35: 860 | H35: 30 | I35: 0 | J35: 80 | K35: =A34 -> 31 | L35: =A36 -> 33
A36: 33 | B36: 900 | C36: 0 | D36: 40000 | E36: 40000 | F36: 9000 | G36: 695 | H36: 30 | I36: 0 | J36: 80 | K36: =A35 -> 32 | L36: =A37 -> 34
A37: 34 | B37: 1000 | C37: 0 | D37: 40000 | E37: 40000 | F37: 9000 | G37: 570 | H37: 30 | I37: 0 | J37: 80 | K37: =A36 -> 33 | L37: -1
A38: 35 | B38: 700 | C38: 0 | D38: 25000 | E38: 25000 | F38: 6000 | G38: 1800 | H38: 30 | I38: 0 | J38: 80 | K38: -1 | L38: =A39 -> 36 | M38: ISA-MXM-200-30
A39: 36 | B39: 800 | C39: 0 | D39: 25000 | E39: 25000 | F39: 6000 | G39: 1290 | H39: 30 | I39: 0 | J39: 80 | K39: =A38 -> 35 | L39: =A40 -> 37
A40: 37 | B40: 900 | C40: 0 | D40: 25000 | E40: 25000 | F40: 6000 | G40: 1045 | H40: 30 | I40: 0 | J40: 80 | K40: =A39 -> 36 | L40: =A41 -> 38
A41: 38 | B41: 1000 | C41: 0 | D41: 25000 | E41: 25000 | F41: 6000 | G41: 860 | H41: 30 | I41: 0 | J41: 80 | K41: =A40 -> 37 | L41: -1
A42: 39 | B42: 1000 | C42: 0 | D42: 40000 | E42: 40000 | F42: -1 | G42: 1200 | H42: 30 | I42: 0 | J42: 80 | K42: -1 | L42: =A43 -> 40 | M42: ISA-MXMX-200-20
A43: 40 | B43: 1100 | C43: 0 | D43: 40000 | E43: 40000 | F43: -1 | G43: 1200 | H43: 30 | I43: 0 | J43: 80 | K43: =A42 -> 39 | L43: 41
A44: 41 | B44: 1200 | C44: 0 | D44: 40000 | E44: 40000 | F44: -1 | G44: 1100 | H44: 30 | I44: 0 | J44: 80 | K44: =A43 -> 40 | L44: 42
A45: 42 | B45: 1300 | C45: 0 | D45: 40000 | E45: 40000 | F45: -1 | G45: 1000 | H45: 30 | I45: 0 | J45: 80 | K45: =A44 -> 41 | L45: 43
A46: 43 | B46: 1400 | C46: 0 | D46: 40000 | E46: 40000 | F46: -1 | G46: 950 | H46: 30 | I46: 0 | J46: 80 | K46: =A45 -> 42 | L46: 44
A47: 44 | B47: 1500 | C47: 0 | D47: 40000 | E47: 40000 | F47: -1 | G47: 800 | H47: 30 | I47: 0 | J47: 80 | K47: =A46 -> 43 | L47: 45
A48: 45 | B48: 1600 | C48: 0 | D48: 40000 | E48: 40000 | F48: -1 | G48: 700 | H48: 30 | I48: 0 | J48: 80 | K48: 44 | L48: 46
A49: 46 | B49: 1700 | C49: 0 | D49: 40000 | E49: 40000 | F49: -1 | G49: 600 | H49: 30 | I49: 0 | J49: 80 | K49: 45 | L49: 47
A50: 47 | B50: 1800 | C50: 0 | D50: 40000 | E50: 40000 | F50: -1 | G50: 550 | H50: 30 | I50: 0 | J50: 80 | K50: 46 | L50: 48
A51: 48 | B51: 1900 | C51: 0 | D51: 40000 | E51: 40000 | F51: -1 | G51: 500 | H51: 30 | I51: 0 | J51: 80 | K51: 47 | L51: 49
A52: 49 | B52: 2000 | C52: 0 | D52: 40000 | E52: 40000 | F52: -1 | G52: 450 | H52: 30 | I52: 0 | J52: 80 | K52: 48 | L52: -1
A53: 50 | B53: 800 | C53: 0 | D53: 25000 | E53: 25000 | F53: -1 | G53: 1800 | H53: 30 | I53: 0 | J53: 80 | K53: -1 | L53: =A54 -> 51 | M53: ISA-MXMX-200-30
A54: 51 | B54: 1100 | C54: 0 | D54: 25000 | E54: 25000 | F54: -1 | G54: 1800 | H54: 30 | I54: 0 | J54: 80 | K54: =A53 -> 50 | L54: 52
A55: 52 | B55: 1200 | C55: 0 | D55: 25000 | E55: 25000 | F55: -1 | G55: 1650 | H55: 30 | I55: 0 | J55: 80 | K55: =A54 -> 51 | L55: 53
A56: 53 | B56: 1300 | C56: 0 | D56: 25000 | E56: 25000 | F56: -1 | G56: 1500 | H56: 30 | I56: 0 | J56: 80 | K56: =A55 -> 52 | L56: 54
A57: 54 | B57: 1400 | C57: 0 | D57: 25000 | E57: 25000 | F57: -1 | G57: 1425 | H57: 30 | I57: 0 | J57: 80 | K57: =A56 -> 53 | L57: 55
A58: 55 | B58: 1500 | C58: 0 | D58: 25000 | E58: 25000 | F58: -1 | G58: 1200 | H58: 30 | I58: 0 | J58: 80 | K58: =A57 -> 54 | L58: 56
A59: 56 | B59: 1600 | C59: 0 | D59: 25000 | E59: 25000 | F59: -1 | G59: 1050 | H59: 30 | I59: 0 | J59: 80 | K59: 55 | L59: 57
A60: 57 | B60: 1700 | C60: 0 | D60: 25000 | E60: 25000 | F60: -1 | G60: 900 | H60: 30 | I60: 0 | J60: 80 | K60: 56 | L60: 58
A61: 58 | B61: 1800 | C61: 0 | D61: 25000 | E61: 25000 | F61: -1 | G61: 825 | H61: 30 | I61: 0 | J61: 80 | K61: 57 | L61: 59
A62: 59 | B62: 1900 | C62: 0 | D62: 25000 | E62: 25000 | F62: -1 | G62: 750 | H62: 30 | I62: 0 | J62: 80 | K62: 58 | L62: 60
A63: 60 | B63: 2000 | C63: 0 | D63: 25000 | E63: 25000 | F63: -1 | G63: 675 | H63: 30 | I63: 0 | J63: 80 | K63: 59 | L63: -1
A64: 61 | B64: 700 | C64: 0 | D64: 80000 | E64: 80000 | F64: 19000 | G64: 300 | H64: 30 | I64: 0 | J64: 120 | K64: -1 | L64: =A65 -> 62 | M64: ISA-MYM-100-5
A65: 62 | B65: 800 | C65: 0 | D65: 80000 | E65: 80000 | F65: 19000 | G65: 215 | H65: 30 | I65: 0 | J65: 120 | K65: =A64 -> 61 | L65: =A66 -> 63
A66: 63 | B66: 900 | C66: 0 | D66: 80000 | E66: 80000 | F66: 19000 | G66: 170 | H66: 30 | I66: 0 | J66: 120 | K66: =A65 -> 62 | L66: =A67 -> 64
A67: 64 | B67: 1000 | C67: 0 | D67: 80000 | E67: 80000 | F67: 19000 | G67: 140 | H67: 30 | I67: 0 | J67: 120 | K67: =A66 -> 63 | L67: -1
A68: 65 | B68: 700 | C68: 0 | D68: 40000 | E68: 40000 | F68: 9000 | G68: 600 | H68: 30 | I68: 0 | J68: 80 | K68: -1 | L68: =A69 -> 66 | M68: ISA-MYM-100-10
A69: 66 | B69: 800 | C69: 0 | D69: 40000 | E69: 40000 | F69: 9000 | G69: 430 | H69: 30 | I69: 0 | J69: 80 | K69: =A68 -> 65 | L69: =A70 -> 67
A70: =A69+1 -> 67 | B70: 900 | C70: 0 | D70: 40000 | E70: 40000 | F70: 9000 | G70: 345 | H70: 30 | I70: 0 | J70: 80 | K70: =A69 -> 66 | L70: =A71 -> 68
A71: 68 | B71: 1000 | C71: 0 | D71: 40000 | E71: 40000 | F71: 9000 | G71: 280 | H71: 30 | I71: 0 | J71: 80 | K71: =A70 -> 67 | L71: -1
A72: 69 | B72: 700 | C72: 0 | D72: 20000 | E72: 20000 | F72: 3500 | G72: 1200 | H72: 30 | I72: 0 | J72: 80 | K72: -1 | L72: =A73 -> 70 | M72: ISA-MYM-100-20
A73: 70 | B73: 800 | C73: 0 | D73: 20000 | E73: 20000 | F73: 3500 | G73: 860 | H73: 30 | I73: 0 | J73: 80 | K73: =A72 -> 69 | L73: =A74 -> 71
A74: 71 | B74: 900 | C74: 0 | D74: 20000 | E74: 20000 | F74: 3500 | G74: 695 | H74: 30 | I74: 0 | J74: 80 | K74: =A73 -> 70 | L74: =A75 -> 72
A75: 72 | B75: 1000 | C75: 0 | D75: 20000 | E75: 20000 | F75: 3500 | G75: 570 | H75: 30 | I75: 0 | J75: 80 | K75: =A74 -> 71 | L75: -1
A76: 73 | B76: 700 | C76: 0 | D76: 12000 | E76: =D76 -> 12000 | F76: -1 | G76: 1800 | H76: 30 | I76: 0 | J76: 80 | K76: -1 | L76: =A77 -> 74 | M76: ISA-MYM-100-30
A77: 74 | B77: 800 | C77: 0 | D77: 12000 | E77: 12000 | F77: -1 | G77: 1290 | H77: 30 | I77: 0 | J77: 80 | K77: =A76 -> 73 | L77: =A78 -> 75
A78: 75 | B78: 900 | C78: 0 | D78: 12000 | E78: 12000 | F78: -1 | G78: 1045 | H78: 30 | I78: 0 | J78: 80 | K78: =A77 -> 74 | L78: =A79 -> 76
A79: 76 | B79: 1000 | C79: 0 | D79: 12000 | E79: 12000 | F79: -1 | G79: 860 | H79: 30 | I79: 0 | J79: 80 | K79: =A78 -> 75 | L79: -1
A80: 77 | B80: 600 | C80: 0 | D80: 80000 | E80: 80000 | F80: 19000 | G80: 600 | H80: 30 | I80: 0 | J80: 80 | K80: -1 | L80: =A81 -> 78 | M80: ISA-MYM-200-10
A81: 78 | B81: 700 | C81: 0 | D81: 80000 | E81: 80000 | F81: 19000 | G81: 600 | H81: 30 | I81: 0 | J81: 80 | K81: =A80 -> 77 | L81: =A82 -> 79
A82: 79 | B82: 800 | C82: 0 | D82: 80000 | E82: 80000 | F82: 19000 | G82: 430 | H82: 30 | I82: 0 | J82: 80 | K82: =A81 -> 78 | L82: =A83 -> 80
A83: 80 | B83: 900 | C83: 0 | D83: 80000 | E83: 80000 | F83: 19000 | G83: 345 | H83: 30 | I83: 0 | J83: 80 | K83: =A82 -> 79 | L83: =A84 -> 81
A84: 81 | B84: 1000 | C84: 0 | D84: 80000 | E84: 80000 | F84: 19000 | G84: 280 | H84: 30 | I84: 0 | J84: 80 | K84: =A83 -> 80 | L84: -1
A85: 82 | B85: 600 | C85: 0 | D85: 40000 | E85: 40000 | F85: 9000 | G85: 1200 | H85: 30 | I85: 0 | J85: 80 | K85: -1 | L85: =A86 -> 83 | M85: ISA-MYM-200-20
A86: 83 | B86: 700 | C86: 0 | D86: 40000 | E86: 40000 | F86: 9000 | G86: 1200 | H86: 30 | I86: 0 | J86: 80 | K86: =A85 -> 82 | L86: =A87 -> 84
A87: 84 | B87: 800 | C87: 0 | D87: 40000 | E87: 40000 | F87: 9000 | G87: 860 | H87: 30 | I87: 0 | J87: 80 | K87: =A86 -> 83 | L87: =A88 -> 85
A88: 85 | B88: 900 | C88: 0 | D88: 40000 | E88: 40000 | F88: 9000 | G88: 695 | H88: 30 | I88: 0 | J88: 80 | K88: =A87 -> 84 | L88: =A89 -> 86
A89: 86 | B89: 1000 | C89: 0 | D89: 40000 | E89: 40000 | F89: 9000 | G89: 570 | H89: 30 | I89: 0 | J89: 80 | K89: =A88 -> 85 | L89: -1
A90: 87 | B90: 700 | C90: 0 | D90: 25000 | E90: 25000 | F90: 6000 | G90: 1800 | H90: 30 | I90: 0 | J90: 80 | K90: -1 | L90: =A91 -> 88 | M90: ISA-MYM-200-30
A91: 88 | B91: 800 | C91: 0 | D91: 25000 | E91: 25000 | F91: 6000 | G91: 1290 | H91: 30 | I91: 0 | J91: 80 | K91: =A90 -> 87 | L91: =A92 -> 89
A92: 89 | B92: 900 | C92: 0 | D92: 25000 | E92: 25000 | F92: 6000 | G92: 1045 | H92: 30 | I92: 0 | J92: 80 | K92: =A91 -> 88 | L92: =A93 -> 90
A93: 90 | B93: 1000 | C93: 0 | D93: 25000 | E93: 25000 | F93: 6000 | G93: 860 | H93: 30 | I93: 0 | J93: 80 | K93: =A92 -> 89 | L93: -1
A94: 91 | B94: 700 | C94: 0 | D94: 80000 | E94: -1 | F94: 19000 | G94: 300 | H94: 30 | I94: 0 | J94: 120 | K94: -1 | L94: =A95 -> 92 | M94: ISA-MZM-100-5
A95: 92 | B95: 800 | C95: 0 | D95: 80000 | E95: -1 | F95: 19000 | G95: 215 | H95: 30 | I95: 0 | J95: 120 | K95: =A94 -> 91 | L95: =A96 -> 93
A96: 93 | B96: 900 | C96: 0 | D96: 80000 | E96: -1 | F96: 19000 | G96: 170 | H96: 30 | I96: 0 | J96: 120 | K96: =A95 -> 92 | L96: =A97 -> 94
A97: 94 | B97: 1000 | C97: 0 | D97: 80000 | E97: -1 | F97: 19000 | G97: 140 | H97: 30 | I97: 0 | J97: 120 | K97: =A96 -> 93 | L97: -1
A98: 95 | B98: 700 | C98: 0 | D98: 40000 | E98: -1 | F98: 9000 | G98: 600 | H98: 30 | I98: 0 | J98: 80 | K98: -1 | L98: =A99 -> 96 | M98: ISA-MZM-100-10
A99: 96 | B99: 800 | C99: 0 | D99: 40000 | E99: -1 | F99: 9000 | G99: 430 | H99: 30 | I99: 0 | J99: 80 | K99: =A98 -> 95 | L99: =A100 -> 97
A100: 97 | B100: 900 | C100: 0 | D100: 40000 | E100: -1 | F100: 9000 | G100: 345 | H100: 30 | I100: 0 | J100: 80 | K100: =A99 -> 96 | L100: =A101 -> 98
A101: 98 | B101: 1000 | C101: 0 | D101: 40000 | E101: -1 | F101: 9000 | G101: 280 | H101: 30 | I101: 0 | J101: 80 | K101: =A100 -> 97 | L101: -1
A102: 99 | B102: 600 | C102: 0 | D102: 80000 | E102: -1 | F102: 19000 | G102: 600 | H102: 30 | I102: 0 | J102: 80 | K102: -1 | L102: =A103 -> 100 | M102: ISA-MZM-200-10
A103: 100 | B103: 700 | C103: 0 | D103: 80000 | E103: -1 | F103: 19000 | G103: 600 | H103: 30 | I103: 0 | J103: 80 | K103: =A102 -> 99 | L103: =A104 -> 101
A104: 101 | B104: 800 | C104: 0 | D104: 80000 | E104: -1 | F104: 19000 | G104: 430 | H104: 30 | I104: 0 | J104: 80 | K104: =A103 -> 100 | L104: =A105 -> 102
A105: 102 | B105: 900 | C105: 0 | D105: 80000 | E105: -1 | F105: 19000 | G105: 345 | H105: 30 | I105: 0 | J105: 80 | K105: =A104 -> 101 | L105: =A106 -> 103
A106: 103 | B106: 1000 | C106: 0 | D106: 80000 | E106: -1 | F106: 19000 | G106: 280 | H106: 30 | I106: 0 | J106: 80 | K106: =A105 -> 102 | L106: -1
A107: 104 | B107: 600 | C107: 0 | D107: 80000 | E107: 80000 | F107: 19000 | G107: 600 | H107: 30 | I107: 0 | J107: 80 | K107: -1 | L107: =A108 -> 105 | M107: ISA-LXM-200-10
A108: 105 | B108: 800 | C108: 0 | D108: 80000 | E108: 80000 | F108: 19000 | G108: 600 | H108: 30 | I108: 0 | J108: 80 | K108: =A107 -> 104 | L108: =A109 -> 106
A109: 106 | B109: 900 | C109: 0 | D109: 80000 | E109: 80000 | F109: 19000 | G109: 460 | H109: 30 | I109: 0 | J109: 80 | K109: =A108 -> 105 | L109: =A110 -> 107
A110: 107 | B110: 1000 | C110: 0 | D110: 80000 | E110: 80000 | F110: 19000 | G110: 380 | H110: 30 | I110: 0 | J110: 80 | K110: =A109 -> 106 | L110: =A111 -> 108
A111: 108 | B111: 1100 | C111: 0 | D111: 80000 | E111: 80000 | F111: 19000 | G111: 320 | H111: 30 | I111: 0 | J111: 80 | K111: =A110 -> 107 | L111: =A112 -> 109
A112: 109 | B112: 1200 | C112: 0 | D112: 80000 | E112: 80000 | F112: 19000 | G112: 270 | H112: 30 | I112: 0 | J112: 80 | K112: =A111 -> 108 | L112: -1
A113: 110 | B113: 600 | C113: 0 | D113: 40000 | E113: 40000 | F113: 9000 | G113: 1200 | H113: 30 | I113: 0 | J113: 80 | K113: -1 | L113: =A114 -> 111 | M113: ISA-LXM-200-20
A114: 111 | B114: 800 | C114: 0 | D114: 40000 | E114: 40000 | F114: 9000 | G114: 1200 | H114: 30 | I114: 0 | J114: 80 | K114: =A113 -> 110 | L114: =A115 -> 112
A115: 112 | B115: 900 | C115: 0 | D115: 40000 | E115: 40000 | F115: 9000 | G115: 920 | H115: 30 | I115: 0 | J115: 80 | K115: =A114 -> 111 | L115: =A116 -> 113
A116: 113 | B116: 1000 | C116: 0 | D116: 40000 | E116: 40000 | F116: 9000 | G116: 765 | H116: 30 | I116: 0 | J116: 80 | K116: =A115 -> 112 | L116: =A117 -> 114
A117: 114 | B117: 1100 | C117: 0 | D117: 40000 | E117: 40000 | F117: 9000 | G117: 645 | H117: 30 | I117: 0 | J117: 80 | K117: =A116 -> 113 | L117: =A118 -> 115
A118: 115 | B118: 1200 | C118: 0 | D118: 40000 | E118: 40000 | F118: 9000 | G118: 550 | H118: 30 | I118: 0 | J118: 80 | K118: =A117 -> 114 | L118: -1
A119: 116 | B119: 600 | C119: 0 | D119: 80000 | E119: 80000 | F119: 19000 | G119: 1200 | H119: 30 | I119: 0 | J119: 80 | K119: -1 | L119: =A120 -> 117 | M119: ISA-LXM-400-20
A120: 117 | B120: 800 | C120: 0 | D120: 80000 | E120: 80000 | F120: 19000 | G120: 1200 | H120: 30 | I120: 0 | J120: 80 | K120: =A119 -> 116 | L120: =A121 -> 118
A121: 118 | B121: 900 | C121: 0 | D121: 80000 | E121: 80000 | F121: 19000 | G121: 920 | H121: 30 | I121: 0 | J121: 80 | K121: =A120 -> 117 | L121: =A122 -> 119
A122: 119 | B122: 1000 | C122: 0 | D122: 80000 | E122: 80000 | F122: 19000 | G122: 765 | H122: 30 | I122: 0 | J122: 80 | K122: =A121 -> 118 | L122: =A123 -> 120
A123: 120 | B123: 1100 | C123: 0 | D123: 80000 | E123: 80000 | F123: 19000 | G123: 645 | H123: 30 | I123: 0 | J123: 80 | K123: =A122 -> 119 | L123: =A124 -> 121
A124: 121 | B124: 1200 | C124: 0 | D124: 80000 | E124: 80000 | F124: 19000 | G124: 550 | H124: 30 | I124: 0 | J124: 80 | K124: =A123 -> 120 | L124: -1
A125: 122 | B125: 600 | C125: 0 | D125: 40000 | E125: 40000 | F125: 9000 | G125: 2400 | H125: 30 | I125: 0 | J125: 80 | K125: -1 | L125: =A126 -> 123 | M125: ISA-LXM-400-40
A126: 123 | B126: 800 | C126: 0 | D126: 40000 | E126: 40000 | F126: 9000 | G126: 2400 | H126: 30 | I126: 0 | J126: 80 | K126: =A125 -> 122 | L126: =A127 -> 124
A127: 124 | B127: 900 | C127: 0 | D127: 40000 | E127: 40000 | F127: 9000 | G127: 1840 | H127: 30 | I127: 0 | J127: 80 | K127: =A126 -> 123 | L127: =A128 -> 125
A128: 125 | B128: 1000 | C128: 0 | D128: 40000 | E128: 40000 | F128: 9000 | G128: 1530 | H128: 30 | I128: 0 | J128: 80 | K128: =A127 -> 124 | L128: =A129 -> 126
A129: 126 | B129: 1100 | C129: 0 | D129: 40000 | E129: 40000 | F129: 9000 | G129: 1290 | H129: 30 | I129: 0 | J129: 80 | K129: =A128 -> 125 | L129: =A130 -> 127
A130: 127 | B130: 1200 | C130: 0 | D130: 40000 | E130: 40000 | F130: 9000 | G130: 1100 | H130: 30 | I130: 0 | J130: 80 | K130: =A129 -> 126 | L130: -1
A131: 128 | B131: 1000 | C131: 0 | D131: 40000 | E131: 40000 | F131: -1 | G131: 1200 | H131: 30 | I131: 0 | J131: 80 | K131: -1 | L131: =A132 -> 129 | M131: ISA-LXMX-200-20
A132: 129 | B132: 1200 | C132: 0 | D132: 40000 | E132: 40000 | F132: -1 | G132: 1200 | H132: 30 | I132: 0 | J132: 80 | K132: =A131 -> 128 | L132: =A133 -> 130
A133: 130 | B133: 1300 | C133: 0 | D133: 40000 | E133: 40000 | F133: -1 | G133: 1150 | H133: 30 | I133: 0 | J133: 80 | K133: =A132 -> 129 | L133: =A134 -> 131
A134: 131 | B134: 1400 | C134: 0 | D134: 40000 | E134: 40000 | F134: -1 | G134: 1000 | H134: 30 | I134: 0 | J134: 80 | K134: =A133 -> 130 | L134: =A135 -> 132
A135: 132 | B135: 1500 | C135: 0 | D135: 40000 | E135: 40000 | F135: -1 | G135: 950 | H135: 30 | I135: 0 | J135: 80 | K135: =A134 -> 131 | L135: =A136 -> 133
A136: 133 | B136: 1600 | C136: 0 | D136: 40000 | E136: 40000 | F136: -1 | G136: 830 | H136: 30 | I136: 0 | J136: 80 | K136: =A135 -> 132 | L136: =A137 -> 134
A137: 134 | B137: 1700 | C137: 0 | D137: 40000 | E137: 40000 | F137: -1 | G137: 740 | H137: 30 | I137: 0 | J137: 80 | K137: =A136 -> 133 | L137: 135
A138: 135 | B138: 1800 | C138: 0 | D138: 40000 | E138: 40000 | F138: -1 | G138: 650 | H138: 30 | I138: 0 | J138: 80 | K138: 134 | L138: 136
A139: 136 | B139: 1900 | C139: 0 | D139: 40000 | E139: 40000 | F139: -1 | G139: 590 | H139: 30 | I139: 0 | J139: 80 | K139: 135 | L139: 137
A140: 137 | B140: 2000 | C140: 0 | D140: 40000 | E140: 40000 | F140: -1 | G140: 540 | H140: 30 | I140: 0 | J140: 80 | K140: 136 | L140: 138
A141: 138 | B141: 2100 | C141: 0 | D141: 40000 | E141: 40000 | F141: -1 | G141: 490 | H141: 30 | I141: 0 | J141: 80 | K141: 137 | L141: 139
A142: 139 | B142: 2200 | C142: 0 | D142: 40000 | E142: 40000 | F142: -1 | G142: 440 | H142: 30 | I142: 0 | J142: 80 | K142: 138 | L142: 140
A143: 140 | B143: 2300 | C143: 0 | D143: 40000 | E143: 40000 | F143: -1 | G143: 410 | H143: 30 | I143: 0 | J143: 80 | K143: 139 | L143: 141
A144: 141 | B144: 2400 | C144: 0 | D144: 40000 | E144: 40000 | F144: -1 | G144: 370 | H144: 30 | I144: 0 | J144: 80 | K144: 140 | L144: 142
A145: 142 | B145: 2500 | C145: 0 | D145: 40000 | E145: 40000 | F145: -1 | G145: 340 | H145: 30 | I145: 0 | J145: 80 | K145: 141 | L145: -1
A146: 143 | B146: 1000 | C146: 0 | D146: 80000 | E146: 80000 | F146: -1 | G146: 1200 | H146: 30 | I146: 0 | J146: 80 | K146: -1 | L146: =A147 -> 144 | M146: ISA-LXMX-400-20
A147: =A146+1 -> 144 | B147: 1200 | C147: 0 | D147: 80000 | E147: 80000 | F147: -1 | G147: 1200 | H147: 30 | I147: 0 | J147: 80 | K147: =A146 -> 143 | L147: =A148 -> 145
A148: 145 | B148: 1300 | C148: 0 | D148: 80000 | E148: 80000 | F148: -1 | G148: 1150 | H148: 30 | I148: 0 | J148: 80 | K148: =A147 -> 144 | L148: =A149 -> 146
A149: 146 | B149: 1400 | C149: 0 | D149: 80000 | E149: 80000 | F149: -1 | G149: 1000 | H149: 30 | I149: 0 | J149: 80 | K149: =A148 -> 145 | L149: =A150 -> 147
A150: 147 | B150: 1500 | C150: 0 | D150: 80000 | E150: 80000 | F150: -1 | G150: 950 | H150: 30 | I150: 0 | J150: 80 | K150: =A149 -> 146 | L150: =A151 -> 148
A151: 148 | B151: 1600 | C151: 0 | D151: 80000 | E151: 80000 | F151: -1 | G151: 830 | H151: 30 | I151: 0 | J151: 80 | K151: =A150 -> 147 | L151: =A152 -> 149
A152: 149 | B152: 1700 | C152: 0 | D152: 80000 | E152: 80000 | F152: -1 | G152: 740 | H152: 30 | I152: 0 | J152: 80 | K152: =A151 -> 148 | L152: 150
A153: 150 | B153: 1800 | C153: 0 | D153: 80000 | E153: =D153 -> 80000 | F153: -1 | G153: 650 | H153: 30 | I153: 0 | J153: 80 | K153: 149 | L153: 151
A154: 151 | B154: 1900 | C154: 0 | D154: 80000 | E154: 80000 | F154: -1 | G154: 590 | H154: 30 | I154: 0 | J154: 80 | K154: 150 | L154: 152
A155: 152 | B155: 2000 | C155: 0 | D155: 80000 | E155: 80000 | F155: -1 | G155: 540 | H155: 30 | I155: 0 | J155: 80 | K155: 151 | L155: 153
A156: 153 | B156: 2100 | C156: 0 | D156: 80000 | E156: 80000 | F156: -1 | G156: 490 | H156: 30 | I156: 0 | J156: 80 | K156: 152 | L156: 154
A157: 154 | B157: 2200 | C157: 0 | D157: 80000 | E157: 80000 | F157: -1 | G157: 440 | H157: 30 | I157: 0 | J157: 80 | K157: 153 | L157: 155
A158: 155 | B158: 2300 | C158: 0 | D158: 80000 | E158: 80000 | F158: -1 | G158: 410 | H158: 30 | I158: 0 | J158: 80 | K158: 154 | L158: 156
A159: 156 | B159: 2400 | C159: 0 | D159: 80000 | E159: 80000 | F159: -1 | G159: 370 | H159: 30 | I159: 0 | J159: 80 | K159: 155 | L159: 157
A160: 157 | B160: 2500 | C160: 0 | D160: 80000 | E160: 80000 | F160: -1 | G160: 340 | H160: 30 | I160: 0 | J160: 80 | K160: 156 | L160: -1
A161: 158 | B161: 1200 | C161: 0 | D161: 40000 | E161: 40000 | F161: -1 | G161: 2400 | H161: 30 | I161: 0 | J161: 80 | K161: -1 | L161: =A162 -> 159 | M161: ISA-LXMX-400-40
A162: 159 | B162: 1300 | C162: 0 | D162: 40000 | E162: 40000 | F162: -1 | G162: 2300 | H162: 30 | I162: 0 | J162: 80 | K162: =A161 -> 158 | L162: =A163 -> 160
A163: 160 | B163: 1400 | C163: 0 | D163: 40000 | E163: 40000 | F163: -1 | G163: 2000 | H163: 30 | I163: 0 | J163: 80 | K163: 159 | L163: 161
A164: 161 | B164: 1500 | C164: 0 | D164: 40000 | E164: 40000 | F164: -1 | G164: 1900 | H164: 30 | I164: 0 | J164: 80 | K164: 160 | L164: 162
A165: 162 | B165: 1600 | C165: 0 | D165: 40000 | E165: 40000 | F165: -1 | G165: 1660 | H165: 30 | I165: 0 | J165: 80 | K165: 161 | L165: 163
A166: 163 | B166: 1700 | C166: 0 | D166: 40000 | E166: 40000 | F166: -1 | G166: 1480 | H166: 30 | I166: 0 | J166: 80 | K166: 162 | L166: 164
A167: 164 | B167: 1800 | C167: 0 | D167: 40000 | E167: 40000 | F167: -1 | G167: 1300 | H167: 30 | I167: 0 | J167: 80 | K167: 163 | L167: 165
A168: 165 | B168: 1900 | C168: 0 | D168: 40000 | E168: 40000 | F168: -1 | G168: 1180 | H168: 30 | I168: 0 | J168: 80 | K168: 164 | L168: 166
A169: 166 | B169: 2000 | C169: 0 | D169: 40000 | E169: 40000 | F169: -1 | G169: 1080 | H169: 30 | I169: 0 | J169: 80 | K169: 165 | L169: 167
A170: 167 | B170: 2100 | C170: 0 | D170: 40000 | E170: 40000 | F170: -1 | G170: 980 | H170: 30 | I170: 0 | J170: 80 | K170: 166 | L170: 168
A171: 168 | B171: 2200 | C171: 0 | D171: 40000 | E171: 40000 | F171: -1 | G171: 880 | H171: 30 | I171: 0 | J171: 80 | K171: 167 | L171: 169
A172: 169 | B172: 2300 | C172: 0 | D172: 40000 | E172: 40000 | F172: -1 | G172: 820 | H172: 30 | I172: 0 | J172: 80 | K172: 168 | L172: 170
A173: 170 | B173: 2400 | C173: 0 | D173: 40000 | E173: 40000 | F173: -1 | G173: 740 | H173: 30 | I173: 0 | J173: 80 | K173: 169 | L173: 171
A174: 171 | B174: 2500 | C174: 0 | D174: 40000 | E174: 40000 | F174: -1 | G174: 680 | H174: 30 | I174: 0 | J174: 80 | K174: =A173 -> 170 | L174: -1
A175: 172 | B175: 1000 | C175: 0 | D175: 40000 | E175: 40000 | F175: -1 | G175: 1200 | H175: 30 | I175: 0 | J175: 80 | K175: -1 | L175: =A176 -> 173 | M175: ISA-LXUWX-200-20
A176: 173 | B176: 1200 | C176: 0 | D176: 40000 | E176: 40000 | F176: -1 | G176: 1200 | H176: 30 | I176: 0 | J176: 80 | K176: =A175 -> 172 | L176: =A177 -> 174
A177: 174 | B177: 1300 | C177: 0 | D177: 40000 | E177: 40000 | F177: -1 | G177: 1150 | H177: 30 | I177: 0 | J177: 80 | K177: =A176 -> 173 | L177: =A178 -> 175
A178: 175 | B178: 1400 | C178: 0 | D178: 40000 | E178: 40000 | F178: -1 | G178: 1000 | H178: 30 | I178: 0 | J178: 80 | K178: =A177 -> 174 | L178: =A179 -> 176
A179: 176 | B179: 1500 | C179: 0 | D179: 40000 | E179: 40000 | F179: -1 | G179: 950 | H179: 30 | I179: 0 | J179: 80 | K179: =A178 -> 175 | L179: =A180 -> 177
A180: 177 | B180: 1600 | C180: 0 | D180: 40000 | E180: 40000 | F180: -1 | G180: 830 | H180: 30 | I180: 0 | J180: 80 | K180: =A179 -> 176 | L180: =A181 -> 178
A181: 178 | B181: 1700 | C181: 0 | D181: 40000 | E181: 40000 | F181: -1 | G181: 740 | H181: 30 | I181: 0 | J181: 80 | K181: =A180 -> 177 | L181: 179
A182: 179 | B182: 1800 | C182: 0 | D182: 40000 | E182: 40000 | F182: -1 | G182: 650 | H182: 30 | I182: 0 | J182: 80 | K182: 178 | L182: 180
A183: 180 | B183: 1900 | C183: 0 | D183: 40000 | E183: 40000 | F183: -1 | G183: 590 | H183: 30 | I183: 0 | J183: 80 | K183: 179 | L183: 181
A184: 181 | B184: 2000 | C184: 0 | D184: 40000 | E184: 40000 | F184: -1 | G184: 540 | H184: 30 | I184: 0 | J184: 80 | K184: 180 | L184: 182
A185: 182 | B185: 2100 | C185: 0 | D185: 40000 | E185: 40000 | F185: -1 | G185: 490 | H185: 30 | I185: 0 | J185: 80 | K185: 181 | L185: 183
A186: 183 | B186: 2200 | C186: 0 | D186: 40000 | E186: 40000 | F186: -1 | G186: 440 | H186: 30 | I186: 0 | J186: 80 | K186: 182 | L186: 184
A187: 184 | B187: 2300 | C187: 0 | D187: 40000 | E187: 40000 | F187: -1 | G187: 410 | H187: 30 | I187: 0 | J187: 80 | K187: 183 | L187: 185
A188: 185 | B188: 2400 | C188: 0 | D188: 40000 | E188: 40000 | F188: -1 | G188: 370 | H188: 30 | I188: 0 | J188: 80 | K188: 184 | L188: 186
A189: 186 | B189: 2500 | C189: 0 | D189: 40000 | E189: 40000 | F189: -1 | G189: 340 | H189: 30 | I189: 0 | J189: 80 | K189: 185 | L189: -1
A190: 187 | B190: 1000 | C190: 0 | D190: 80000 | E190: 80000 | F190: -1 | G190: 1200 | H190: 30 | I190: 0 | J190: 80 | K190: -1 | L190: =A191 -> 188 | M190: ISA-LXUWX-400-20
A191: 188 | B191: 1200 | C191: 0 | D191: 80000 | E191: 80000 | F191: -1 | G191: 1200 | H191: 30 | I191: 0 | J191: 80 | K191: =A190 -> 187 | L191: =A192 -> 189
A192: 189 | B192: 1300 | C192: 0 | D192: 80000 | E192: 80000 | F192: -1 | G192: 1150 | H192: 30 | I192: 0 | J192: 80 | K192: =A191 -> 188 | L192: =A193 -> 190
A193: 190 | B193: 1400 | C193: 0 | D193: 80000 | E193: 80000 | F193: -1 | G193: 1000 | H193: 30 | I193: 0 | J193: 80 | K193: =A192 -> 189 | L193: =A194 -> 191
A194: 191 | B194: 1500 | C194: 0 | D194: 80000 | E194: 80000 | F194: -1 | G194: 950 | H194: 30 | I194: 0 | J194: 80 | K194: =A193 -> 190 | L194: =A195 -> 192
A195: 192 | B195: 1600 | C195: 0 | D195: 80000 | E195: 80000 | F195: -1 | G195: 830 | H195: 30 | I195: 0 | J195: 80 | K195: =A194 -> 191 | L195: =A196 -> 193
A196: 193 | B196: 1700 | C196: 0 | D196: 80000 | E196: 80000 | F196: -1 | G196: 740 | H196: 30 | I196: 0 | J196: 80 | K196: =A195 -> 192 | L196: 194
A197: 194 | B197: 1800 | C197: 0 | D197: 80000 | E197: 80000 | F197: -1 | G197: 650 | H197: 30 | I197: 0 | J197: 80 | K197: 193 | L197: 195
A198: 195 | B198: 1900 | C198: 0 | D198: 80000 | E198: 80000 | F198: -1 | G198: 590 | H198: 30 | I198: 0 | J198: 80 | K198: 194 | L198: 196
A199: 196 | B199: 2000 | C199: 0 | D199: 80000 | E199: 80000 | F199: -1 | G199: 540 | H199: 30 | I199: 0 | J199: 80 | K199: 195 | L199: 197
A200: 197 | B200: 2100 | C200: 0 | D200: 80000 | E200: 80000 | F200: -1 | G200: 490 | H200: 30 | I200: 0 | J200: 80 | K200: 196 | L200: 198
... 661 more rows

Sheet MassDataLink (hidden)
B1: 1 | C1: 2 | D1: 3 | E1: 4 | F1: 5 | H1: 1000
A2: ﾃﾞｰﾀ№ | B2: ｱｸﾁｭｴｰﾀ姿勢 | C2: 搬送負荷質量 | D2: 加減速・速度ﾃﾞｰﾀ | E2: 前ﾃﾞｰﾀ№ | F2: 次ﾃﾞｰﾀ№ | G2: 備考
A3: =ModelData!A3 -> 0 | B3: 0/1 | C3: 1g | D3: ﾚｺｰﾄﾞ№ | E3: ﾚｺｰﾄﾞ№ | F3: ﾚｺｰﾄﾞ№ | G3: 型式-姿勢 | H3: 質量 | I3: 前№ﾁｪｯｸ | J3: 後№ﾁｪｯｸ
A4: =A3+1 -> 1 | B4: 0 | C4: =H4*$H$1 -> 30000 | D4: =AccVelDataLink!A4 -> 1 | E4: -1 | F4: =A5 -> 2 | G4: =AccVelDataLink!F4 -> ISA-SXM-60-4-水平 | H4: =AccVelDataLink!G4 -> 30 | I4: =IF(E4=A3,"○",IF(G4=0,"つなぎまちがい","先頭")) -> 先頭 | J4: =IF(F4=A5,"○",IF(F4<>E5,"つなぎまちがい","終端")) -> ○
A5: 2 | B5: 0 | C5: 37500 | D5: =AccVelDataLink!A5 -> 2 | E5: =A4 -> 1 | F5: =A6 -> 3 | H5: =AccVelDataLink!G5 -> 37.5 | I5: ○ | J5: ○
A6: 3 | B6: 0 | C6: 50000 | D6: =AccVelDataLink!A6 -> 3 | E6: =A5 -> 2 | F6: =A7 -> 4 | H6: =AccVelDataLink!G6 -> 50 | I6: ○ | J6: ○
A7: 4 | B7: 1 | C7: 12000 | D7: =AccVelDataLink!A7 -> 4 | E7: =A6 -> 3 | F7: =A8 -> 5 | G7: =AccVelDataLink!F7 -> ISA-SXM-60-4-垂直 | H7: =AccVelDataLink!G7 -> 12 | I7: ○ | J7: ○
A8: 5 | B8: 1 | C8: 14000 | D8: =AccVelDataLink!A8 -> 5 | E8: =A7 -> 4 | F8: -1 | H8: =AccVelDataLink!G8 -> 14 | I8: ○ | J8: 終端
A9: 6 | B9: 0 | C9: 12000 | D9: =AccVelDataLink!A9 -> 6 | E9: -1 | F9: =A10 -> 7 | G9: =AccVelDataLink!F9 -> ISA-SXM-60-8-水平 | H9: =AccVelDataLink!G9 -> 12 | I9: 先頭 | J9: ○
A10: 7 | B10: 0 | C10: 15000 | D10: =AccVelDataLink!A10 -> 7 | E10: =A9 -> 6 | F10: 8 | H10: =AccVelDataLink!G10 -> 15 | I10: ○ | J10: ○
A11: 8 | B11: 0 | C11: 18500 | D11: =AccVelDataLink!A11 -> 8 | E11: 7 | F11: 9 | H11: =AccVelDataLink!G11 -> 18.5 | I11: ○ | J11: ○
A12: 9 | B12: 0 | C12: 25000 | D12: =AccVelDataLink!A12 -> 9 | E12: 8 | F12: 10 | H12: =AccVelDataLink!G12 -> 25 | I12: ○ | J12: ○
A13: 10 | B13: 1 | C13: 5000 | D13: =AccVelDataLink!A13 -> 10 | E13: 9 | F13: 11 | G13: =AccVelDataLink!F13 -> ISA-SXM-60-8-垂直 | H13: =AccVelDataLink!G13 -> 5 | I13: ○ | J13: ○
A14: 11 | B14: 1 | C14: 5500 | D14: =AccVelDataLink!A14 -> 11 | E14: 10 | F14: 12 | H14: =AccVelDataLink!G14 -> 5.5 | I14: ○ | J14: ○
A15: 12 | B15: 1 | C15: 6000 | D15: =AccVelDataLink!A15 -> 12 | E15: 11 | F15: -1 | H15: =AccVelDataLink!G15 -> 6 | I15: ○ | J15: 終端
A16: 13 | B16: 0 | C16: 3500 | D16: =AccVelDataLink!A16 -> 13 | E16: -1 | F16: =A17 -> 14 | G16: =AccVelDataLink!F16 -> ISA-SXM-60-16-水平 | H16: =AccVelDataLink!G16 -> 3.5 | I16: 先頭 | J16: ○
A17: 14 | B17: 0 | C17: 4000 | D17: =AccVelDataLink!A17 -> 14 | E17: =A16 -> 13 | F17: 15 | H17: =AccVelDataLink!G17 -> 4 | I17: ○ | J17: ○
A18: 15 | B18: 0 | C18: 4500 | D18: =AccVelDataLink!A18 -> 15 | E18: 14 | F18: 16 | H18: =AccVelDataLink!G18 -> 4.5 | I18: ○ | J18: ○
A19: 16 | B19: 0 | C19: 5000 | D19: =AccVelDataLink!A19 -> 16 | E19: 15 | F19: 17 | H19: =AccVelDataLink!G19 -> 5 | I19: ○ | J19: ○
A20: 17 | B20: 0 | C20: 6000 | D20: =AccVelDataLink!A20 -> 17 | E20: 16 | F20: 18 | H20: =AccVelDataLink!G20 -> 6 | I20: ○ | J20: ○
A21: 18 | B21: 0 | C21: 7000 | D21: =AccVelDataLink!A21 -> 18 | E21: 17 | F21: 19 | H21: =AccVelDataLink!G21 -> 7 | I21: ○ | J21: ○
A22: 19 | B22: 0 | C22: 9000 | D22: =AccVelDataLink!A22 -> 19 | E22: 18 | F22: 20 | H22: =AccVelDataLink!G22 -> 9 | I22: ○ | J22: ○
A23: 20 | B23: 0 | C23: 12000 | D23: =AccVelDataLink!A23 -> 20 | E23: 19 | F23: 21 | H23: =AccVelDataLink!G23 -> 12 | I23: ○ | J23: ○
A24: 21 | B24: 1 | C24: 2000 | D24: =AccVelDataLink!A24 -> 21 | E24: 20 | F24: 22 | G24: =AccVelDataLink!F24 -> ISA-SXM-60-16-垂直 | H24: =AccVelDataLink!G24 -> 2 | I24: ○ | J24: ○
A25: 22 | B25: 1 | C25: 2100 | D25: =AccVelDataLink!A25 -> 22 | E25: 21 | F25: 23 | H25: =AccVelDataLink!G25 -> 2.1 | I25: ○ | J25: ○
A26: 23 | B26: 1 | C26: 2300 | D26: =AccVelDataLink!A26 -> 23 | E26: 22 | F26: 24 | H26: =AccVelDataLink!G26 -> 2.3 | I26: ○ | J26: ○
A27: 24 | B27: 1 | C27: 2500 | D27: =AccVelDataLink!A27 -> 24 | E27: 23 | F27: 25 | H27: =AccVelDataLink!G27 -> 2.5 | I27: ○ | J27: ○
A28: 25 | B28: 1 | C28: 3000 | D28: =AccVelDataLink!A28 -> 25 | E28: 24 | F28: -1 | H28: =AccVelDataLink!G28 -> 3 | I28: ○ | J28: 終端
A29: 26 | B29: 0 | C29: 30000 | D29: =AccVelDataLink!A29 -> 26 | E29: -1 | F29: =A30 -> 27 | G29: =AccVelDataLink!F29 -> ISA-SYM-60-4-水平 | H29: =AccVelDataLink!G29 -> 30 | I29: 先頭 | J29: ○
A30: 27 | B30: 0 | C30: 37500 | D30: =AccVelDataLink!A30 -> 27 | E30: =A29 -> 26 | F30: =A31 -> 28 | H30: =AccVelDataLink!G30 -> 37.5 | I30: ○ | J30: ○
A31: 28 | B31: 0 | C31: 50000 | D31: =AccVelDataLink!A31 -> 28 | E31: =A30 -> 27 | F31: =A32 -> 29 | H31: =AccVelDataLink!G31 -> 50 | I31: ○ | J31: ○
A32: 29 | B32: 1 | C32: 12000 | D32: =AccVelDataLink!A32 -> 29 | E32: =A31 -> 28 | F32: =A33 -> 30 | G32: =AccVelDataLink!F32 -> ISA-SYM-60-4-垂直 | H32: =AccVelDataLink!G32 -> 12 | I32: ○ | J32: ○
A33: 30 | B33: 1 | C33: 14000 | D33: =AccVelDataLink!A33 -> 30 | E33: =A32 -> 29 | F33: -1 | H33: =AccVelDataLink!G33 -> 14 | I33: ○ | J33: 終端
A34: 31 | B34: 0 | C34: 12000 | D34: =AccVelDataLink!A34 -> 31 | E34: -1 | F34: =A35 -> 32 | G34: =AccVelDataLink!F34 -> ISA-SYM-60-8-水平 | H34: =AccVelDataLink!G34 -> 12 | I34: 先頭 | J34: ○
A35: 32 | B35: 0 | C35: 15000 | D35: =AccVelDataLink!A35 -> 32 | E35: =A34 -> 31 | F35: 33 | H35: =AccVelDataLink!G35 -> 15 | I35: ○ | J35: ○
A36: 33 | B36: 0 | C36: 18500 | D36: =AccVelDataLink!A36 -> 33 | E36: 32 | F36: 34 | H36: =AccVelDataLink!G36 -> 18.5 | I36: ○ | J36: ○
A37: 34 | B37: 0 | C37: 25000 | D37: =AccVelDataLink!A37 -> 34 | E37: 33 | F37: 35 | H37: =AccVelDataLink!G37 -> 25 | I37: ○ | J37: ○
A38: 35 | B38: 1 | C38: 5000 | D38: =AccVelDataLink!A38 -> 35 | E38: 34 | F38: 36 | G38: =AccVelDataLink!F38 -> ISA-SYM-60-8-垂直 | H38: =AccVelDataLink!G38 -> 5 | I38: ○ | J38: ○
A39: 36 | B39: 1 | C39: 5500 | D39: =AccVelDataLink!A39 -> 36 | E39: 35 | F39: 37 | H39: =AccVelDataLink!G39 -> 5.5 | I39: ○ | J39: ○
A40: 37 | B40: 1 | C40: 6000 | D40: =AccVelDataLink!A40 -> 37 | E40: 36 | F40: -1 | H40: =AccVelDataLink!G40 -> 6 | I40: ○ | J40: 終端
A41: 38 | B41: 0 | C41: 3500 | D41: =AccVelDataLink!A41 -> 38 | E41: -1 | F41: =A42 -> 39 | G41: =AccVelDataLink!F41 -> ISA-SYM-60-16-水平 | H41: =AccVelDataLink!G41 -> 3.5 | I41: 先頭 | J41: ○
A42: 39 | B42: 0 | C42: 4000 | D42: =AccVelDataLink!A42 -> 39 | E42: =A41 -> 38 | F42: 40 | H42: =AccVelDataLink!G42 -> 4 | I42: ○ | J42: ○
A43: 40 | B43: 0 | C43: 4500 | D43: =AccVelDataLink!A43 -> 40 | E43: 39 | F43: 41 | H43: =AccVelDataLink!G43 -> 4.5 | I43: ○ | J43: ○
A44: 41 | B44: 0 | C44: 5000 | D44: =AccVelDataLink!A44 -> 41 | E44: 40 | F44: 42 | H44: =AccVelDataLink!G44 -> 5 | I44: ○ | J44: ○
A45: 42 | B45: 0 | C45: 6000 | D45: =AccVelDataLink!A45 -> 42 | E45: 41 | F45: 43 | H45: =AccVelDataLink!G45 -> 6 | I45: ○ | J45: ○
A46: 43 | B46: 0 | C46: 7000 | D46: =AccVelDataLink!A46 -> 43 | E46: 42 | F46: 44 | H46: =AccVelDataLink!G46 -> 7 | I46: ○ | J46: ○
A47: 44 | B47: 0 | C47: 9000 | D47: =AccVelDataLink!A47 -> 44 | E47: 43 | F47: 45 | H47: =AccVelDataLink!G47 -> 9 | I47: ○ | J47: ○
A48: 45 | B48: 0 | C48: 12000 | D48: =AccVelDataLink!A48 -> 45 | E48: 44 | F48: 46 | H48: =AccVelDataLink!G48 -> 12 | I48: ○ | J48: ○
A49: 46 | B49: 1 | C49: 2000 | D49: =AccVelDataLink!A49 -> 46 | E49: 45 | F49: 47 | G49: =AccVelDataLink!F49 -> ISA-SYM-60-16-垂直 | H49: =AccVelDataLink!G49 -> 2 | I49: ○ | J49: ○
A50: 47 | B50: 1 | C50: 2100 | D50: =AccVelDataLink!A50 -> 47 | E50: 46 | F50: 48 | H50: =AccVelDataLink!G50 -> 2.1 | I50: ○ | J50: ○
A51: 48 | B51: 1 | C51: 2300 | D51: =AccVelDataLink!A51 -> 48 | E51: 47 | F51: 49 | H51: =AccVelDataLink!G51 -> 2.3 | I51: ○ | J51: ○
A52: 49 | B52: 1 | C52: 2500 | D52: =AccVelDataLink!A52 -> 49 | E52: 48 | F52: 50 | H52: =AccVelDataLink!G52 -> 2.5 | I52: ○ | J52: ○
A53: 50 | B53: 1 | C53: 3000 | D53: =AccVelDataLink!A53 -> 50 | E53: 49 | F53: -1 | H53: =AccVelDataLink!G53 -> 3 | I53: ○ | J53: 終端
A54: 51 | B54: 1 | C54: 12000 | D54: =AccVelDataLink!A54 -> 51 | E54: -1 | F54: =A55 -> 52 | G54: =AccVelDataLink!F54 -> ISA-SZM-60-4-垂直 | H54: =AccVelDataLink!G54 -> 12 | I54: 先頭 | J54: ○
A55: 52 | B55: 1 | C55: 14000 | D55: =AccVelDataLink!A55 -> 52 | E55: =A54 -> 51 | F55: -1 | H55: =AccVelDataLink!G55 -> 14 | I55: ○ | J55: 終端
A56: 53 | B56: 1 | C56: 5000 | D56: =AccVelDataLink!A56 -> 53 | E56: -1 | F56: =A57 -> 54 | G56: =AccVelDataLink!F56 -> ISA-SZM-60-8-垂直 | H56: =AccVelDataLink!G56 -> 5 | I56: 先頭 | J56: ○
A57: 54 | B57: 1 | C57: 5500 | D57: =AccVelDataLink!A57 -> 54 | E57: =A56 -> 53 | F57: =A58 -> 55 | H57: =AccVelDataLink!G57 -> 5.5 | I57: ○ | J57: ○
A58: 55 | B58: 1 | C58: 6000 | D58: =AccVelDataLink!A58 -> 55 | E58: =A57 -> 54 | F58: -1 | H58: =AccVelDataLink!G58 -> 6 | I58: ○ | J58: 終端
A59: 56 | B59: 0 | C59: 45000 | D59: =AccVelDataLink!A59 -> 56 | E59: -1 | F59: =A60 -> 57 | G59: =AccVelDataLink!F59 -> ISA-MXM-100-5-水平 | H59: =AccVelDataLink!G59 -> 45 | I59: 先頭 | J59: ○
A60: 57 | B60: 0 | C60: 60000 | D60: =AccVelDataLink!A60 -> 57 | E60: =A59 -> 56 | F60: =A61 -> 58 | H60: =AccVelDataLink!G60 -> 60 | I60: ○ | J60: ○
A61: 58 | B61: 0 | C61: 80000 | D61: =AccVelDataLink!A61 -> 58 | E61: =A60 -> 57 | F61: =A62 -> 59 | H61: =AccVelDataLink!G61 -> 80 | I61: ○ | J61: ○
A62: 59 | B62: 1 | C62: 15000 | D62: =AccVelDataLink!A62 -> 59 | E62: =A61 -> 58 | F62: =A63 -> 60 | G62: =AccVelDataLink!F62 -> ISA-MXM-100-5-垂直 | H62: =AccVelDataLink!G62 -> 15 | I62: ○ | J62: ○
A63: 60 | B63: 1 | C63: 19000 | D63: =AccVelDataLink!A63 -> 60 | E63: =A62 -> 59 | F63: -1 | H63: =AccVelDataLink!G63 -> 19 | I63: ○ | J63: 終端
A64: 61 | B64: 0 | C64: 20000 | D64: =AccVelDataLink!A64 -> 61 | E64: -1 | F64: =A65 -> 62 | G64: =AccVelDataLink!F64 -> ISA-MXM-100-10-水平 | H64: =AccVelDataLink!G64 -> 20 | I64: 先頭 | J64: ○
A65: 62 | B65: 0 | C65: 24000 | D65: =AccVelDataLink!A65 -> 62 | E65: =A64 -> 61 | F65: 63 | H65: =AccVelDataLink!G65 -> 24 | I65: ○ | J65: ○
A66: 63 | B66: 0 | C66: 30000 | D66: =AccVelDataLink!A66 -> 63 | E66: 62 | F66: 64 | H66: =AccVelDataLink!G66 -> 30 | I66: ○ | J66: ○
A67: 64 | B67: 0 | C67: 40000 | D67: =AccVelDataLink!A67 -> 64 | E67: 63 | F67: 65 | H67: =AccVelDataLink!G67 -> 40 | I67: ○ | J67: ○
A68: =A67+1 -> 65 | B68: 1 | C68: =H68*$H$1 -> 7000 | D68: =AccVelDataLink!A68 -> 65 | E68: 64 | F68: 66 | G68: =AccVelDataLink!F68 -> ISA-MXM-100-10-垂直 | H68: =AccVelDataLink!G68 -> 7 | I68: =IF(E68=A67,"○",IF(G68=0,"つなぎまちがい","先頭")) -> ○ | J68: =IF(F68=A69,"○",IF(F68<>E69,"つなぎまちがい","終端")) -> ○
A69: 66 | B69: 1 | C69: 7600 | D69: =AccVelDataLink!A69 -> 66 | E69: 65 | F69: 67 | H69: =AccVelDataLink!G69 -> 7.6 | I69: ○ | J69: ○
A70: 67 | B70: 1 | C70: 9000 | D70: =AccVelDataLink!A70 -> 67 | E70: 66 | F70: -1 | H70: =AccVelDataLink!G70 -> 9 | I70: ○ | J70: 終端
A71: 68 | B71: 0 | C71: 6000 | D71: =AccVelDataLink!A71 -> 68 | E71: -1 | F71: =A72 -> 69 | G71: =AccVelDataLink!F71 -> ISA-MXM-100-20-水平 | H71: =AccVelDataLink!G71 -> 6 | I71: 先頭 | J71: ○
A72: 69 | B72: 0 | C72: 6500 | D72: =AccVelDataLink!A72 -> 69 | E72: =A71 -> 68 | F72: 70 | H72: =AccVelDataLink!G72 -> 6.5 | I72: ○ | J72: ○
A73: 70 | B73: 0 | C73: 7500 | D73: =AccVelDataLink!A73 -> 70 | E73: 69 | F73: 71 | H73: =AccVelDataLink!G73 -> 7.5 | I73: ○ | J73: ○
A74: 71 | B74: 0 | C74: 8500 | D74: =AccVelDataLink!A74 -> 71 | E74: 70 | F74: 72 | H74: =AccVelDataLink!G74 -> 8.5 | I74: ○ | J74: ○
A75: 72 | B75: 0 | C75: 10000 | D75: =AccVelDataLink!A75 -> 72 | E75: 71 | F75: 73 | H75: =AccVelDataLink!G75 -> 10 | I75: ○ | J75: ○
A76: 73 | B76: 0 | C76: 12000 | D76: =AccVelDataLink!A76 -> 73 | E76: 72 | F76: 74 | H76: =AccVelDataLink!G76 -> 12 | I76: ○ | J76: ○
A77: 74 | B77: 0 | C77: 15000 | D77: =AccVelDataLink!A77 -> 74 | E77: 73 | F77: 75 | H77: =AccVelDataLink!G77 -> 15 | I77: ○ | J77: ○
A78: 75 | B78: 0 | C78: 20000 | D78: =AccVelDataLink!A78 -> 75 | E78: 74 | F78: 76 | H78: =AccVelDataLink!G78 -> 20 | I78: ○ | J78: ○
A79: 76 | B79: 1 | C79: 2000 | D79: =AccVelDataLink!A79 -> 76 | E79: 75 | F79: 77 | G79: =AccVelDataLink!F79 -> ISA-MXM-100-20-垂直 | H79: =AccVelDataLink!G79 -> 2 | I79: ○ | J79: ○
A80: 77 | B80: 1 | C80: 2400 | D80: =AccVelDataLink!A80 -> 77 | E80: 76 | F80: 78 | H80: =AccVelDataLink!G80 -> 2.4 | I80: ○ | J80: ○
A81: 78 | B81: 1 | C81: 2700 | D81: =AccVelDataLink!A81 -> 78 | E81: 77 | F81: 79 | H81: =AccVelDataLink!G81 -> 2.7 | I81: ○ | J81: ○
A82: 79 | B82: 1 | C82: 2900 | D82: =AccVelDataLink!A82 -> 79 | E82: 78 | F82: 80 | H82: =AccVelDataLink!G82 -> 2.9 | I82: ○ | J82: ○
A83: 80 | B83: 1 | C83: 3200 | D83: =AccVelDataLink!A83 -> 80 | E83: 79 | F83: 81 | H83: =AccVelDataLink!G83 -> 3.2 | I83: ○ | J83: ○
A84: 81 | B84: 1 | C84: 3500 | D84: =AccVelDataLink!A84 -> 81 | E84: 80 | F84: -1 | H84: =AccVelDataLink!G84 -> 3.5 | I84: ○ | J84: 終端
A85: 82 | B85: 0 | C85: 4000 | D85: =AccVelDataLink!A85 -> 82 | E85: -1 | F85: =A86 -> 83 | G85: =AccVelDataLink!F85 -> ISA-MXM-100-30-水平 | H85: =AccVelDataLink!G85 -> 4 | I85: 先頭 | J85: ○
A86: 83 | B86: 0 | C86: 4500 | D86: =AccVelDataLink!A86 -> 83 | E86: =A85 -> 82 | F86: 84 | H86: =AccVelDataLink!G86 -> 4.5 | I86: ○ | J86: ○
A87: 84 | B87: 0 | C87: 5000 | D87: =AccVelDataLink!A87 -> 84 | E87: 83 | F87: 85 | H87: =AccVelDataLink!G87 -> 5 | I87: ○ | J87: ○
A88: 85 | B88: 0 | C88: 5500 | D88: =AccVelDataLink!A88 -> 85 | E88: 84 | F88: 86 | H88: =AccVelDataLink!G88 -> 5.5 | I88: ○ | J88: ○
A89: 86 | B89: 0 | C89: 6500 | D89: =AccVelDataLink!A89 -> 86 | E89: 85 | F89: 87 | H89: =AccVelDataLink!G89 -> 6.5 | I89: ○ | J89: ○
A90: 87 | B90: 0 | C90: 8000 | D90: =AccVelDataLink!A90 -> 87 | E90: 86 | F90: 88 | H90: =AccVelDataLink!G90 -> 8 | I90: ○ | J90: ○
A91: 88 | B91: 0 | C91: 10000 | D91: =AccVelDataLink!A91 -> 88 | E91: 87 | F91: 89 | H91: =AccVelDataLink!G91 -> 10 | I91: ○ | J91: ○
A92: 89 | B92: 0 | C92: 12000 | D92: =AccVelDataLink!A92 -> 89 | E92: 88 | F92: -1 | H92: =AccVelDataLink!G92 -> 12 | I92: ○ | J92: 終端
A93: 90 | B93: 0 | C93: 40000 | D93: =AccVelDataLink!A93 -> 90 | E93: -1 | F93: =A94 -> 91 | G93: =AccVelDataLink!F93 -> ISA-MXM-200-10-水平 | H93: =AccVelDataLink!G93 -> 40 | I93: 先頭 | J93: ○
A94: 91 | B94: 0 | C94: 48500 | D94: =AccVelDataLink!A94 -> 91 | E94: =A93 -> 90 | F94: 92 | H94: =AccVelDataLink!G94 -> 48.5 | I94: ○ | J94: ○
A95: 92 | B95: 0 | C95: 60000 | D95: =AccVelDataLink!A95 -> 92 | E95: 91 | F95: 93 | H95: =AccVelDataLink!G95 -> 60 | I95: ○ | J95: ○
A96: 93 | B96: 0 | C96: 80000 | D96: =AccVelDataLink!A96 -> 93 | E96: 92 | F96: 94 | H96: =AccVelDataLink!G96 -> 80 | I96: ○ | J96: ○
A97: 94 | B97: 1 | C97: 15000 | D97: =AccVelDataLink!A97 -> 94 | E97: 93 | F97: 95 | G97: =AccVelDataLink!F97 -> ISA-MXM-200-10-垂直 | H97: =AccVelDataLink!G97 -> 15 | I97: ○ | J97: ○
A98: 95 | B98: 1 | C98: 16300 | D98: =AccVelDataLink!A98 -> 95 | E98: 94 | F98: 96 | H98: =AccVelDataLink!G98 -> 16.3 | I98: ○ | J98: ○
A99: 96 | B99: 1 | C99: 19000 | D99: =AccVelDataLink!A99 -> 96 | E99: 95 | F99: -1 | H99: =AccVelDataLink!G99 -> 19 | I99: ○ | J99: 終端
A100: 97 | B100: 0 | C100: 12000 | D100: =AccVelDataLink!A100 -> 97 | E100: -1 | F100: =A101 -> 98 | G100: =AccVelDataLink!F100 -> ISA-MXM-200-20-水平 | H100: =AccVelDataLink!G100 -> 12 | I100: 先頭 | J100: ○
A101: 98 | B101: 0 | C101: 13500 | D101: =AccVelDataLink!A101 -> 98 | E101: =A100 -> 97 | F101: 99 | H101: =AccVelDataLink!G101 -> 13.5 | I101: ○ | J101: ○
A102: 99 | B102: 0 | C102: 15000 | D102: =AccVelDataLink!A102 -> 99 | E102: 98 | F102: 100 | H102: =AccVelDataLink!G102 -> 15 | I102: ○ | J102: ○
A103: 100 | B103: 0 | C103: 17000 | D103: =AccVelDataLink!A103 -> 100 | E103: 99 | F103: 101 | H103: =AccVelDataLink!G103 -> 17 | I103: ○ | J103: ○
A104: 101 | B104: 0 | C104: 20000 | D104: =AccVelDataLink!A104 -> 101 | E104: 100 | F104: 102 | H104: =AccVelDataLink!G104 -> 20 | I104: ○ | J104: ○
A105: 102 | B105: 0 | C105: 24000 | D105: =AccVelDataLink!A105 -> 102 | E105: 101 | F105: 103 | H105: =AccVelDataLink!G105 -> 24 | I105: ○ | J105: ○
A106: 103 | B106: 0 | C106: 30000 | D106: =AccVelDataLink!A106 -> 103 | E106: 102 | F106: 104 | H106: =AccVelDataLink!G106 -> 30 | I106: ○ | J106: ○
A107: 104 | B107: 0 | C107: 40000 | D107: =AccVelDataLink!A107 -> 104 | E107: 103 | F107: 105 | H107: =AccVelDataLink!G107 -> 40 | I107: ○ | J107: ○
A108: 105 | B108: 1 | C108: 5000 | D108: =AccVelDataLink!A108 -> 105 | E108: 104 | F108: 106 | G108: =AccVelDataLink!F108 -> ISA-MXM-200-20-垂直 | H108: =AccVelDataLink!G108 -> 5 | I108: ○ | J108: ○
A109: 106 | B109: 1 | C109: 6000 | D109: =AccVelDataLink!A109 -> 106 | E109: 105 | F109: 107 | H109: =AccVelDataLink!G109 -> 6 | I109: ○ | J109: ○
A110: 107 | B110: 1 | C110: 6500 | D110: =AccVelDataLink!A110 -> 107 | E110: 106 | F110: 108 | H110: =AccVelDataLink!G110 -> 6.5 | I110: ○ | J110: ○
A111: 108 | B111: 1 | C111: 7000 | D111: =AccVelDataLink!A111 -> 108 | E111: 107 | F111: 109 | H111: =AccVelDataLink!G111 -> 7 | I111: ○ | J111: ○
A112: 109 | B112: 1 | C112: 7600 | D112: =AccVelDataLink!A112 -> 109 | E112: 108 | F112: 110 | H112: =AccVelDataLink!G112 -> 7.6 | I112: ○ | J112: ○
A113: 110 | B113: 1 | C113: 9000 | D113: =AccVelDataLink!A113 -> 110 | E113: 109 | F113: -1 | H113: =AccVelDataLink!G113 -> 9 | I113: ○ | J113: 終端
A114: 111 | B114: 0 | C114: 10000 | D114: =AccVelDataLink!A114 -> 111 | E114: -1 | F114: =A115 -> 112 | G114: =AccVelDataLink!F114 -> ISA-MXM-200-30-水平 | H114: =AccVelDataLink!G114 -> 10 | I114: 先頭 | J114: ○
A115: 112 | B115: 0 | C115: 11000 | D115: =AccVelDataLink!A115 -> 112 | E115: =A114 -> 111 | F115: 113 | H115: =AccVelDataLink!G115 -> 11 | I115: ○ | J115: ○
A116: 113 | B116: 0 | C116: 12000 | D116: =AccVelDataLink!A116 -> 113 | E116: 112 | F116: 114 | H116: =AccVelDataLink!G116 -> 12 | I116: ○ | J116: ○
A117: 114 | B117: 0 | C117: 13500 | D117: =AccVelDataLink!A117 -> 114 | E117: 113 | F117: 115 | H117: =AccVelDataLink!G117 -> 13.5 | I117: ○ | J117: ○
A118: 115 | B118: 0 | C118: 15000 | D118: =AccVelDataLink!A118 -> 115 | E118: 114 | F118: 116 | H118: =AccVelDataLink!G118 -> 15 | I118: ○ | J118: ○
A119: 116 | B119: 0 | C119: 17000 | D119: =AccVelDataLink!A119 -> 116 | E119: 115 | F119: 117 | H119: =AccVelDataLink!G119 -> 17 | I119: ○ | J119: ○
A120: 117 | B120: 0 | C120: 20000 | D120: =AccVelDataLink!A120 -> 117 | E120: 116 | F120: 118 | H120: =AccVelDataLink!G120 -> 20 | I120: ○ | J120: ○
A121: 118 | B121: 0 | C121: 25000 | D121: =AccVelDataLink!A121 -> 118 | E121: 117 | F121: 119 | H121: =AccVelDataLink!G121 -> 25 | I121: ○ | J121: ○
A122: 119 | B122: 1 | C122: 2000 | D122: =AccVelDataLink!A122 -> 119 | E122: 118 | F122: 120 | G122: =AccVelDataLink!F122 -> ISA-MXM-200-30-垂直 | H122: =AccVelDataLink!G122 -> 2 | I122: ○ | J122: ○
A123: 120 | B123: 1 | C123: 3100 | D123: =AccVelDataLink!A123 -> 120 | E123: 119 | F123: 121 | H123: =AccVelDataLink!G123 -> 3.1 | I123: ○ | J123: ○
A124: 121 | B124: 1 | C124: 3400 | D124: =AccVelDataLink!A124 -> 121 | E124: 120 | F124: 122 | H124: =AccVelDataLink!G124 -> 3.4 | I124: ○ | J124: ○
A125: 122 | B125: 1 | C125: 3600 | D125: =AccVelDataLink!A125 -> 122 | E125: 121 | F125: 123 | H125: =AccVelDataLink!G125 -> 3.6 | I125: ○ | J125: ○
A126: 123 | B126: 1 | C126: 3900 | D126: =AccVelDataLink!A126 -> 123 | E126: 122 | F126: 124 | H126: =AccVelDataLink!G126 -> 3.9 | I126: ○ | J126: ○
A127: 124 | B127: 1 | C127: 4300 | D127: =AccVelDataLink!A127 -> 124 | E127: 123 | F127: 125 | H127: =AccVelDataLink!G127 -> 4.3 | I127: ○ | J127: ○
A128: 125 | B128: 1 | C128: 4700 | D128: =AccVelDataLink!A128 -> 125 | E128: 124 | F128: 126 | H128: =AccVelDataLink!G128 -> 4.7 | I128: ○ | J128: ○
A129: 126 | B129: 1 | C129: 6000 | D129: =AccVelDataLink!A129 -> 126 | E129: 125 | F129: -1 | H129: =AccVelDataLink!G129 -> 6 | I129: ○ | J129: 終端
A130: 127 | B130: 0 | C130: 40000 | D130: =AccVelDataLink!A130 -> 127 | E130: -1 | F130: -1 | G130: =AccVelDataLink!F130 -> ISA-MXMX-200-20-水平 | H130: =AccVelDataLink!G130 -> 40 | I130: 先頭 | J130: 終端
A131: 128 | B131: 0 | C131: 25000 | D131: =AccVelDataLink!A131 -> 128 | E131: -1 | F131: -1 | G131: =AccVelDataLink!F131 -> ISA-MXMX-200-30-水平 | H131: =AccVelDataLink!G131 -> 25 | I131: 先頭 | J131: 終端
A132: =A131+1 -> 129 | B132: 0 | C132: =H132*$H$1 -> 45000 | D132: =AccVelDataLink!A132 -> 129 | E132: -1 | F132: =A133 -> 130 | G132: =AccVelDataLink!F132 -> ISA-MYM-100-5-水平 | H132: =AccVelDataLink!G132 -> 45 | I132: =IF(E132=A131,"○",IF(G132=0,"つなぎまちがい","先頭")) -> 先頭 | J132: =IF(F132=A133,"○",IF(F132<>E133,"つなぎまちがい","終端")) -> ○
A133: 130 | B133: 0 | C133: 60000 | D133: =AccVelDataLink!A133 -> 130 | E133: =A132 -> 129 | F133: =A134 -> 131 | H133: =AccVelDataLink!G133 -> 60 | I133: ○ | J133: ○
A134: 131 | B134: 0 | C134: 80000 | D134: =AccVelDataLink!A134 -> 131 | E134: =A133 -> 130 | F134: =A135 -> 132 | H134: =AccVelDataLink!G134 -> 80 | I134: ○ | J134: ○
A135: 132 | B135: 1 | C135: 15000 | D135: =AccVelDataLink!A135 -> 132 | E135: =A134 -> 131 | F135: =A136 -> 133 | G135: =AccVelDataLink!F135 -> ISA-MYM-100-5-垂直 | H135: =AccVelDataLink!G135 -> 15 | I135: ○ | J135: ○
A136: 133 | B136: 1 | C136: 19000 | D136: =AccVelDataLink!A136 -> 133 | E136: =A135 -> 132 | F136: -1 | H136: =AccVelDataLink!G136 -> 19 | I136: ○ | J136: 終端
A137: 134 | B137: 0 | C137: 20000 | D137: =AccVelDataLink!A137 -> 134 | E137: -1 | F137: =A138 -> 135 | G137: =AccVelDataLink!F137 -> ISA-MYM-100-10-水平 | H137: =AccVelDataLink!G137 -> 20 | I137: 先頭 | J137: ○
A138: 135 | B138: 0 | C138: 24000 | D138: =AccVelDataLink!A138 -> 135 | E138: =A137 -> 134 | F138: 136 | H138: =AccVelDataLink!G138 -> 24 | I138: ○ | J138: ○
A139: 136 | B139: 0 | C139: 30000 | D139: =AccVelDataLink!A139 -> 136 | E139: 135 | F139: 137 | H139: =AccVelDataLink!G139 -> 30 | I139: ○ | J139: ○
A140: 137 | B140: 0 | C140: 40000 | D140: =AccVelDataLink!A140 -> 137 | E140: 136 | F140: 138 | H140: =AccVelDataLink!G140 -> 40 | I140: ○ | J140: ○
A141: 138 | B141: 1 | C141: 7000 | D141: =AccVelDataLink!A141 -> 138 | E141: 137 | F141: 139 | G141: =AccVelDataLink!F141 -> ISA-MYM-100-10-垂直 | H141: =AccVelDataLink!G141 -> 7 | I141: ○ | J141: ○
A142: 139 | B142: 1 | C142: 7600 | D142: =AccVelDataLink!A142 -> 139 | E142: 138 | F142: 140 | H142: =AccVelDataLink!G142 -> 7.6 | I142: ○ | J142: ○
A143: 140 | B143: 1 | C143: 9000 | D143: =AccVelDataLink!A143 -> 140 | E143: 139 | F143: -1 | H143: =AccVelDataLink!G143 -> 9 | I143: ○ | J143: 終端
A144: 141 | B144: 0 | C144: 6000 | D144: =AccVelDataLink!A144 -> 141 | E144: -1 | F144: =A145 -> 142 | G144: =AccVelDataLink!F144 -> ISA-MYM-100-20-水平 | H144: =AccVelDataLink!G144 -> 6 | I144: 先頭 | J144: ○
A145: 142 | B145: 0 | C145: 6500 | D145: =AccVelDataLink!A145 -> 142 | E145: =A144 -> 141 | F145: 143 | H145: =AccVelDataLink!G145 -> 6.5 | I145: ○ | J145: ○
A146: 143 | B146: 0 | C146: 7500 | D146: =AccVelDataLink!A146 -> 143 | E146: 142 | F146: 144 | H146: =AccVelDataLink!G146 -> 7.5 | I146: ○ | J146: ○
A147: 144 | B147: 0 | C147: 8500 | D147: =AccVelDataLink!A147 -> 144 | E147: 143 | F147: 145 | H147: =AccVelDataLink!G147 -> 8.5 | I147: ○ | J147: ○
A148: 145 | B148: 0 | C148: 10000 | D148: =AccVelDataLink!A148 -> 145 | E148: 144 | F148: 146 | H148: =AccVelDataLink!G148 -> 10 | I148: ○ | J148: ○
A149: 146 | B149: 0 | C149: 12000 | D149: =AccVelDataLink!A149 -> 146 | E149: 145 | F149: 147 | H149: =AccVelDataLink!G149 -> 12 | I149: ○ | J149: ○
A150: 147 | B150: 0 | C150: 15000 | D150: =AccVelDataLink!A150 -> 147 | E150: 146 | F150: 148 | H150: =AccVelDataLink!G150 -> 15 | I150: ○ | J150: ○
A151: 148 | B151: 0 | C151: 20000 | D151: =AccVelDataLink!A151 -> 148 | E151: 147 | F151: 149 | H151: =AccVelDataLink!G151 -> 20 | I151: ○ | J151: ○
